Workbook

Sheet Hinweise
B1: ="Einige wichtige Hinweise zum Ausfüllen der Zeiterfassung " & SL_Jahr -> Einige wichtige Hinweise zum Ausfüllen der Zeiterfassung 2024 | D1: =IF(VSATestModus=TRUE(),"VSA-Modus!","") -> 
B5: Erste Schritte: | D5: Neu ab dieser Tool-Version 1.0 (Makro unterstütztes Tool)
B7: 1. Wenn Sie das Zeiterfassungstool zum ersten Mal benutzen, gehen Sie direkt zum Basisblatt und vervollständigen Sie dort Ihre Daten. Anschliessend weiter zu 2. Wenn Sie bereits im Vorjahr mit einer Zeiterfassung ab Version 5 gearbeitet haben, können Sie die Werte aus dem Vorjahr übertragen (vgl. 1.1).Tragen sie die E-Mail-Adresse ihrer vorgesetzten Stelle (VG) ein, damit sie komfortabler ein vorgetextetes Email für das Senden der Zwischendateien erstellen können. | D7: ="Sie werden diverse Neuigkeiten gegenüber der Version 5 bemerken, Buttons in verschiedenen Farben zu verschiedenen Aktionen, Blattregisterfarben etc. Auch dass nur relevante Monate eingeblendet sind." &IF(VSA_HELPLINK="","", "Damit sie das ganze neue System, Zwischendateien, Visieren, Senden an VG etc. besser verstehen, sollten sie das Handbuch mit dem folgenden Link einsehen:") -> Sie werden diverse Neuigkeiten gegenüber der Version 5 bemerken, Buttons in verschiedenen Farben zu verschiedenen Aktionen, Blattregisterfarben etc. Auch dass nur relevante Monate eingeblendet sind.Damit sie das ganze neue System, Zwischendateien, Visieren, Senden an VG etc. besser verstehen, sollten sie das Handbuch mit dem folgenden Link einsehen:
B8: 1.1 Übertrag der Daten aus dem Vorjahr. Im Basisblatt befindet sich der grüne Button 'Daten übertragen'. Wählen sie im Dialog "Ja". Sie werden geführt die Vorjahresdatei finden, damit die Daten von dieser Datei übernommen werden. | D8: http://www.vsa.zh.ch
D9: Weitere Hinweise und Anregungen können Sie per E-Mail senden an: | K9: Besten Dank.
B10: 2. Beginnt Ihr Arbeitsverhältnis als Schulleiterin oder als Schulleiter erst ab dem 1. August, schreiben Sie im Basisblatt unter dem Titel 'Beschäftigungsgrad...' in die zweite Datenzeile das Datum des ersten Anstellungstags und ihr Beschäftigungsgrad als Schulleiterin oder als Schulleiter. Das Endedatum in der Zeile darüber wird automatisch auf einen Tag zuvor gesetzt. Den BG in der ersten Zeile in diesem Fall auf 0 setzen! | D10: lehrpersonal@vsa.zh.ch
B11: 2.1 Nach dem Eintrag des BG wie vorher beschrieben werden die Wochentage abgebildet. Sie gebenunterhalb des Titels 'Regelarbeitszeit' ihre geplante Tagesarbeitszeit von Montag bis Freitag ein (pro Tag max. 8.40 h). Bitte beachten Sie, dass die Summe der hier eingegebenen Zeit der 'Empf. Arb.zeit' (rechts) entspricht. Eine Farbe im Kasten "Kontrolle Woche" weist daraufhin, dass die Stunden noch angepasst werden müssen.
B12: 3. Lokale Feiertage können nicht mehr manuell im Blatt 'Kalender' eingetragen werden. Damit sie die entsprechenden Feiertage richtig zugeordnet bekommen, müssen sie lediglich das Feld "Bezirk" (im Basisblatt oben links) korrekt auswählen. Für die Stadt Zürich wird je ein halber Tag für Sechseläuten und Knabenschiessen gewährt. Alle ausserhalb Zürich erhalten einen ganzen Feiertag am Fasnachtsmontag.
B13: 3.1. Regelmässige, im Stundenplan eingetragene Unterrichtslektionen, werden nicht in diesem Tool erfasst. | D13: Hilfstabelle zur Umrechnung Uhrzeitformat > Dezimal | G13: "Rote Hand" | I13: I
B14: 3.2 Für die Erfassung weiterer bewilligter Tätigkeiten stehen zwei freie Zeilen zur Verfügung. Diese können im Basisblatt (rechts) unter dem Titel 'Beschriftungen für Freie Zeilen 1+2' eingetragen werden. | D14: 0:05 0:10 0:15 0:20 0:25 0:30 0:35 0:40 0:45 0:50 0:55 | E14: 0.08 0.17 0.25 0.33 0.42 0.50 0.58 0.67 0.75 0.83 0.92 | G14: Dieses Symbol erscheint am unteren Rand des Monatsblatts wenn die Summe aus Ihrer Arbeitsleistung (oben) und den Abwesenheitszeiten (unten) grösser ist als die Normalarbeitszeit. Die Total Arbeitszeit (IST) wird höchstens bis zur Normalarbeitszeit berechnet.
B15: 4. Die Zeitangaben werden in den unteren Zeilen ab 'Ferien' weiterhin dezimal eingegeben. Nebenan sehen sie eine Hilfe zur Umrechnung. Beispiele: 6.25 (= 6:15 = 61/4 Std.) 5.75 (= 5:45 = 5 3/4 Std.) Am einfachsten ist die Eingabe der Abwesenheitsstunden auf Viertelstunden genau. Siehe rote Zeiten in der Hilfstabelle rechts.
B17: 5. Ab Januar 2020 wurden die Arbeitszeiten nicht mehr einem Bereich zugeordnet. An Stelle dessen werden 4 "Ein/Aus-Blocks" angeboten. In diese werden Uhrzeiten eingetragen. Damit keine unstimmigen Werte in der Präsenzzeit entstehen, wird die Summe ihrer Anwesenheit erst dann ersichtlich wenn kein Eingabefehler vorhanden ist. Nebenan finden sie ein paar Beispiele.
D18: Ein >>> | F18: 08:00:00 | G18: 08:00:00 | H18: 07:00:00 | I18: 08:00:00 | J18: 08:00:00 | K18: 08:00:00
D19: <<< Aus | F19: 10:45:00 | G19: 15:00:00 | H19: 11:00:00 | J19: 10:00:00 | K19: 10:00:00
D20: Ein >>> | F20: 10:30:00 | H20: 11:15:00 | K20: 10:30:00
D21: <<< Aus | F21: 17:00:00 | H21: 17:24:00 | K21: 17:00:00
B22: Die Ein-Zeit ist früher als die vorangegangene Aus-Zeit. (auch andere Fehler) | D22: Ein >>> | F22: 17:10:00 | H22: 18:00:00 | J22: 10:30:00
B23: Es wurde über 6 Std. ohne zusammenhängende 30 Minuten-Pause gearbeitet. | D23: <<< Aus | F23: 18:45:00 | H23: 18:15:00 | J23: 17:00:00
B24: Dies ist kein eigentlicher Fehler. Es wird lediglich die fehlende Ein/Aus-Zeit markiert. | D24: Ein >>>
B25: Die Zeiten müssen lückenlos von oben nach unten eingetragen werden | D25: <<< Aus
B26: Hier sind alle Eingaben korrekt: Keine Farben, die Präsenzzeit wird angezeigt. | D26: =B_PrZeit -> Präsenzzeit | F26: =24*(F19-F18+F21-F20+F23-F22+F25-F24)*E109 -> 0 | G26: =24*(G19-G18+G21-G20+G23-G22+G25-G24)*F109 -> 0 | H26: =24*(H19-H18+H21-H20+H23-H22+H25-H24)*G109 -> 0 | I26: =24*(I19-I18+I21-I20+I23-I22+I25-I24)*H109 -> 0 | J26: =24*(J19-J18+J21-J20+J23-J22+J25-J24)*I109 -> 0 | K26: =24*(K19-K18+K21-K20+K23-K22+K25-K24) -> 8.5
J27: (die Präsenzzeit erscheint erst bei fehlerfreien Eingaben)
B28: 6. Alle Tabellenblätter sind für dieses Tool von Nöten. Versuchen sie nie, ein solches zu löschen, da das ganze Tool dadurch zerstört wird. Eine Datenübernahme aus einem zerstörten Tool wäre nicht mehr möglich!
B29: 6.1. 'Kopieren und Einfügen' funktioniert infolge Formelschutz nicht überall.
B30: 7. Eine Eingabe in 'in der Zukunft' ist theoretisch möglich. Der Arbeitszeitzähler wird jedoch nur bis zum heutigen Datum (oder dem von Hand eingestellten Datum) nachgeführt.
B31: 8. Es empfiehlt sich, regelmässig ein Backup vorzunehmen.
AN52: 0

Sheet Intern (hidden)
A2: 1 | B2: 2 | C2: 3 | D2: 4 | E2: 5 | F2: 6 | G2: 7 | H2: 8 | I2: 9 | J2: 10 | N2: Versionen | Q2: Sprachcodes | S2: Erfasst
A3: Bereich: "BlattKontrolle" | G3: (Eingaben) | H3: (Vorherige) | I3: (7 und 8) | J3: =IFERROR(MATCH(1,D5:D17,0),0)=0 -> TRUE | K3: Formelfehler | M3: OS | N3: Office | O3: Ver | P3: Installiert | Q3: Oberfläche | R3: Hilfe | S3: Timestamp
A4: Index | B4: sh | C4: Hinweise | D4: Status | E4: temp | G4: Abschliessbar 1 | H4: Abschliessbar 2 | I4: Ist Abschliessbar | J4: Entsperrbar | K4: =IFERROR(INDIRECT($C4&"!"&K$19),1) -> 0 | S4: leer | T4: 1
A5: 1 | B5: 0 | C5: Basisblatt | D5: =INDIRECT($C5&"!"&D$19) -> 3 | E5: =IF(D5<0,99,D5) -> 3 | F5: =INDIRECT($C5&"!"&F$19) -> Eingaben vornehmen | G5: =INDIRECT($C5&"!"&G$19) -> FALSE | H5: TRUE | I5: =AND(G5,H5) -> FALSE | J5: =OR($J$3,D5=1,D5=2) -> TRUE | K5: =IFERROR(INDIRECT($C5&"!"&K$19),1) -> 0 | L5: 1. Kontrolle | T5: =NOT(M5="")*2 -> 0
A6: 2 | B6: 1 | C6: Januar | D6: =INDIRECT($C6&"!"&D$19) -> -1 | E6: =IF(D6<0,99,D6) -> 99 | F6: =INDIRECT($C6&"!"&F$19) -> Nicht Relevant | G6: =INDIRECT($C6&"!"&G$19) -> FALSE | H6: =MIN($E$5:E5,5)=5 -> FALSE | I6: FALSE | J6: =OR($J$3,D6=1,D6=2) -> TRUE | K6: =IFERROR(INDIRECT($C6&"!"&K$19),1) -> 0 | L6: 2. Kontrolle | T6: =NOT(M6="")*3 -> 0
A7: 3 | B7: 2 | C7: Februar | D7: =INDIRECT($C7&"!"&D$19) -> -1 | E7: 99 | F7: =INDIRECT($C7&"!"&F$19) -> Nicht Relevant | G7: =INDIRECT($C7&"!"&G$19) -> FALSE | H7: =MIN($E$5:E6,5)=5 -> FALSE | I7: FALSE | J7: =OR($J$3,D7=1,D7=2) -> TRUE | K7: =IFERROR(INDIRECT($C7&"!"&K$19),1) -> 0 | L7: 3. Kontrolle | T7: =NOT(M7="")*4 -> 0
A8: 4 | B8: 3 | C8: März | D8: =INDIRECT($C8&"!"&D$19) -> -1 | E8: 99 | F8: =INDIRECT($C8&"!"&F$19) -> Nicht Relevant | G8: =INDIRECT($C8&"!"&G$19) -> FALSE | H8: =MIN($E$5:E7,5)=5 -> FALSE | I8: FALSE | J8: TRUE | K8: =IFERROR(INDIRECT($C8&"!"&K$19),1) -> 0
A9: 5 | B9: 4 | C9: April | D9: =INDIRECT($C9&"!"&D$19) -> -1 | E9: 99 | F9: =INDIRECT($C9&"!"&F$19) -> Nicht Relevant | G9: =INDIRECT($C9&"!"&G$19) -> FALSE | H9: =MIN($E$5:E8,5)=5 -> FALSE | I9: FALSE | J9: TRUE | K9: =IFERROR(INDIRECT($C9&"!"&K$19),1) -> 0 | L9: Aktuell | M9: =INDEX(M4:M7,$T$9)&"" ->  | N9: =INDEX(N4:N7,$T$9) -> 0 | O9: =INDEX(O4:O7,$T$9) -> 0 | P9: =INDEX(P4:P7,$T$9) -> 0 | Q9: =INDEX(Q4:Q7,$T$9) -> 0 | R9: =INDEX(R4:R7,$T$9) -> 0 | S9: =INDEX(S4:S7,$T$9) -> leer | T9: =MAX(T4:T7) -> 1
A10: 6 | B10: 5 | C10: Mai | D10: =INDIRECT($C10&"!"&D$19) -> -1 | E10: 99 | F10: =INDIRECT($C10&"!"&F$19) -> Nicht Relevant | G10: =INDIRECT($C10&"!"&G$19) -> FALSE | H10: =MIN($E$5:E9,5)=5 -> FALSE | I10: FALSE | J10: TRUE | K10: =IFERROR(INDIRECT($C10&"!"&K$19),1) -> 0
A11: 7 | B11: 6 | C11: Juni | D11: =INDIRECT($C11&"!"&D$19) -> -1 | E11: 99 | F11: =INDIRECT($C11&"!"&F$19) -> Nicht Relevant | G11: =INDIRECT($C11&"!"&G$19) -> FALSE | H11: =MIN($E$5:E10,5)=5 -> FALSE | I11: FALSE | J11: TRUE | K11: =IFERROR(INDIRECT($C11&"!"&K$19),1) -> 0 | M11: Win | N11: 365 | O11: 16 | Q11: Soll (optimal)
A12: 8 | B12: 7 | C12: Juli | D12: =INDIRECT($C12&"!"&D$19) -> -1 | E12: 99 | F12: =INDIRECT($C12&"!"&F$19) -> Nicht Relevant | G12: =INDIRECT($C12&"!"&G$19) -> FALSE | H12: =MIN($E$5:E11,5)=5 -> FALSE | I12: FALSE | J12: TRUE | K12: =IFERROR(INDIRECT($C12&"!"&K$19),1) -> 0 | M12: Mac | N12: 2019 | O12: 15 | P12: 2055 | Q12: 1031 | R12: 1031
A13: 9 | B13: 8 | C13: August | D13: =INDIRECT($C13&"!"&D$19) -> -1 | E13: 99 | F13: =INDIRECT($C13&"!"&F$19) -> Nicht Relevant | G13: =INDIRECT($C13&"!"&G$19) -> FALSE | H13: =MIN($E$5:E12,5)=5 -> FALSE | I13: FALSE | J13: TRUE | K13: =IFERROR(INDIRECT($C13&"!"&K$19),1) -> 0 | N13: 2016 | P13: DE-CH | Q13: DE_DE | R13: DE_DE
A14: 10 | B14: 9 | C14: September | D14: =INDIRECT($C14&"!"&D$19) -> -1 | E14: 99 | F14: =INDIRECT($C14&"!"&F$19) -> Nicht Relevant | G14: =INDIRECT($C14&"!"&G$19) -> FALSE | H14: =MIN($E$5:E13,5)=5 -> FALSE | I14: FALSE | J14: =OR($J$3,D14=1,D14=2) -> TRUE | K14: =IFERROR(INDIRECT($C14&"!"&K$19),1) -> 0
A15: 11 | B15: 10 | C15: Oktober | D15: =INDIRECT($C15&"!"&D$19) -> -1 | E15: 99 | F15: =INDIRECT($C15&"!"&F$19) -> Nicht Relevant | G15: =INDIRECT($C15&"!"&G$19) -> FALSE | H15: =MIN($E$5:E14,5)=5 -> FALSE | I15: FALSE | J15: TRUE | K15: =IFERROR(INDIRECT($C15&"!"&K$19),1) -> 0 | L15: Die OS Version wird bei jedem Logeintrag überprüft, Wenn OS abweicht: Neue Zeile (max. 3)
A16: 12 | B16: 11 | C16: November | D16: =INDIRECT($C16&"!"&D$19) -> -1 | E16: 99 | F16: =INDIRECT($C16&"!"&F$19) -> Nicht Relevant | G16: =INDIRECT($C16&"!"&G$19) -> FALSE | H16: =MIN($E$5:E15,5)=5 -> FALSE | I16: FALSE | J16: TRUE | K16: =IFERROR(INDIRECT($C16&"!"&K$19),1) -> 0
A17: 13 | B17: 12 | C17: Dezember | D17: =INDIRECT($C17&"!"&D$19) -> -1 | E17: 99 | F17: =INDIRECT($C17&"!"&F$19) -> Nicht Relevant | G17: =INDIRECT($C17&"!"&G$19) -> FALSE | H17: =MIN($E$5:E16,5)=5 -> FALSE | I17: FALSE | J17: TRUE | K17: =IFERROR(INDIRECT($C17&"!"&K$19),1) -> 0
A18: 14 | C18: Jahresabrechnung | D18: =INDIRECT($C18&"!"&D$19) -> 3 | E18: =IF(D18<0,99,D18) -> 3 | F18: =INDIRECT($C18&"!"&F$19) -> Warten | G18: =INDIRECT($C18&"!"&G$19) -> FALSE | H18: =MIN($E$5:E17,5)=5 -> FALSE | I18: =MIN(E5:E17)>=5 -> FALSE | J18: TRUE | K18: =SUM(K5:K17) -> 0
D19: AP10 | F19: AP11 | G19: AP6 | K19: AN52 | L19: Vorgetextete Email | N19: Achtung bei Mac: Alle Umlaute werden für den Link umgewandelt .
D20: FALSE | E20: nicht mehr verwendet!! (vorher: Basisblatt kann ohne senden abgeschlossen werden)
L21: Variable: | M21: [OBJEKT] | N21: Monatsblatt | O21: Basisblatt | P21: Jahresabrechnung
C22: TPraefix | D22: Version VSA | G22: Mind. ausgefüllte Regelarbeitstage | H22: 1 | M22: [ZEITRAUM] | N22: 202305 | O22: 2023 | P22: 2023
C23: TVersion | D23: 106 | N23: Hans Huber_123456_Basisblatt_2023_20230520.xlsx
C24: TVers2 | D24: =TEXT(D23/100,"0.00") -> 1.06 | G24: Kontrolle Anz. Feiertage | H24: =COUNTA(Kalender!H7:I372) -> 17 | I24: muss in Vorlagen Null oder leer sein!! | M24: [FILENAME] | N24: Hans Huber_123456_Monatsblatt_202305_20230520.xlsx
C25: TZusatz | I25: (17 ist korrekt für SL-Tools) | N25: Hans Huber_123456_Jahresabrechnung_2023_20230520.xlsx
G26: Feiertagstexte in Zeilen 44 | H26: =IF(SUBTOTAL(103,Dezember!D44:AH44)=0,"nicht angezeigt","angezeigt") -> angezeigt | I26: Sub FeiertagsanzeigeEinblenden() | M26: [SLNAME] | N26: Der Name der SL aus dem Basisblatt
G27: Feiertagstexte in Zeilen 44 anzeigen? | H27: 1 | I27: 1: anzeigen, Leer: ausblenden
C28: Hat Bezugs/Formelfehler: | D28: =IFERROR(SUM(K5:K18)>0,TRUE()) -> FALSE | F28: =WENNFEHLER(SUMME(K5:K18)>0;WAHR()) | L28: Betreff: | M28: [OBJEKT] [ZEITRAUM] zur Kontrolle
C29: tmp. Kopierschutz eingeschaltet | D29: FALSE | F29: Zugelassene Benutzer (Maske)
C30: Im VSA Test-Modus | D30: FALSE | F30: B252* | H30: =IF(VSATestModus=TRUE(),"VSA-Modus!","") ->  | M30: Guten Tag Hiermit sende ich die Zwischendatei [FILENAME] zur Kontrolle. Mit freundlichem Gruss [SLNAME]
C32: Versionsverlauf unten | E32: Vorlage muss nach Weiterentwicklung jedesmal neu erstellt werden!
B34: Versionen
B35: 1.02 | C35: Pfadlänge korolliert in Function GetSavePath() | F35: (Erzeugt immer noch XLSM-Zwischendateien)
C36: nicht dringend, aber für zukünftige Ausgaben bereit
C38: Alle Blätter anzeigen "VSA-Hack"
C39: Feiertagsanzeige von hier umschaltbar: Sub FeiertagsanzeigeEinblenden()
B41: 1.03 | C41: Basisblatt: Berechnungen "Total" auf Zeilen 25 bis 31 verifiziert
C42: und alle Uebertragsfelder (Spalte E): Keine manuellen Eingaben mehr.
C44: Modul "Daten": Sub DatenVorjahr: Uebernahme angepasst, Blattschutz daher ein/aus.
C46: Modul "Export": Function "Zwischendatei_Erstellen" neu als XLSX (ohne Makros)
C47: Function "GetInfo" angepasst, damit XLSM und/oder XLSX verarbeitet werden können.
B49: 1.04 | C49: Fehler bei der Funktion "DatenVorversion" behoben (Visierungszeilen wurden alle in das Basisblatt
C50: gescrieben, was in D39 eine Formel zerstörte.
B52: 1.05 | C52: Unterbinden von Verschieben und Ausschneiden/Einfügen und Blatt-Löschen 1)
C53: Zugriff für VSA-User durch Erkennung anhand User-ID
C54: Monatsblatt reparieren (X_Monate)
C55: Blatt reparieren im VSA Modus möglich
C57: Kritische Fehlermeldungen enthalten einen codierten Umgebungscode im Titel

Sheet Logbuch (hidden)
A3: Aktions-Logeinträge: | B3: =COUNTA(A5:A5004) -> 0 | I3: Maximal 5000 Einträge möglich
A4: Timestamp | B4: Computername | C4: Benutzername | D4: Objekt | E4: Betreff | F4: Aktion | G4: Weitere Aktionen | H4: Speziell, Grund | I4: Zwischendatei-Name

Sheet Undo (hidden)
AJ1: =COLUMN() -> 36 | AK1: =COLUMN() -> 37 | AM1: =COLUMN() -> 39 | AN1: =COLUMN() -> 40 | AO1: =COLUMN() -> 41 | AP1: =COLUMN() -> 42 | AQ1: =COLUMN() -> 43 | AR1: =COLUMN() -> 44 | AS1: =COLUMN() -> 45
A2: Blatt: | D2: Die Daten werden immer beim Entsperren zurückgesetzt und neu kopiert. | AJ2: Nr | AK2: Status
AJ3: 1 | AT3: Maximale Nummer
D4: 1 | E4: 2 | F4: 3 | G4: 4 | H4: 5 | I4: 6 | J4: 7 | K4: 8 | L4: 9 | M4: 10 | N4: 11 | O4: 12 | P4: 13 | Q4: 14 | R4: 15 | S4: 16 | T4: 17 | U4: 18 | V4: 19 | W4: 20 | X4: 21 | Y4: 22 | Z4: 23 | AA4: 24 | AB4: 25 | AC4: 26 | AD4: 27 | AE4: 28 | AF4: 29 | AG4: 30 | AH4: 31 | AJ4: 2 | AT4: =MAX(AK3:AK54) -> 0
B5: Ein >>> | AJ5: 5
B6: <<< Aus | AJ6: 2
B7: Ein >>> | AJ7: 1
B8: <<< Aus | AJ8: 1
B9: Ein >>>
B10: <<< Aus
B11: Ein >>>
B12: <<< Aus | AT12: E-Mail-Adresse der vorgesetzten Stelle:
AJ13: 1
D15: Werte nur beim "Entsperren" aus dem betreffenden Monat als Werte herauskopiert.
A16: HatDaten: | B16: =COUNTA(B2,D5:AH12,D20:AH35,AK3:AS54)>0 -> FALSE | D16: Beim Drücken von "Abschliessen" können die Änderungen zurückgenommen werden | AT16: Startsaldi / Jahresübertrag
D17: Dann werden alle diese Werte im betreffenden Monat wieder eingetragen
B20: Ferien
B21: Kompensation Arbeitstage
B22: Arztbesuch
B23: Krankheit
B24: Berufsunfall
B25: Nichtberufsunfall | AJ25: 2
B26: Militär / Zivilschutz | AJ26: 2
B27: Unbezahlter Urlaub | AJ27: 2
B28: Bezahlter Urlaub | AJ28: 2
B29: Nebenbeschäftigung | AJ29: 2
B30: D A G
B31: Diverses | AJ31: 2
B32: Fam./pers. Ereignisse
B33: freie Zeile 1
B34: freie Zeile 2
B35: Weiterbildung
AT37: Beschäftigungsgrad, Ferienanspruch, empfohlene regelmässige Arbeitszeit
AJ40: 3
AJ41: 3
AJ42: 3
AJ43: 3
AJ44: 3
AT48: Regelarbeitszeit
AJ50: 3
AJ51: 3
AJ52: 3
AJ53: 3
AJ54: 3

Sheet tmpMonat (hidden)
A1: 1 | B1: =DATEVALUE("1."&A1&"."&SL_Jahr) -> 2024-01-01 | C1: =SL_Jahr -> 2024 | D1: =B_Gde -> Gde: | E1: =SL_Gemeinde -> 0 | T1: =B_Schule -> Schule: | U1: =SL_Schule -> 0 | AM1: Abschluss-Teilbedingungen:
A2: =VLOOKUP(A1,Monatsenden,2) -> 45322 | B2: =B_Bg -> BG: | C2: =VLOOKUP(B1,VSA_Kalender,13) -> 1 | D2: =B_Name -> Name: | E2: =SL_Name -> 0 | AM2: Regel ok | AN2: =(AN14>=AN15) -> FALSE | AO2: Nicht Relevant | AP2: =D83=0 -> TRUE | AQ2: -1 | AR2: =IF(AP2=TRUE,AQ2,0) -> -1 | AS2: Nicht Relevant
B3: =Zerf_Version & " " & Zerf_T -> Version VSA 1.06 | D3: =DATE($C$1,MONTH($B$1),D$4) -> 2024-01-01 | E3: =DATE($C$1,MONTH($B$1),E$4) -> 2024-01-02 | F3: 2024-01-03 | G3: 2024-01-04 | H3: 2024-01-05 | I3: 2024-01-06 | J3: 2024-01-07 | K3: 2024-01-08 | L3: 2024-01-09 | M3: 2024-01-10 | N3: 2024-01-11 | O3: 2024-01-12 | P3: 2024-01-13 | Q3: 2024-01-14 | R3: 2024-01-15 | S3: 2024-01-16 | T3: 2024-01-17 | U3: 2024-01-18 | V3: 2024-01-19 | W3: 2024-01-20 | X3: 2024-01-21 | Y3: 2024-01-22 | Z3: 2024-01-23 | AA3: 2024-01-24 | AB3: 2024-01-25 | AC3: 2024-01-26 | AD3: 2024-01-27 | AE3: 2024-01-28 | AF3: =IF(MONTH(DATE($C$1,MONTH($B$1),AF$41))>MONTH($B$1),"",DATE($C$1,MONTH($B$1),AF$4)) -> 2024-01-29 | AG3: =IF(MONTH(DATE($C$1,MONTH($B$1),AG$41))>MONTH($B$1),"",DATE($C$1,MONTH($B$1),AG$4)) -> 2024-01-30 | AH3: =IF(MONTH(DATE($C$1,MONTH($B$1),AH$41))>MONTH($B$1),"",DATE($C$1,MONTH($B$1),AH$4)) -> 2024-01-31 | AM3: Spalten ok | AN3: =(L83>=D83) -> TRUE | AO3: Entsperrt | AP3: FALSE | AQ3: 1 | AR3: =AP3*AQ3 -> 0 | AS3: Entsperrt
B4: =IF(VSATestModus=TRUE(),"VSA-Modus!","") ->  | C4: =IF(AN52>0,"DEFEKT","") ->  | D4: =IF(MONTH(DATE($C$1,MONTH($B$1),D$41))>MONTH($B$1),"",D41) -> 1 | E4: 2 | F4: 3 | G4: 4 | H4: 5 | I4: 6 | J4: 7 | K4: 8 | L4: 9 | M4: 10 | N4: 11 | O4: 12 | P4: 13 | Q4: 14 | R4: 15 | S4: 16 | T4: 17 | U4: 18 | V4: 19 | W4: 20 | X4: 21 | Y4: 22 | Z4: 23 | AA4: 24 | AB4: 25 | AC4: 26 | AD4: 27 | AE4: 28 | AF4: =IF(MONTH(DATE($C$1,MONTH($B$1),AF$41))>MONTH($B$1),"",AF41) -> 29 | AG4: =IF(MONTH(DATE($C$1,MONTH($B$1),AG$41))>MONTH($B$1),"",AG41) -> 30 | AH4: =IF(MONTH(DATE($C$1,MONTH($B$1),AH$41))>MONTH($B$1),"",AH41) -> 31 | AM4: Keine Fehler | AN4: =(SUM(D87:AH87)=0) -> TRUE | AO4: Geändert | AP4: FALSE | AQ4: 2 | AR4: =AP4*AQ4 -> 0 | AS4: Geändert
B5: Ein >>> | AM5: Keine Hand | AN5: =(AI12="") -> TRUE | AO5: Sperre | AP5: =AS11=2 -> FALSE | AQ5: 3 | AR5: =NOT(AP6)*AQ5 -> 3 | AS5: Eingaben vornehmen
B6: <<< Aus | AO6: Abschliessbar 1 | AP6: =AND(OR(AN2,AN3),AN4,AN5,NOT(AP7),NOT(AP2)) -> FALSE | AQ6: 4 | AR6: =AND(NOT(OR(AP3,AP4)),AP6)*AQ6 -> 0 | AS6: Abschliessbar 1
B7: Ein >>> | AO7: Abgeschlossen | AP7: FALSE | AQ7: 5 | AR7: =AND(NOT(OR(AP3,AP4)),AP7)*AQ7 -> 0 | AS7: Abgeschlossen
B8: <<< Aus | AO8: Für Jahr OK | AP8: =AND(OR(AP2,AP7),NOT(AP3)) -> TRUE
B9: Ein >>> | AI9: VORLAGE MONAT!
B10: <<< Aus | AI10: IMMER UNGESCHÜTZT | AO10: Statusnummer: | AP10: =IF(AR2=AQ2,AQ2,MAX(AR2:AR7)) -> -1
B11: Ein >>> | AI11: IMMER AUSGEBLENDET 2 | AM11: HatDaten: | AN11: =AND(AP2=FALSE,OR(AP10<>3,COUNTA(D5:AH12,D20:AH35,D39:L40)>0)) -> FALSE | AO11: Statustext: | AP11: =IFERROR(VLOOKUP(AP10,AR2:AS7,2,FALSE),"unbekannt") -> Nicht Relevant | AS11: 0
B12: <<< Aus | AI12: =IF(COUNTIF(D37:AH37,"I")>0,"I","") -> 
B13: =B_PrZeit -> Präsenzzeit | D13: =24*(D6-D5+D8-D7+D10-D9+D12-D11)*D88 -> 0 | E13: =24*(E6-E5+E8-E7+E10-E9+E12-E11)*E88 -> 0 | F13: 0 | G13: 0 | H13: 0 | I13: 0 | J13: 0 | K13: 0 | L13: 0 | M13: 0 | N13: 0 | O13: 0 | P13: 0 | Q13: 0 | R13: 0 | S13: 0 | T13: 0 | U13: 0 | V13: 0 | W13: 0 | X13: 0 | Y13: 0 | Z13: 0 | AA13: 0 | AB13: 0 | AC13: 0 | AD13: 0 | AE13: 0 | AF13: 0 | AG13: 0 | AH13: 0 | AM13: Anzahl Regeltage: | AN13: =D83 -> 0
B14: =B_TotalAZist -> Total Arbeitszeit (IST) | D14: =IF(D13+D35>=D15,D13+D35,MIN(D13+D35+SUM(D20,D22,D23,D24,D25,D26,D27,D28,D29,D30,D31,D32,D33,D34),IF(D15<0,0,D15)))*D82 -> 0 | E14: 0 | F14: 0 | G14: 0 | H14: 0 | I14: 0 | J14: 0 | K14: 0 | L14: 0 | M14: 0 | N14: 0 | O14: 0 | P14: 0 | Q14: 0 | R14: =IF(R13+R35>=R15,R13+R35,MIN(R13+R35+SUM(R20,R22,R23,R24,R25,R26,R27,R28,R29,R30,R31,R32,R33,R34),IF(R15<0,0,R15)))*R82 -> 0 | S14: =IF(S13+S35>=S15,S13+S35,MIN(S13+S35+SUM(S20,S22,S23,S24,S25,S26,S27,S28,S29,S30,S31,S32,S33,S34),IF(S15<0,0,S15)))*S82 -> 0 | T14: =IF(T13+T35>=T15,T13+T35,MIN(T13+T35+SUM(T20,T22,T23,T24,T25,T26,T27,T28,T29,T30,T31,T32,T33,T34),IF(T15<0,0,T15)))*T82 -> 0 | U14: =IF(U13+U35>=U15,U13+U35,MIN(U13+U35+SUM(U20,U22,U23,U24,U25,U26,U27,U28,U29,U30,U31,U32,U33,U34),IF(U15<0,0,U15)))*U82 -> 0 | V14: 0 | W14: 0 | X14: 0 | Y14: 0 | Z14: 0 | AA14: 0 | AB14: 0 | AC14: 0 | AD14: 0 | AE14: 0 | AF14: 0 | AG14: 0 | AH14: 0 | AI14: =SUMIF($D$82:$AH$82,1,D14:AH14) -> 0 | AJ14: =AI14-AI15 -> 16.8 | AM14: Erfasste Regeltage | AN14: =L83 -> 0 | AO14: =AN13-AN14 -> 0 | AP14: Fehlende Regeltage
B15: =B_NettoSollAZ -> Netto-SOLL-Arbeitszeit | D15: =ROUND(D16-D19,2) -> -8.4 | E15: =ROUND(E16-E19,2) -> -8.4 | F15: 0 | G15: 0 | H15: 0 | I15: 0 | J15: 0 | K15: 0 | L15: 0 | M15: 0 | N15: 0 | O15: 0 | P15: 0 | Q15: 0 | R15: 0 | S15: 0 | T15: 0 | U15: 0 | V15: 0 | W15: 0 | X15: 0 | Y15: 0 | Z15: 0 | AA15: 0 | AB15: 0 | AC15: 0 | AD15: 0 | AE15: 0 | AF15: =IF(AF$42=4,0,ROUND(AF16-AF19,2)) -> 0 | AG15: =IF(AG$42=4,0,ROUND(AG16-AG19,2)) -> 0 | AH15: 0 | AI15: =SUMIF($D$82:$AH$82,1,D15:AH15) -> -16.8 | AM15: Minimum Regeltage | AN15: =MinRegeltage -> 1 | AO15: Ist als Konstante im Blatt "Intern" hinterlegt
B16: =B_BruttoSollAZ -> Brutto-SOLL-Arb.zeit | D16: =VLOOKUP(D3,VSA_Kalender,16) -> 0 | E16: 0 | F16: 0 | G16: 0 | H16: 0 | I16: 0 | J16: 0 | K16: 0 | L16: 0 | M16: 0 | N16: 0 | O16: 0 | P16: 0 | Q16: 0 | R16: 0 | S16: 0 | T16: 0 | U16: 0 | V16: 0 | W16: 0 | X16: 0 | Y16: 0 | Z16: 0 | AA16: 0 | AB16: 0 | AC16: 0 | AD16: 0 | AE16: 0 | AF16: =IF(AF$42=4,0,VLOOKUP(AF3,VSA_Kalender,16)) -> 0 | AG16: =IF(AG$42=4,0,VLOOKUP(AG3,VSA_Kalender,16)) -> 0 | AH16: =IF(AH$42=4,0,VLOOKUP(AH3,VSA_Kalender,16)) -> 0 | AM16: Regel ok | AN16: Mind. eigetr. Regeltage erfüllt
B17: =B_MehrMinder -> Mehr-/Minderleistung | D17: =(SL_BisDatum>=D3)*ROUND(D14-D15,2) -> 8.4 | E17: 8.4 | F17: 0 | G17: 0 | H17: 0 | I17: 0 | J17: 0 | K17: 0 | L17: 0 | M17: 0 | N17: 0 | O17: 0 | P17: 0 | Q17: 0 | R17: 0 | S17: 0 | T17: 0 | U17: 0 | V17: 0 | W17: 0 | X17: 0 | Y17: 0 | Z17: 0 | AA17: 0 | AB17: 0 | AC17: 0 | AD17: 0 | AE17: 0 | AF17: 0 | AG17: 0 | AH17: 0 | AI17: =B_Total -> Total | AJ17: =B_Vortrag -> Vortrag | AM17: Spalten ok: | AN17: Alle Einträge an Regeltagen ok
B18: =B_AZSaldo -> AZ - Saldo | C18: =VLOOKUP(ROW(),VSA_Uebertrag,$A$1+3) -> 0 | D18: =IFERROR((C18+D17)*(D3<=SL_BisDatum)*VLOOKUP(D3,VSA_Kalender,21,FALSE),0) -> 8.4 | E18: 16.8 | F18: 16.8 | G18: =IFERROR((F18+G17)*(G3<=SL_BisDatum)*VLOOKUP(G3,VSA_Kalender,21,FALSE),0) -> 16.8 | H18: 16.8 | I18: 16.8 | J18: 16.8 | K18: 16.8 | L18: 16.8 | M18: 16.8 | N18: 16.8 | O18: 16.8 | P18: 16.8 | Q18: 16.8 | R18: 16.8 | S18: 16.8 | T18: 16.8 | U18: 16.8 | V18: 16.8 | W18: 16.8 | X18: 16.8 | Y18: 16.8 | Z18: 16.8 | AA18: 16.8 | AB18: 16.8 | AC18: 16.8 | AD18: 16.8 | AE18: 16.8 | AF18: 16.8 | AG18: 16.8 | AH18: 16.8 | AJ18: =SUMIF($D$82:$AH$82,1,D17:AH17)+C18 -> 16.8
B19: =B_FTA -> Feiertagsanspruch | C19: 0 | D19: =VLOOKUP(D3,VSA_Kalender,14) -> 8.4 | E19: 8.4 | F19: 0 | G19: 0 | H19: 0 | I19: 0 | J19: 0 | K19: 0 | L19: 0 | M19: 0 | N19: 0 | O19: 0 | P19: 0 | Q19: 0 | R19: 0 | S19: 0 | T19: 0 | U19: 0 | V19: 0 | W19: 0 | X19: 0 | Y19: 0 | Z19: 0 | AA19: 0 | AB19: 0 | AC19: 0 | AD19: 0 | AE19: 0 | AF19: =IF(AF$42=4,0,VLOOKUP(AF3,VSA_Kalender,14)) -> 0 | AG19: =IF(AG$42=4,0,VLOOKUP(AG3,VSA_Kalender,14)) -> 0 | AH19: =IF(AH$42=4,0,VLOOKUP(AH3,VSA_Kalender,14)) -> 0 | AI19: =SUM(D19:AH19) -> 16.8
B20: =B_Ferien -> Ferien | C20: =VLOOKUP(ROW(),VSA_Uebertrag,$A$1+3) -> 0 | AI20: =SUMIF($D$82:$AH$82,1,D20:AH20) -> 0 | AJ20: =ROUND(C20-AI20,2) -> 0 | AK20: Rest
B21: =B_KompAZ -> Kompensation Arbeitstage | C21: 0 | AI21: 0 | AJ21: =ROUND(A21+C21-AI21,0) -> 0
B22: =B_Arzt -> Arztbesuch | C22: 0 | AI22: 0 | AJ22: =ROUND(A22+C22+AI22,2) -> 0 | AK22: Summen
B23: =B_Krank -> Krankheit | C23: 0 | AI23: 0 | AJ23: =ROUND(A23+C23+AI23,2) -> 0
B24: =B_BU -> Berufsunfall | C24: 0 | AI24: 0 | AJ24: 0
B25: =B_NBU -> Nichtberufsunfall | C25: 0 | AI25: 0 | AJ25: 0
B26: =B_MilZiv -> Militär / Zivilschutz | C26: 0 | AI26: 0 | AJ26: 0
B27: =B_UUB -> Unbezahlter Urlaub | C27: 0 | AI27: 0 | AJ27: =ROUND(A27+C27-AI27,2) -> 0 | AK27: Rest
B28: =B_UB -> Bezahlter Urlaub | C28: 0 | AI28: 0 | AJ28: =ROUND(A28+C28-AI28,2) -> 0
B29: =B_NebenB -> Nebenbeschäftigung | C29: 0 | AI29: 0 | AJ29: 0
B30: =B_DAG -> D A G | C30: 0 | AI30: 0 | AJ30: 0
B31: =B_Divers -> Diverses | C31: 0 | AI31: 0 | AJ31: 0 | AK31: Summen
B32: =B_FamPersErg -> Fam./pers. Ereignisse | C32: 0 | AI32: 0 | AJ32: 0
B33: =B_FZ1 -> freie Zeile 1 | C33: 0 | AI33: 0 | AJ33: 0
B34: =B_FZ2 -> freie Zeile 2 | C34: 0 | AI34: 0 | AJ34: 0
B35: =B_WB -> Weiterbildung | C35: 0 | AI35: 0 | AJ35: 0
B36: =B_FEL -> frei einsetzbare Lekt. | C36: 0 | AI36: =SUM(D36:AH36) -> 0 | AJ36: =ROUND(C36-AI36,0) -> 0
D37: =IF(AND((D13 - D15)+SUM(D20,D22:D34)>0.00001,SUM(D20,D22:D34)>0),"I","") -> 
C38: Visum | D38: Identität: | I38: Datum: | K38: Status:
C39: SL
C40: VG
D41: 1 | E41: 2 | F41: 3 | G41: 4 | H41: 5 | I41: 6 | J41: 7 | K41: 8 | L41: 9 | M41: 10 | N41: 11 | O41: 12 | P41: 13 | Q41: 14 | R41: 15 | S41: 16 | T41: 17 | U41: 18 | V41: 19 | W41: 20 | X41: 21 | Y41: 22 | Z41: 23 | AA41: 24 | AB41: 25 | AC41: 26 | AD41: 27 | AE41: 28 | AF41: 29 | AG41: 30 | AH41: 31
D42: =IF(D3="",4,VLOOKUP(D3,VSA_Kalender,18)) -> 1 | E42: 1 | F42: 0 | G42: 0 | H42: 0 | I42: 1 | J42: 1 | K42: 0 | L42: 0 | M42: 0 | N42: 0 | O42: 0 | P42: 1 | Q42: 1 | R42: 0 | S42: 0 | T42: 0 | U42: 0 | V42: 0 | W42: 1 | X42: 1 | Y42: 0 | Z42: 0 | AA42: 0 | AB42: 0 | AC42: 0 | AD42: 1 | AE42: 1 | AF42: 0 | AG42: 0 | AH42: 0
D44: =IF(D19>0,VLOOKUP(D3,KalFeiertage,6,FALSE),"") -> Neujahr | E44: Berchtoldstag
D45: FT=WENN(D13+D35>=D15;D13+D35;MIN(D13+D35+SUMME(D20;D22;D23;D24;D25;D26;D27;D28;D29;D30;D31;D32;D33;D34);WENN(D15<0;0;D15)))*D82 | E45: FT=WENN(E13+E35>=E15;E13+E35;MIN(E13+E35+SUMME(E20;E22;E23;E24;E25;E26;E27;E28;E29;E30;E31;E32;E33;E34);WENN(E15<0;0;E15)))*E82 | F45: FT=WENN(F13+F35>=F15;F13+F35;MIN(F13+F35+SUMME(F20;F22;F23;F24;F25;F26;F27;F28;F29;F30;F31;F32;F33;F34);WENN(F15<0;0;F15)))*F82 | G45: FT=WENN(G13+G35>=G15;G13+G35;MIN(G13+G35+SUMME(G20;G22;G23;G24;G25;G26;G27;G28;G29;G30;G31;G32;G33;G34);WENN(G15<0;0;G15)))*G82 | H45: FT=WENN(H13+H35>=H15;H13+H35;MIN(H13+H35+SUMME(H20;H22;H23;H24;H25;H26;H27;H28;H29;H30;H31;H32;H33;H34);WENN(H15<0;0;H15)))*H82 | I45: FT=WENN(I13+I35>=I15;I13+I35;MIN(I13+I35+SUMME(I20;I22;I23;I24;I25;I26;I27;I28;I29;I30;I31;I32;I33;I34);WENN(I15<0;0;I15)))*I82 | J45: FT=WENN(J13+J35>=J15;J13+J35;MIN(J13+J35+SUMME(J20;J22;J23;J24;J25;J26;J27;J28;J29;J30;J31;J32;J33;J34);WENN(J15<0;0;J15)))*J82 | K45: FT=WENN(K13+K35>=K15;K13+K35;MIN(K13+K35+SUMME(K20;K22;K23;K24;K25;K26;K27;K28;K29;K30;K31;K32;K33;K34);WENN(K15<0;0;K15)))*K82 | L45: FT=WENN(L13+L35>=L15;L13+L35;MIN(L13+L35+SUMME(L20;L22;L23;L24;L25;L26;L27;L28;L29;L30;L31;L32;L33;L34);WENN(L15<0;0;L15)))*L82 | M45: FT=WENN(M13+M35>=M15;M13+M35;MIN(M13+M35+SUMME(M20;M22;M23;M24;M25;M26;M27;M28;M29;M30;M31;M32;M33;M34);WENN(M15<0;0;M15)))*M82 | N45: FT=WENN(N13+N35>=N15;N13+N35;MIN(N13+N35+SUMME(N20;N22;N23;N24;N25;N26;N27;N28;N29;N30;N31;N32;N33;N34);WENN(N15<0;0;N15)))*N82 | O45: FT=WENN(O13+O35>=O15;O13+O35;MIN(O13+O35+SUMME(O20;O22;O23;O24;O25;O26;O27;O28;O29;O30;O31;O32;O33;O34);WENN(O15<0;0;O15)))*O82 | P45: FT=WENN(P13+P35>=P15;P13+P35;MIN(P13+P35+SUMME(P20;P22;P23;P24;P25;P26;P27;P28;P29;P30;P31;P32;P33;P34);WENN(P15<0;0;P15)))*P82 | Q45: FT=WENN(Q13+Q35>=Q15;Q13+Q35;MIN(Q13+Q35+SUMME(Q20;Q22;Q23;Q24;Q25;Q26;Q27;Q28;Q29;Q30;Q31;Q32;Q33;Q34);WENN(Q15<0;0;Q15)))*Q82 | R45: FT=WENN(R13+R35>=R15;R13+R35;MIN(R13+R35+SUMME(R20;R22;R23;R24;R25;R26;R27;R28;R29;R30;R31;R32;R33;R34);WENN(R15<0;0;R15)))*R82 | S45: FT=WENN(S13+S35>=S15;S13+S35;MIN(S13+S35+SUMME(S20;S22;S23;S24;S25;S26;S27;S28;S29;S30;S31;S32;S33;S34);WENN(S15<0;0;S15)))*S82 | T45: FT=WENN(T13+T35>=T15;T13+T35;MIN(T13+T35+SUMME(T20;T22;T23;T24;T25;T26;T27;T28;T29;T30;T31;T32;T33;T34);WENN(T15<0;0;T15)))*T82 | U45: FT=WENN(U13+U35>=U15;U13+U35;MIN(U13+U35+SUMME(U20;U22;U23;U24;U25;U26;U27;U28;U29;U30;U31;U32;U33;U34);WENN(U15<0;0;U15)))*U82 | V45: FT=WENN(V13+V35>=V15;V13+V35;MIN(V13+V35+SUMME(V20;V22;V23;V24;V25;V26;V27;V28;V29;V30;V31;V32;V33;V34);WENN(V15<0;0;V15)))*V82 | W45: FT=WENN(W13+W35>=W15;W13+W35;MIN(W13+W35+SUMME(W20;W22;W23;W24;W25;W26;W27;W28;W29;W30;W31;W32;W33;W34);WENN(W15<0;0;W15)))*W82 | X45: FT=WENN(X13+X35>=X15;X13+X35;MIN(X13+X35+SUMME(X20;X22;X23;X24;X25;X26;X27;X28;X29;X30;X31;X32;X33;X34);WENN(X15<0;0;X15)))*X82 | Y45: FT=WENN(Y13+Y35>=Y15;Y13+Y35;MIN(Y13+Y35+SUMME(Y20;Y22;Y23;Y24;Y25;Y26;Y27;Y28;Y29;Y30;Y31;Y32;Y33;Y34);WENN(Y15<0;0;Y15)))*Y82 | Z45: FT=WENN(Z13+Z35>=Z15;Z13+Z35;MIN(Z13+Z35+SUMME(Z20;Z22;Z23;Z24;Z25;Z26;Z27;Z28;Z29;Z30;Z31;Z32;Z33;Z34);WENN(Z15<0;0;Z15)))*Z82 | AA45: FT=WENN(AA13+AA35>=AA15;AA13+AA35;MIN(AA13+AA35+SUMME(AA20;AA22;AA23;AA24;AA25;AA26;AA27;AA28;AA29;AA30;AA31;AA32;AA33;AA34);WENN(AA15<0;0;AA15)))*AA82 | AB45: FT=WENN(AB13+AB35>=AB15;AB13+AB35;MIN(AB13+AB35+SUMME(AB20;AB22;AB23;AB24;AB25;AB26;AB27;AB28;AB29;AB30;AB31;AB32;AB33;AB34);WENN(AB15<0;0;AB15)))*AB82 | AC45: FT=WENN(AC13+AC35>=AC15;AC13+AC35;MIN(AC13+AC35+SUMME(AC20;AC22;AC23;AC24;AC25;AC26;AC27;AC28;AC29;AC30;AC31;AC32;AC33;AC34);WENN(AC15<0;0;AC15)))*AC82 | AD45: FT=WENN(AD13+AD35>=AD15;AD13+AD35;MIN(AD13+AD35+SUMME(AD20;AD22;AD23;AD24;AD25;AD26;AD27;AD28;AD29;AD30;AD31;AD32;AD33;AD34);WENN(AD15<0;0;AD15)))*AD82 | AE45: FT=WENN(AE13+AE35>=AE15;AE13+AE35;MIN(AE13+AE35+SUMME(AE20;AE22;AE23;AE24;AE25;AE26;AE27;AE28;AE29;AE30;AE31;AE32;AE33;AE34);WENN(AE15<0;0;AE15)))*AE82 | AF45: FT=WENN(AF13+AF35>=AF15;AF13+AF35;MIN(AF13+AF35+SUMME(AF20;AF22;AF23;AF24;AF25;AF26;AF27;AF28;AF29;AF30;AF31;AF32;AF33;AF34);WENN(AF15<0;0;AF15)))*AF82 | AG45: FT=WENN(AG13+AG35>=AG15;AG13+AG35;MIN(AG13+AG35+SUMME(AG20;AG22;AG23;AG24;AG25;AG26;AG27;AG28;AG29;AG30;AG31;AG32;AG33;AG34);WENN(AG15<0;0;AG15)))*AG82 | AH45: FT=WENN(AH13+AH35>=AH15;AH13+AH35;MIN(AH13+AH35+SUMME(AH20;AH22;AH23;AH24;AH25;AH26;AH27;AH28;AH29;AH30;AH31;AH32;AH33;AH34);WENN(AH15<0;0;AH15)))*AH82
D46: FT=24*(D6-D5+D8-D7+D10-D9+D12-D11)*D88 | E46: FT=24*(E6-E5+E8-E7+E10-E9+E12-E11)*E88 | F46: FT=24*(F6-F5+F8-F7+F10-F9+F12-F11)*F88 | G46: FT=24*(G6-G5+G8-G7+G10-G9+G12-G11)*G88 | H46: FT=24*(H6-H5+H8-H7+H10-H9+H12-H11)*H88 | I46: FT=24*(I6-I5+I8-I7+I10-I9+I12-I11)*I88 | J46: FT=24*(J6-J5+J8-J7+J10-J9+J12-J11)*J88 | K46: FT=24*(K6-K5+K8-K7+K10-K9+K12-K11)*K88 | L46: FT=24*(L6-L5+L8-L7+L10-L9+L12-L11)*L88 | M46: FT=24*(M6-M5+M8-M7+M10-M9+M12-M11)*M88 | N46: FT=24*(N6-N5+N8-N7+N10-N9+N12-N11)*N88 | O46: FT=24*(O6-O5+O8-O7+O10-O9+O12-O11)*O88 | P46: FT=24*(P6-P5+P8-P7+P10-P9+P12-P11)*P88 | Q46: FT=24*(Q6-Q5+Q8-Q7+Q10-Q9+Q12-Q11)*Q88 | R46: FT=24*(R6-R5+R8-R7+R10-R9+R12-R11)*R88 | S46: FT=24*(S6-S5+S8-S7+S10-S9+S12-S11)*S88 | T46: FT=24*(T6-T5+T8-T7+T10-T9+T12-T11)*T88 | U46: FT=24*(U6-U5+U8-U7+U10-U9+U12-U11)*U88 | V46: FT=24*(V6-V5+V8-V7+V10-V9+V12-V11)*V88 | W46: FT=24*(W6-W5+W8-W7+W10-W9+W12-W11)*W88 | X46: FT=24*(X6-X5+X8-X7+X10-X9+X12-X11)*X88 | Y46: FT=24*(Y6-Y5+Y8-Y7+Y10-Y9+Y12-Y11)*Y88 | Z46: FT=24*(Z6-Z5+Z8-Z7+Z10-Z9+Z12-Z11)*Z88 | AA46: FT=24*(AA6-AA5+AA8-AA7+AA10-AA9+AA12-AA11)*AA88 | AB46: FT=24*(AB6-AB5+AB8-AB7+AB10-AB9+AB12-AB11)*AB88 | AC46: FT=24*(AC6-AC5+AC8-AC7+AC10-AC9+AC12-AC11)*AC88 | AD46: FT=24*(AD6-AD5+AD8-AD7+AD10-AD9+AD12-AD11)*AD88 | AE46: FT=24*(AE6-AE5+AE8-AE7+AE10-AE9+AE12-AE11)*AE88 | AF46: FT=24*(AF6-AF5+AF8-AF7+AF10-AF9+AF12-AF11)*AF88 | AG46: FT=24*(AG6-AG5+AG8-AG7+AG10-AG9+AG12-AG11)*AG88 | AH46: FT=24*(AH6-AH5+AH8-AH7+AH10-AH9+AH12-AH11)*AH88
D47: FT=ODER(D14>0;D21>0)*1 | E47: FT=ODER(E14>0;E21>0)*1 | F47: FT=ODER(F14>0;F21>0)*1 | G47: FT=ODER(G14>0;G21>0)*1 | H47: FT=ODER(H14>0;H21>0)*1 | I47: FT=ODER(I14>0;I21>0)*1 | J47: FT=ODER(J14>0;J21>0)*1 | K47: FT=ODER(K14>0;K21>0)*1 | L47: FT=ODER(L14>0;L21>0)*1 | M47: FT=ODER(M14>0;M21>0)*1 | N47: FT=ODER(N14>0;N21>0)*1 | O47: FT=ODER(O14>0;O21>0)*1 | P47: FT=ODER(P14>0;P21>0)*1 | Q47: FT=ODER(Q14>0;Q21>0)*1 | R47: FT=ODER(R14>0;R21>0)*1 | S47: FT=ODER(S14>0;S21>0)*1 | T47: FT=ODER(T14>0;T21>0)*1 | U47: FT=ODER(U14>0;U21>0)*1 | V47: FT=ODER(V14>0;V21>0)*1 | W47: FT=ODER(W14>0;W21>0)*1 | X47: FT=ODER(X14>0;X21>0)*1 | Y47: FT=ODER(Y14>0;Y21>0)*1 | Z47: FT=ODER(Z14>0;Z21>0)*1 | AA47: FT=ODER(AA14>0;AA21>0)*1 | AB47: FT=ODER(AB14>0;AB21>0)*1 | AC47: FT=ODER(AC14>0;AC21>0)*1 | AD47: FT=ODER(AD14>0;AD21>0)*1 | AE47: FT=ODER(AE14>0;AE21>0)*1 | AF47: FT=ODER(AF14>0;AF21>0)*1 | AG47: FT=ODER(AG14>0;AG21>0)*1 | AH47: FT=ODER(AH14>0;AH21>0)*1
D48: =ABS("FT"&_xlfn.FORMULATEXT(D14)<>D45) -> 0 | E48: =ABS("FT"&_xlfn.FORMULATEXT(E14)<>E45) -> 0 | F48: 0 | G48: 0 | H48: 0 | I48: 0 | J48: 0 | K48: 0 | L48: 0 | M48: 0 | N48: 0 | O48: 0 | P48: 0 | Q48: 0 | R48: 0 | S48: 0 | T48: 0 | U48: 0 | V48: 0 | W48: 0 | X48: 0 | Y48: 0 | Z48: 0 | AA48: 0 | AB48: 0 | AC48: 0 | AD48: 0 | AE48: 0 | AF48: 0 | AG48: 0 | AH48: 0
D49: =ABS("FT"&_xlfn.FORMULATEXT(D13)<>D46) -> 0 | E49: =ABS("FT"&_xlfn.FORMULATEXT(E13)<>E46) -> 0 | F49: 0 | G49: 0 | H49: 0 | I49: 0 | J49: 0 | K49: 0 | L49: 0 | M49: 0 | N49: 0 | O49: 0 | P49: 0 | Q49: 0 | R49: 0 | S49: 0 | T49: 0 | U49: 0 | V49: 0 | W49: 0 | X49: 0 | Y49: 0 | Z49: 0 | AA49: 0 | AB49: 0 | AC49: 0 | AD49: 0 | AE49: 0 | AF49: 0 | AG49: 0 | AH49: 0
D50: =ABS("FT"&_xlfn.FORMULATEXT(D80)<>D47) -> 0 | E50: =ABS("FT"&_xlfn.FORMULATEXT(E80)<>E47) -> 0 | F50: 0 | G50: 0 | H50: 0 | I50: 0 | J50: 0 | K50: 0 | L50: 0 | M50: 0 | N50: 0 | O50: 0 | P50: 0 | Q50: 0 | R50: 0 | S50: 0 | T50: 0 | U50: 0 | V50: 0 | W50: 0 | X50: 0 | Y50: 0 | Z50: 0 | AA50: 0 | AB50: 0 | AC50: 0 | AD50: 0 | AE50: 0 | AF50: 0 | AG50: 0 | AH50: 0
D51: =ABS(ISERROR(D37)) -> 0 | E51: =ABS(ISERROR(E37)) -> 0 | F51: 0 | G51: 0 | H51: 0 | I51: 0 | J51: 0 | K51: 0 | L51: 0 | M51: 0 | N51: 0 | O51: 0 | P51: 0 | Q51: 0 | R51: 0 | S51: 0 | T51: 0 | U51: 0 | V51: 0 | W51: 0 | X51: 0 | Y51: 0 | Z51: 0 | AA51: 0 | AB51: 0 | AC51: 0 | AD51: 0 | AE51: 0 | AF51: 0 | AG51: 0 | AH51: 0
D52: =SUM(D48:D51) -> 0 | E52: =SUM(E48:E51) -> 0 | F52: 0 | G52: 0 | H52: 0 | I52: 0 | J52: 0 | K52: 0 | L52: 0 | M52: 0 | N52: 0 | O52: 0 | P52: 0 | Q52: 0 | R52: 0 | S52: 0 | T52: 0 | U52: 0 | V52: 0 | W52: 0 | X52: 0 | Y52: 0 | Z52: 0 | AA52: 0 | AB52: 0 | AC52: 0 | AD52: 0 | AE52: 0 | AF52: 0 | AG52: 0 | AH52: 0 | AM52: Formel defekt | AN52: =SUM(D52:AH52) -> 0
B77: HT_Naz-Kopie | C77: =HT_NAZ -> 8.4
B78: Heute: | C78: =SL_BisDatum -> 2024-02-02
C79: Reguläre Tage ausgefüllt | D79: =((D80*D81)=1)*1 -> 0 | E79: =((E80*E81)=1)*1 -> 0 | F79: 0 | G79: 0 | H79: 0 | I79: 0 | J79: 0 | K79: 0 | L79: 0 | M79: 0 | N79: 0 | O79: 0 | P79: 0 | Q79: 0 | R79: 0 | S79: 0 | T79: 0 | U79: 0 | V79: 0 | W79: 0 | X79: 0 | Y79: 0 | Z79: 0 | AA79: 0 | AB79: 0 | AC79: 0 | AD79: 0 | AE79: 0 | AF79: 0 | AG79: 0 | AH79: 0
C80: Arbeitstage ausgefüllt | D80: =OR(D14>0,D21>0)*1 -> 0 | E80: =OR(E14>0,E21>0)*1 -> 0 | F80: 0 | G80: 0 | H80: 0 | I80: 0 | J80: 0 | K80: 0 | L80: 0 | M80: 0 | N80: 0 | O80: 0 | P80: 0 | Q80: 0 | R80: 0 | S80: 0 | T80: 0 | U80: 0 | V80: 0 | W80: 0 | X80: 0 | Y80: 0 | Z80: 0 | AA80: 0 | AB80: 0 | AC80: 0 | AD80: 0 | AE80: 0 | AF80: 0 | AG80: 0 | AH80: 0
C81: Arbeitstage wenn BG>0% | D81: =IFERROR(VLOOKUP(D3,VSA_Kalender,22),0) -> 0 | E81: 0 | F81: 0 | G81: 0 | H81: 0 | I81: 0 | J81: 0 | K81: 0 | L81: 0 | M81: 0 | N81: 0 | O81: 0 | P81: 0 | Q81: 0 | R81: 0 | S81: 0 | T81: 0 | U81: 0 | V81: 0 | W81: 0 | X81: 0 | Y81: 0 | Z81: 0 | AA81: 0 | AB81: 0 | AC81: 0 | AD81: 0 | AE81: 0 | AF81: 0 | AG81: 0 | AH81: 0
C82: Der BG beträgt mehr als 0% | D82: =IF(D4="",0,ABS(VLOOKUP(D3,VSA_Kalender,13,FALSE)>0)) -> 1 | E82: 1 | F82: 1 | G82: 1 | H82: 1 | I82: 1 | J82: 1 | K82: 1 | L82: 1 | M82: 1 | N82: 1 | O82: 1 | P82: 1 | Q82: 1 | R82: 1 | S82: 1 | T82: 1 | U82: 1 | V82: 1 | W82: 1 | X82: 1 | Y82: 1 | Z82: 1 | AA82: 1 | AB82: 1 | AC82: 1 | AD82: 1 | AE82: 1 | AF82: 1 | AG82: 1 | AH82: 1
C83: (Ja: 1, Nein: 0) | D83: =SUM(D81:AH81) -> 0 | E83: Total Tage bei BG>0% | H83: =SUM(D80:AH80) -> 0 | I83: Total Tage ausgefüllt | L83: =SUM(D79:AH79) -> 0 | M83: Total reguläre Tage ausgefüllt
C85: Tag des Monats | D85: =D4 -> 1 | E85: 2 | F85: 3 | G85: 4 | H85: 5 | I85: 6 | J85: 7 | K85: 8 | L85: 9 | M85: 10 | N85: 11 | O85: 12 | P85: 13 | Q85: 14 | R85: 15 | S85: 16 | T85: 17 | U85: 18 | V85: 19 | W85: 20 | X85: 21 | Y85: 22 | Z85: 23 | AA85: 24 | AB85: 25 | AC85: 26 | AD85: 27 | AE85: 28 | AF85: 29 | AG85: 30 | AH85: 31
C86: Ist Arbeitsbereich | D86: =IFERROR(ABS(WEEKDAY(D3,2)<6),0) -> 1 | E86: 1 | F86: 1 | G86: 1 | H86: 1 | I86: 0 | J86: 0 | K86: 1 | L86: 1 | M86: 1 | N86: 1 | O86: 1 | P86: 0 | Q86: 0 | R86: 1 | S86: 1 | T86: 1 | U86: 1 | V86: 1 | W86: 0 | X86: 0 | Y86: 1 | Z86: 1 | AA86: 1 | AB86: 1 | AC86: 1 | AD86: 0 | AE86: 0 | AF86: 1 | AG86: 1 | AH86: 1
C87: Maximaler Fehler | D87: =MAX(D100:D107,D98,D134) -> 0 | E87: =MAX(E100:E107,E98,E134) -> 0 | F87: 0 | G87: 0 | H87: 0 | I87: 0 | J87: 0 | K87: 0 | L87: 0 | M87: 0 | N87: 0 | O87: 0 | P87: 0 | Q87: 0 | R87: 0 | S87: 0 | T87: 0 | U87: 0 | V87: 0 | W87: 0 | X87: 0 | Y87: 0 | Z87: 0 | AA87: 0 | AB87: 0 | AC87: 0 | AD87: 0 | AE87: 0 | AF87: 0 | AG87: 0 | AH87: 0
C88: Wird die Präsenzzeit angezeigt? | D88: =IF(D87=0,1,0) -> 1 | E88: =IF(E87=0,1,0) -> 1 | F88: 1 | G88: 1 | H88: 1 | I88: 1 | J88: 1 | K88: 1 | L88: 1 | M88: 1 | N88: 1 | O88: 1 | P88: 1 | Q88: 1 | R88: 1 | S88: 1 | T88: 1 | U88: 1 | V88: 1 | W88: 1 | X88: 1 | Y88: 1 | Z88: 1 | AA88: 1 | AB88: 1 | AC88: 1 | AD88: 1 | AE88: 1 | AF88: 1 | AG88: 1 | AH88: 1
C90: Gruppenfehler 1 | D90: =IF(AND(D6-D5=0,COUNTA(D7:D12)>0),1,0) -> 0 | E90: 0 | F90: 0 | G90: 0 | H90: 0 | I90: 0 | J90: 0 | K90: 0 | L90: 0 | M90: 0 | N90: 0 | O90: 0 | P90: 0 | Q90: 0 | R90: 0 | S90: 0 | T90: 0 | U90: 0 | V90: 0 | W90: 0 | X90: 0 | Y90: 0 | Z90: 0 | AA90: 0 | AB90: 0 | AC90: 0 | AD90: 0 | AE90: 0 | AF90: 0 | AG90: 0 | AH90: 0
B91: Gruppenfehler | C91: (aus) | D91: =D90 -> 0 | E91: 0 | F91: 0 | G91: 0 | H91: 0 | I91: 0 | J91: 0 | K91: 0 | L91: 0 | M91: 0 | N91: 0 | O91: 0 | P91: 0 | Q91: 0 | R91: 0 | S91: 0 | T91: 0 | U91: 0 | V91: 0 | W91: 0 | X91: 0 | Y91: 0 | Z91: 0 | AA91: 0 | AB91: 0 | AC91: 0 | AD91: 0 | AE91: 0 | AF91: 0 | AG91: 0 | AH91: 0
C92: Gruppenfehler 2 | D92: =IF(AND(D8-D7=0,COUNTA(D9:D12)>0),1,0) -> 0 | E92: 0 | F92: 0 | G92: 0 | H92: 0 | I92: 0 | J92: 0 | K92: 0 | L92: 0 | M92: 0 | N92: 0 | O92: 0 | P92: 0 | Q92: 0 | R92: 0 | S92: 0 | T92: 0 | U92: 0 | V92: 0 | W92: 0 | X92: 0 | Y92: 0 | Z92: 0 | AA92: 0 | AB92: 0 | AC92: 0 | AD92: 0 | AE92: 0 | AF92: 0 | AG92: 0 | AH92: 0
C93: (aus) | D93: =D92 -> 0 | E93: 0 | F93: 0 | G93: 0 | H93: 0 | I93: 0 | J93: 0 | K93: 0 | L93: 0 | M93: 0 | N93: 0 | O93: 0 | P93: 0 | Q93: 0 | R93: 0 | S93: 0 | T93: 0 | U93: 0 | V93: 0 | W93: 0 | X93: 0 | Y93: 0 | Z93: 0 | AA93: 0 | AB93: 0 | AC93: 0 | AD93: 0 | AE93: 0 | AF93: 0 | AG93: 0 | AH93: 0
C94: Gruppenfehler 3 | D94: =IF(AND(D10-D9=0,COUNTA(D11:D12)>0),1,0) -> 0 | E94: 0 | F94: 0 | G94: 0 | H94: 0 | I94: 0 | J94: 0 | K94: 0 | L94: 0 | M94: 0 | N94: 0 | O94: 0 | P94: 0 | Q94: 0 | R94: 0 | S94: 0 | T94: 0 | U94: 0 | V94: 0 | W94: 0 | X94: 0 | Y94: 0 | Z94: 0 | AA94: 0 | AB94: 0 | AC94: 0 | AD94: 0 | AE94: 0 | AF94: 0 | AG94: 0 | AH94: 0
C95: (aus) | D95: =D94 -> 0 | E95: 0 | F95: 0 | G95: 0 | H95: 0 | I95: 0 | J95: 0 | K95: 0 | L95: 0 | M95: 0 | N95: 0 | O95: 0 | P95: 0 | Q95: 0 | R95: 0 | S95: 0 | T95: 0 | U95: 0 | V95: 0 | W95: 0 | X95: 0 | Y95: 0 | Z95: 0 | AA95: 0 | AB95: 0 | AC95: 0 | AD95: 0 | AE95: 0 | AF95: 0 | AG95: 0 | AH95: 0
C96: leer
C97: leer
C98: Genereller Gruppenfehler | D98: =MAX(D90:D95) -> 0 | E98: 0 | F98: 0 | G98: 0 | H98: 0 | I98: 0 | J98: 0 | K98: 0 | L98: 0 | M98: 0 | N98: 0 | O98: 0 | P98: 0 | Q98: 0 | R98: 0 | S98: 0 | T98: 0 | U98: 0 | V98: 0 | W98: 0 | X98: 0 | Y98: 0 | Z98: 0 | AA98: 0 | AB98: 0 | AC98: 0 | AD98: 0 | AE98: 0 | AF98: 0 | AG98: 0 | AH98: 0
C100: Ein1 | D100: =IF(AND(D109=0,D110>0),1,0) -> 0 | E100: =IF(AND(E109=0,E110>0),1,0) -> 0 | F100: 0 | G100: 0 | H100: 0 | I100: 0 | J100: 0 | K100: 0 | L100: 0 | M100: 0 | N100: 0 | O100: 0 | P100: 0 | Q100: 0 | R100: 0 | S100: 0 | T100: 0 | U100: 0 | V100: 0 | W100: 0 | X100: 0 | Y100: 0 | Z100: 0 | AA100: 0 | AB100: 0 | AC100: 0 | AD100: 0 | AE100: 0 | AF100: 0 | AG100: 0 | AH100: 0
C101: Aus1 | D101: =IF(AND(D110>0,D110<D109),3,IF(AND(D109>0,D110=0),1,0))*D$86 -> 0 | E101: =IF(AND(E110>0,E110<E109),3,IF(AND(E109>0,E110=0),1,0))*E$86 -> 0 | F101: 0 | G101: 0 | H101: 0 | I101: 0 | J101: 0 | K101: 0 | L101: 0 | M101: 0 | N101: 0 | O101: 0 | P101: 0 | Q101: 0 | R101: 0 | S101: 0 | T101: 0 | U101: 0 | V101: 0 | W101: 0 | X101: 0 | Y101: 0 | Z101: 0 | AA101: 0 | AB101: 0 | AC101: 0 | AD101: 0 | AE101: 0 | AF101: 0 | AG101: 0 | AH101: 0
C102: Ein2 | D102: =IF(AND(D111>0,D111<D110),3,IF(AND(D111=0,D112>0),1,0))*D$86 -> 0 | E102: 0 | F102: 0 | G102: 0 | H102: 0 | I102: 0 | J102: 0 | K102: 0 | L102: 0 | M102: 0 | N102: 0 | O102: 0 | P102: 0 | Q102: 0 | R102: 0 | S102: 0 | T102: 0 | U102: 0 | V102: 0 | W102: 0 | X102: 0 | Y102: 0 | Z102: 0 | AA102: 0 | AB102: 0 | AC102: 0 | AD102: 0 | AE102: 0 | AF102: 0 | AG102: 0 | AH102: 0
C103: Aus2 | D103: =IF(AND(D112>0,D112<D111),3,IF(AND(D111>0,D112=0),1,0))*D$86 -> 0 | E103: =IF(AND(E112>0,E112<E111),3,IF(AND(E111>0,E112=0),1,0))*E$86 -> 0 | F103: 0 | G103: 0 | H103: 0 | I103: 0 | J103: 0 | K103: 0 | L103: 0 | M103: 0 | N103: 0 | O103: 0 | P103: 0 | Q103: 0 | R103: 0 | S103: 0 | T103: 0 | U103: 0 | V103: 0 | W103: 0 | X103: 0 | Y103: 0 | Z103: 0 | AA103: 0 | AB103: 0 | AC103: 0 | AD103: 0 | AE103: 0 | AF103: 0 | AG103: 0 | AH103: 0
B104: Zellenfehler | C104: Ein3 | D104: =IF(AND(D113>0,D113<D112),3,IF(AND(D113=0,D114>0),1,0))*D$86 -> 0 | E104: =IF(AND(E113>0,E113<E112),3,IF(AND(E113=0,E114>0),1,0))*E$86 -> 0 | F104: 0 | G104: 0 | H104: 0 | I104: 0 | J104: 0 | K104: 0 | L104: 0 | M104: 0 | N104: 0 | O104: 0 | P104: 0 | Q104: 0 | R104: 0 | S104: 0 | T104: 0 | U104: 0 | V104: 0 | W104: 0 | X104: 0 | Y104: 0 | Z104: 0 | AA104: 0 | AB104: 0 | AC104: 0 | AD104: 0 | AE104: 0 | AF104: 0 | AG104: 0 | AH104: 0
C105: Aus3 | D105: =IF(AND(D114>0,D114<D113),3,IF(AND(D113>0,D114=0),1,0))*D$86 -> 0 | E105: =IF(AND(E114>0,E114<E113),3,IF(AND(E113>0,E114=0),1,0))*E$86 -> 0 | F105: 0 | G105: 0 | H105: 0 | I105: 0 | J105: 0 | K105: 0 | L105: 0 | M105: 0 | N105: 0 | O105: 0 | P105: 0 | Q105: 0 | R105: 0 | S105: 0 | T105: 0 | U105: 0 | V105: 0 | W105: 0 | X105: 0 | Y105: 0 | Z105: 0 | AA105: 0 | AB105: 0 | AC105: 0 | AD105: 0 | AE105: 0 | AF105: 0 | AG105: 0 | AH105: 0
C106: Ein4 | D106: =IF(AND(D115>0,D115<D114),3,IF(AND(D115=0,D116>0),1,0))*D$86 -> 0 | E106: =IF(AND(E115>0,E115<E114),3,IF(AND(E115=0,E116>0),1,0))*E$86 -> 0 | F106: 0 | G106: 0 | H106: 0 | I106: 0 | J106: 0 | K106: 0 | L106: 0 | M106: 0 | N106: 0 | O106: 0 | P106: 0 | Q106: 0 | R106: 0 | S106: 0 | T106: 0 | U106: 0 | V106: 0 | W106: 0 | X106: 0 | Y106: 0 | Z106: 0 | AA106: 0 | AB106: 0 | AC106: 0 | AD106: 0 | AE106: 0 | AF106: 0 | AG106: 0 | AH106: 0
C107: Aus4 | D107: =IF(AND(D116>0,D116<D115),3,IF(AND(D115>0,D116=0),1,0))*D$86 -> 0 | E107: =IF(AND(E116>0,E116<E115),3,IF(AND(E115>0,E116=0),1,0))*E$86 -> 0 | F107: 0 | G107: 0 | H107: 0 | I107: 0 | J107: 0 | K107: 0 | L107: 0 | M107: 0 | N107: 0 | O107: 0 | P107: 0 | Q107: 0 | R107: 0 | S107: 0 | T107: 0 | U107: 0 | V107: 0 | W107: 0 | X107: 0 | Y107: 0 | Z107: 0 | AA107: 0 | AB107: 0 | AC107: 0 | AD107: 0 | AE107: 0 | AF107: 0 | AG107: 0 | AH107: 0
C109: Ein1 | D109: =ROUND(D5*24,2) -> 0 | E109: 0 | F109: 0 | G109: 0 | H109: 0 | I109: 0 | J109: 0 | K109: 0 | L109: 0 | M109: 0 | N109: 0 | O109: 0 | P109: 0 | Q109: 0 | R109: 0 | S109: 0 | T109: 0 | U109: 0 | V109: 0 | W109: 0 | X109: 0 | Y109: 0 | Z109: 0 | AA109: 0 | AB109: 0 | AC109: 0 | AD109: 0 | AE109: 0 | AF109: 0 | AG109: 0 | AH109: 0
C110: Aus1 | D110: 0 | E110: 0 | F110: 0 | G110: 0 | H110: 0 | I110: 0 | J110: 0 | K110: 0 | L110: 0 | M110: 0 | N110: 0 | O110: 0 | P110: 0 | Q110: 0 | R110: 0 | S110: 0 | T110: 0 | U110: 0 | V110: 0 | W110: 0 | X110: 0 | Y110: 0 | Z110: 0 | AA110: 0 | AB110: 0 | AC110: 0 | AD110: 0 | AE110: 0 | AF110: 0 | AG110: 0 | AH110: 0
B111: Zeiten dezimal gewandelt | C111: Ein2 | D111: 0 | E111: 0 | F111: 0 | G111: 0 | H111: 0 | I111: 0 | J111: 0 | K111: 0 | L111: 0 | M111: 0 | N111: 0 | O111: 0 | P111: 0 | Q111: 0 | R111: 0 | S111: 0 | T111: 0 | U111: 0 | V111: 0 | W111: 0 | X111: 0 | Y111: 0 | Z111: 0 | AA111: 0 | AB111: 0 | AC111: 0 | AD111: 0 | AE111: 0 | AF111: 0 | AG111: 0 | AH111: 0
C112: Aus2 | D112: 0 | E112: 0 | F112: 0 | G112: 0 | H112: 0 | I112: 0 | J112: 0 | K112: 0 | L112: 0 | M112: 0 | N112: 0 | O112: 0 | P112: 0 | Q112: 0 | R112: 0 | S112: 0 | T112: 0 | U112: 0 | V112: 0 | W112: 0 | X112: 0 | Y112: 0 | Z112: 0 | AA112: 0 | AB112: 0 | AC112: 0 | AD112: 0 | AE112: 0 | AF112: 0 | AG112: 0 | AH112: 0
C113: Ein3 | D113: 0 | E113: 0 | F113: 0 | G113: 0 | H113: 0 | I113: 0 | J113: 0 | K113: 0 | L113: 0 | M113: 0 | N113: 0 | O113: 0 | P113: 0 | Q113: 0 | R113: 0 | S113: 0 | T113: 0 | U113: 0 | V113: 0 | W113: 0 | X113: 0 | Y113: 0 | Z113: 0 | AA113: 0 | AB113: 0 | AC113: 0 | AD113: 0 | AE113: 0 | AF113: 0 | AG113: 0 | AH113: 0
C114: Aus3 | D114: 0 | E114: 0 | F114: 0 | G114: 0 | H114: 0 | I114: 0 | J114: 0 | K114: 0 | L114: 0 | M114: 0 | N114: 0 | O114: 0 | P114: 0 | Q114: 0 | R114: 0 | S114: 0 | T114: 0 | U114: 0 | V114: 0 | W114: 0 | X114: 0 | Y114: 0 | Z114: 0 | AA114: 0 | AB114: 0 | AC114: 0 | AD114: 0 | AE114: 0 | AF114: 0 | AG114: 0 | AH114: 0
C115: Ein4 | D115: 0 | E115: 0 | F115: 0 | G115: 0 | H115: 0 | I115: 0 | J115: 0 | K115: 0 | L115: 0 | M115: 0 | N115: 0 | O115: 0 | P115: 0 | Q115: 0 | R115: 0 | S115: 0 | T115: 0 | U115: 0 | V115: 0 | W115: 0 | X115: 0 | Y115: 0 | Z115: 0 | AA115: 0 | AB115: 0 | AC115: 0 | AD115: 0 | AE115: 0 | AF115: 0 | AG115: 0 | AH115: 0
C116: Aus4 | D116: 0 | E116: 0 | F116: 0 | G116: 0 | H116: 0 | I116: 0 | J116: 0 | K116: 0 | L116: 0 | M116: 0 | N116: 0 | O116: 0 | P116: 0 | Q116: 0 | R116: 0 | S116: 0 | T116: 0 | U116: 0 | V116: 0 | W116: 0 | X116: 0 | Y116: 0 | Z116: 0 | AA116: 0 | AB116: 0 | AC116: 0 | AD116: 0 | AE116: 0 | AF116: 0 | AG116: 0 | AH116: 0
B118: Pausenfehler | C118: Gruppe1 | D118: =IF(OR(D109="",D110=""),0,D110-D109) -> 0 | E118: =IF(OR(E109="",E110=""),0,E110-E109) -> 0 | F118: 0 | G118: 0 | H118: 0 | I118: 0 | J118: 0 | K118: 0 | L118: 0 | M118: 0 | N118: 0 | O118: 0 | P118: 0 | Q118: 0 | R118: 0 | S118: 0 | T118: 0 | U118: =IF(OR(U109="",U110=""),0,U110-U109) -> 0 | V118: =IF(OR(V109="",V110=""),0,V110-V109) -> 0 | W118: 0 | X118: 0 | Y118: 0 | Z118: 0 | AA118: 0 | AB118: 0 | AC118: 0 | AD118: 0 | AE118: 0 | AF118: 0 | AG118: 0 | AH118: 0
C119: Gruppe2 | D119: =IF(OR(D111="",D112=""),0,D112-D111) -> 0 | E119: =IF(OR(E111="",E112=""),0,E112-E111) -> 0 | F119: 0 | G119: 0 | H119: 0 | I119: 0 | J119: 0 | K119: 0 | L119: 0 | M119: 0 | N119: 0 | O119: 0 | P119: 0 | Q119: 0 | R119: 0 | S119: 0 | T119: 0 | U119: =IF(OR(U111="",U112=""),0,U112-U111) -> 0 | V119: =IF(OR(V111="",V112=""),0,V112-V111) -> 0 | W119: 0 | X119: 0 | Y119: 0 | Z119: 0 | AA119: 0 | AB119: 0 | AC119: 0 | AD119: 0 | AE119: 0 | AF119: 0 | AG119: 0 | AH119: 0
C120: Gruppe3 | D120: =IF(OR(D113="",D114=""),0,D114-D113) -> 0 | E120: =IF(OR(E113="",E114=""),0,E114-E113) -> 0 | F120: 0 | G120: 0 | H120: 0 | I120: 0 | J120: 0 | K120: 0 | L120: 0 | M120: 0 | N120: 0 | O120: 0 | P120: 0 | Q120: 0 | R120: 0 | S120: 0 | T120: 0 | U120: =IF(OR(U113="",U114=""),0,U114-U113) -> 0 | V120: =IF(OR(V113="",V114=""),0,V114-V113) -> 0 | W120: 0 | X120: 0 | Y120: 0 | Z120: 0 | AA120: 0 | AB120: 0 | AC120: 0 | AD120: 0 | AE120: 0 | AF120: 0 | AG120: 0 | AH120: 0
C121: Gruppe4 | D121: =IF(OR(D115="",D116=""),0,D116-D115) -> 0 | E121: =IF(OR(E115="",E116=""),0,E116-E115) -> 0 | F121: 0 | G121: 0 | H121: 0 | I121: 0 | J121: 0 | K121: 0 | L121: 0 | M121: 0 | N121: 0 | O121: 0 | P121: 0 | Q121: 0 | R121: 0 | S121: 0 | T121: 0 | U121: =IF(OR(U115="",U116=""),0,U116-U115) -> 0 | V121: =IF(OR(V115="",V116=""),0,V116-V115) -> 0 | W121: 0 | X121: 0 | Y121: 0 | Z121: 0 | AA121: 0 | AB121: 0 | AC121: 0 | AD121: 0 | AE121: 0 | AF121: 0 | AG121: 0 | AH121: 0
C123: Pause12 | D123: =IF(OR(D110="",D111=""),0,D111-D110) -> 0 | E123: =IF(OR(E110="",E111=""),0,E111-E110) -> 0 | F123: 0 | G123: 0 | H123: 0 | I123: 0 | J123: 0 | K123: 0 | L123: 0 | M123: 0 | N123: 0 | O123: 0 | P123: 0 | Q123: 0 | R123: 0 | S123: 0 | T123: 0 | U123: =IF(OR(U110="",U111=""),0,U111-U110) -> 0 | V123: =IF(OR(V110="",V111=""),0,V111-V110) -> 0 | W123: 0 | X123: 0 | Y123: 0 | Z123: 0 | AA123: 0 | AB123: 0 | AC123: 0 | AD123: 0 | AE123: 0 | AF123: 0 | AG123: 0 | AH123: 0
C124: Pause23 | D124: =IF(OR(D112="",D113=""),0,D113-D112) -> 0 | E124: =IF(OR(E112="",E113=""),0,E113-E112) -> 0 | F124: 0 | G124: 0 | H124: 0 | I124: 0 | J124: 0 | K124: 0 | L124: 0 | M124: 0 | N124: 0 | O124: 0 | P124: 0 | Q124: 0 | R124: 0 | S124: 0 | T124: 0 | U124: =IF(OR(U112="",U113=""),0,U113-U112) -> 0 | V124: =IF(OR(V112="",V113=""),0,V113-V112) -> 0 | W124: 0 | X124: 0 | Y124: 0 | Z124: 0 | AA124: 0 | AB124: 0 | AC124: 0 | AD124: 0 | AE124: 0 | AF124: 0 | AG124: 0 | AH124: 0
C125: Pause34 | D125: =IF(OR(D114="",D115=""),0,D115-D114) -> 0 | E125: =IF(OR(E114="",E115=""),0,E115-E114) -> 0 | F125: 0 | G125: 0 | H125: 0 | I125: 0 | J125: 0 | K125: 0 | L125: 0 | M125: 0 | N125: 0 | O125: 0 | P125: 0 | Q125: 0 | R125: 0 | S125: 0 | T125: 0 | U125: =IF(OR(U114="",U115=""),0,U115-U114) -> 0 | V125: =IF(OR(V114="",V115=""),0,V115-V114) -> 0 | W125: 0 | X125: 0 | Y125: 0 | Z125: 0 | AA125: 0 | AB125: 0 | AC125: 0 | AD125: 0 | AE125: 0 | AF125: 0 | AG125: 0 | AH125: 0
C127: Kum12 | D127: =IF(D123>=0.5,0,D118+D119) -> 0 | E127: =IF(E123>=0.5,0,E118+E119) -> 0 | F127: 0 | G127: 0 | H127: 0 | I127: 0 | J127: 0 | K127: 0 | L127: 0 | M127: 0 | N127: 0 | O127: 0 | P127: 0 | Q127: 0 | R127: 0 | S127: 0 | T127: 0 | U127: =IF(U123>=0.5,0,U118+U119) -> 0 | V127: =IF(V123>=0.5,0,V118+V119) -> 0 | W127: 0 | X127: 0 | Y127: 0 | Z127: 0 | AA127: 0 | AB127: 0 | AC127: 0 | AD127: 0 | AE127: 0 | AF127: 0 | AG127: 0 | AH127: 0
C128: Kum123 | D128: =IF(OR(D123>=0.5,D124>=0.5),0,D118+D119+D120) -> 0 | E128: =IF(OR(E123>=0.5,E124>=0.5),0,E118+E119+E120) -> 0 | F128: 0 | G128: 0 | H128: 0 | I128: 0 | J128: 0 | K128: 0 | L128: 0 | M128: 0 | N128: 0 | O128: 0 | P128: 0 | Q128: 0 | R128: 0 | S128: 0 | T128: 0 | U128: =IF(OR(U123>=0.5,U124>=0.5),0,U118+U119+U120) -> 0 | V128: =IF(OR(V123>=0.5,V124>=0.5),0,V118+V119+V120) -> 0 | W128: 0 | X128: 0 | Y128: 0 | Z128: 0 | AA128: 0 | AB128: 0 | AC128: 0 | AD128: 0 | AE128: 0 | AF128: 0 | AG128: 0 | AH128: 0
C129: Kum1234 | D129: =IF(OR(D123>=0.5,D124>=0.5,D125>=0.5),0,D118+D119+D120+D121) -> 0 | E129: =IF(OR(E123>=0.5,E124>=0.5,E125>=0.5),0,E118+E119+E120+E121) -> 0 | F129: 0 | G129: 0 | H129: 0 | I129: 0 | J129: 0 | K129: 0 | L129: 0 | M129: 0 | N129: 0 | O129: 0 | P129: 0 | Q129: 0 | R129: 0 | S129: 0 | T129: 0 | U129: =IF(OR(U123>=0.5,U124>=0.5,U125>=0.5),0,U118+U119+U120+U121) -> 0 | V129: =IF(OR(V123>=0.5,V124>=0.5,V125>=0.5),0,V118+V119+V120+V121) -> 0 | W129: 0 | X129: 0 | Y129: 0 | Z129: 0 | AA129: 0 | AB129: 0 | AC129: 0 | AD129: 0 | AE129: 0 | AF129: 0 | AG129: 0 | AH129: 0
C130: Kum23 | D130: =IF(D124>=0.5,0,D119+D120) -> 0 | E130: =IF(E124>=0.5,0,E119+E120) -> 0 | F130: 0 | G130: 0 | H130: 0 | I130: 0 | J130: 0 | K130: 0 | L130: 0 | M130: 0 | N130: 0 | O130: 0 | P130: 0 | Q130: 0 | R130: 0 | S130: 0 | T130: 0 | U130: =IF(U124>=0.5,0,U119+U120) -> 0 | V130: =IF(V124>=0.5,0,V119+V120) -> 0 | W130: 0 | X130: 0 | Y130: 0 | Z130: 0 | AA130: 0 | AB130: 0 | AC130: 0 | AD130: 0 | AE130: 0 | AF130: 0 | AG130: 0 | AH130: 0
C131: Kum234 | D131: =IF(OR(D124>=0.5,D125>=0.5),0,D119+D120+D121) -> 0 | E131: =IF(OR(E124>=0.5,E125>=0.5),0,E119+E120+E121) -> 0 | F131: 0 | G131: 0 | H131: 0 | I131: 0 | J131: 0 | K131: 0 | L131: 0 | M131: 0 | N131: 0 | O131: 0 | P131: 0 | Q131: 0 | R131: 0 | S131: 0 | T131: 0 | U131: =IF(OR(U124>=0.5,U125>=0.5),0,U119+U120+U121) -> 0 | V131: =IF(OR(V124>=0.5,V125>=0.5),0,V119+V120+V121) -> 0 | W131: 0 | X131: 0 | Y131: 0 | Z131: 0 | AA131: 0 | AB131: 0 | AC131: 0 | AD131: 0 | AE131: 0 | AF131: 0 | AG131: 0 | AH131: 0
C132: Kum34 | D132: =IF(D125>=0.5,0,D120+D121) -> 0 | E132: =IF(E125>=0.5,0,E120+E121) -> 0 | F132: 0 | G132: 0 | H132: 0 | I132: 0 | J132: 0 | K132: 0 | L132: 0 | M132: 0 | N132: 0 | O132: 0 | P132: 0 | Q132: 0 | R132: 0 | S132: 0 | T132: 0 | U132: =IF(U125>=0.5,0,U120+U121) -> 0 | V132: =IF(V125>=0.5,0,V120+V121) -> 0 | W132: 0 | X132: 0 | Y132: 0 | Z132: 0 | AA132: 0 | AB132: 0 | AC132: 0 | AD132: 0 | AE132: 0 | AF132: 0 | AG132: 0 | AH132: 0
C134: Pausenfehler-Code | D134: =IF(MAX(D118:D121,D127:D132)>6,2,0) -> 0 | E134: =IF(MAX(E118:E121,E127:E132)>6,2,0) -> 0 | F134: 0 | G134: 0 | H134: 0 | I134: 0 | J134: 0 | K134: 0 | L134: 0 | M134: 0 | N134: 0 | O134: 0 | P134: 0 | Q134: 0 | R134: 0 | S134: 0 | T134: 0 | U134: 0 | V134: 0 | W134: 0 | X134: 0 | Y134: 0 | Z134: 0 | AA134: 0 | AB134: 0 | AC134: 0 | AD134: 0 | AE134: 0 | AF134: 0 | AG134: 0 | AH134: 0

Sheet Basisblatt
B1: Zeiterfassung für das Jahr: | F1: 2024 | K1: =TPraefix & " " & TVers2 -> Version VSA 1.06 | V1: Spalten ausblenden | AN1: Nur im Testmodus mit 'Statusblock' belassen' sichtbar
C2: =ABS(SL_Jahrgang>0) -> 0 | F2: Bitte nur weisse Eingabefelder verändern | AM2: Abschluss-Teilbedingungen: | AO2: Nicht Relevant | AP2: FALSE | AR2: =IF(AP2=TRUE,AQ2,0) -> 0 | AS2: Nicht Relevant
B3: Name | F3: Beschäftigungsgrad (Durchschnitt) | J3: =INDEX(P40:P44,AnzZeilen) -> 100 | K3: % | N3: Abschluss-Status der Blätter: | AM3: Namenblock | AN3: =COUNTA(C3:C8)=6 -> FALSE | AO3: Entsperrt | AP3: FALSE | AQ3: 1 | AR3: =AP3*AQ3 -> 0 | AS3: Entsperrt
B4: Jahrgang | F4: Ferienanspruch bei 100%: | J4: =VLOOKUP(SL_Jahr-SL_Jahrgang,VSA_FerienAnspruch,2,TRUE) -> 0 | K4: Std. | N4: Basisblatt | Q4: =IF(AP7=TRUE,"Abgeschlossen","") ->  | AM4: EmailVG | AN4: =NOT(ISBLANK(EmailVG)) -> FALSE | AO4: Geändert | AP4: FALSE | AQ4: 2 | AR4: =AP4*AQ4 -> 0 | AS4: Geändert
B5: Pers.Nr. | F5: Kompensationsanspruch bei 100%: | J5: 15 | K5: Tage | N5: Januar | Q5: =IF(INDIRECT(N5&"!AP7")=TRUE,"Abgeschlossen","") ->  | S5: =INDIRECT(N5&"!C4")&"" ->  | V5: =INDIRECT(N5& "!D83") -> 0 | AI5: 1 | AM5: BG1 | AN5: =NOT(ISBLANK(D40)) -> TRUE | AO5: Sperre | AP5: =AS11=2 -> FALSE | AQ5: 3 | AR5: =NOT(AP6)*AQ5 -> 3 | AS5: Eingaben vornehmen
B6: Bezirk | C6: Ausserhalb Zürich | J6: optional: | K6: gültig: | M6: =IF(SL_Bezirk="Zürich",1,2) -> 2 | N6: Februar | Q6: =IF(INDIRECT(N6&"!AP7")=TRUE,"Abgeschlossen","") ->  | S6: =INDIRECT(N6&"!C4")&"" ->  | V6: =INDIRECT(N6& "!D83") -> 0 | AM6: Regelzeiten | AN6: =MAX(V50:V54)<2 -> FALSE | AO6: Abschliessbar | AP6: =AND(AN3,AN4,AN5,AN6,NOT(AP7)) -> FALSE | AQ6: 4 | AR6: =AND(NOT(OR(AP3,AP4)),AP6)*AQ6 -> 0 | AS6: Abschliessbar
B7: Gemeinde | F7: Berechnungsdatum bis ... | K7: =IF(ISBLANK(J7),TODAY(),J7) -> 2024-02-02 | N7: März | Q7: =IF(INDIRECT(N7&"!AP7")=TRUE,"Abgeschlossen","") ->  | S7: =INDIRECT(N7&"!C4")&"" ->  | V7: =INDIRECT(N7& "!D83") -> 0 | AO7: Abgeschlossen | AP7: FALSE | AQ7: 5 | AR7: =AND(NOT(OR(AP3,AP4)),AP7)*AQ7 -> 0 | AS7: Abgeschlossen
B8: Schule | F8: bitte leer lassen für automatisches Datum (heute) | N8: April | Q8: =IF(INDIRECT(N8&"!AP7")=TRUE,"Abgeschlossen","") ->  | S8: =INDIRECT(N8&"!C4")&"" ->  | V8: =INDIRECT(N8& "!D83") -> 0 | AO8: Für Jahr OK | AP8: =AND(OR(AP2,AP7),NOT(AP3)) -> FALSE
B9: E-Mail | F9: Beginn des neuen Schuljahrs | J9: =DATE(SL_Jahr,8,1) -> 2024-08-01 | N9: Mai | Q9: =IF(INDIRECT(N9&"!AP7")=TRUE,"Abgeschlossen","") ->  | S9: =INDIRECT(N9&"!C4")&"" ->  | V9: =INDIRECT(N9& "!D83") -> 0
N10: Juni | Q10: =IF(INDIRECT(N10&"!AP7")=TRUE,"Abgeschlossen","") ->  | S10: =INDIRECT(N10&"!C4")&"" ->  | V10: =INDIRECT(N10& "!D83") -> 0 | AO10: Statusnummer: | AP10: =MAX(AR2:AR7) -> 3
C11: E-Mail-Adresse der vorgesetzten Stelle: | N11: Juli | Q11: =IF(INDIRECT(N11&"!AP7")=TRUE,"Abgeschlossen","") ->  | S11: =INDIRECT(N11&"!C4")&"" ->  | V11: =INDIRECT(N11& "!D83") -> 0 | AM11: HatDaten: | AN11: =OR(AP10<>3,D40<>100,COUNTA(C3:E5,C7:E9,EmailVG,E25:F29,G27:G29,G31,P29:S30,B41:B44,D41:D44,D50:H54,C67:G68)>0) -> FALSE | AO11: Statustext: | AP11: =IFERROR(VLOOKUP(AP10,AR2:AS7,2,FALSE),"unbekannt") -> Eingaben vornehmen | AS11: 1
F12: ="Ordner für Zwischendokumente " &SL_Jahr&" aufrufen" -> Ordner für Zwischendokumente 2024 aufrufen | N12: August | Q12: =IF(INDIRECT(N12&"!AP7")=TRUE,"Abgeschlossen","") ->  | S12: =INDIRECT(N12&"!C4")&"" ->  | V12: =INDIRECT(N12& "!D83") -> 0
N13: September | Q13: =IF(INDIRECT(N13&"!AP7")=TRUE,"Abgeschlossen","") ->  | S13: =INDIRECT(N13&"!C4")&"" ->  | V13: =INDIRECT(N13& "!D83") -> 0
N14: Oktober | Q14: =IF(INDIRECT(N14&"!AP7")=TRUE,"Abgeschlossen","") ->  | S14: =INDIRECT(N14&"!C4")&"" ->  | V14: =INDIRECT(N14& "!D83") -> 0
B15: Startsaldi / Jahresübertrag | E15: =IF(VSATestModus=TRUE(),"VSA-Modus!","") ->  | N15: November | Q15: =IF(INDIRECT(N15&"!AP7")=TRUE,"Abgeschlossen","") ->  | S15: =INDIRECT(N15&"!C4")&"" ->  | V15: =INDIRECT(N15& "!D83") -> 0 | AP15: =SUM(AP2:AP8) -> 0
N16: Dezember | Q16: =IF(INDIRECT(N16&"!AP7")=TRUE,"Abgeschlossen","") ->  | S16: =INDIRECT(N16&"!C4")&"" ->  | V16: =INDIRECT(N16& "!D83") -> 0
B17: Bruttoarbeitszeit volles Pensum | E17: 2184 | K17: Gemäss V VO §116 vom 16.12.1998 | N17: Jahresabrechnung | Q17: =IF(INDIRECT(N17&"!AP7")=TRUE,"Abgeschlossen","") -> 
B18: Normal-Arbeitszeit/Tg. (52 Wo, 5 Tg.) | E18: 8.4
B19: Brutto-SOLL-Arbeitszeit nach BG | E19: =SL_Brutto100*MAX(H40:H44)/100 -> 2184
B20: Feiertagsanspruch nach BG | E20: =Kalender_Max_FA -> 103.8
B21: Netto-SOLL-Arbeitszeit (berechnet) | E21: =E19-E20 -> 2080.2
B22: Vereinbarte SOLL-Arbeitszeit | E22: =Jahresabrechnung!Y6 -> -103.8 | F22: =E22-E21 -> -2184 | K22: Differenz Zeile 20 - Zeile 19 | V22: Neue Zwischenberechnungen ab V. 1.03 | AO22: Gültigiger Wert: | AP22: Werte werden akzeptiert: | AQ22: Limitiert
AO23: Übertrag oder | AP23: (BG am 1.1 des Jahres) | AQ23: Beschränk.
E24: Überträge aus dem Vorjahr | F24: Korrekturen | G24: Jahresanspr. | H24: Total | AO24: Korrektur | AP24: (sonst Null) | AQ24: Max. saldo
B25: Arbeitszeit(AZ)-Saldo | H25: =AQ25*SL_OK -> 0 | I25: =AZ_NORM*10*SL_BG/100 -> 84 | J25: =IF(MAX(E25,F25)>ShiftStdProWoche,"AZ_Saldo maximal 2 Wochen Soll-Zeit!","") ->  | V25: Arbeitszeit(AZ)-Saldo | AO25: =IF(ISBLANK(F25),E25,F25) -> 0 | AP25: =AO25*ABS($D$40>0) -> 0 | AQ25: =MIN(AP25,ShiftStdProWoche) -> 0 | AR25: AZ_Saldo maximal 2 Wochen Soll-Zeit!
B26: Ferien (Überträge nur möglich wenn Start am 1.1.) | G26: =INDEX(J40:J45,AnzZeilen)*SL_OK -> 0 | H26: =(G26+AQ26)*SL_OK -> 0 | N26: Beschriftungen für "Freie Zeilen 1+2" (optional) | V26: Ferien | AO26: =IF(ISBLANK(F26),E26,F26) -> 0 | AP26: =AO26*ABS($D$40>0) -> 0 | AQ26: =AP26 -> 0
B27: Dienstaltersgeschenk (DAG) | H27: =(G27+AQ27)*SL_OK -> 0 | V27: Dienstaltersgeschenk (DAG) | AO27: 0 | AP27: 0 | AQ27: =AP27 -> 0 | AR27: (Grau ohne Limit)
B28: =B_UUB -> Unbezahlter Urlaub | H28: =(G28+AQ28)*SL_OK -> 0 | V28: Unbezahlter Urlaub | AO28: 0 | AP28: 0 | AQ28: 0
B29: =B_UB -> Bezahlter Urlaub | H29: =(G29+AQ29)*SL_OK -> 0 | K29: §§ 27 ff LPVO | N29: freie Zeile 1: | V29: Bezahlter Urlaub | AO29: 0 | AP29: 0 | AQ29: 0
B30: =B_KompAZ -> Kompensation Arbeitstage | H30: =MIN(INDEX(R40:R44,AnzZeilen),SL_KompAnspr)*SL_OK -> 0 | N30: freie Zeile 2:
B31: Nebenbeschäftigung | F31: 0 | H31: =G31*SL_OK -> 0 | K31: §§ 144 ff VVO | Y31: Zellsperrung um abgeschlossene
A32: x | B32: Frei einsetzbare Unterrichtslektionen 1 | K32: ="bis "&TEXT(VSA_Schulbeginn-1,"TT.MM.JJJJ") -> bis 31.07.2024
A33: x | B33: Frei einsetzbare Unterrichtslektionen 2 | K33: ="ab "&TEXT(VSA_Schulbeginn,"TT.MM.JJJJ") -> ab 01.08.2024
Y35: Monate zu schützen
B36: Beschäftigungsgrad, Ferienanspruch, empfohlene regelmässige Arbeitszeit | N36: Kompensationsanspruch | Y36: Aufruf: SetLockedRows_BeiEntsperren
K37: Empfohlene Arbeitszeit | W37: =MAX(W40:W44) -> 1 | Y37: Max: | Z37: =COUNTIF(Q5:Q16,"Abgeschlossen") -> 0 | AA37: MinDat
B38: Gültig ab | C38: Gültig bis | D38: BG % | E38: Tage | F38: Ferien | G38: kumuliert | H38: kumul. BG % | J38: Effektiv | K38: Std./ Tag | L38: Std./ Woche | N38: kompens. | O38: kumuliert | P38: kumuliert BG % | R38: Effektiv | Y38: Mon1 | Z38: gesperrt | AA38: =IFERROR(MAX(AA40:AA44),ErsterJahrestag) -> 00:00:00
A39: x | B39: 00:00:00 | D39: =IF(D40<1,D41,D40) -> 100 | G39: 0 | H39: 0 | I39: =HT_NAZ -> 8.4 | O39: 0 | P39: 0
B40: =DATE(SL_Jahr,1,1) -> 2024-01-01 | C40: =IF(ISBLANK(B41),DATE(SL_Jahr,12,31),B41-1) -> 2024-12-31 | D40: 100 | E40: =IF(AND(B40>0,C40>0,D40>0),DAYS360(B40,C40+1),0) -> 360 | F40: =IF(V40=1,SL_FerienAnspr*E40/360*D40/100,0) -> 0 | G40: =G39+F40 -> 0 | H40: =D40*E40/360+H39 -> 100 | I40: =IF(AND(B40>0,OR(D40<1,D40>100)),"(leer)","") ->  | J40: =IF(V40=1,IF(I40="",G40,0),0) -> 0 | K40: =IF(V40=1,ROUND(AZ_NORM*D40/100,2),0) -> 8.4 | L40: =IF(K40=0,0,K40*5) -> 42 | N40: =IF(AND(B40>0,C40>0,D40>0),ROUND(SL_KompAnspr*(C40-B40)/365,0),0) -> 15 | O40: =IF(B40>0,SUM($N$39:N40),0) -> 15 | P40: =H40 -> 100 | Q40: =IF(AND(B40>0,C40>0),IF(P40>100,"Fehler",0),0) -> 0 | R40: =O40 -> 15 | V40: =ABS(AND(B40>0,D40>0)) -> 1 | W40: 1 | Y40: =IF(B40<1,12,MONTH(B40)) -> 1 | Z40: =Y40<=$Z$37 -> FALSE | AA40: =IFERROR(C40*Z40,0) -> 00:00:00
C41: =IF(ISBLANK(B41),"",IF(ISBLANK(B42),DATE(SL_Jahr,12,31),B42-1)) ->  | E41: =IF(AND(B41>0,C41>0,D41>0),DAYS360(B41,C41+1),0) -> 0 | F41: =IF(V41=1,SL_FerienAnspr*E41/360*D41/100,0) -> 0 | G41: =G40+F41 -> 0 | H41: =D41*E41/360+H40 -> 100 | I41: =IF(AND(B41>0,OR(D41<1,D41>100)),"(leer)","") ->  | J41: =IF(V41=1,IF(I41="",G41,0),0) -> 0 | K41: =IF(V41=1,ROUNDDOWN(AZ_NORM*D41/100,2),0) -> 0 | L41: =IF(K41=0,0,K41*5) -> 0 | N41: =IF(AND(B41>0,C41>0,D41>0),ROUND(SL_KompAnspr*(C41-B41)/365,0),0) -> 0 | O41: =IF(B41>0,SUM($N$39:N41),0) -> 0 | P41: =H41 -> 100 | Q41: =IF(AND(B41>0,C41>0),IF(P41>100,"Fehler",0),0) -> 0 | R41: =O41 -> 0 | V41: =ABS(AND(B41>0,D41>0)) -> 0 | W41: =IF(D41>0,2,0) -> 0 | Y41: =IF(B41<1,12,MONTH(B41)) -> 12 | Z41: =Y41<=$Z$37 -> FALSE | AA41: =IFERROR(C41*Z41,0) -> 00:00:00
C42: =IF(ISBLANK(B42),"",IF(ISBLANK(B43),DATE(SL_Jahr,12,31),B43-1)) ->  | E42: =IF(AND(B42>0,C42>0,D42>0),DAYS360(B42,C42+1),0) -> 0 | F42: =IF(V42=1,SL_FerienAnspr*E42/360*D42/100,0) -> 0 | G42: 0 | H42: =D42*E42/360+H41 -> 100 | J42: =IF(V42=1,IF(I42="",G42,0),0) -> 0 | K42: =IF(V42=1,ROUNDDOWN(AZ_NORM*D42/100,2),0) -> 0 | L42: 0 | N42: =IF(AND(B42>0,C42>0,D42>0),ROUND(SL_KompAnspr*(C42-B42)/365,0),0) -> 0 | O42: =IF(B42>0,SUM($N$39:N42),0) -> 0 | P42: =H42 -> 100 | Q42: =IF(AND(B42>0,C42>0),IF(P42>100,"Fehler",0),0) -> 0 | R42: =O42 -> 0 | V42: =ABS(AND(B42>0,D42>0)) -> 0 | W42: =IF(D42>0,3,0) -> 0 | Y42: 12 | Z42: =Y42<=$Z$37 -> FALSE | AA42: =IFERROR(C42*Z42,0) -> 00:00:00
C43: =IF(ISBLANK(B43),"",IF(ISBLANK(B44),DATE(SL_Jahr,12,31),B44-1)) ->  | E43: 0 | F43: =IF(V43=1,SL_FerienAnspr*E43/360*D43/100,0) -> 0 | G43: 0 | H43: 100 | J43: =IF(V43=1,IF(I43="",G43,0),0) -> 0 | K43: =IF(V43=1,ROUNDDOWN(AZ_NORM*D43/100,2),0) -> 0 | L43: 0 | N43: =IF(AND(B43>0,C43>0,D43>0),ROUND(SL_KompAnspr*(C43-B43)/365,0),0) -> 0 | O43: =IF(B43>0,SUM($N$39:N43),0) -> 0 | P43: =H43 -> 100 | Q43: =IF(AND(B43>0,C43>0),IF(P43>100,"Fehler",0),0) -> 0 | R43: =O43 -> 0 | V43: =ABS(AND(B43>0,D43>0)) -> 0 | W43: =IF(D43>0,4,0) -> 0 | Y43: 12 | Z43: =Y43<=$Z$37 -> FALSE | AA43: 00:00:00
C44: =IF(ISBLANK(B44),"",DATE(SL_Jahr,12,31)) ->  | E44: 0 | F44: =IF(V44=1,SL_FerienAnspr*E44/360*D44/100,0) -> 0 | G44: 0 | H44: 100 | J44: =IF(V44=1,IF(I44="",G44,0),0) -> 0 | K44: =IF(V44=1,ROUNDDOWN(AZ_NORM*D44/100,2),0) -> 0 | L44: 0 | N44: =IF(AND(B44>0,C44>0,D44>0),ROUND(SL_KompAnspr*(C44-B44)/365,0),0) -> 0 | O44: =IF(B44>0,SUM($N$39:N44),0) -> 0 | P44: =H44 -> 100 | Q44: =IF(AND(B44>0,C44>0),IF(P44>100,"Fehler",0),0) -> 0 | R44: =O44 -> 0 | V44: =ABS(AND(B44>0,D44>0)) -> 0 | W44: =IF(D44>0,5,0) -> 0 | Y44: 12 | Z44: =Y44<=$Z$37 -> FALSE | AA44: 00:00:00
V46: 0.05
B47: Regelarbeitszeit | D47: (Brutto-SOLL-Arbeitszeit,=vereinbarte SOLL-Arbeitszeit) | N47: Beispiele (dezimale Eingaben!):
L48: Kontrolle | N48: 50% Anstellung (5 Tage anwesend)
B49: Gültig ab | C49: Gültig bis | D49: Montag | E49: Dienstag | F49: Mittwoch | G49: Donnerstag | H49: Freitag | I49: Samstag | J49: Sonntag | L49: Woche | N49: Montag | O49: Dienstag | P49: Mittwoch | Q49: Donnerstag | R49: Freitag | S49: Samstag | T49: Sonntag
B50: =ErsterJahrestag -> 2024-01-01 | C50: =C40 -> 2024-12-31 | K50: 1 | L50: =SUM(D50:J50)*W50 -> 0 | N50: =HT_NAZ/2 -> 4.2 | O50: =HT_NAZ/2 -> 4.2 | P50: =HT_NAZ/2 -> 4.2 | Q50: =HT_NAZ/2 -> 4.2 | R50: =HT_NAZ/2 -> 4.2 | S50: 0 | T50: 0 | V50: =IF(L50=L40,0,IF(ABS(L50-L40)<=TOLAB,1,2)) -> 2 | W50: =(D50<=HT_NAZ)*(E50<=HT_NAZ)*(F50<=HT_NAZ)*(G50<=HT_NAZ)*(H50<=HT_NAZ) -> 1 | Z50: =Z40 -> FALSE
B51: =B41 -> 00:00:00 | C51: =C41 ->  | K51: =IF(B51>0,2,K50) -> 1 | L51: =SUM(D51:J51)*W51 -> 0 | V51: =IF(L51=L41,0,IF(ABS(L51-L41)<=TOLAB,1,2)) -> 0 | W51: =(D51<=HT_NAZ)*(E51<=HT_NAZ)*(F51<=HT_NAZ)*(G51<=HT_NAZ)*(H51<=HT_NAZ) -> 1 | Z51: FALSE
B52: =B42 -> 00:00:00 | K52: =IF(B52>0,3,K51) -> 1 | L52: 0 | V52: =IF(L52=L42,0,IF(ABS(L52-L42)<=TOLAB,1,2)) -> 0 | W52: =(D52<=HT_NAZ)*(E52<=HT_NAZ)*(F52<=HT_NAZ)*(G52<=HT_NAZ)*(H52<=HT_NAZ) -> 1 | Z52: FALSE | AN52: 0
B53: 00:00:00 | K53: =IF(B53>0,4,K52) -> 1 | L53: 0 | V53: =IF(L53=L43,0,IF(ABS(L53-L43)<=TOLAB,1,2)) -> 0 | W53: =(D53<=HT_NAZ)*(E53<=HT_NAZ)*(F53<=HT_NAZ)*(G53<=HT_NAZ)*(H53<=HT_NAZ) -> 1 | Z53: FALSE
B54: 00:00:00 | K54: =IF(B54>0,5,K53) -> 1 | L54: 0 | N54: 80% Anstellung (4 Tage anwesend) | V54: =IF(L54=L44,0,IF(ABS(L54-L44)<=TOLAB,1,2)) -> 0 | W54: =(D54<=HT_NAZ)*(E54<=HT_NAZ)*(F54<=HT_NAZ)*(G54<=HT_NAZ)*(H54<=HT_NAZ) -> 1 | Z54: FALSE
B55: =COUNT(Datum_Schritt)-1 -> 4 | N55: Montag | O55: Dienstag | P55: Mittwoch | Q55: Donnerstag | R55: Freitag | S55: Samstag | T55: Sonntag
B56: Dargestellt als Stunden und Minuten: | N56: =HT_NAZ -> 8.4 | O56: =HT_NAZ -> 8.4 | P56: =HT_NAZ -> 8.4 | Q56: =HT_NAZ -> 8.4 | R56: 0 | S56: 0 | T56: 0
B58: Gültig ab | C58: Gültig bis | D58: Montag | E58: Dienstag | F58: Mittwoch | G58: Donnerstag | H58: Freitag | I58: Samstag | J58: Sonntag | Z58: Hilfstabelle BG-Verweise
B59: =ErsterJahrestag -> 2024-01-01 | C59: =C50 -> 2024-12-31 | D59: =D50/24 -> 0 | E59: =E50/24 -> 0 | F59: 0 | G59: 0 | H59: 0 | L59: =IF(ISBLANK(B59),"",SUM(D59:J59))*W50 -> 0 | Z59: =B40 -> 2024-01-01 | AA59: =INDEX(BG_Liste,AB59) -> 100 | AB59: =K50 -> 1
B60: =B41 -> 00:00:00 | C60: =C41 ->  | D60: =D51/24 -> 0 | E60: 0 | F60: 0 | G60: 0 | H60: 0 | L60: =IF(ISBLANK(B60),"",SUM(D60:J60))*W51 -> 0 | Z60: =MAX(ErsterJahrestag:B41) -> 2024-01-01 | AA60: =INDEX(BG_Liste,AB60) -> 100 | AB60: =K51 -> 1
B61: =B42 -> 00:00:00 | D61: 0 | E61: 0 | F61: 0 | G61: 0 | H61: 0 | L61: =IF(ISBLANK(B61),"",SUM(D61:J61))*W52 -> 0 | Z61: =MAX(ErsterJahrestag:B42) -> 2024-01-01 | AA61: =INDEX(BG_Liste,AB61) -> 100 | AB61: =K52 -> 1
B62: 00:00:00 | D62: 0 | E62: 0 | F62: 0 | G62: 0 | H62: 0 | L62: =IF(ISBLANK(B62),"",SUM(D62:J62))*W53 -> 0 | Z62: =MAX(ErsterJahrestag:B43) -> 2024-01-01 | AA62: =INDEX(BG_Liste,AB62) -> 100 | AB62: =K53 -> 1
B63: 00:00:00 | D63: 0 | E63: 0 | F63: 0 | G63: 0 | H63: 0 | L63: =IF(ISBLANK(B63),"",SUM(D63:J63))*W54 -> 0 | Z63: =MAX(ErsterJahrestag:B44) -> 2024-01-01 | AA63: =INDEX(BG_Liste,AB63) -> 100 | AB63: =K54 -> 1
B66: Visum | C66: Identität: | F66: Datum: | G66: Status: | V66: Zeilen
B67: SL | V67: ausblenden
B68: VG

Sheet Januar (hidden)
A1: 1 | B1: =DATEVALUE("1."&A1&"."&SL_Jahr) -> 2024-01-01 | C1: =SL_Jahr -> 2024 | D1: =B_Gde -> Gde: | E1: =SL_Gemeinde -> 0 | T1: =B_Schule -> Schule: | U1: =SL_Schule -> 0 | AM1: Abschluss-Teilbedingungen:
A2: =VLOOKUP(A1,Monatsenden,2) -> 45322 | B2: =B_Bg -> BG: | C2: =VLOOKUP(B1,VSA_Kalender,13) -> 1 | D2: =B_Name -> Name: | E2: =SL_Name -> 0 | AM2: Regel ok | AN2: =(AN14>=AN15) -> FALSE | AO2: Nicht Relevant | AP2: =D83=0 -> TRUE | AQ2: -1 | AR2: =IF(AP2=TRUE,AQ2,0) -> -1 | AS2: Nicht Relevant
B3: =Zerf_Version & " " & Zerf_T -> Version VSA 1.06 | D3: =DATE($C$1,MONTH($B$1),D$4) -> 2024-01-01 | E3: =DATE($C$1,MONTH($B$1),E$4) -> 2024-01-02 | F3: 2024-01-03 | G3: 2024-01-04 | H3: 2024-01-05 | I3: 2024-01-06 | J3: 2024-01-07 | K3: 2024-01-08 | L3: 2024-01-09 | M3: 2024-01-10 | N3: 2024-01-11 | O3: 2024-01-12 | P3: 2024-01-13 | Q3: 2024-01-14 | R3: 2024-01-15 | S3: 2024-01-16 | T3: 2024-01-17 | U3: 2024-01-18 | V3: 2024-01-19 | W3: 2024-01-20 | X3: 2024-01-21 | Y3: 2024-01-22 | Z3: 2024-01-23 | AA3: 2024-01-24 | AB3: 2024-01-25 | AC3: 2024-01-26 | AD3: 2024-01-27 | AE3: 2024-01-28 | AF3: =IF(MONTH(DATE($C$1,MONTH($B$1),AF$41))>MONTH($B$1),"",DATE($C$1,MONTH($B$1),AF$4)) -> 2024-01-29 | AG3: =IF(MONTH(DATE($C$1,MONTH($B$1),AG$41))>MONTH($B$1),"",DATE($C$1,MONTH($B$1),AG$4)) -> 2024-01-30 | AH3: =IF(MONTH(DATE($C$1,MONTH($B$1),AH$41))>MONTH($B$1),"",DATE($C$1,MONTH($B$1),AH$4)) -> 2024-01-31 | AM3: Spalten ok | AN3: =(L83>=D83) -> TRUE | AO3: Entsperrt | AP3: FALSE | AQ3: 1 | AR3: =AP3*AQ3 -> 0 | AS3: Entsperrt
B4: =IF(VSATestModus=TRUE(),"VSA-Modus!","") ->  | C4: =IF(AN52>0,"DEFEKT","") ->  | D4: =IF(MONTH(DATE($C$1,MONTH($B$1),D$41))>MONTH($B$1),"",D41) -> 1 | E4: 2 | F4: 3 | G4: 4 | H4: 5 | I4: 6 | J4: 7 | K4: 8 | L4: 9 | M4: 10 | N4: 11 | O4: 12 | P4: 13 | Q4: 14 | R4: 15 | S4: 16 | T4: 17 | U4: 18 | V4: 19 | W4: 20 | X4: 21 | Y4: 22 | Z4: 23 | AA4: 24 | AB4: 25 | AC4: 26 | AD4: 27 | AE4: 28 | AF4: =IF(MONTH(DATE($C$1,MONTH($B$1),AF$41))>MONTH($B$1),"",AF41) -> 29 | AG4: =IF(MONTH(DATE($C$1,MONTH($B$1),AG$41))>MONTH($B$1),"",AG41) -> 30 | AH4: =IF(MONTH(DATE($C$1,MONTH($B$1),AH$41))>MONTH($B$1),"",AH41) -> 31 | AM4: Keine Fehler | AN4: =(SUM(D87:AH87)=0) -> TRUE | AO4: Geändert | AP4: FALSE | AQ4: 2 | AR4: =AP4*AQ4 -> 0 | AS4: Geändert
B5: Ein >>> | AM5: Keine Hand | AN5: =(AI12="") -> TRUE | AO5: Sperre | AP5: =AS11=2 -> FALSE | AQ5: 3 | AR5: =NOT(AP6)*AQ5 -> 3 | AS5: Eingaben vornehmen
B6: <<< Aus | AO6: Abschliessbar 1 | AP6: =AND(OR(AN2,AN3),AN4,AN5,NOT(AP7),NOT(AP2)) -> FALSE | AQ6: 4 | AR6: =AND(NOT(OR(AP3,AP4)),AP6)*AQ6 -> 0 | AS6: Abschliessbar 1
B7: Ein >>> | AO7: Abgeschlossen | AP7: FALSE | AQ7: 5 | AR7: =AND(NOT(OR(AP3,AP4)),AP7)*AQ7 -> 0 | AS7: Abgeschlossen
B8: <<< Aus | AO8: Für Jahr OK | AP8: =AND(OR(AP2,AP7),NOT(AP3)) -> TRUE
B9: Ein >>>
B10: <<< Aus | AO10: Statusnummer: | AP10: =IF(AR2=AQ2,AQ2,MAX(AR2:AR7)) -> -1
B11: Ein >>> | AM11: HatDaten: | AN11: =AND(AP2=FALSE,OR(AP10<>3,COUNTA(D5:AH12,D20:AH35,D39:L40)>0)) -> FALSE | AO11: Statustext: | AP11: =IFERROR(VLOOKUP(AP10,AR2:AS7,2,FALSE),"unbekannt") -> Nicht Relevant | AS11: 1
B12: <<< Aus | AI12: =IF(COUNTIF(D37:AH37,"I")>0,"I","") -> 
B13: =B_PrZeit -> Präsenzzeit | D13: =24*(D6-D5+D8-D7+D10-D9+D12-D11)*D88 -> 0 | E13: =24*(E6-E5+E8-E7+E10-E9+E12-E11)*E88 -> 0 | F13: 0 | G13: 0 | H13: 0 | I13: 0 | J13: 0 | K13: 0 | L13: 0 | M13: 0 | N13: 0 | O13: 0 | P13: 0 | Q13: 0 | R13: 0 | S13: 0 | T13: 0 | U13: 0 | V13: 0 | W13: 0 | X13: 0 | Y13: 0 | Z13: 0 | AA13: 0 | AB13: 0 | AC13: 0 | AD13: 0 | AE13: 0 | AF13: 0 | AG13: 0 | AH13: 0 | AM13: Anzahl Regeltage: | AN13: =D83 -> 0
B14: =B_TotalAZist -> Total Arbeitszeit (IST) | D14: =IF(D13+D35>=D15,D13+D35,MIN(D13+D35+SUM(D20,D22,D23,D24,D25,D26,D27,D28,D29,D30,D31,D32,D33,D34),IF(D15<0,0,D15)))*D82 -> 0 | E14: 0 | F14: 0 | G14: 0 | H14: 0 | I14: 0 | J14: 0 | K14: 0 | L14: 0 | M14: 0 | N14: 0 | O14: 0 | P14: 0 | Q14: 0 | R14: =IF(R13+R35>=R15,R13+R35,MIN(R13+R35+SUM(R20,R22,R23,R24,R25,R26,R27,R28,R29,R30,R31,R32,R33,R34),IF(R15<0,0,R15)))*R82 -> 0 | S14: =IF(S13+S35>=S15,S13+S35,MIN(S13+S35+SUM(S20,S22,S23,S24,S25,S26,S27,S28,S29,S30,S31,S32,S33,S34),IF(S15<0,0,S15)))*S82 -> 0 | T14: =IF(T13+T35>=T15,T13+T35,MIN(T13+T35+SUM(T20,T22,T23,T24,T25,T26,T27,T28,T29,T30,T31,T32,T33,T34),IF(T15<0,0,T15)))*T82 -> 0 | U14: =IF(U13+U35>=U15,U13+U35,MIN(U13+U35+SUM(U20,U22,U23,U24,U25,U26,U27,U28,U29,U30,U31,U32,U33,U34),IF(U15<0,0,U15)))*U82 -> 0 | V14: 0 | W14: 0 | X14: 0 | Y14: 0 | Z14: 0 | AA14: 0 | AB14: 0 | AC14: 0 | AD14: 0 | AE14: 0 | AF14: 0 | AG14: 0 | AH14: 0 | AI14: =SUMIF($D$82:$AH$82,1,D14:AH14) -> 0 | AJ14: =AI14-AI15 -> 16.8 | AM14: Erfasste Regeltage | AN14: =L83 -> 0 | AO14: =AN13-AN14 -> 0 | AP14: Fehlende Regeltage
B15: =B_NettoSollAZ -> Netto-SOLL-Arbeitszeit | D15: =ROUND(D16-D19,2) -> -8.4 | E15: =ROUND(E16-E19,2) -> -8.4 | F15: 0 | G15: 0 | H15: 0 | I15: 0 | J15: 0 | K15: 0 | L15: 0 | M15: 0 | N15: 0 | O15: 0 | P15: 0 | Q15: 0 | R15: 0 | S15: 0 | T15: 0 | U15: 0 | V15: 0 | W15: 0 | X15: 0 | Y15: 0 | Z15: 0 | AA15: 0 | AB15: 0 | AC15: 0 | AD15: 0 | AE15: 0 | AF15: =IF(AF$42=4,0,ROUND(AF16-AF19,2)) -> 0 | AG15: =IF(AG$42=4,0,ROUND(AG16-AG19,2)) -> 0 | AH15: 0 | AI15: =SUMIF($D$82:$AH$82,1,D15:AH15) -> -16.8 | AM15: Minimum Regeltage | AN15: =MinRegeltage -> 1 | AO15: Ist als Konstante im Blatt "Intern" hinterlegt
B16: =B_BruttoSollAZ -> Brutto-SOLL-Arb.zeit | D16: =VLOOKUP(D3,VSA_Kalender,16) -> 0 | E16: 0 | F16: 0 | G16: 0 | H16: 0 | I16: 0 | J16: 0 | K16: 0 | L16: 0 | M16: 0 | N16: 0 | O16: 0 | P16: 0 | Q16: 0 | R16: 0 | S16: 0 | T16: 0 | U16: 0 | V16: 0 | W16: 0 | X16: 0 | Y16: 0 | Z16: 0 | AA16: 0 | AB16: 0 | AC16: 0 | AD16: 0 | AE16: 0 | AF16: =IF(AF$42=4,0,VLOOKUP(AF3,VSA_Kalender,16)) -> 0 | AG16: =IF(AG$42=4,0,VLOOKUP(AG3,VSA_Kalender,16)) -> 0 | AH16: =IF(AH$42=4,0,VLOOKUP(AH3,VSA_Kalender,16)) -> 0 | AM16: Regel ok | AN16: Mind. eigetr. Regeltage erfüllt
B17: =B_MehrMinder -> Mehr-/Minderleistung | D17: =(SL_BisDatum>=D3)*ROUND(D14-D15,2) -> 8.4 | E17: 8.4 | F17: 0 | G17: 0 | H17: 0 | I17: 0 | J17: 0 | K17: 0 | L17: 0 | M17: 0 | N17: 0 | O17: 0 | P17: 0 | Q17: 0 | R17: 0 | S17: 0 | T17: 0 | U17: 0 | V17: 0 | W17: 0 | X17: 0 | Y17: 0 | Z17: 0 | AA17: 0 | AB17: 0 | AC17: 0 | AD17: 0 | AE17: 0 | AF17: 0 | AG17: 0 | AH17: 0 | AI17: =B_Total -> Total | AJ17: =B_Vortrag -> Vortrag | AM17: Spalten ok: | AN17: Alle Einträge an Regeltagen ok
B18: =B_AZSaldo -> AZ - Saldo | C18: =VLOOKUP(ROW(),VSA_Uebertrag,$A$1+3) -> 0 | D18: =IFERROR((C18+D17)*(D3<=SL_BisDatum)*VLOOKUP(D3,VSA_Kalender,21,FALSE),0) -> 8.4 | E18: 16.8 | F18: 16.8 | G18: =IFERROR((F18+G17)*(G3<=SL_BisDatum)*VLOOKUP(G3,VSA_Kalender,21,FALSE),0) -> 16.8 | H18: 16.8 | I18: 16.8 | J18: 16.8 | K18: 16.8 | L18: 16.8 | M18: 16.8 | N18: 16.8 | O18: 16.8 | P18: 16.8 | Q18: 16.8 | R18: 16.8 | S18: 16.8 | T18: 16.8 | U18: 16.8 | V18: 16.8 | W18: 16.8 | X18: 16.8 | Y18: 16.8 | Z18: 16.8 | AA18: 16.8 | AB18: 16.8 | AC18: 16.8 | AD18: 16.8 | AE18: 16.8 | AF18: 16.8 | AG18: 16.8 | AH18: 16.8 | AJ18: =SUMIF($D$82:$AH$82,1,D17:AH17)+C18 -> 16.8
B19: =B_FTA -> Feiertagsanspruch | C19: 0 | D19: =VLOOKUP(D3,VSA_Kalender,14) -> 8.4 | E19: 8.4 | F19: 0 | G19: 0 | H19: 0 | I19: 0 | J19: 0 | K19: 0 | L19: 0 | M19: 0 | N19: 0 | O19: 0 | P19: 0 | Q19: 0 | R19: 0 | S19: 0 | T19: 0 | U19: 0 | V19: 0 | W19: 0 | X19: 0 | Y19: 0 | Z19: 0 | AA19: 0 | AB19: 0 | AC19: 0 | AD19: 0 | AE19: 0 | AF19: =IF(AF$42=4,0,VLOOKUP(AF3,VSA_Kalender,14)) -> 0 | AG19: =IF(AG$42=4,0,VLOOKUP(AG3,VSA_Kalender,14)) -> 0 | AH19: =IF(AH$42=4,0,VLOOKUP(AH3,VSA_Kalender,14)) -> 0 | AI19: =SUM(D19:AH19) -> 16.8
B20: =B_Ferien -> Ferien | C20: =VLOOKUP(ROW(),VSA_Uebertrag,$A$1+3) -> 0 | AI20: =SUMIF($D$82:$AH$82,1,D20:AH20) -> 0 | AJ20: =ROUND(C20-AI20,2) -> 0 | AK20: Rest
B21: =B_KompAZ -> Kompensation Arbeitstage | C21: 0 | AI21: 0 | AJ21: =ROUND(A21+C21-AI21,0) -> 0
B22: =B_Arzt -> Arztbesuch | C22: 0 | AI22: 0 | AJ22: =ROUND(A22+C22+AI22,2) -> 0 | AK22: Summen
B23: =B_Krank -> Krankheit | C23: 0 | AI23: 0 | AJ23: =ROUND(A23+C23+AI23,2) -> 0
B24: =B_BU -> Berufsunfall | C24: 0 | AI24: 0 | AJ24: 0
B25: =B_NBU -> Nichtberufsunfall | C25: 0 | AI25: 0 | AJ25: 0
B26: =B_MilZiv -> Militär / Zivilschutz | C26: 0 | AI26: 0 | AJ26: 0
B27: =B_UUB -> Unbezahlter Urlaub | C27: 0 | AI27: 0 | AJ27: =ROUND(A27+C27-AI27,2) -> 0 | AK27: Rest
B28: =B_UB -> Bezahlter Urlaub | C28: 0 | AI28: 0 | AJ28: =ROUND(A28+C28-AI28,2) -> 0
B29: =B_NebenB -> Nebenbeschäftigung | C29: 0 | AI29: 0 | AJ29: 0
B30: =B_DAG -> D A G | C30: 0 | AI30: 0 | AJ30: 0
B31: =B_Divers -> Diverses | C31: 0 | AI31: 0 | AJ31: 0 | AK31: Summen
B32: =B_FamPersErg -> Fam./pers. Ereignisse | C32: 0 | AI32: 0 | AJ32: 0
B33: =B_FZ1 -> freie Zeile 1 | C33: 0 | AI33: 0 | AJ33: 0
B34: =B_FZ2 -> freie Zeile 2 | C34: 0 | AI34: 0 | AJ34: 0
B35: =B_WB -> Weiterbildung | C35: 0 | AI35: 0 | AJ35: 0
B36: =B_FEL -> frei einsetzbare Lekt. | C36: 0 | AI36: =SUM(D36:AH36) -> 0 | AJ36: =ROUND(C36-AI36,0) -> 0
D37: =IF(AND((D13 - D15)+SUM(D20,D22:D34)>0.00001,SUM(D20,D22:D34)>0),"I","") -> 
C38: Visum | D38: Identität: | I38: Datum: | K38: Status:
C39: SL
C40: VG
D41: 1 | E41: 2 | F41: 3 | G41: 4 | H41: 5 | I41: 6 | J41: 7 | K41: 8 | L41: 9 | M41: 10 | N41: 11 | O41: 12 | P41: 13 | Q41: 14 | R41: 15 | S41: 16 | T41: 17 | U41: 18 | V41: 19 | W41: 20 | X41: 21 | Y41: 22 | Z41: 23 | AA41: 24 | AB41: 25 | AC41: 26 | AD41: 27 | AE41: 28 | AF41: 29 | AG41: 30 | AH41: 31
D42: =IF(D3="",4,VLOOKUP(D3,VSA_Kalender,18)) -> 1 | E42: 1 | F42: 0 | G42: 0 | H42: 0 | I42: 1 | J42: 1 | K42: 0 | L42: 0 | M42: 0 | N42: 0 | O42: 0 | P42: 1 | Q42: 1 | R42: 0 | S42: 0 | T42: 0 | U42: 0 | V42: 0 | W42: 1 | X42: 1 | Y42: 0 | Z42: 0 | AA42: 0 | AB42: 0 | AC42: 0 | AD42: 1 | AE42: 1 | AF42: 0 | AG42: 0 | AH42: 0
D44: =IF(D19>0,VLOOKUP(D3,KalFeiertage,6,FALSE),"") -> Neujahr | E44: Berchtoldstag
D45: FT=WENN(D13+D35>=D15;D13+D35;MIN(D13+D35+SUMME(D20;D22;D23;D24;D25;D26;D27;D28;D29;D30;D31;D32;D33;D34);WENN(D15<0;0;D15)))*D82 | E45: FT=WENN(E13+E35>=E15;E13+E35;MIN(E13+E35+SUMME(E20;E22;E23;E24;E25;E26;E27;E28;E29;E30;E31;E32;E33;E34);WENN(E15<0;0;E15)))*E82 | F45: FT=WENN(F13+F35>=F15;F13+F35;MIN(F13+F35+SUMME(F20;F22;F23;F24;F25;F26;F27;F28;F29;F30;F31;F32;F33;F34);WENN(F15<0;0;F15)))*F82 | G45: FT=WENN(G13+G35>=G15;G13+G35;MIN(G13+G35+SUMME(G20;G22;G23;G24;G25;G26;G27;G28;G29;G30;G31;G32;G33;G34);WENN(G15<0;0;G15)))*G82 | H45: FT=WENN(H13+H35>=H15;H13+H35;MIN(H13+H35+SUMME(H20;H22;H23;H24;H25;H26;H27;H28;H29;H30;H31;H32;H33;H34);WENN(H15<0;0;H15)))*H82 | I45: FT=WENN(I13+I35>=I15;I13+I35;MIN(I13+I35+SUMME(I20;I22;I23;I24;I25;I26;I27;I28;I29;I30;I31;I32;I33;I34);WENN(I15<0;0;I15)))*I82 | J45: FT=WENN(J13+J35>=J15;J13+J35;MIN(J13+J35+SUMME(J20;J22;J23;J24;J25;J26;J27;J28;J29;J30;J31;J32;J33;J34);WENN(J15<0;0;J15)))*J82 | K45: FT=WENN(K13+K35>=K15;K13+K35;MIN(K13+K35+SUMME(K20;K22;K23;K24;K25;K26;K27;K28;K29;K30;K31;K32;K33;K34);WENN(K15<0;0;K15)))*K82 | L45: FT=WENN(L13+L35>=L15;L13+L35;MIN(L13+L35+SUMME(L20;L22;L23;L24;L25;L26;L27;L28;L29;L30;L31;L32;L33;L34);WENN(L15<0;0;L15)))*L82 | M45: FT=WENN(M13+M35>=M15;M13+M35;MIN(M13+M35+SUMME(M20;M22;M23;M24;M25;M26;M27;M28;M29;M30;M31;M32;M33;M34);WENN(M15<0;0;M15)))*M82 | N45: FT=WENN(N13+N35>=N15;N13+N35;MIN(N13+N35+SUMME(N20;N22;N23;N24;N25;N26;N27;N28;N29;N30;N31;N32;N33;N34);WENN(N15<0;0;N15)))*N82 | O45: FT=WENN(O13+O35>=O15;O13+O35;MIN(O13+O35+SUMME(O20;O22;O23;O24;O25;O26;O27;O28;O29;O30;O31;O32;O33;O34);WENN(O15<0;0;O15)))*O82 | P45: FT=WENN(P13+P35>=P15;P13+P35;MIN(P13+P35+SUMME(P20;P22;P23;P24;P25;P26;P27;P28;P29;P30;P31;P32;P33;P34);WENN(P15<0;0;P15)))*P82 | Q45: FT=WENN(Q13+Q35>=Q15;Q13+Q35;MIN(Q13+Q35+SUMME(Q20;Q22;Q23;Q24;Q25;Q26;Q27;Q28;Q29;Q30;Q31;Q32;Q33;Q34);WENN(Q15<0;0;Q15)))*Q82 | R45: FT=WENN(R13+R35>=R15;R13+R35;MIN(R13+R35+SUMME(R20;R22;R23;R24;R25;R26;R27;R28;R29;R30;R31;R32;R33;R34);WENN(R15<0;0;R15)))*R82 | S45: FT=WENN(S13+S35>=S15;S13+S35;MIN(S13+S35+SUMME(S20;S22;S23;S24;S25;S26;S27;S28;S29;S30;S31;S32;S33;S34);WENN(S15<0;0;S15)))*S82 | T45: FT=WENN(T13+T35>=T15;T13+T35;MIN(T13+T35+SUMME(T20;T22;T23;T24;T25;T26;T27;T28;T29;T30;T31;T32;T33;T34);WENN(T15<0;0;T15)))*T82 | U45: FT=WENN(U13+U35>=U15;U13+U35;MIN(U13+U35+SUMME(U20;U22;U23;U24;U25;U26;U27;U28;U29;U30;U31;U32;U33;U34);WENN(U15<0;0;U15)))*U82 | V45: FT=WENN(V13+V35>=V15;V13+V35;MIN(V13+V35+SUMME(V20;V22;V23;V24;V25;V26;V27;V28;V29;V30;V31;V32;V33;V34);WENN(V15<0;0;V15)))*V82 | W45: FT=WENN(W13+W35>=W15;W13+W35;MIN(W13+W35+SUMME(W20;W22;W23;W24;W25;W26;W27;W28;W29;W30;W31;W32;W33;W34);WENN(W15<0;0;W15)))*W82 | X45: FT=WENN(X13+X35>=X15;X13+X35;MIN(X13+X35+SUMME(X20;X22;X23;X24;X25;X26;X27;X28;X29;X30;X31;X32;X33;X34);WENN(X15<0;0;X15)))*X82 | Y45: FT=WENN(Y13+Y35>=Y15;Y13+Y35;MIN(Y13+Y35+SUMME(Y20;Y22;Y23;Y24;Y25;Y26;Y27;Y28;Y29;Y30;Y31;Y32;Y33;Y34);WENN(Y15<0;0;Y15)))*Y82 | Z45: FT=WENN(Z13+Z35>=Z15;Z13+Z35;MIN(Z13+Z35+SUMME(Z20;Z22;Z23;Z24;Z25;Z26;Z27;Z28;Z29;Z30;Z31;Z32;Z33;Z34);WENN(Z15<0;0;Z15)))*Z82 | AA45: FT=WENN(AA13+AA35>=AA15;AA13+AA35;MIN(AA13+AA35+SUMME(AA20;AA22;AA23;AA24;AA25;AA26;AA27;AA28;AA29;AA30;AA31;AA32;AA33;AA34);WENN(AA15<0;0;AA15)))*AA82 | AB45: FT=WENN(AB13+AB35>=AB15;AB13+AB35;MIN(AB13+AB35+SUMME(AB20;AB22;AB23;AB24;AB25;AB26;AB27;AB28;AB29;AB30;AB31;AB32;AB33;AB34);WENN(AB15<0;0;AB15)))*AB82 | AC45: FT=WENN(AC13+AC35>=AC15;AC13+AC35;MIN(AC13+AC35+SUMME(AC20;AC22;AC23;AC24;AC25;AC26;AC27;AC28;AC29;AC30;AC31;AC32;AC33;AC34);WENN(AC15<0;0;AC15)))*AC82 | AD45: FT=WENN(AD13+AD35>=AD15;AD13+AD35;MIN(AD13+AD35+SUMME(AD20;AD22;AD23;AD24;AD25;AD26;AD27;AD28;AD29;AD30;AD31;AD32;AD33;AD34);WENN(AD15<0;0;AD15)))*AD82 | AE45: FT=WENN(AE13+AE35>=AE15;AE13+AE35;MIN(AE13+AE35+SUMME(AE20;AE22;AE23;AE24;AE25;AE26;AE27;AE28;AE29;AE30;AE31;AE32;AE33;AE34);WENN(AE15<0;0;AE15)))*AE82 | AF45: FT=WENN(AF13+AF35>=AF15;AF13+AF35;MIN(AF13+AF35+SUMME(AF20;AF22;AF23;AF24;AF25;AF26;AF27;AF28;AF29;AF30;AF31;AF32;AF33;AF34);WENN(AF15<0;0;AF15)))*AF82 | AG45: FT=WENN(AG13+AG35>=AG15;AG13+AG35;MIN(AG13+AG35+SUMME(AG20;AG22;AG23;AG24;AG25;AG26;AG27;AG28;AG29;AG30;AG31;AG32;AG33;AG34);WENN(AG15<0;0;AG15)))*AG82 | AH45: FT=WENN(AH13+AH35>=AH15;AH13+AH35;MIN(AH13+AH35+SUMME(AH20;AH22;AH23;AH24;AH25;AH26;AH27;AH28;AH29;AH30;AH31;AH32;AH33;AH34);WENN(AH15<0;0;AH15)))*AH82
D46: FT=24*(D6-D5+D8-D7+D10-D9+D12-D11)*D88 | E46: FT=24*(E6-E5+E8-E7+E10-E9+E12-E11)*E88 | F46: FT=24*(F6-F5+F8-F7+F10-F9+F12-F11)*F88 | G46: FT=24*(G6-G5+G8-G7+G10-G9+G12-G11)*G88 | H46: FT=24*(H6-H5+H8-H7+H10-H9+H12-H11)*H88 | I46: FT=24*(I6-I5+I8-I7+I10-I9+I12-I11)*I88 | J46: FT=24*(J6-J5+J8-J7+J10-J9+J12-J11)*J88 | K46: FT=24*(K6-K5+K8-K7+K10-K9+K12-K11)*K88 | L46: FT=24*(L6-L5+L8-L7+L10-L9+L12-L11)*L88 | M46: FT=24*(M6-M5+M8-M7+M10-M9+M12-M11)*M88 | N46: FT=24*(N6-N5+N8-N7+N10-N9+N12-N11)*N88 | O46: FT=24*(O6-O5+O8-O7+O10-O9+O12-O11)*O88 | P46: FT=24*(P6-P5+P8-P7+P10-P9+P12-P11)*P88 | Q46: FT=24*(Q6-Q5+Q8-Q7+Q10-Q9+Q12-Q11)*Q88 | R46: FT=24*(R6-R5+R8-R7+R10-R9+R12-R11)*R88 | S46: FT=24*(S6-S5+S8-S7+S10-S9+S12-S11)*S88 | T46: FT=24*(T6-T5+T8-T7+T10-T9+T12-T11)*T88 | U46: FT=24*(U6-U5+U8-U7+U10-U9+U12-U11)*U88 | V46: FT=24*(V6-V5+V8-V7+V10-V9+V12-V11)*V88 | W46: FT=24*(W6-W5+W8-W7+W10-W9+W12-W11)*W88 | X46: FT=24*(X6-X5+X8-X7+X10-X9+X12-X11)*X88 | Y46: FT=24*(Y6-Y5+Y8-Y7+Y10-Y9+Y12-Y11)*Y88 | Z46: FT=24*(Z6-Z5+Z8-Z7+Z10-Z9+Z12-Z11)*Z88 | AA46: FT=24*(AA6-AA5+AA8-AA7+AA10-AA9+AA12-AA11)*AA88 | AB46: FT=24*(AB6-AB5+AB8-AB7+AB10-AB9+AB12-AB11)*AB88 | AC46: FT=24*(AC6-AC5+AC8-AC7+AC10-AC9+AC12-AC11)*AC88 | AD46: FT=24*(AD6-AD5+AD8-AD7+AD10-AD9+AD12-AD11)*AD88 | AE46: FT=24*(AE6-AE5+AE8-AE7+AE10-AE9+AE12-AE11)*AE88 | AF46: FT=24*(AF6-AF5+AF8-AF7+AF10-AF9+AF12-AF11)*AF88 | AG46: FT=24*(AG6-AG5+AG8-AG7+AG10-AG9+AG12-AG11)*AG88 | AH46: FT=24*(AH6-AH5+AH8-AH7+AH10-AH9+AH12-AH11)*AH88
D47: FT=ODER(D14>0;D21>0)*1 | E47: FT=ODER(E14>0;E21>0)*1 | F47: FT=ODER(F14>0;F21>0)*1 | G47: FT=ODER(G14>0;G21>0)*1 | H47: FT=ODER(H14>0;H21>0)*1 | I47: FT=ODER(I14>0;I21>0)*1 | J47: FT=ODER(J14>0;J21>0)*1 | K47: FT=ODER(K14>0;K21>0)*1 | L47: FT=ODER(L14>0;L21>0)*1 | M47: FT=ODER(M14>0;M21>0)*1 | N47: FT=ODER(N14>0;N21>0)*1 | O47: FT=ODER(O14>0;O21>0)*1 | P47: FT=ODER(P14>0;P21>0)*1 | Q47: FT=ODER(Q14>0;Q21>0)*1 | R47: FT=ODER(R14>0;R21>0)*1 | S47: FT=ODER(S14>0;S21>0)*1 | T47: FT=ODER(T14>0;T21>0)*1 | U47: FT=ODER(U14>0;U21>0)*1 | V47: FT=ODER(V14>0;V21>0)*1 | W47: FT=ODER(W14>0;W21>0)*1 | X47: FT=ODER(X14>0;X21>0)*1 | Y47: FT=ODER(Y14>0;Y21>0)*1 | Z47: FT=ODER(Z14>0;Z21>0)*1 | AA47: FT=ODER(AA14>0;AA21>0)*1 | AB47: FT=ODER(AB14>0;AB21>0)*1 | AC47: FT=ODER(AC14>0;AC21>0)*1 | AD47: FT=ODER(AD14>0;AD21>0)*1 | AE47: FT=ODER(AE14>0;AE21>0)*1 | AF47: FT=ODER(AF14>0;AF21>0)*1 | AG47: FT=ODER(AG14>0;AG21>0)*1 | AH47: FT=ODER(AH14>0;AH21>0)*1
D48: =ABS("FT"&_xlfn.FORMULATEXT(D14)<>D45) -> 0 | E48: =ABS("FT"&_xlfn.FORMULATEXT(E14)<>E45) -> 0 | F48: 0 | G48: 0 | H48: 0 | I48: 0 | J48: 0 | K48: 0 | L48: 0 | M48: 0 | N48: 0 | O48: 0 | P48: 0 | Q48: 0 | R48: 0 | S48: 0 | T48: 0 | U48: 0 | V48: 0 | W48: 0 | X48: 0 | Y48: 0 | Z48: 0 | AA48: 0 | AB48: 0 | AC48: 0 | AD48: 0 | AE48: 0 | AF48: 0 | AG48: 0 | AH48: 0
D49: =ABS("FT"&_xlfn.FORMULATEXT(D13)<>D46) -> 0 | E49: =ABS("FT"&_xlfn.FORMULATEXT(E13)<>E46) -> 0 | F49: 0 | G49: 0 | H49: 0 | I49: 0 | J49: 0 | K49: 0 | L49: 0 | M49: 0 | N49: 0 | O49: 0 | P49: 0 | Q49: 0 | R49: 0 | S49: 0 | T49: 0 | U49: 0 | V49: 0 | W49: 0 | X49: 0 | Y49: 0 | Z49: 0 | AA49: 0 | AB49: 0 | AC49: 0 | AD49: 0 | AE49: 0 | AF49: 0 | AG49: 0 | AH49: 0
D50: =ABS("FT"&_xlfn.FORMULATEXT(D80)<>D47) -> 0 | E50: =ABS("FT"&_xlfn.FORMULATEXT(E80)<>E47) -> 0 | F50: 0 | G50: 0 | H50: 0 | I50: 0 | J50: 0 | K50: 0 | L50: 0 | M50: 0 | N50: 0 | O50: 0 | P50: 0 | Q50: 0 | R50: 0 | S50: 0 | T50: 0 | U50: 0 | V50: 0 | W50: 0 | X50: 0 | Y50: 0 | Z50: 0 | AA50: 0 | AB50: 0 | AC50: 0 | AD50: 0 | AE50: 0 | AF50: 0 | AG50: 0 | AH50: 0
D51: =ABS(ISERROR(D37)) -> 0 | E51: =ABS(ISERROR(E37)) -> 0 | F51: 0 | G51: 0 | H51: 0 | I51: 0 | J51: 0 | K51: 0 | L51: 0 | M51: 0 | N51: 0 | O51: 0 | P51: 0 | Q51: 0 | R51: 0 | S51: 0 | T51: 0 | U51: 0 | V51: 0 | W51: 0 | X51: 0 | Y51: 0 | Z51: 0 | AA51: 0 | AB51: 0 | AC51: 0 | AD51: 0 | AE51: 0 | AF51: 0 | AG51: 0 | AH51: 0
D52: =SUM(D48:D51) -> 0 | E52: =SUM(E48:E51) -> 0 | F52: 0 | G52: 0 | H52: 0 | I52: 0 | J52: 0 | K52: 0 | L52: 0 | M52: 0 | N52: 0 | O52: 0 | P52: 0 | Q52: 0 | R52: 0 | S52: 0 | T52: 0 | U52: 0 | V52: 0 | W52: 0 | X52: 0 | Y52: 0 | Z52: 0 | AA52: 0 | AB52: 0 | AC52: 0 | AD52: 0 | AE52: 0 | AF52: 0 | AG52: 0 | AH52: 0 | AM52: Formel defekt | AN52: =SUM(D52:AH52) -> 0
B77: HT_Naz-Kopie | C77: =HT_NAZ -> 8.4
B78: Heute: | C78: =SL_BisDatum -> 2024-02-02
C79: Reguläre Tage ausgefüllt | D79: =((D80*D81)=1)*1 -> 0 | E79: =((E80*E81)=1)*1 -> 0 | F79: 0 | G79: 0 | H79: 0 | I79: 0 | J79: 0 | K79: 0 | L79: 0 | M79: 0 | N79: 0 | O79: 0 | P79: 0 | Q79: 0 | R79: 0 | S79: 0 | T79: 0 | U79: 0 | V79: 0 | W79: 0 | X79: 0 | Y79: 0 | Z79: 0 | AA79: 0 | AB79: 0 | AC79: 0 | AD79: 0 | AE79: 0 | AF79: 0 | AG79: 0 | AH79: 0
C80: Arbeitstage ausgefüllt | D80: =OR(D14>0,D21>0)*1 -> 0 | E80: =OR(E14>0,E21>0)*1 -> 0 | F80: 0 | G80: 0 | H80: 0 | I80: 0 | J80: 0 | K80: 0 | L80: 0 | M80: 0 | N80: 0 | O80: 0 | P80: 0 | Q80: 0 | R80: 0 | S80: 0 | T80: 0 | U80: 0 | V80: 0 | W80: 0 | X80: 0 | Y80: 0 | Z80: 0 | AA80: 0 | AB80: 0 | AC80: 0 | AD80: 0 | AE80: 0 | AF80: 0 | AG80: 0 | AH80: 0
C81: Arbeitstage wenn BG>0% | D81: =IFERROR(VLOOKUP(D3,VSA_Kalender,22),0) -> 0 | E81: 0 | F81: 0 | G81: 0 | H81: 0 | I81: 0 | J81: 0 | K81: 0 | L81: 0 | M81: 0 | N81: 0 | O81: 0 | P81: 0 | Q81: 0 | R81: 0 | S81: 0 | T81: 0 | U81: 0 | V81: 0 | W81: 0 | X81: 0 | Y81: 0 | Z81: 0 | AA81: 0 | AB81: 0 | AC81: 0 | AD81: 0 | AE81: 0 | AF81: 0 | AG81: 0 | AH81: 0
C82: Der BG beträgt mehr als 0% | D82: =IF(D4="",0,ABS(VLOOKUP(D3,VSA_Kalender,13,FALSE)>0)) -> 1 | E82: 1 | F82: 1 | G82: 1 | H82: 1 | I82: 1 | J82: 1 | K82: 1 | L82: 1 | M82: 1 | N82: 1 | O82: 1 | P82: 1 | Q82: 1 | R82: 1 | S82: 1 | T82: 1 | U82: 1 | V82: 1 | W82: 1 | X82: 1 | Y82: 1 | Z82: 1 | AA82: 1 | AB82: 1 | AC82: 1 | AD82: 1 | AE82: 1 | AF82: 1 | AG82: 1 | AH82: 1
C83: (Ja: 1, Nein: 0) | D83: =SUM(D81:AH81) -> 0 | E83: Total Tage bei BG>0% | H83: =SUM(D80:AH80) -> 0 | I83: Total Tage ausgefüllt | L83: =SUM(D79:AH79) -> 0 | M83: Total reguläre Tage ausgefüllt
C85: Tag des Monats | D85: =D4 -> 1 | E85: 2 | F85: 3 | G85: 4 | H85: 5 | I85: 6 | J85: 7 | K85: 8 | L85: 9 | M85: 10 | N85: 11 | O85: 12 | P85: 13 | Q85: 14 | R85: 15 | S85: 16 | T85: 17 | U85: 18 | V85: 19 | W85: 20 | X85: 21 | Y85: 22 | Z85: 23 | AA85: 24 | AB85: 25 | AC85: 26 | AD85: 27 | AE85: 28 | AF85: 29 | AG85: 30 | AH85: 31
C86: Ist Arbeitsbereich | D86: =IFERROR(ABS(WEEKDAY(D3,2)<6),0) -> 1 | E86: 1 | F86: 1 | G86: 1 | H86: 1 | I86: 0 | J86: 0 | K86: 1 | L86: 1 | M86: 1 | N86: 1 | O86: 1 | P86: 0 | Q86: 0 | R86: 1 | S86: 1 | T86: 1 | U86: 1 | V86: 1 | W86: 0 | X86: 0 | Y86: 1 | Z86: 1 | AA86: 1 | AB86: 1 | AC86: 1 | AD86: 0 | AE86: 0 | AF86: 1 | AG86: 1 | AH86: 1
C87: Maximaler Fehler | D87: =MAX(D100:D107,D98,D134) -> 0 | E87: =MAX(E100:E107,E98,E134) -> 0 | F87: 0 | G87: 0 | H87: 0 | I87: 0 | J87: 0 | K87: 0 | L87: 0 | M87: 0 | N87: 0 | O87: 0 | P87: 0 | Q87: 0 | R87: 0 | S87: 0 | T87: 0 | U87: 0 | V87: 0 | W87: 0 | X87: 0 | Y87: 0 | Z87: 0 | AA87: 0 | AB87: 0 | AC87: 0 | AD87: 0 | AE87: 0 | AF87: 0 | AG87: 0 | AH87: 0
C88: Wird die Präsenzzeit angezeigt? | D88: =IF(D87=0,1,0) -> 1 | E88: =IF(E87=0,1,0) -> 1 | F88: 1 | G88: 1 | H88: 1 | I88: 1 | J88: 1 | K88: 1 | L88: 1 | M88: 1 | N88: 1 | O88: 1 | P88: 1 | Q88: 1 | R88: 1 | S88: 1 | T88: 1 | U88: 1 | V88: 1 | W88: 1 | X88: 1 | Y88: 1 | Z88: 1 | AA88: 1 | AB88: 1 | AC88: 1 | AD88: 1 | AE88: 1 | AF88: 1 | AG88: 1 | AH88: 1
C90: Gruppenfehler 1 | D90: =IF(AND(D6-D5=0,COUNTA(D7:D12)>0),1,0) -> 0 | E90: 0 | F90: 0 | G90: 0 | H90: 0 | I90: 0 | J90: 0 | K90: 0 | L90: 0 | M90: 0 | N90: 0 | O90: 0 | P90: 0 | Q90: 0 | R90: 0 | S90: 0 | T90: 0 | U90: 0 | V90: 0 | W90: 0 | X90: 0 | Y90: 0 | Z90: 0 | AA90: 0 | AB90: 0 | AC90: 0 | AD90: 0 | AE90: 0 | AF90: 0 | AG90: 0 | AH90: 0
B91: Gruppenfehler | C91: (aus) | D91: =D90 -> 0 | E91: 0 | F91: 0 | G91: 0 | H91: 0 | I91: 0 | J91: 0 | K91: 0 | L91: 0 | M91: 0 | N91: 0 | O91: 0 | P91: 0 | Q91: 0 | R91: 0 | S91: 0 | T91: 0 | U91: 0 | V91: 0 | W91: 0 | X91: 0 | Y91: 0 | Z91: 0 | AA91: 0 | AB91: 0 | AC91: 0 | AD91: 0 | AE91: 0 | AF91: 0 | AG91: 0 | AH91: 0
C92: Gruppenfehler 2 | D92: =IF(AND(D8-D7=0,COUNTA(D9:D12)>0),1,0) -> 0 | E92: 0 | F92: 0 | G92: 0 | H92: 0 | I92: 0 | J92: 0 | K92: 0 | L92: 0 | M92: 0 | N92: 0 | O92: 0 | P92: 0 | Q92: 0 | R92: 0 | S92: 0 | T92: 0 | U92: 0 | V92: 0 | W92: 0 | X92: 0 | Y92: 0 | Z92: 0 | AA92: 0 | AB92: 0 | AC92: 0 | AD92: 0 | AE92: 0 | AF92: 0 | AG92: 0 | AH92: 0
C93: (aus) | D93: =D92 -> 0 | E93: 0 | F93: 0 | G93: 0 | H93: 0 | I93: 0 | J93: 0 | K93: 0 | L93: 0 | M93: 0 | N93: 0 | O93: 0 | P93: 0 | Q93: 0 | R93: 0 | S93: 0 | T93: 0 | U93: 0 | V93: 0 | W93: 0 | X93: 0 | Y93: 0 | Z93: 0 | AA93: 0 | AB93: 0 | AC93: 0 | AD93: 0 | AE93: 0 | AF93: 0 | AG93: 0 | AH93: 0
C94: Gruppenfehler 3 | D94: =IF(AND(D10-D9=0,COUNTA(D11:D12)>0),1,0) -> 0 | E94: 0 | F94: 0 | G94: 0 | H94: 0 | I94: 0 | J94: 0 | K94: 0 | L94: 0 | M94: 0 | N94: 0 | O94: 0 | P94: 0 | Q94: 0 | R94: 0 | S94: 0 | T94: 0 | U94: 0 | V94: 0 | W94: 0 | X94: 0 | Y94: 0 | Z94: 0 | AA94: 0 | AB94: 0 | AC94: 0 | AD94: 0 | AE94: 0 | AF94: 0 | AG94: 0 | AH94: 0
C95: (aus) | D95: =D94 -> 0 | E95: 0 | F95: 0 | G95: 0 | H95: 0 | I95: 0 | J95: 0 | K95: 0 | L95: 0 | M95: 0 | N95: 0 | O95: 0 | P95: 0 | Q95: 0 | R95: 0 | S95: 0 | T95: 0 | U95: 0 | V95: 0 | W95: 0 | X95: 0 | Y95: 0 | Z95: 0 | AA95: 0 | AB95: 0 | AC95: 0 | AD95: 0 | AE95: 0 | AF95: 0 | AG95: 0 | AH95: 0
C96: leer
C97: leer
C98: Genereller Gruppenfehler | D98: =MAX(D90:D95) -> 0 | E98: 0 | F98: 0 | G98: 0 | H98: 0 | I98: 0 | J98: 0 | K98: 0 | L98: 0 | M98: 0 | N98: 0 | O98: 0 | P98: 0 | Q98: 0 | R98: 0 | S98: 0 | T98: 0 | U98: 0 | V98: 0 | W98: 0 | X98: 0 | Y98: 0 | Z98: 0 | AA98: 0 | AB98: 0 | AC98: 0 | AD98: 0 | AE98: 0 | AF98: 0 | AG98: 0 | AH98: 0
C100: Ein1 | D100: =IF(AND(D109=0,D110>0),1,0) -> 0 | E100: =IF(AND(E109=0,E110>0),1,0) -> 0 | F100: 0 | G100: 0 | H100: 0 | I100: 0 | J100: 0 | K100: 0 | L100: 0 | M100: 0 | N100: 0 | O100: 0 | P100: 0 | Q100: 0 | R100: 0 | S100: 0 | T100: 0 | U100: 0 | V100: 0 | W100: 0 | X100: 0 | Y100: 0 | Z100: 0 | AA100: 0 | AB100: 0 | AC100: 0 | AD100: 0 | AE100: 0 | AF100: 0 | AG100: 0 | AH100: 0
C101: Aus1 | D101: =IF(AND(D110>0,D110<D109),3,IF(AND(D109>0,D110=0),1,0))*D$86 -> 0 | E101: =IF(AND(E110>0,E110<E109),3,IF(AND(E109>0,E110=0),1,0))*E$86 -> 0 | F101: 0 | G101: 0 | H101: 0 | I101: 0 | J101: 0 | K101: 0 | L101: 0 | M101: 0 | N101: 0 | O101: 0 | P101: 0 | Q101: 0 | R101: 0 | S101: 0 | T101: 0 | U101: 0 | V101: 0 | W101: 0 | X101: 0 | Y101: 0 | Z101: 0 | AA101: 0 | AB101: 0 | AC101: 0 | AD101: 0 | AE101: 0 | AF101: 0 | AG101: 0 | AH101: 0
C102: Ein2 | D102: =IF(AND(D111>0,D111<D110),3,IF(AND(D111=0,D112>0),1,0))*D$86 -> 0 | E102: 0 | F102: 0 | G102: 0 | H102: 0 | I102: 0 | J102: 0 | K102: 0 | L102: 0 | M102: 0 | N102: 0 | O102: 0 | P102: 0 | Q102: 0 | R102: 0 | S102: 0 | T102: 0 | U102: 0 | V102: 0 | W102: 0 | X102: 0 | Y102: 0 | Z102: 0 | AA102: 0 | AB102: 0 | AC102: 0 | AD102: 0 | AE102: 0 | AF102: 0 | AG102: 0 | AH102: 0
C103: Aus2 | D103: =IF(AND(D112>0,D112<D111),3,IF(AND(D111>0,D112=0),1,0))*D$86 -> 0 | E103: =IF(AND(E112>0,E112<E111),3,IF(AND(E111>0,E112=0),1,0))*E$86 -> 0 | F103: 0 | G103: 0 | H103: 0 | I103: 0 | J103: 0 | K103: 0 | L103: 0 | M103: 0 | N103: 0 | O103: 0 | P103: 0 | Q103: 0 | R103: 0 | S103: 0 | T103: 0 | U103: 0 | V103: 0 | W103: 0 | X103: 0 | Y103: 0 | Z103: 0 | AA103: 0 | AB103: 0 | AC103: 0 | AD103: 0 | AE103: 0 | AF103: 0 | AG103: 0 | AH103: 0
B104: Zellenfehler | C104: Ein3 | D104: =IF(AND(D113>0,D113<D112),3,IF(AND(D113=0,D114>0),1,0))*D$86 -> 0 | E104: =IF(AND(E113>0,E113<E112),3,IF(AND(E113=0,E114>0),1,0))*E$86 -> 0 | F104: 0 | G104: 0 | H104: 0 | I104: 0 | J104: 0 | K104: 0 | L104: 0 | M104: 0 | N104: 0 | O104: 0 | P104: 0 | Q104: 0 | R104: 0 | S104: 0 | T104: 0 | U104: 0 | V104: 0 | W104: 0 | X104: 0 | Y104: 0 | Z104: 0 | AA104: 0 | AB104: 0 | AC104: 0 | AD104: 0 | AE104: 0 | AF104: 0 | AG104: 0 | AH104: 0
C105: Aus3 | D105: =IF(AND(D114>0,D114<D113),3,IF(AND(D113>0,D114=0),1,0))*D$86 -> 0 | E105: =IF(AND(E114>0,E114<E113),3,IF(AND(E113>0,E114=0),1,0))*E$86 -> 0 | F105: 0 | G105: 0 | H105: 0 | I105: 0 | J105: 0 | K105: 0 | L105: 0 | M105: 0 | N105: 0 | O105: 0 | P105: 0 | Q105: 0 | R105: 0 | S105: 0 | T105: 0 | U105: 0 | V105: 0 | W105: 0 | X105: 0 | Y105: 0 | Z105: 0 | AA105: 0 | AB105: 0 | AC105: 0 | AD105: 0 | AE105: 0 | AF105: 0 | AG105: 0 | AH105: 0
C106: Ein4 | D106: =IF(AND(D115>0,D115<D114),3,IF(AND(D115=0,D116>0),1,0))*D$86 -> 0 | E106: =IF(AND(E115>0,E115<E114),3,IF(AND(E115=0,E116>0),1,0))*E$86 -> 0 | F106: 0 | G106: 0 | H106: 0 | I106: 0 | J106: 0 | K106: 0 | L106: 0 | M106: 0 | N106: 0 | O106: 0 | P106: 0 | Q106: 0 | R106: 0 | S106: 0 | T106: 0 | U106: 0 | V106: 0 | W106: 0 | X106: 0 | Y106: 0 | Z106: 0 | AA106: 0 | AB106: 0 | AC106: 0 | AD106: 0 | AE106: 0 | AF106: 0 | AG106: 0 | AH106: 0
C107: Aus4 | D107: =IF(AND(D116>0,D116<D115),3,IF(AND(D115>0,D116=0),1,0))*D$86 -> 0 | E107: =IF(AND(E116>0,E116<E115),3,IF(AND(E115>0,E116=0),1,0))*E$86 -> 0 | F107: 0 | G107: 0 | H107: 0 | I107: 0 | J107: 0 | K107: 0 | L107: 0 | M107: 0 | N107: 0 | O107: 0 | P107: 0 | Q107: 0 | R107: 0 | S107: 0 | T107: 0 | U107: 0 | V107: 0 | W107: 0 | X107: 0 | Y107: 0 | Z107: 0 | AA107: 0 | AB107: 0 | AC107: 0 | AD107: 0 | AE107: 0 | AF107: 0 | AG107: 0 | AH107: 0
C109: Ein1 | D109: =ROUND(D5*24,2) -> 0 | E109: 0 | F109: 0 | G109: 0 | H109: 0 | I109: 0 | J109: 0 | K109: 0 | L109: 0 | M109: 0 | N109: 0 | O109: 0 | P109: 0 | Q109: 0 | R109: 0 | S109: 0 | T109: 0 | U109: 0 | V109: 0 | W109: 0 | X109: 0 | Y109: 0 | Z109: 0 | AA109: 0 | AB109: 0 | AC109: 0 | AD109: 0 | AE109: 0 | AF109: 0 | AG109: 0 | AH109: 0
C110: Aus1 | D110: 0 | E110: 0 | F110: 0 | G110: 0 | H110: 0 | I110: 0 | J110: 0 | K110: 0 | L110: 0 | M110: 0 | N110: 0 | O110: 0 | P110: 0 | Q110: 0 | R110: 0 | S110: 0 | T110: 0 | U110: 0 | V110: 0 | W110: 0 | X110: 0 | Y110: 0 | Z110: 0 | AA110: 0 | AB110: 0 | AC110: 0 | AD110: 0 | AE110: 0 | AF110: 0 | AG110: 0 | AH110: 0
B111: Zeiten dezimal gewandelt | C111: Ein2 | D111: 0 | E111: 0 | F111: 0 | G111: 0 | H111: 0 | I111: 0 | J111: 0 | K111: 0 | L111: 0 | M111: 0 | N111: 0 | O111: 0 | P111: 0 | Q111: 0 | R111: 0 | S111: 0 | T111: 0 | U111: 0 | V111: 0 | W111: 0 | X111: 0 | Y111: 0 | Z111: 0 | AA111: 0 | AB111: 0 | AC111: 0 | AD111: 0 | AE111: 0 | AF111: 0 | AG111: 0 | AH111: 0
C112: Aus2 | D112: 0 | E112: 0 | F112: 0 | G112: 0 | H112: 0 | I112: 0 | J112: 0 | K112: 0 | L112: 0 | M112: 0 | N112: 0 | O112: 0 | P112: 0 | Q112: 0 | R112: 0 | S112: 0 | T112: 0 | U112: 0 | V112: 0 | W112: 0 | X112: 0 | Y112: 0 | Z112: 0 | AA112: 0 | AB112: 0 | AC112: 0 | AD112: 0 | AE112: 0 | AF112: 0 | AG112: 0 | AH112: 0
C113: Ein3 | D113: 0 | E113: 0 | F113: 0 | G113: 0 | H113: 0 | I113: 0 | J113: 0 | K113: 0 | L113: 0 | M113: 0 | N113: 0 | O113: 0 | P113: 0 | Q113: 0 | R113: 0 | S113: 0 | T113: 0 | U113: 0 | V113: 0 | W113: 0 | X113: 0 | Y113: 0 | Z113: 0 | AA113: 0 | AB113: 0 | AC113: 0 | AD113: 0 | AE113: 0 | AF113: 0 | AG113: 0 | AH113: 0
C114: Aus3 | D114: 0 | E114: 0 | F114: 0 | G114: 0 | H114: 0 | I114: 0 | J114: 0 | K114: 0 | L114: 0 | M114: 0 | N114: 0 | O114: 0 | P114: 0 | Q114: 0 | R114: 0 | S114: 0 | T114: 0 | U114: 0 | V114: 0 | W114: 0 | X114: 0 | Y114: 0 | Z114: 0 | AA114: 0 | AB114: 0 | AC114: 0 | AD114: 0 | AE114: 0 | AF114: 0 | AG114: 0 | AH114: 0
C115: Ein4 | D115: 0 | E115: 0 | F115: 0 | G115: 0 | H115: 0 | I115: 0 | J115: 0 | K115: 0 | L115: 0 | M115: 0 | N115: 0 | O115: 0 | P115: 0 | Q115: 0 | R115: 0 | S115: 0 | T115: 0 | U115: 0 | V115: 0 | W115: 0 | X115: 0 | Y115: 0 | Z115: 0 | AA115: 0 | AB115: 0 | AC115: 0 | AD115: 0 | AE115: 0 | AF115: 0 | AG115: 0 | AH115: 0
C116: Aus4 | D116: 0 | E116: 0 | F116: 0 | G116: 0 | H116: 0 | I116: 0 | J116: 0 | K116: 0 | L116: 0 | M116: 0 | N116: 0 | O116: 0 | P116: 0 | Q116: 0 | R116: 0 | S116: 0 | T116: 0 | U116: 0 | V116: 0 | W116: 0 | X116: 0 | Y116: 0 | Z116: 0 | AA116: 0 | AB116: 0 | AC116: 0 | AD116: 0 | AE116: 0 | AF116: 0 | AG116: 0 | AH116: 0
B118: Pausenfehler | C118: Gruppe1 | D118: =IF(OR(D109="",D110=""),0,D110-D109) -> 0 | E118: =IF(OR(E109="",E110=""),0,E110-E109) -> 0 | F118: 0 | G118: 0 | H118: 0 | I118: 0 | J118: 0 | K118: 0 | L118: 0 | M118: 0 | N118: 0 | O118: 0 | P118: 0 | Q118: 0 | R118: 0 | S118: 0 | T118: 0 | U118: =IF(OR(U109="",U110=""),0,U110-U109) -> 0 | V118: =IF(OR(V109="",V110=""),0,V110-V109) -> 0 | W118: 0 | X118: 0 | Y118: 0 | Z118: 0 | AA118: 0 | AB118: 0 | AC118: 0 | AD118: 0 | AE118: 0 | AF118: 0 | AG118: 0 | AH118: 0
C119: Gruppe2 | D119: =IF(OR(D111="",D112=""),0,D112-D111) -> 0 | E119: =IF(OR(E111="",E112=""),0,E112-E111) -> 0 | F119: 0 | G119: 0 | H119: 0 | I119: 0 | J119: 0 | K119: 0 | L119: 0 | M119: 0 | N119: 0 | O119: 0 | P119: 0 | Q119: 0 | R119: 0 | S119: 0 | T119: 0 | U119: =IF(OR(U111="",U112=""),0,U112-U111) -> 0 | V119: =IF(OR(V111="",V112=""),0,V112-V111) -> 0 | W119: 0 | X119: 0 | Y119: 0 | Z119: 0 | AA119: 0 | AB119: 0 | AC119: 0 | AD119: 0 | AE119: 0 | AF119: 0 | AG119: 0 | AH119: 0
C120: Gruppe3 | D120: =IF(OR(D113="",D114=""),0,D114-D113) -> 0 | E120: =IF(OR(E113="",E114=""),0,E114-E113) -> 0 | F120: 0 | G120: 0 | H120: 0 | I120: 0 | J120: 0 | K120: 0 | L120: 0 | M120: 0 | N120: 0 | O120: 0 | P120: 0 | Q120: 0 | R120: 0 | S120: 0 | T120: 0 | U120: =IF(OR(U113="",U114=""),0,U114-U113) -> 0 | V120: =IF(OR(V113="",V114=""),0,V114-V113) -> 0 | W120: 0 | X120: 0 | Y120: 0 | Z120: 0 | AA120: 0 | AB120: 0 | AC120: 0 | AD120: 0 | AE120: 0 | AF120: 0 | AG120: 0 | AH120: 0
C121: Gruppe4 | D121: =IF(OR(D115="",D116=""),0,D116-D115) -> 0 | E121: =IF(OR(E115="",E116=""),0,E116-E115) -> 0 | F121: 0 | G121: 0 | H121: 0 | I121: 0 | J121: 0 | K121: 0 | L121: 0 | M121: 0 | N121: 0 | O121: 0 | P121: 0 | Q121: 0 | R121: 0 | S121: 0 | T121: 0 | U121: =IF(OR(U115="",U116=""),0,U116-U115) -> 0 | V121: =IF(OR(V115="",V116=""),0,V116-V115) -> 0 | W121: 0 | X121: 0 | Y121: 0 | Z121: 0 | AA121: 0 | AB121: 0 | AC121: 0 | AD121: 0 | AE121: 0 | AF121: 0 | AG121: 0 | AH121: 0
C123: Pause12 | D123: =IF(OR(D110="",D111=""),0,D111-D110) -> 0 | E123: =IF(OR(E110="",E111=""),0,E111-E110) -> 0 | F123: 0 | G123: 0 | H123: 0 | I123: 0 | J123: 0 | K123: 0 | L123: 0 | M123: 0 | N123: 0 | O123: 0 | P123: 0 | Q123: 0 | R123: 0 | S123: 0 | T123: 0 | U123: =IF(OR(U110="",U111=""),0,U111-U110) -> 0 | V123: =IF(OR(V110="",V111=""),0,V111-V110) -> 0 | W123: 0 | X123: 0 | Y123: 0 | Z123: 0 | AA123: 0 | AB123: 0 | AC123: 0 | AD123: 0 | AE123: 0 | AF123: 0 | AG123: 0 | AH123: 0
C124: Pause23 | D124: =IF(OR(D112="",D113=""),0,D113-D112) -> 0 | E124: =IF(OR(E112="",E113=""),0,E113-E112) -> 0 | F124: 0 | G124: 0 | H124: 0 | I124: 0 | J124: 0 | K124: 0 | L124: 0 | M124: 0 | N124: 0 | O124: 0 | P124: 0 | Q124: 0 | R124: 0 | S124: 0 | T124: 0 | U124: =IF(OR(U112="",U113=""),0,U113-U112) -> 0 | V124: =IF(OR(V112="",V113=""),0,V113-V112) -> 0 | W124: 0 | X124: 0 | Y124: 0 | Z124: 0 | AA124: 0 | AB124: 0 | AC124: 0 | AD124: 0 | AE124: 0 | AF124: 0 | AG124: 0 | AH124: 0
C125: Pause34 | D125: =IF(OR(D114="",D115=""),0,D115-D114) -> 0 | E125: =IF(OR(E114="",E115=""),0,E115-E114) -> 0 | F125: 0 | G125: 0 | H125: 0 | I125: 0 | J125: 0 | K125: 0 | L125: 0 | M125: 0 | N125: 0 | O125: 0 | P125: 0 | Q125: 0 | R125: 0 | S125: 0 | T125: 0 | U125: =IF(OR(U114="",U115=""),0,U115-U114) -> 0 | V125: =IF(OR(V114="",V115=""),0,V115-V114) -> 0 | W125: 0 | X125: 0 | Y125: 0 | Z125: 0 | AA125: 0 | AB125: 0 | AC125: 0 | AD125: 0 | AE125: 0 | AF125: 0 | AG125: 0 | AH125: 0
C127: Kum12 | D127: =IF(D123>=0.5,0,D118+D119) -> 0 | E127: =IF(E123>=0.5,0,E118+E119) -> 0 | F127: 0 | G127: 0 | H127: 0 | I127: 0 | J127: 0 | K127: 0 | L127: 0 | M127: 0 | N127: 0 | O127: 0 | P127: 0 | Q127: 0 | R127: 0 | S127: 0 | T127: 0 | U127: =IF(U123>=0.5,0,U118+U119) -> 0 | V127: =IF(V123>=0.5,0,V118+V119) -> 0 | W127: 0 | X127: 0 | Y127: 0 | Z127: 0 | AA127: 0 | AB127: 0 | AC127: 0 | AD127: 0 | AE127: 0 | AF127: 0 | AG127: 0 | AH127: 0
C128: Kum123 | D128: =IF(OR(D123>=0.5,D124>=0.5),0,D118+D119+D120) -> 0 | E128: =IF(OR(E123>=0.5,E124>=0.5),0,E118+E119+E120) -> 0 | F128: 0 | G128: 0 | H128: 0 | I128: 0 | J128: 0 | K128: 0 | L128: 0 | M128: 0 | N128: 0 | O128: 0 | P128: 0 | Q128: 0 | R128: 0 | S128: 0 | T128: 0 | U128: =IF(OR(U123>=0.5,U124>=0.5),0,U118+U119+U120) -> 0 | V128: =IF(OR(V123>=0.5,V124>=0.5),0,V118+V119+V120) -> 0 | W128: 0 | X128: 0 | Y128: 0 | Z128: 0 | AA128: 0 | AB128: 0 | AC128: 0 | AD128: 0 | AE128: 0 | AF128: 0 | AG128: 0 | AH128: 0
C129: Kum1234 | D129: =IF(OR(D123>=0.5,D124>=0.5,D125>=0.5),0,D118+D119+D120+D121) -> 0 | E129: =IF(OR(E123>=0.5,E124>=0.5,E125>=0.5),0,E118+E119+E120+E121) -> 0 | F129: 0 | G129: 0 | H129: 0 | I129: 0 | J129: 0 | K129: 0 | L129: 0 | M129: 0 | N129: 0 | O129: 0 | P129: 0 | Q129: 0 | R129: 0 | S129: 0 | T129: 0 | U129: =IF(OR(U123>=0.5,U124>=0.5,U125>=0.5),0,U118+U119+U120+U121) -> 0 | V129: =IF(OR(V123>=0.5,V124>=0.5,V125>=0.5),0,V118+V119+V120+V121) -> 0 | W129: 0 | X129: 0 | Y129: 0 | Z129: 0 | AA129: 0 | AB129: 0 | AC129: 0 | AD129: 0 | AE129: 0 | AF129: 0 | AG129: 0 | AH129: 0
C130: Kum23 | D130: =IF(D124>=0.5,0,D119+D120) -> 0 | E130: =IF(E124>=0.5,0,E119+E120) -> 0 | F130: 0 | G130: 0 | H130: 0 | I130: 0 | J130: 0 | K130: 0 | L130: 0 | M130: 0 | N130: 0 | O130: 0 | P130: 0 | Q130: 0 | R130: 0 | S130: 0 | T130: 0 | U130: =IF(U124>=0.5,0,U119+U120) -> 0 | V130: =IF(V124>=0.5,0,V119+V120) -> 0 | W130: 0 | X130: 0 | Y130: 0 | Z130: 0 | AA130: 0 | AB130: 0 | AC130: 0 | AD130: 0 | AE130: 0 | AF130: 0 | AG130: 0 | AH130: 0
C131: Kum234 | D131: =IF(OR(D124>=0.5,D125>=0.5),0,D119+D120+D121) -> 0 | E131: =IF(OR(E124>=0.5,E125>=0.5),0,E119+E120+E121) -> 0 | F131: 0 | G131: 0 | H131: 0 | I131: 0 | J131: 0 | K131: 0 | L131: 0 | M131: 0 | N131: 0 | O131: 0 | P131: 0 | Q131: 0 | R131: 0 | S131: 0 | T131: 0 | U131: =IF(OR(U124>=0.5,U125>=0.5),0,U119+U120+U121) -> 0 | V131: =IF(OR(V124>=0.5,V125>=0.5),0,V119+V120+V121) -> 0 | W131: 0 | X131: 0 | Y131: 0 | Z131: 0 | AA131: 0 | AB131: 0 | AC131: 0 | AD131: 0 | AE131: 0 | AF131: 0 | AG131: 0 | AH131: 0
C132: Kum34 | D132: =IF(D125>=0.5,0,D120+D121) -> 0 | E132: =IF(E125>=0.5,0,E120+E121) -> 0 | F132: 0 | G132: 0 | H132: 0 | I132: 0 | J132: 0 | K132: 0 | L132: 0 | M132: 0 | N132: 0 | O132: 0 | P132: 0 | Q132: 0 | R132: 0 | S132: 0 | T132: 0 | U132: =IF(U125>=0.5,0,U120+U121) -> 0 | V132: =IF(V125>=0.5,0,V120+V121) -> 0 | W132: 0 | X132: 0 | Y132: 0 | Z132: 0 | AA132: 0 | AB132: 0 | AC132: 0 | AD132: 0 | AE132: 0 | AF132: 0 | AG132: 0 | AH132: 0
C134: Pausenfehler-Code | D134: =IF(MAX(D118:D121,D127:D132)>6,2,0) -> 0 | E134: =IF(MAX(E118:E121,E127:E132)>6,2,0) -> 0 | F134: 0 | G134: 0 | H134: 0 | I134: 0 | J134: 0 | K134: 0 | L134: 0 | M134: 0 | N134: 0 | O134: 0 | P134: 0 | Q134: 0 | R134: 0 | S134: 0 | T134: 0 | U134: 0 | V134: 0 | W134: 0 | X134: 0 | Y134: 0 | Z134: 0 | AA134: 0 | AB134: 0 | AC134: 0 | AD134: 0 | AE134: 0 | AF134: 0 | AG134: 0 | AH134: 0

Sheet Februar (hidden)
A1: 2 | B1: =DATEVALUE("1."&A1&"."&SL_Jahr) -> 2024-02-01 | C1: =SL_Jahr -> 2024 | D1: =B_Gde -> Gde: | E1: =SL_Gemeinde -> 0 | T1: =B_Schule -> Schule: | U1: =SL_Schule -> 0 | AM1: Abschluss-Teilbedingungen:
A2: =VLOOKUP(A1,Monatsenden,2) -> 45351 | B2: =B_Bg -> BG: | C2: =VLOOKUP(B1,VSA_Kalender,13) -> 1 | D2: =B_Name -> Name: | E2: =SL_Name -> 0 | AM2: Regel ok | AN2: =(AN14>=AN15) -> FALSE | AO2: Nicht Relevant | AP2: =D83=0 -> TRUE | AQ2: -1 | AR2: =IF(AP2=TRUE,AQ2,0) -> -1 | AS2: Nicht Relevant
B3: =Zerf_Version & " " & Zerf_T -> Version VSA 1.06 | D3: =DATE($C$1,MONTH($B$1),D$4) -> 2024-02-01 | E3: =DATE($C$1,MONTH($B$1),E$4) -> 2024-02-02 | F3: 2024-02-03 | G3: 2024-02-04 | H3: 2024-02-05 | I3: 2024-02-06 | J3: 2024-02-07 | K3: 2024-02-08 | L3: 2024-02-09 | M3: 2024-02-10 | N3: 2024-02-11 | O3: 2024-02-12 | P3: 2024-02-13 | Q3: 2024-02-14 | R3: 2024-02-15 | S3: 2024-02-16 | T3: 2024-02-17 | U3: 2024-02-18 | V3: 2024-02-19 | W3: 2024-02-20 | X3: 2024-02-21 | Y3: 2024-02-22 | Z3: 2024-02-23 | AA3: 2024-02-24 | AB3: 2024-02-25 | AC3: 2024-02-26 | AD3: 2024-02-27 | AE3: 2024-02-28 | AF3: =IF(MONTH(DATE($C$1,MONTH($B$1),AF$41))>MONTH($B$1),"",DATE($C$1,MONTH($B$1),AF$4)) -> 2024-02-29 | AG3: =IF(MONTH(DATE($C$1,MONTH($B$1),AG$41))>MONTH($B$1),"",DATE($C$1,MONTH($B$1),AG$4)) ->  | AH3: =IF(MONTH(DATE($C$1,MONTH($B$1),AH$41))>MONTH($B$1),"",DATE($C$1,MONTH($B$1),AH$4)) ->  | AM3: Spalten ok | AN3: =(L83>=D83) -> TRUE | AO3: Entsperrt | AP3: FALSE | AQ3: 1 | AR3: =AP3*AQ3 -> 0 | AS3: Entsperrt
B4: =IF(VSATestModus=TRUE(),"VSA-Modus!","") ->  | C4: =IF(AN52>0,"DEFEKT","") ->  | D4: =IF(MONTH(DATE($C$1,MONTH($B$1),D$41))>MONTH($B$1),"",D41) -> 1 | E4: 2 | F4: 3 | G4: 4 | H4: 5 | I4: 6 | J4: 7 | K4: 8 | L4: 9 | M4: 10 | N4: 11 | O4: 12 | P4: 13 | Q4: 14 | R4: 15 | S4: 16 | T4: 17 | U4: 18 | V4: 19 | W4: 20 | X4: 21 | Y4: 22 | Z4: 23 | AA4: 24 | AB4: 25 | AC4: 26 | AD4: 27 | AE4: 28 | AF4: =IF(MONTH(DATE($C$1,MONTH($B$1),AF$41))>MONTH($B$1),"",AF41) -> 29 | AG4: =IF(MONTH(DATE($C$1,MONTH($B$1),AG$41))>MONTH($B$1),"",AG41) ->  | AH4: =IF(MONTH(DATE($C$1,MONTH($B$1),AH$41))>MONTH($B$1),"",AH41) ->  | AM4: Keine Fehler | AN4: =(SUM(D87:AH87)=0) -> TRUE | AO4: Geändert | AP4: FALSE | AQ4: 2 | AR4: =AP4*AQ4 -> 0 | AS4: Geändert
B5: Ein >>> | AM5: Keine Hand | AN5: =(AI12="") -> TRUE | AO5: Sperre | AP5: =AS11=2 -> FALSE | AQ5: 3 | AR5: =NOT(AP6)*AQ5 -> 3 | AS5: Eingaben vornehmen
B6: <<< Aus | AO6: Abschliessbar 1 | AP6: =AND(OR(AN2,AN3),AN4,AN5,NOT(AP7),NOT(AP2)) -> FALSE | AQ6: 4 | AR6: =AND(NOT(OR(AP3,AP4)),AP6)*AQ6 -> 0 | AS6: Abschliessbar 1
B7: Ein >>> | AO7: Abgeschlossen | AP7: FALSE | AQ7: 5 | AR7: =AND(NOT(OR(AP3,AP4)),AP7)*AQ7 -> 0 | AS7: Abgeschlossen
B8: <<< Aus | AO8: Für Jahr OK | AP8: =AND(OR(AP2,AP7),NOT(AP3)) -> TRUE
B9: Ein >>>
B10: <<< Aus | AO10: Statusnummer: | AP10: =IF(AR2=AQ2,AQ2,MAX(AR2:AR7)) -> -1
B11: Ein >>> | AM11: HatDaten: | AN11: =AND(AP2=FALSE,OR(AP10<>3,COUNTA(D5:AH12,D20:AH35,D39:L40)>0)) -> FALSE | AO11: Statustext: | AP11: =IFERROR(VLOOKUP(AP10,AR2:AS7,2,FALSE),"unbekannt") -> Nicht Relevant | AS11: 1
B12: <<< Aus | AI12: =IF(COUNTIF(D37:AH37,"I")>0,"I","") -> 
B13: =B_PrZeit -> Präsenzzeit | D13: =24*(D6-D5+D8-D7+D10-D9+D12-D11)*D88 -> 0 | E13: =24*(E6-E5+E8-E7+E10-E9+E12-E11)*E88 -> 0 | F13: 0 | G13: 0 | H13: 0 | I13: 0 | J13: 0 | K13: 0 | L13: 0 | M13: 0 | N13: 0 | O13: 0 | P13: 0 | Q13: 0 | R13: 0 | S13: 0 | T13: 0 | U13: 0 | V13: 0 | W13: 0 | X13: 0 | Y13: 0 | Z13: 0 | AA13: 0 | AB13: 0 | AC13: 0 | AD13: 0 | AE13: 0 | AF13: 0 | AG13: 0 | AH13: 0 | AM13: Anzahl Regeltage: | AN13: =D83 -> 0
B14: =B_TotalAZist -> Total Arbeitszeit (IST) | D14: =IF(D13+D35>=D15,D13+D35,MIN(D13+D35+SUM(D20,D22,D23,D24,D25,D26,D27,D28,D29,D30,D31,D32,D33,D34),IF(D15<0,0,D15)))*D82 -> 0 | E14: 0 | F14: 0 | G14: 0 | H14: 0 | I14: 0 | J14: 0 | K14: 0 | L14: 0 | M14: 0 | N14: 0 | O14: 0 | P14: 0 | Q14: 0 | R14: =IF(R13+R35>=R15,R13+R35,MIN(R13+R35+SUM(R20,R22,R23,R24,R25,R26,R27,R28,R29,R30,R31,R32,R33,R34),IF(R15<0,0,R15)))*R82 -> 0 | S14: =IF(S13+S35>=S15,S13+S35,MIN(S13+S35+SUM(S20,S22,S23,S24,S25,S26,S27,S28,S29,S30,S31,S32,S33,S34),IF(S15<0,0,S15)))*S82 -> 0 | T14: =IF(T13+T35>=T15,T13+T35,MIN(T13+T35+SUM(T20,T22,T23,T24,T25,T26,T27,T28,T29,T30,T31,T32,T33,T34),IF(T15<0,0,T15)))*T82 -> 0 | U14: =IF(U13+U35>=U15,U13+U35,MIN(U13+U35+SUM(U20,U22,U23,U24,U25,U26,U27,U28,U29,U30,U31,U32,U33,U34),IF(U15<0,0,U15)))*U82 -> 0 | V14: 0 | W14: 0 | X14: 0 | Y14: 0 | Z14: 0 | AA14: 0 | AB14: 0 | AC14: 0 | AD14: 0 | AE14: 0 | AF14: 0 | AG14: 0 | AH14: 0 | AI14: =SUMIF($D$82:$AH$82,1,D14:AH14) -> 0 | AJ14: =AI14-AI15 -> 8.4 | AM14: Erfasste Regeltage | AN14: =L83 -> 0 | AO14: =AN13-AN14 -> 0 | AP14: Fehlende Regeltage für Meldungsaufbau
B15: =B_NettoSollAZ -> Netto-SOLL-Arbeitszeit | D15: =ROUND(D16-D19,2) -> 0 | E15: =ROUND(E16-E19,2) -> 0 | F15: 0 | G15: 0 | H15: 0 | I15: 0 | J15: 0 | K15: 0 | L15: 0 | M15: 0 | N15: 0 | O15: 0 | P15: 0 | Q15: 0 | R15: 0 | S15: 0 | T15: 0 | U15: 0 | V15: -8.4 | W15: 0 | X15: 0 | Y15: 0 | Z15: 0 | AA15: 0 | AB15: 0 | AC15: 0 | AD15: 0 | AE15: 0 | AF15: =IF(AF$42=4,0,ROUND(AF16-AF19,2)) -> 0 | AG15: =IF(AG$42=4,0,ROUND(AG16-AG19,2)) -> 0 | AH15: 0 | AI15: =SUMIF($D$82:$AH$82,1,D15:AH15) -> -8.4 | AM15: Minimum Regeltage | AN15: =MinRegeltage -> 1 | AO15: Ist als Konstante im Blatt "Intern" hinterlegt
B16: =B_BruttoSollAZ -> Brutto-SOLL-Arb.zeit | D16: =VLOOKUP(D3,VSA_Kalender,16) -> 0 | E16: 0 | F16: 0 | G16: 0 | H16: 0 | I16: 0 | J16: 0 | K16: 0 | L16: 0 | M16: 0 | N16: 0 | O16: 0 | P16: 0 | Q16: 0 | R16: 0 | S16: 0 | T16: 0 | U16: 0 | V16: 0 | W16: 0 | X16: 0 | Y16: 0 | Z16: 0 | AA16: 0 | AB16: 0 | AC16: 0 | AD16: 0 | AE16: 0 | AF16: =IF(AF$42=4,0,VLOOKUP(AF3,VSA_Kalender,16)) -> 0 | AG16: =IF(AG$42=4,0,VLOOKUP(AG3,VSA_Kalender,16)) -> 0 | AH16: =IF(AH$42=4,0,VLOOKUP(AH3,VSA_Kalender,16)) -> 0 | AM16: Regel ok | AN16: Mind. eigetr. Regeltage erfüllt
B17: =B_MehrMinder -> Mehr-/Minderleistung | D17: =(SL_BisDatum>=D3)*ROUND(D14-D15,2) -> 0 | E17: 0 | F17: 0 | G17: 0 | H17: 0 | I17: 0 | J17: 0 | K17: 0 | L17: 0 | M17: 0 | N17: 0 | O17: 0 | P17: 0 | Q17: 0 | R17: 0 | S17: 0 | T17: 0 | U17: 0 | V17: 0 | W17: 0 | X17: 0 | Y17: 0 | Z17: 0 | AA17: 0 | AB17: 0 | AC17: 0 | AD17: 0 | AE17: 0 | AF17: 0 | AG17: 0 | AH17: 0 | AI17: =B_Total -> Total | AJ17: =B_Vortrag -> Vortrag | AM17: Spalten ok: | AN17: Alle Einträge an Regeltagen ok
B18: =B_AZSaldo -> AZ - Saldo | C18: =VLOOKUP(ROW(),VSA_Uebertrag,$A$1+3) -> 16.8 | D18: =IFERROR((C18+D17)*(D3<=SL_BisDatum)*VLOOKUP(D3,VSA_Kalender,21,FALSE),0) -> 16.8 | E18: 16.8 | F18: 0 | G18: =IFERROR((F18+G17)*(G3<=SL_BisDatum)*VLOOKUP(G3,VSA_Kalender,21,FALSE),0) -> 0 | H18: 0 | I18: 0 | J18: 0 | K18: 0 | L18: 0 | M18: 0 | N18: 0 | O18: 0 | P18: 0 | Q18: 0 | R18: 0 | S18: 0 | T18: 0 | U18: 0 | V18: 0 | W18: 0 | X18: 0 | Y18: 0 | Z18: 0 | AA18: 0 | AB18: 0 | AC18: 0 | AD18: 0 | AE18: 0 | AF18: 0 | AG18: 0 | AH18: 0 | AJ18: =SUMIF($D$82:$AH$82,1,D17:AH17)+C18 -> 16.8
B19: =B_FTA -> Feiertagsanspruch | C19: 0 | D19: =VLOOKUP(D3,VSA_Kalender,14) -> 0 | E19: 0 | F19: 0 | G19: 0 | H19: 0 | I19: 0 | J19: 0 | K19: 0 | L19: 0 | M19: 0 | N19: 0 | O19: 0 | P19: 0 | Q19: 0 | R19: 0 | S19: 0 | T19: 0 | U19: 0 | V19: 8.4 | W19: 0 | X19: 0 | Y19: 0 | Z19: 0 | AA19: 0 | AB19: 0 | AC19: 0 | AD19: 0 | AE19: 0 | AF19: =IF(AF$42=4,0,VLOOKUP(AF3,VSA_Kalender,14)) -> 0 | AG19: =IF(AG$42=4,0,VLOOKUP(AG3,VSA_Kalender,14)) -> 0 | AH19: =IF(AH$42=4,0,VLOOKUP(AH3,VSA_Kalender,14)) -> 0 | AI19: =SUM(D19:AH19) -> 8.4
B20: =B_Ferien -> Ferien | C20: =VLOOKUP(ROW(),VSA_Uebertrag,$A$1+3) -> 0 | AI20: =SUMIF($D$82:$AH$82,1,D20:AH20) -> 0 | AJ20: =ROUND(C20-AI20,2) -> 0 | AK20: Rest
B21: =B_KompAZ -> Kompensation Arbeitstage | C21: 0 | AI21: 0 | AJ21: =ROUND(A21+C21-AI21,0) -> 0
B22: =B_Arzt -> Arztbesuch | C22: 0 | AI22: 0 | AJ22: =ROUND(A22+C22+AI22,2) -> 0 | AK22: Summen
B23: =B_Krank -> Krankheit | C23: 0 | AI23: 0 | AJ23: =ROUND(A23+C23+AI23,2) -> 0
B24: =B_BU -> Berufsunfall | C24: 0 | AI24: 0 | AJ24: 0
B25: =B_NBU -> Nichtberufsunfall | C25: 0 | AI25: 0 | AJ25: 0
B26: =B_MilZiv -> Militär / Zivilschutz | C26: 0 | AI26: 0 | AJ26: 0
B27: =B_UUB -> Unbezahlter Urlaub | C27: 0 | AI27: 0 | AJ27: =ROUND(A27+C27-AI27,2) -> 0 | AK27: Rest
B28: =B_UB -> Bezahlter Urlaub | C28: 0 | AI28: 0 | AJ28: =ROUND(A28+C28-AI28,2) -> 0
B29: =B_NebenB -> Nebenbeschäftigung | C29: 0 | AI29: 0 | AJ29: 0
B30: =B_DAG -> D A G | C30: 0 | AI30: 0 | AJ30: 0
B31: =B_Divers -> Diverses | C31: 0 | AI31: 0 | AJ31: 0 | AK31: Summen
B32: =B_FamPersErg -> Fam./pers. Ereignisse | C32: 0 | AI32: 0 | AJ32: 0
B33: =B_FZ1 -> freie Zeile 1 | C33: 0 | AI33: 0 | AJ33: 0
B34: =B_FZ2 -> freie Zeile 2 | C34: 0 | AI34: 0 | AJ34: 0
B35: =B_WB -> Weiterbildung | C35: 0 | AI35: 0 | AJ35: 0
B36: =B_FEL -> frei einsetzbare Lekt. | C36: 0 | AI36: =SUM(D36:AH36) -> 0 | AJ36: =ROUND(C36-AI36,0) -> 0
D37: =IF(AND((D13 - D15)+SUM(D20,D22:D34)>0.00001,SUM(D20,D22:D34)>0),"I","") -> 
C38: Visum | D38: Identität: | I38: Datum: | K38: Status:
C39: SL
C40: VG
D41: 1 | E41: 2 | F41: 3 | G41: 4 | H41: 5 | I41: 6 | J41: 7 | K41: 8 | L41: 9 | M41: 10 | N41: 11 | O41: 12 | P41: 13 | Q41: 14 | R41: 15 | S41: 16 | T41: 17 | U41: 18 | V41: 19 | W41: 20 | X41: 21 | Y41: 22 | Z41: 23 | AA41: 24 | AB41: 25 | AC41: 26 | AD41: 27 | AE41: 28 | AF41: 29 | AG41: 30 | AH41: 31
D42: =IF(D3="",4,VLOOKUP(D3,VSA_Kalender,18)) -> 0 | E42: 0 | F42: 1 | G42: 1 | H42: 0 | I42: 0 | J42: 0 | K42: 0 | L42: 0 | M42: 1 | N42: 1 | O42: 0 | P42: 0 | Q42: 0 | R42: 0 | S42: 0 | T42: 1 | U42: 1 | V42: 1 | W42: 0 | X42: 0 | Y42: 0 | Z42: 0 | AA42: 1 | AB42: 1 | AC42: 0 | AD42: 0 | AE42: 0 | AF42: 0 | AG42: 4 | AH42: 4
D44: =IF(D19>0,VLOOKUP(D3,KalFeiertage,6,FALSE),"") ->  | V44: Fasnachtsmontag
D45: FT=WENN(D13+D35>=D15;D13+D35;MIN(D13+D35+SUMME(D20;D22;D23;D24;D25;D26;D27;D28;D29;D30;D31;D32;D33;D34);WENN(D15<0;0;D15)))*D82 | E45: FT=WENN(E13+E35>=E15;E13+E35;MIN(E13+E35+SUMME(E20;E22;E23;E24;E25;E26;E27;E28;E29;E30;E31;E32;E33;E34);WENN(E15<0;0;E15)))*E82 | F45: FT=WENN(F13+F35>=F15;F13+F35;MIN(F13+F35+SUMME(F20;F22;F23;F24;F25;F26;F27;F28;F29;F30;F31;F32;F33;F34);WENN(F15<0;0;F15)))*F82 | G45: FT=WENN(G13+G35>=G15;G13+G35;MIN(G13+G35+SUMME(G20;G22;G23;G24;G25;G26;G27;G28;G29;G30;G31;G32;G33;G34);WENN(G15<0;0;G15)))*G82 | H45: FT=WENN(H13+H35>=H15;H13+H35;MIN(H13+H35+SUMME(H20;H22;H23;H24;H25;H26;H27;H28;H29;H30;H31;H32;H33;H34);WENN(H15<0;0;H15)))*H82 | I45: FT=WENN(I13+I35>=I15;I13+I35;MIN(I13+I35+SUMME(I20;I22;I23;I24;I25;I26;I27;I28;I29;I30;I31;I32;I33;I34);WENN(I15<0;0;I15)))*I82 | J45: FT=WENN(J13+J35>=J15;J13+J35;MIN(J13+J35+SUMME(J20;J22;J23;J24;J25;J26;J27;J28;J29;J30;J31;J32;J33;J34);WENN(J15<0;0;J15)))*J82 | K45: FT=WENN(K13+K35>=K15;K13+K35;MIN(K13+K35+SUMME(K20;K22;K23;K24;K25;K26;K27;K28;K29;K30;K31;K32;K33;K34);WENN(K15<0;0;K15)))*K82 | L45: FT=WENN(L13+L35>=L15;L13+L35;MIN(L13+L35+SUMME(L20;L22;L23;L24;L25;L26;L27;L28;L29;L30;L31;L32;L33;L34);WENN(L15<0;0;L15)))*L82 | M45: FT=WENN(M13+M35>=M15;M13+M35;MIN(M13+M35+SUMME(M20;M22;M23;M24;M25;M26;M27;M28;M29;M30;M31;M32;M33;M34);WENN(M15<0;0;M15)))*M82 | N45: FT=WENN(N13+N35>=N15;N13+N35;MIN(N13+N35+SUMME(N20;N22;N23;N24;N25;N26;N27;N28;N29;N30;N31;N32;N33;N34);WENN(N15<0;0;N15)))*N82 | O45: FT=WENN(O13+O35>=O15;O13+O35;MIN(O13+O35+SUMME(O20;O22;O23;O24;O25;O26;O27;O28;O29;O30;O31;O32;O33;O34);WENN(O15<0;0;O15)))*O82 | P45: FT=WENN(P13+P35>=P15;P13+P35;MIN(P13+P35+SUMME(P20;P22;P23;P24;P25;P26;P27;P28;P29;P30;P31;P32;P33;P34);WENN(P15<0;0;P15)))*P82 | Q45: FT=WENN(Q13+Q35>=Q15;Q13+Q35;MIN(Q13+Q35+SUMME(Q20;Q22;Q23;Q24;Q25;Q26;Q27;Q28;Q29;Q30;Q31;Q32;Q33;Q34);WENN(Q15<0;0;Q15)))*Q82 | R45: FT=WENN(R13+R35>=R15;R13+R35;MIN(R13+R35+SUMME(R20;R22;R23;R24;R25;R26;R27;R28;R29;R30;R31;R32;R33;R34);WENN(R15<0;0;R15)))*R82 | S45: FT=WENN(S13+S35>=S15;S13+S35;MIN(S13+S35+SUMME(S20;S22;S23;S24;S25;S26;S27;S28;S29;S30;S31;S32;S33;S34);WENN(S15<0;0;S15)))*S82 | T45: FT=WENN(T13+T35>=T15;T13+T35;MIN(T13+T35+SUMME(T20;T22;T23;T24;T25;T26;T27;T28;T29;T30;T31;T32;T33;T34);WENN(T15<0;0;T15)))*T82 | U45: FT=WENN(U13+U35>=U15;U13+U35;MIN(U13+U35+SUMME(U20;U22;U23;U24;U25;U26;U27;U28;U29;U30;U31;U32;U33;U34);WENN(U15<0;0;U15)))*U82 | V45: FT=WENN(V13+V35>=V15;V13+V35;MIN(V13+V35+SUMME(V20;V22;V23;V24;V25;V26;V27;V28;V29;V30;V31;V32;V33;V34);WENN(V15<0;0;V15)))*V82 | W45: FT=WENN(W13+W35>=W15;W13+W35;MIN(W13+W35+SUMME(W20;W22;W23;W24;W25;W26;W27;W28;W29;W30;W31;W32;W33;W34);WENN(W15<0;0;W15)))*W82 | X45: FT=WENN(X13+X35>=X15;X13+X35;MIN(X13+X35+SUMME(X20;X22;X23;X24;X25;X26;X27;X28;X29;X30;X31;X32;X33;X34);WENN(X15<0;0;X15)))*X82 | Y45: FT=WENN(Y13+Y35>=Y15;Y13+Y35;MIN(Y13+Y35+SUMME(Y20;Y22;Y23;Y24;Y25;Y26;Y27;Y28;Y29;Y30;Y31;Y32;Y33;Y34);WENN(Y15<0;0;Y15)))*Y82 | Z45: FT=WENN(Z13+Z35>=Z15;Z13+Z35;MIN(Z13+Z35+SUMME(Z20;Z22;Z23;Z24;Z25;Z26;Z27;Z28;Z29;Z30;Z31;Z32;Z33;Z34);WENN(Z15<0;0;Z15)))*Z82 | AA45: FT=WENN(AA13+AA35>=AA15;AA13+AA35;MIN(AA13+AA35+SUMME(AA20;AA22;AA23;AA24;AA25;AA26;AA27;AA28;AA29;AA30;AA31;AA32;AA33;AA34);WENN(AA15<0;0;AA15)))*AA82 | AB45: FT=WENN(AB13+AB35>=AB15;AB13+AB35;MIN(AB13+AB35+SUMME(AB20;AB22;AB23;AB24;AB25;AB26;AB27;AB28;AB29;AB30;AB31;AB32;AB33;AB34);WENN(AB15<0;0;AB15)))*AB82 | AC45: FT=WENN(AC13+AC35>=AC15;AC13+AC35;MIN(AC13+AC35+SUMME(AC20;AC22;AC23;AC24;AC25;AC26;AC27;AC28;AC29;AC30;AC31;AC32;AC33;AC34);WENN(AC15<0;0;AC15)))*AC82 | AD45: FT=WENN(AD13+AD35>=AD15;AD13+AD35;MIN(AD13+AD35+SUMME(AD20;AD22;AD23;AD24;AD25;AD26;AD27;AD28;AD29;AD30;AD31;AD32;AD33;AD34);WENN(AD15<0;0;AD15)))*AD82 | AE45: FT=WENN(AE13+AE35>=AE15;AE13+AE35;MIN(AE13+AE35+SUMME(AE20;AE22;AE23;AE24;AE25;AE26;AE27;AE28;AE29;AE30;AE31;AE32;AE33;AE34);WENN(AE15<0;0;AE15)))*AE82 | AF45: FT=WENN(AF13+AF35>=AF15;AF13+AF35;MIN(AF13+AF35+SUMME(AF20;AF22;AF23;AF24;AF25;AF26;AF27;AF28;AF29;AF30;AF31;AF32;AF33;AF34);WENN(AF15<0;0;AF15)))*AF82 | AG45: FT=WENN(AG13+AG35>=AG15;AG13+AG35;MIN(AG13+AG35+SUMME(AG20;AG22;AG23;AG24;AG25;AG26;AG27;AG28;AG29;AG30;AG31;AG32;AG33;AG34);WENN(AG15<0;0;AG15)))*AG82 | AH45: FT=WENN(AH13+AH35>=AH15;AH13+AH35;MIN(AH13+AH35+SUMME(AH20;AH22;AH23;AH24;AH25;AH26;AH27;AH28;AH29;AH30;AH31;AH32;AH33;AH34);WENN(AH15<0;0;AH15)))*AH82
D46: FT=24*(D6-D5+D8-D7+D10-D9+D12-D11)*D88 | E46: FT=24*(E6-E5+E8-E7+E10-E9+E12-E11)*E88 | F46: FT=24*(F6-F5+F8-F7+F10-F9+F12-F11)*F88 | G46: FT=24*(G6-G5+G8-G7+G10-G9+G12-G11)*G88 | H46: FT=24*(H6-H5+H8-H7+H10-H9+H12-H11)*H88 | I46: FT=24*(I6-I5+I8-I7+I10-I9+I12-I11)*I88 | J46: FT=24*(J6-J5+J8-J7+J10-J9+J12-J11)*J88 | K46: FT=24*(K6-K5+K8-K7+K10-K9+K12-K11)*K88 | L46: FT=24*(L6-L5+L8-L7+L10-L9+L12-L11)*L88 | M46: FT=24*(M6-M5+M8-M7+M10-M9+M12-M11)*M88 | N46: FT=24*(N6-N5+N8-N7+N10-N9+N12-N11)*N88 | O46: FT=24*(O6-O5+O8-O7+O10-O9+O12-O11)*O88 | P46: FT=24*(P6-P5+P8-P7+P10-P9+P12-P11)*P88 | Q46: FT=24*(Q6-Q5+Q8-Q7+Q10-Q9+Q12-Q11)*Q88 | R46: FT=24*(R6-R5+R8-R7+R10-R9+R12-R11)*R88 | S46: FT=24*(S6-S5+S8-S7+S10-S9+S12-S11)*S88 | T46: FT=24*(T6-T5+T8-T7+T10-T9+T12-T11)*T88 | U46: FT=24*(U6-U5+U8-U7+U10-U9+U12-U11)*U88 | V46: FT=24*(V6-V5+V8-V7+V10-V9+V12-V11)*V88 | W46: FT=24*(W6-W5+W8-W7+W10-W9+W12-W11)*W88 | X46: FT=24*(X6-X5+X8-X7+X10-X9+X12-X11)*X88 | Y46: FT=24*(Y6-Y5+Y8-Y7+Y10-Y9+Y12-Y11)*Y88 | Z46: FT=24*(Z6-Z5+Z8-Z7+Z10-Z9+Z12-Z11)*Z88 | AA46: FT=24*(AA6-AA5+AA8-AA7+AA10-AA9+AA12-AA11)*AA88 | AB46: FT=24*(AB6-AB5+AB8-AB7+AB10-AB9+AB12-AB11)*AB88 | AC46: FT=24*(AC6-AC5+AC8-AC7+AC10-AC9+AC12-AC11)*AC88 | AD46: FT=24*(AD6-AD5+AD8-AD7+AD10-AD9+AD12-AD11)*AD88 | AE46: FT=24*(AE6-AE5+AE8-AE7+AE10-AE9+AE12-AE11)*AE88 | AF46: FT=24*(AF6-AF5+AF8-AF7+AF10-AF9+AF12-AF11)*AF88 | AG46: FT=24*(AG6-AG5+AG8-AG7+AG10-AG9+AG12-AG11)*AG88 | AH46: FT=24*(AH6-AH5+AH8-AH7+AH10-AH9+AH12-AH11)*AH88
D47: FT=ODER(D14>0;D21>0)*1 | E47: FT=ODER(E14>0;E21>0)*1 | F47: FT=ODER(F14>0;F21>0)*1 | G47: FT=ODER(G14>0;G21>0)*1 | H47: FT=ODER(H14>0;H21>0)*1 | I47: FT=ODER(I14>0;I21>0)*1 | J47: FT=ODER(J14>0;J21>0)*1 | K47: FT=ODER(K14>0;K21>0)*1 | L47: FT=ODER(L14>0;L21>0)*1 | M47: FT=ODER(M14>0;M21>0)*1 | N47: FT=ODER(N14>0;N21>0)*1 | O47: FT=ODER(O14>0;O21>0)*1 | P47: FT=ODER(P14>0;P21>0)*1 | Q47: FT=ODER(Q14>0;Q21>0)*1 | R47: FT=ODER(R14>0;R21>0)*1 | S47: FT=ODER(S14>0;S21>0)*1 | T47: FT=ODER(T14>0;T21>0)*1 | U47: FT=ODER(U14>0;U21>0)*1 | V47: FT=ODER(V14>0;V21>0)*1 | W47: FT=ODER(W14>0;W21>0)*1 | X47: FT=ODER(X14>0;X21>0)*1 | Y47: FT=ODER(Y14>0;Y21>0)*1 | Z47: FT=ODER(Z14>0;Z21>0)*1 | AA47: FT=ODER(AA14>0;AA21>0)*1 | AB47: FT=ODER(AB14>0;AB21>0)*1 | AC47: FT=ODER(AC14>0;AC21>0)*1 | AD47: FT=ODER(AD14>0;AD21>0)*1 | AE47: FT=ODER(AE14>0;AE21>0)*1 | AF47: FT=ODER(AF14>0;AF21>0)*1 | AG47: FT=ODER(AG14>0;AG21>0)*1 | AH47: FT=ODER(AH14>0;AH21>0)*1
D48: =ABS("FT"&_xlfn.FORMULATEXT(D14)<>D45) -> 0 | E48: =ABS("FT"&_xlfn.FORMULATEXT(E14)<>E45) -> 0 | F48: 0 | G48: 0 | H48: 0 | I48: 0 | J48: 0 | K48: 0 | L48: 0 | M48: 0 | N48: 0 | O48: 0 | P48: 0 | Q48: 0 | R48: 0 | S48: 0 | T48: 0 | U48: 0 | V48: 0 | W48: 0 | X48: 0 | Y48: 0 | Z48: 0 | AA48: 0 | AB48: 0 | AC48: 0 | AD48: 0 | AE48: 0 | AF48: 0 | AG48: 0 | AH48: 0
D49: =ABS("FT"&_xlfn.FORMULATEXT(D13)<>D46) -> 0 | E49: =ABS("FT"&_xlfn.FORMULATEXT(E13)<>E46) -> 0 | F49: 0 | G49: 0 | H49: 0 | I49: 0 | J49: 0 | K49: 0 | L49: 0 | M49: 0 | N49: 0 | O49: 0 | P49: 0 | Q49: 0 | R49: 0 | S49: 0 | T49: 0 | U49: 0 | V49: 0 | W49: 0 | X49: 0 | Y49: 0 | Z49: 0 | AA49: 0 | AB49: 0 | AC49: 0 | AD49: 0 | AE49: 0 | AF49: 0 | AG49: 0 | AH49: 0
D50: =ABS("FT"&_xlfn.FORMULATEXT(D80)<>D47) -> 0 | E50: =ABS("FT"&_xlfn.FORMULATEXT(E80)<>E47) -> 0 | F50: 0 | G50: 0 | H50: 0 | I50: 0 | J50: 0 | K50: 0 | L50: 0 | M50: 0 | N50: 0 | O50: 0 | P50: 0 | Q50: 0 | R50: 0 | S50: 0 | T50: 0 | U50: 0 | V50: 0 | W50: 0 | X50: 0 | Y50: 0 | Z50: 0 | AA50: 0 | AB50: 0 | AC50: 0 | AD50: 0 | AE50: 0 | AF50: 0 | AG50: 0 | AH50: 0
D51: =ABS(ISERROR(D37)) -> 0 | E51: =ABS(ISERROR(E37)) -> 0 | F51: 0 | G51: 0 | H51: 0 | I51: 0 | J51: 0 | K51: 0 | L51: 0 | M51: 0 | N51: 0 | O51: 0 | P51: 0 | Q51: 0 | R51: 0 | S51: 0 | T51: 0 | U51: 0 | V51: 0 | W51: 0 | X51: 0 | Y51: 0 | Z51: 0 | AA51: 0 | AB51: 0 | AC51: 0 | AD51: 0 | AE51: 0 | AF51: 0 | AG51: 0 | AH51: 0
D52: =SUM(D48:D51) -> 0 | E52: =SUM(E48:E51) -> 0 | F52: 0 | G52: 0 | H52: 0 | I52: 0 | J52: 0 | K52: 0 | L52: 0 | M52: 0 | N52: 0 | O52: 0 | P52: 0 | Q52: 0 | R52: 0 | S52: 0 | T52: 0 | U52: 0 | V52: 0 | W52: 0 | X52: 0 | Y52: 0 | Z52: 0 | AA52: 0 | AB52: 0 | AC52: 0 | AD52: 0 | AE52: 0 | AF52: 0 | AG52: 0 | AH52: 0 | AM52: Formel defekt | AN52: =SUM(D52:AH52) -> 0
B77: HT_Naz-Kopie | C77: =HT_NAZ -> 8.4
B78: Heute: | C78: =SL_BisDatum -> 2024-02-02
C79: Reguläre Tage ausgefüllt | D79: =((D80*D81)=1)*1 -> 0 | E79: =((E80*E81)=1)*1 -> 0 | F79: 0 | G79: 0 | H79: 0 | I79: 0 | J79: 0 | K79: 0 | L79: 0 | M79: 0 | N79: 0 | O79: 0 | P79: 0 | Q79: 0 | R79: 0 | S79: 0 | T79: 0 | U79: 0 | V79: 0 | W79: 0 | X79: 0 | Y79: 0 | Z79: 0 | AA79: 0 | AB79: 0 | AC79: 0 | AD79: 0 | AE79: 0 | AF79: 0 | AG79: 0 | AH79: 0
C80: Arbeitstage ausgefüllt | D80: =OR(D14>0,D21>0)*1 -> 0 | E80: =OR(E14>0,E21>0)*1 -> 0 | F80: 0 | G80: 0 | H80: 0 | I80: 0 | J80: 0 | K80: 0 | L80: 0 | M80: 0 | N80: 0 | O80: 0 | P80: 0 | Q80: 0 | R80: 0 | S80: 0 | T80: 0 | U80: 0 | V80: 0 | W80: 0 | X80: 0 | Y80: 0 | Z80: 0 | AA80: 0 | AB80: 0 | AC80: 0 | AD80: 0 | AE80: 0 | AF80: 0 | AG80: 0 | AH80: 0
C81: Arbeitstage wenn BG>0% | D81: =IFERROR(VLOOKUP(D3,VSA_Kalender,22),0) -> 0 | E81: 0 | F81: 0 | G81: 0 | H81: 0 | I81: 0 | J81: 0 | K81: 0 | L81: 0 | M81: 0 | N81: 0 | O81: 0 | P81: 0 | Q81: 0 | R81: 0 | S81: 0 | T81: 0 | U81: 0 | V81: 0 | W81: 0 | X81: 0 | Y81: 0 | Z81: 0 | AA81: 0 | AB81: 0 | AC81: 0 | AD81: 0 | AE81: 0 | AF81: 0 | AG81: 0 | AH81: 0
C82: Der BG beträgt mehr als 0% | D82: =IF(D4="",0,ABS(VLOOKUP(D3,VSA_Kalender,13,FALSE)>0)) -> 1 | E82: 1 | F82: 1 | G82: 1 | H82: 1 | I82: 1 | J82: 1 | K82: 1 | L82: 1 | M82: 1 | N82: 1 | O82: 1 | P82: 1 | Q82: 1 | R82: 1 | S82: 1 | T82: 1 | U82: 1 | V82: 1 | W82: 1 | X82: 1 | Y82: 1 | Z82: 1 | AA82: 1 | AB82: 1 | AC82: 1 | AD82: 1 | AE82: 1 | AF82: 1 | AG82: 0 | AH82: 0
C83: (Ja: 1, Nein: 0) | D83: =SUM(D81:AH81) -> 0 | E83: Total Tage bei BG>0% | H83: =SUM(D80:AH80) -> 0 | I83: Total Tage ausgefüllt | L83: =SUM(D79:AH79) -> 0 | M83: Total reguläre Tage ausgefüllt
C85: Tag des Monats | D85: =D4 -> 1 | E85: 2 | F85: 3 | G85: 4 | H85: 5 | I85: 6 | J85: 7 | K85: 8 | L85: 9 | M85: 10 | N85: 11 | O85: 12 | P85: 13 | Q85: 14 | R85: 15 | S85: 16 | T85: 17 | U85: 18 | V85: 19 | W85: 20 | X85: 21 | Y85: 22 | Z85: 23 | AA85: 24 | AB85: 25 | AC85: 26 | AD85: 27 | AE85: 28 | AF85: 29
C86: Ist Arbeitsbereich | D86: =IFERROR(ABS(WEEKDAY(D3,2)<6),0) -> 1 | E86: 1 | F86: 0 | G86: 0 | H86: 1 | I86: 1 | J86: 1 | K86: 1 | L86: 1 | M86: 0 | N86: 0 | O86: 1 | P86: 1 | Q86: 1 | R86: 1 | S86: 1 | T86: 0 | U86: 0 | V86: 1 | W86: 1 | X86: 1 | Y86: 1 | Z86: 1 | AA86: 0 | AB86: 0 | AC86: 1 | AD86: 1 | AE86: 1 | AF86: 1 | AG86: 0 | AH86: 0
C87: Maximaler Fehler | D87: =MAX(D100:D107,D98,D134) -> 0 | E87: =MAX(E100:E107,E98,E134) -> 0 | F87: 0 | G87: 0 | H87: 0 | I87: 0 | J87: 0 | K87: 0 | L87: 0 | M87: 0 | N87: 0 | O87: 0 | P87: 0 | Q87: 0 | R87: 0 | S87: 0 | T87: 0 | U87: 0 | V87: 0 | W87: 0 | X87: 0 | Y87: 0 | Z87: 0 | AA87: 0 | AB87: 0 | AC87: 0 | AD87: 0 | AE87: 0 | AF87: 0 | AG87: 0 | AH87: 0
C88: Wird die Präsenzzeit angezeigt? | D88: =IF(D87=0,1,0) -> 1 | E88: =IF(E87=0,1,0) -> 1 | F88: 1 | G88: 1 | H88: 1 | I88: 1 | J88: 1 | K88: 1 | L88: 1 | M88: 1 | N88: 1 | O88: 1 | P88: 1 | Q88: 1 | R88: 1 | S88: 1 | T88: 1 | U88: 1 | V88: 1 | W88: 1 | X88: 1 | Y88: 1 | Z88: 1 | AA88: 1 | AB88: 1 | AC88: 1 | AD88: 1 | AE88: 1 | AF88: 1 | AG88: 1 | AH88: 1
C90: Gruppenfehler 1 | D90: =IF(AND(D6-D5=0,COUNTA(D7:D12)>0),1,0) -> 0 | E90: 0 | F90: 0 | G90: 0 | H90: 0 | I90: 0 | J90: 0 | K90: 0 | L90: 0 | M90: 0 | N90: 0 | O90: 0 | P90: 0 | Q90: 0 | R90: 0 | S90: 0 | T90: 0 | U90: 0 | V90: 0 | W90: 0 | X90: 0 | Y90: 0 | Z90: 0 | AA90: 0 | AB90: 0 | AC90: 0 | AD90: 0 | AE90: 0 | AF90: 0 | AG90: 0 | AH90: 0
B91: Gruppenfehler | C91: (aus) | D91: =D90 -> 0 | E91: 0 | F91: 0 | G91: 0 | H91: 0 | I91: 0 | J91: 0 | K91: 0 | L91: 0 | M91: 0 | N91: 0 | O91: 0 | P91: 0 | Q91: 0 | R91: 0 | S91: 0 | T91: 0 | U91: 0 | V91: 0 | W91: 0 | X91: 0 | Y91: 0 | Z91: 0 | AA91: 0 | AB91: 0 | AC91: 0 | AD91: 0 | AE91: 0 | AF91: 0 | AG91: 0 | AH91: 0
C92: Gruppenfehler 2 | D92: =IF(AND(D8-D7=0,COUNTA(D9:D12)>0),1,0) -> 0 | E92: 0 | F92: 0 | G92: 0 | H92: 0 | I92: 0 | J92: 0 | K92: 0 | L92: 0 | M92: 0 | N92: 0 | O92: 0 | P92: 0 | Q92: 0 | R92: 0 | S92: 0 | T92: 0 | U92: 0 | V92: 0 | W92: 0 | X92: 0 | Y92: 0 | Z92: 0 | AA92: 0 | AB92: 0 | AC92: 0 | AD92: 0 | AE92: 0 | AF92: 0 | AG92: 0 | AH92: 0
C93: (aus) | D93: =D92 -> 0 | E93: 0 | F93: 0 | G93: 0 | H93: 0 | I93: 0 | J93: 0 | K93: 0 | L93: 0 | M93: 0 | N93: 0 | O93: 0 | P93: 0 | Q93: 0 | R93: 0 | S93: 0 | T93: 0 | U93: 0 | V93: 0 | W93: 0 | X93: 0 | Y93: 0 | Z93: 0 | AA93: 0 | AB93: 0 | AC93: 0 | AD93: 0 | AE93: 0 | AF93: 0 | AG93: 0 | AH93: 0
C94: Gruppenfehler 3 | D94: =IF(AND(D10-D9=0,COUNTA(D11:D12)>0),1,0) -> 0 | E94: 0 | F94: 0 | G94: 0 | H94: 0 | I94: 0 | J94: 0 | K94: 0 | L94: 0 | M94: 0 | N94: 0 | O94: 0 | P94: 0 | Q94: 0 | R94: 0 | S94: 0 | T94: 0 | U94: 0 | V94: 0 | W94: 0 | X94: 0 | Y94: 0 | Z94: 0 | AA94: 0 | AB94: 0 | AC94: 0 | AD94: 0 | AE94: 0 | AF94: 0 | AG94: 0 | AH94: 0
C95: (aus) | D95: =D94 -> 0 | E95: 0 | F95: 0 | G95: 0 | H95: 0 | I95: 0 | J95: 0 | K95: 0 | L95: 0 | M95: 0 | N95: 0 | O95: 0 | P95: 0 | Q95: 0 | R95: 0 | S95: 0 | T95: 0 | U95: 0 | V95: 0 | W95: 0 | X95: 0 | Y95: 0 | Z95: 0 | AA95: 0 | AB95: 0 | AC95: 0 | AD95: 0 | AE95: 0 | AF95: 0 | AG95: 0 | AH95: 0
C96: leer
C97: leer
C98: Genereller Gruppenfehler | D98: =MAX(D90:D95) -> 0 | E98: 0 | F98: 0 | G98: 0 | H98: 0 | I98: 0 | J98: 0 | K98: 0 | L98: 0 | M98: 0 | N98: 0 | O98: 0 | P98: 0 | Q98: 0 | R98: 0 | S98: 0 | T98: 0 | U98: 0 | V98: 0 | W98: 0 | X98: 0 | Y98: 0 | Z98: 0 | AA98: 0 | AB98: 0 | AC98: 0 | AD98: 0 | AE98: 0 | AF98: 0 | AG98: 0 | AH98: 0
C100: Ein1 | D100: =IF(AND(D109=0,D110>0),1,0) -> 0 | E100: =IF(AND(E109=0,E110>0),1,0) -> 0 | F100: 0 | G100: 0 | H100: 0 | I100: 0 | J100: 0 | K100: 0 | L100: 0 | M100: 0 | N100: 0 | O100: 0 | P100: 0 | Q100: 0 | R100: 0 | S100: 0 | T100: 0 | U100: 0 | V100: 0 | W100: 0 | X100: 0 | Y100: 0 | Z100: 0 | AA100: 0 | AB100: 0 | AC100: 0 | AD100: 0 | AE100: 0 | AF100: 0 | AG100: 0 | AH100: 0
C101: Aus1 | D101: =IF(AND(D110>0,D110<D109),3,IF(AND(D109>0,D110=0),1,0))*D$86 -> 0 | E101: =IF(AND(E110>0,E110<E109),3,IF(AND(E109>0,E110=0),1,0))*E$86 -> 0 | F101: 0 | G101: 0 | H101: 0 | I101: 0 | J101: 0 | K101: 0 | L101: 0 | M101: 0 | N101: 0 | O101: 0 | P101: 0 | Q101: 0 | R101: 0 | S101: 0 | T101: 0 | U101: 0 | V101: 0 | W101: 0 | X101: 0 | Y101: 0 | Z101: 0 | AA101: 0 | AB101: 0 | AC101: 0 | AD101: 0 | AE101: 0 | AF101: 0 | AG101: 0 | AH101: 0
C102: Ein2 | D102: =IF(AND(D111>0,D111<D110),3,IF(AND(D111=0,D112>0),1,0))*D$86 -> 0 | E102: 0 | F102: 0 | G102: 0 | H102: 0 | I102: 0 | J102: 0 | K102: 0 | L102: 0 | M102: 0 | N102: 0 | O102: 0 | P102: 0 | Q102: 0 | R102: 0 | S102: 0 | T102: 0 | U102: 0 | V102: 0 | W102: 0 | X102: 0 | Y102: 0 | Z102: 0 | AA102: 0 | AB102: 0 | AC102: 0 | AD102: 0 | AE102: 0 | AF102: 0 | AG102: 0 | AH102: 0
C103: Aus2 | D103: =IF(AND(D112>0,D112<D111),3,IF(AND(D111>0,D112=0),1,0))*D$86 -> 0 | E103: =IF(AND(E112>0,E112<E111),3,IF(AND(E111>0,E112=0),1,0))*E$86 -> 0 | F103: 0 | G103: 0 | H103: 0 | I103: 0 | J103: 0 | K103: 0 | L103: 0 | M103: 0 | N103: 0 | O103: 0 | P103: 0 | Q103: 0 | R103: 0 | S103: 0 | T103: 0 | U103: 0 | V103: 0 | W103: 0 | X103: 0 | Y103: 0 | Z103: 0 | AA103: 0 | AB103: 0 | AC103: 0 | AD103: 0 | AE103: 0 | AF103: 0 | AG103: 0 | AH103: 0
B104: Zellenfehler | C104: Ein3 | D104: =IF(AND(D113>0,D113<D112),3,IF(AND(D113=0,D114>0),1,0))*D$86 -> 0 | E104: =IF(AND(E113>0,E113<E112),3,IF(AND(E113=0,E114>0),1,0))*E$86 -> 0 | F104: 0 | G104: 0 | H104: 0 | I104: 0 | J104: 0 | K104: 0 | L104: 0 | M104: 0 | N104: 0 | O104: 0 | P104: 0 | Q104: 0 | R104: 0 | S104: 0 | T104: 0 | U104: 0 | V104: 0 | W104: 0 | X104: 0 | Y104: 0 | Z104: 0 | AA104: 0 | AB104: 0 | AC104: 0 | AD104: 0 | AE104: 0 | AF104: 0 | AG104: 0 | AH104: 0
C105: Aus3 | D105: =IF(AND(D114>0,D114<D113),3,IF(AND(D113>0,D114=0),1,0))*D$86 -> 0 | E105: =IF(AND(E114>0,E114<E113),3,IF(AND(E113>0,E114=0),1,0))*E$86 -> 0 | F105: 0 | G105: 0 | H105: 0 | I105: 0 | J105: 0 | K105: 0 | L105: 0 | M105: 0 | N105: 0 | O105: 0 | P105: 0 | Q105: 0 | R105: 0 | S105: 0 | T105: 0 | U105: 0 | V105: 0 | W105: 0 | X105: 0 | Y105: 0 | Z105: 0 | AA105: 0 | AB105: 0 | AC105: 0 | AD105: 0 | AE105: 0 | AF105: 0 | AG105: 0 | AH105: 0
C106: Ein4 | D106: =IF(AND(D115>0,D115<D114),3,IF(AND(D115=0,D116>0),1,0))*D$86 -> 0 | E106: =IF(AND(E115>0,E115<E114),3,IF(AND(E115=0,E116>0),1,0))*E$86 -> 0 | F106: 0 | G106: 0 | H106: 0 | I106: 0 | J106: 0 | K106: 0 | L106: 0 | M106: 0 | N106: 0 | O106: 0 | P106: 0 | Q106: 0 | R106: 0 | S106: 0 | T106: 0 | U106: 0 | V106: 0 | W106: 0 | X106: 0 | Y106: 0 | Z106: 0 | AA106: 0 | AB106: 0 | AC106: 0 | AD106: 0 | AE106: 0 | AF106: 0 | AG106: 0 | AH106: 0
C107: Aus4 | D107: =IF(AND(D116>0,D116<D115),3,IF(AND(D115>0,D116=0),1,0))*D$86 -> 0 | E107: =IF(AND(E116>0,E116<E115),3,IF(AND(E115>0,E116=0),1,0))*E$86 -> 0 | F107: 0 | G107: 0 | H107: 0 | I107: 0 | J107: 0 | K107: 0 | L107: 0 | M107: 0 | N107: 0 | O107: 0 | P107: 0 | Q107: 0 | R107: 0 | S107: 0 | T107: 0 | U107: 0 | V107: 0 | W107: 0 | X107: 0 | Y107: 0 | Z107: 0 | AA107: 0 | AB107: 0 | AC107: 0 | AD107: 0 | AE107: 0 | AF107: 0 | AG107: 0 | AH107: 0
C109: Ein1 | D109: =ROUND(D5*24,2) -> 0 | E109: 0 | F109: 0 | G109: 0 | H109: 0 | I109: 0 | J109: 0 | K109: 0 | L109: 0 | M109: 0 | N109: 0 | O109: 0 | P109: 0 | Q109: 0 | R109: 0 | S109: 0 | T109: 0 | U109: 0 | V109: 0 | W109: 0 | X109: 0 | Y109: 0 | Z109: 0 | AA109: 0 | AB109: 0 | AC109: 0 | AD109: 0 | AE109: 0 | AF109: 0 | AG109: 0 | AH109: 0
C110: Aus1 | D110: 0 | E110: 0 | F110: 0 | G110: 0 | H110: 0 | I110: 0 | J110: 0 | K110: 0 | L110: 0 | M110: 0 | N110: 0 | O110: 0 | P110: 0 | Q110: 0 | R110: 0 | S110: 0 | T110: 0 | U110: 0 | V110: 0 | W110: 0 | X110: 0 | Y110: 0 | Z110: 0 | AA110: 0 | AB110: 0 | AC110: 0 | AD110: 0 | AE110: 0 | AF110: 0 | AG110: 0 | AH110: 0
B111: Zeiten dezimal gewandelt | C111: Ein2 | D111: 0 | E111: 0 | F111: 0 | G111: 0 | H111: 0 | I111: 0 | J111: 0 | K111: 0 | L111: 0 | M111: 0 | N111: 0 | O111: 0 | P111: 0 | Q111: 0 | R111: 0 | S111: 0 | T111: 0 | U111: 0 | V111: 0 | W111: 0 | X111: 0 | Y111: 0 | Z111: 0 | AA111: 0 | AB111: 0 | AC111: 0 | AD111: 0 | AE111: 0 | AF111: 0 | AG111: 0 | AH111: 0
C112: Aus2 | D112: 0 | E112: 0 | F112: 0 | G112: 0 | H112: 0 | I112: 0 | J112: 0 | K112: 0 | L112: 0 | M112: 0 | N112: 0 | O112: 0 | P112: 0 | Q112: 0 | R112: 0 | S112: 0 | T112: 0 | U112: 0 | V112: 0 | W112: 0 | X112: 0 | Y112: 0 | Z112: 0 | AA112: 0 | AB112: 0 | AC112: 0 | AD112: 0 | AE112: 0 | AF112: 0 | AG112: 0 | AH112: 0
C113: Ein3 | D113: 0 | E113: 0 | F113: 0 | G113: 0 | H113: 0 | I113: 0 | J113: 0 | K113: 0 | L113: 0 | M113: 0 | N113: 0 | O113: 0 | P113: 0 | Q113: 0 | R113: 0 | S113: 0 | T113: 0 | U113: 0 | V113: 0 | W113: 0 | X113: 0 | Y113: 0 | Z113: 0 | AA113: 0 | AB113: 0 | AC113: 0 | AD113: 0 | AE113: 0 | AF113: 0 | AG113: 0 | AH113: 0
C114: Aus3 | D114: 0 | E114: 0 | F114: 0 | G114: 0 | H114: 0 | I114: 0 | J114: 0 | K114: 0 | L114: 0 | M114: 0 | N114: 0 | O114: 0 | P114: 0 | Q114: 0 | R114: 0 | S114: 0 | T114: 0 | U114: 0 | V114: 0 | W114: 0 | X114: 0 | Y114: 0 | Z114: 0 | AA114: 0 | AB114: 0 | AC114: 0 | AD114: 0 | AE114: 0 | AF114: 0 | AG114: 0 | AH114: 0
C115: Ein4 | D115: 0 | E115: 0 | F115: 0 | G115: 0 | H115: 0 | I115: 0 | J115: 0 | K115: 0 | L115: 0 | M115: 0 | N115: 0 | O115: 0 | P115: 0 | Q115: 0 | R115: 0 | S115: 0 | T115: 0 | U115: 0 | V115: 0 | W115: 0 | X115: 0 | Y115: 0 | Z115: 0 | AA115: 0 | AB115: 0 | AC115: 0 | AD115: 0 | AE115: 0 | AF115: 0 | AG115: 0 | AH115: 0
C116: Aus4 | D116: 0 | E116: 0 | F116: 0 | G116: 0 | H116: 0 | I116: 0 | J116: 0 | K116: 0 | L116: 0 | M116: 0 | N116: 0 | O116: 0 | P116: 0 | Q116: 0 | R116: 0 | S116: 0 | T116: 0 | U116: 0 | V116: 0 | W116: 0 | X116: 0 | Y116: 0 | Z116: 0 | AA116: 0 | AB116: 0 | AC116: 0 | AD116: 0 | AE116: 0 | AF116: 0 | AG116: 0 | AH116: 0
B118: Pausenfehler | C118: Gruppe1 | D118: =IF(OR(D109="",D110=""),0,D110-D109) -> 0 | E118: =IF(OR(E109="",E110=""),0,E110-E109) -> 0 | F118: 0 | G118: 0 | H118: 0 | I118: 0 | J118: 0 | K118: 0 | L118: 0 | M118: 0 | N118: 0 | O118: 0 | P118: 0 | Q118: 0 | R118: 0 | S118: 0 | T118: 0 | U118: =IF(OR(U109="",U110=""),0,U110-U109) -> 0 | V118: =IF(OR(V109="",V110=""),0,V110-V109) -> 0 | W118: 0 | X118: 0 | Y118: 0 | Z118: 0 | AA118: 0 | AB118: 0 | AC118: 0 | AD118: 0 | AE118: 0 | AF118: 0 | AG118: 0 | AH118: 0
C119: Gruppe2 | D119: =IF(OR(D111="",D112=""),0,D112-D111) -> 0 | E119: =IF(OR(E111="",E112=""),0,E112-E111) -> 0 | F119: 0 | G119: 0 | H119: 0 | I119: 0 | J119: 0 | K119: 0 | L119: 0 | M119: 0 | N119: 0 | O119: 0 | P119: 0 | Q119: 0 | R119: 0 | S119: 0 | T119: 0 | U119: =IF(OR(U111="",U112=""),0,U112-U111) -> 0 | V119: =IF(OR(V111="",V112=""),0,V112-V111) -> 0 | W119: 0 | X119: 0 | Y119: 0 | Z119: 0 | AA119: 0 | AB119: 0 | AC119: 0 | AD119: 0 | AE119: 0 | AF119: 0 | AG119: 0 | AH119: 0
C120: Gruppe3 | D120: =IF(OR(D113="",D114=""),0,D114-D113) -> 0 | E120: =IF(OR(E113="",E114=""),0,E114-E113) -> 0 | F120: 0 | G120: 0 | H120: 0 | I120: 0 | J120: 0 | K120: 0 | L120: 0 | M120: 0 | N120: 0 | O120: 0 | P120: 0 | Q120: 0 | R120: 0 | S120: 0 | T120: 0 | U120: =IF(OR(U113="",U114=""),0,U114-U113) -> 0 | V120: =IF(OR(V113="",V114=""),0,V114-V113) -> 0 | W120: 0 | X120: 0 | Y120: 0 | Z120: 0 | AA120: 0 | AB120: 0 | AC120: 0 | AD120: 0 | AE120: 0 | AF120: 0 | AG120: 0 | AH120: 0
C121: Gruppe4 | D121: =IF(OR(D115="",D116=""),0,D116-D115) -> 0 | E121: =IF(OR(E115="",E116=""),0,E116-E115) -> 0 | F121: 0 | G121: 0 | H121: 0 | I121: 0 | J121: 0 | K121: 0 | L121: 0 | M121: 0 | N121: 0 | O121: 0 | P121: 0 | Q121: 0 | R121: 0 | S121: 0 | T121: 0 | U121: =IF(OR(U115="",U116=""),0,U116-U115) -> 0 | V121: =IF(OR(V115="",V116=""),0,V116-V115) -> 0 | W121: 0 | X121: 0 | Y121: 0 | Z121: 0 | AA121: 0 | AB121: 0 | AC121: 0 | AD121: 0 | AE121: 0 | AF121: 0 | AG121: 0 | AH121: 0
C123: Pause12 | D123: =IF(OR(D110="",D111=""),0,D111-D110) -> 0 | E123: =IF(OR(E110="",E111=""),0,E111-E110) -> 0 | F123: 0 | G123: 0 | H123: 0 | I123: 0 | J123: 0 | K123: 0 | L123: 0 | M123: 0 | N123: 0 | O123: 0 | P123: 0 | Q123: 0 | R123: 0 | S123: 0 | T123: 0 | U123: =IF(OR(U110="",U111=""),0,U111-U110) -> 0 | V123: =IF(OR(V110="",V111=""),0,V111-V110) -> 0 | W123: 0 | X123: 0 | Y123: 0 | Z123: 0 | AA123: 0 | AB123: 0 | AC123: 0 | AD123: 0 | AE123: 0 | AF123: 0 | AG123: 0 | AH123: 0
C124: Pause23 | D124: =IF(OR(D112="",D113=""),0,D113-D112) -> 0 | E124: =IF(OR(E112="",E113=""),0,E113-E112) -> 0 | F124: 0 | G124: 0 | H124: 0 | I124: 0 | J124: 0 | K124: 0 | L124: 0 | M124: 0 | N124: 0 | O124: 0 | P124: 0 | Q124: 0 | R124: 0 | S124: 0 | T124: 0 | U124: =IF(OR(U112="",U113=""),0,U113-U112) -> 0 | V124: =IF(OR(V112="",V113=""),0,V113-V112) -> 0 | W124: 0 | X124: 0 | Y124: 0 | Z124: 0 | AA124: 0 | AB124: 0 | AC124: 0 | AD124: 0 | AE124: 0 | AF124: 0 | AG124: 0 | AH124: 0
C125: Pause34 | D125: =IF(OR(D114="",D115=""),0,D115-D114) -> 0 | E125: =IF(OR(E114="",E115=""),0,E115-E114) -> 0 | F125: 0 | G125: 0 | H125: 0 | I125: 0 | J125: 0 | K125: 0 | L125: 0 | M125: 0 | N125: 0 | O125: 0 | P125: 0 | Q125: 0 | R125: 0 | S125: 0 | T125: 0 | U125: =IF(OR(U114="",U115=""),0,U115-U114) -> 0 | V125: =IF(OR(V114="",V115=""),0,V115-V114) -> 0 | W125: 0 | X125: 0 | Y125: 0 | Z125: 0 | AA125: 0 | AB125: 0 | AC125: 0 | AD125: 0 | AE125: 0 | AF125: 0 | AG125: 0 | AH125: 0
C127: Kum12 | D127: =IF(D123>=0.5,0,D118+D119) -> 0 | E127: =IF(E123>=0.5,0,E118+E119) -> 0 | F127: 0 | G127: 0 | H127: 0 | I127: 0 | J127: 0 | K127: 0 | L127: 0 | M127: 0 | N127: 0 | O127: 0 | P127: 0 | Q127: 0 | R127: 0 | S127: 0 | T127: 0 | U127: =IF(U123>=0.5,0,U118+U119) -> 0 | V127: =IF(V123>=0.5,0,V118+V119) -> 0 | W127: 0 | X127: 0 | Y127: 0 | Z127: 0 | AA127: 0 | AB127: 0 | AC127: 0 | AD127: 0 | AE127: 0 | AF127: 0 | AG127: 0 | AH127: 0
C128: Kum123 | D128: =IF(OR(D123>=0.5,D124>=0.5),0,D118+D119+D120) -> 0 | E128: =IF(OR(E123>=0.5,E124>=0.5),0,E118+E119+E120) -> 0 | F128: 0 | G128: 0 | H128: 0 | I128: 0 | J128: 0 | K128: 0 | L128: 0 | M128: 0 | N128: 0 | O128: 0 | P128: 0 | Q128: 0 | R128: 0 | S128: 0 | T128: 0 | U128: =IF(OR(U123>=0.5,U124>=0.5),0,U118+U119+U120) -> 0 | V128: =IF(OR(V123>=0.5,V124>=0.5),0,V118+V119+V120) -> 0 | W128: 0 | X128: 0 | Y128: 0 | Z128: 0 | AA128: 0 | AB128: 0 | AC128: 0 | AD128: 0 | AE128: 0 | AF128: 0 | AG128: 0 | AH128: 0
C129: Kum1234 | D129: =IF(OR(D123>=0.5,D124>=0.5,D125>=0.5),0,D118+D119+D120+D121) -> 0 | E129: =IF(OR(E123>=0.5,E124>=0.5,E125>=0.5),0,E118+E119+E120+E121) -> 0 | F129: 0 | G129: 0 | H129: 0 | I129: 0 | J129: 0 | K129: 0 | L129: 0 | M129: 0 | N129: 0 | O129: 0 | P129: 0 | Q129: 0 | R129: 0 | S129: 0 | T129: 0 | U129: =IF(OR(U123>=0.5,U124>=0.5,U125>=0.5),0,U118+U119+U120+U121) -> 0 | V129: =IF(OR(V123>=0.5,V124>=0.5,V125>=0.5),0,V118+V119+V120+V121) -> 0 | W129: 0 | X129: 0 | Y129: 0 | Z129: 0 | AA129: 0 | AB129: 0 | AC129: 0 | AD129: 0 | AE129: 0 | AF129: 0 | AG129: 0 | AH129: 0
C130: Kum23 | D130: =IF(D124>=0.5,0,D119+D120) -> 0 | E130: =IF(E124>=0.5,0,E119+E120) -> 0 | F130: 0 | G130: 0 | H130: 0 | I130: 0 | J130: 0 | K130: 0 | L130: 0 | M130: 0 | N130: 0 | O130: 0 | P130: 0 | Q130: 0 | R130: 0 | S130: 0 | T130: 0 | U130: =IF(U124>=0.5,0,U119+U120) -> 0 | V130: =IF(V124>=0.5,0,V119+V120) -> 0 | W130: 0 | X130: 0 | Y130: 0 | Z130: 0 | AA130: 0 | AB130: 0 | AC130: 0 | AD130: 0 | AE130: 0 | AF130: 0 | AG130: 0 | AH130: 0
C131: Kum234 | D131: =IF(OR(D124>=0.5,D125>=0.5),0,D119+D120+D121) -> 0 | E131: =IF(OR(E124>=0.5,E125>=0.5),0,E119+E120+E121) -> 0 | F131: 0 | G131: 0 | H131: 0 | I131: 0 | J131: 0 | K131: 0 | L131: 0 | M131: 0 | N131: 0 | O131: 0 | P131: 0 | Q131: 0 | R131: 0 | S131: 0 | T131: 0 | U131: =IF(OR(U124>=0.5,U125>=0.5),0,U119+U120+U121) -> 0 | V131: =IF(OR(V124>=0.5,V125>=0.5),0,V119+V120+V121) -> 0 | W131: 0 | X131: 0 | Y131: 0 | Z131: 0 | AA131: 0 | AB131: 0 | AC131: 0 | AD131: 0 | AE131: 0 | AF131: 0 | AG131: 0 | AH131: 0
C132: Kum34 | D132: =IF(D125>=0.5,0,D120+D121) -> 0 | E132: =IF(E125>=0.5,0,E120+E121) -> 0 | F132: 0 | G132: 0 | H132: 0 | I132: 0 | J132: 0 | K132: 0 | L132: 0 | M132: 0 | N132: 0 | O132: 0 | P132: 0 | Q132: 0 | R132: 0 | S132: 0 | T132: 0 | U132: =IF(U125>=0.5,0,U120+U121) -> 0 | V132: =IF(V125>=0.5,0,V120+V121) -> 0 | W132: 0 | X132: 0 | Y132: 0 | Z132: 0 | AA132: 0 | AB132: 0 | AC132: 0 | AD132: 0 | AE132: 0 | AF132: 0 | AG132: 0 | AH132: 0
C134: Pausenfehler-Code | D134: =IF(MAX(D118:D121,D127:D132)>6,2,0) -> 0 | E134: =IF(MAX(E118:E121,E127:E132)>6,2,0) -> 0 | F134: 0 | G134: 0 | H134: 0 | I134: 0 | J134: 0 | K134: 0 | L134: 0 | M134: 0 | N134: 0 | O134: 0 | P134: 0 | Q134: 0 | R134: 0 | S134: 0 | T134: 0 | U134: 0 | V134: 0 | W134: 0 | X134: 0 | Y134: 0 | Z134: 0 | AA134: 0 | AB134: 0 | AC134: 0 | AD134: 0 | AE134: 0 | AF134: 0 | AG134: 0 | AH134: 0

Sheet März (hidden)
A1: 3 | B1: =DATEVALUE("1."&A1&"."&SL_Jahr) -> 2024-03-01 | C1: =SL_Jahr -> 2024 | D1: =B_Gde -> Gde: | E1: =SL_Gemeinde -> 0 | T1: =B_Schule -> Schule: | U1: =SL_Schule -> 0 | AM1: Abschluss-Teilbedingungen:
A2: =VLOOKUP(A1,Monatsenden,2) -> 45382 | B2: =B_Bg -> BG: | C2: =VLOOKUP(B1,VSA_Kalender,13) -> 1 | D2: =B_Name -> Name: | E2: =SL_Name -> 0 | AM2: Regel ok | AN2: =(AN14>=AN15) -> FALSE | AO2: Nicht Relevant | AP2: =D83=0 -> TRUE | AQ2: -1 | AR2: =IF(AP2=TRUE,AQ2,0) -> -1 | AS2: Nicht Relevant
B3: =Zerf_Version & " " & Zerf_T -> Version VSA 1.06 | D3: =DATE($C$1,MONTH($B$1),D$4) -> 2024-03-01 | E3: =DATE($C$1,MONTH($B$1),E$4) -> 2024-03-02 | F3: 2024-03-03 | G3: 2024-03-04 | H3: 2024-03-05 | I3: 2024-03-06 | J3: 2024-03-07 | K3: 2024-03-08 | L3: 2024-03-09 | M3: 2024-03-10 | N3: 2024-03-11 | O3: 2024-03-12 | P3: 2024-03-13 | Q3: 2024-03-14 | R3: 2024-03-15 | S3: 2024-03-16 | T3: 2024-03-17 | U3: 2024-03-18 | V3: 2024-03-19 | W3: 2024-03-20 | X3: 2024-03-21 | Y3: 2024-03-22 | Z3: 2024-03-23 | AA3: 2024-03-24 | AB3: 2024-03-25 | AC3: 2024-03-26 | AD3: 2024-03-27 | AE3: 2024-03-28 | AF3: =IF(MONTH(DATE($C$1,MONTH($B$1),AF$41))>MONTH($B$1),"",DATE($C$1,MONTH($B$1),AF$4)) -> 2024-03-29 | AG3: =IF(MONTH(DATE($C$1,MONTH($B$1),AG$41))>MONTH($B$1),"",DATE($C$1,MONTH($B$1),AG$4)) -> 2024-03-30 | AH3: =IF(MONTH(DATE($C$1,MONTH($B$1),AH$41))>MONTH($B$1),"",DATE($C$1,MONTH($B$1),AH$4)) -> 2024-03-31 | AM3: Spalten ok | AN3: =(L83>=D83) -> TRUE | AO3: Entsperrt | AP3: FALSE | AQ3: 1 | AR3: =AP3*AQ3 -> 0 | AS3: Entsperrt
B4: =IF(VSATestModus=TRUE(),"VSA-Modus!","") ->  | C4: =IF(AN52>0,"DEFEKT","") ->  | D4: =IF(MONTH(DATE($C$1,MONTH($B$1),D$41))>MONTH($B$1),"",D41) -> 1 | E4: 2 | F4: 3 | G4: 4 | H4: 5 | I4: 6 | J4: 7 | K4: 8 | L4: 9 | M4: 10 | N4: 11 | O4: 12 | P4: 13 | Q4: 14 | R4: 15 | S4: 16 | T4: 17 | U4: 18 | V4: 19 | W4: 20 | X4: 21 | Y4: 22 | Z4: 23 | AA4: 24 | AB4: 25 | AC4: 26 | AD4: 27 | AE4: 28 | AF4: =IF(MONTH(DATE($C$1,MONTH($B$1),AF$41))>MONTH($B$1),"",AF41) -> 29 | AG4: =IF(MONTH(DATE($C$1,MONTH($B$1),AG$41))>MONTH($B$1),"",AG41) -> 30 | AH4: =IF(MONTH(DATE($C$1,MONTH($B$1),AH$41))>MONTH($B$1),"",AH41) -> 31 | AM4: Keine Fehler | AN4: =(SUM(D87:AH87)=0) -> TRUE | AO4: Geändert | AP4: FALSE | AQ4: 2 | AR4: =AP4*AQ4 -> 0 | AS4: Geändert
B5: Ein >>> | AM5: Keine Hand | AN5: =(AI12="") -> TRUE | AO5: Sperre | AP5: =AS11=2 -> FALSE | AQ5: 3 | AR5: =NOT(AP6)*AQ5 -> 3 | AS5: Eingaben vornehmen
B6: <<< Aus | AO6: Abschliessbar 1 | AP6: =AND(OR(AN2,AN3),AN4,AN5,NOT(AP7),NOT(AP2)) -> FALSE | AQ6: 4 | AR6: =AND(NOT(OR(AP3,AP4)),AP6)*AQ6 -> 0 | AS6: Abschliessbar 1
B7: Ein >>> | AO7: Abgeschlossen | AP7: FALSE | AQ7: 5 | AR7: =AND(NOT(OR(AP3,AP4)),AP7)*AQ7 -> 0 | AS7: Abgeschlossen
B8: <<< Aus | AO8: Für Jahr OK | AP8: =AND(OR(AP2,AP7),NOT(AP3)) -> TRUE
B9: Ein >>>
B10: <<< Aus | AO10: Statusnummer: | AP10: =IF(AR2=AQ2,AQ2,MAX(AR2:AR7)) -> -1
B11: Ein >>> | AM11: HatDaten: | AN11: =AND(AP2=FALSE,OR(AP10<>3,COUNTA(D5:AH12,D20:AH35,D39:L40)>0)) -> FALSE | AO11: Statustext: | AP11: =IFERROR(VLOOKUP(AP10,AR2:AS7,2,FALSE),"unbekannt") -> Nicht Relevant | AS11: 1
B12: <<< Aus | AI12: =IF(COUNTIF(D37:AH37,"I")>0,"I","") -> 
B13: =B_PrZeit -> Präsenzzeit | D13: =24*(D6-D5+D8-D7+D10-D9+D12-D11)*D88 -> 0 | E13: =24*(E6-E5+E8-E7+E10-E9+E12-E11)*E88 -> 0 | F13: 0 | G13: 0 | H13: 0 | I13: 0 | J13: 0 | K13: 0 | L13: 0 | M13: 0 | N13: 0 | O13: 0 | P13: 0 | Q13: 0 | R13: 0 | S13: 0 | T13: 0 | U13: 0 | V13: 0 | W13: 0 | X13: 0 | Y13: 0 | Z13: 0 | AA13: 0 | AB13: 0 | AC13: 0 | AD13: 0 | AE13: 0 | AF13: 0 | AG13: 0 | AH13: 0 | AM13: Anzahl Regeltage: | AN13: =D83 -> 0
B14: =B_TotalAZist -> Total Arbeitszeit (IST) | D14: =IF(D13+D35>=D15,D13+D35,MIN(D13+D35+SUM(D20,D22,D23,D24,D25,D26,D27,D28,D29,D30,D31,D32,D33,D34),IF(D15<0,0,D15)))*D82 -> 0 | E14: 0 | F14: 0 | G14: 0 | H14: 0 | I14: 0 | J14: 0 | K14: 0 | L14: 0 | M14: 0 | N14: 0 | O14: 0 | P14: 0 | Q14: 0 | R14: =IF(R13+R35>=R15,R13+R35,MIN(R13+R35+SUM(R20,R22,R23,R24,R25,R26,R27,R28,R29,R30,R31,R32,R33,R34),IF(R15<0,0,R15)))*R82 -> 0 | S14: =IF(S13+S35>=S15,S13+S35,MIN(S13+S35+SUM(S20,S22,S23,S24,S25,S26,S27,S28,S29,S30,S31,S32,S33,S34),IF(S15<0,0,S15)))*S82 -> 0 | T14: =IF(T13+T35>=T15,T13+T35,MIN(T13+T35+SUM(T20,T22,T23,T24,T25,T26,T27,T28,T29,T30,T31,T32,T33,T34),IF(T15<0,0,T15)))*T82 -> 0 | U14: =IF(U13+U35>=U15,U13+U35,MIN(U13+U35+SUM(U20,U22,U23,U24,U25,U26,U27,U28,U29,U30,U31,U32,U33,U34),IF(U15<0,0,U15)))*U82 -> 0 | V14: 0 | W14: 0 | X14: 0 | Y14: 0 | Z14: 0 | AA14: 0 | AB14: 0 | AC14: 0 | AD14: 0 | AE14: 0 | AF14: 0 | AG14: 0 | AH14: 0 | AI14: =SUMIF($D$82:$AH$82,1,D14:AH14) -> 0 | AJ14: =AI14-AI15 -> 10.8 | AM14: Erfasste Regeltage | AN14: =L83 -> 0 | AO14: =AN13-AN14 -> 0 | AP14: Fehlende Regeltage
B15: =B_NettoSollAZ -> Netto-SOLL-Arbeitszeit | D15: =ROUND(D16-D19,2) -> 0 | E15: =ROUND(E16-E19,2) -> 0 | F15: 0 | G15: 0 | H15: 0 | I15: 0 | J15: 0 | K15: 0 | L15: 0 | M15: 0 | N15: 0 | O15: 0 | P15: 0 | Q15: 0 | R15: 0 | S15: 0 | T15: 0 | U15: 0 | V15: 0 | W15: 0 | X15: 0 | Y15: 0 | Z15: 0 | AA15: 0 | AB15: 0 | AC15: 0 | AD15: 0 | AE15: -2.4 | AF15: =IF(AF$42=4,0,ROUND(AF16-AF19,2)) -> -8.4 | AG15: =IF(AG$42=4,0,ROUND(AG16-AG19,2)) -> 0 | AH15: 0 | AI15: =SUMIF($D$82:$AH$82,1,D15:AH15) -> -10.8 | AM15: Minimum Regeltage | AN15: =MinRegeltage -> 1 | AO15: Ist als Konstante im Blatt "Intern" hinterlegt
B16: =B_BruttoSollAZ -> Brutto-SOLL-Arb.zeit | D16: =VLOOKUP(D3,VSA_Kalender,16) -> 0 | E16: 0 | F16: 0 | G16: 0 | H16: 0 | I16: 0 | J16: 0 | K16: 0 | L16: 0 | M16: 0 | N16: 0 | O16: 0 | P16: 0 | Q16: 0 | R16: 0 | S16: 0 | T16: 0 | U16: 0 | V16: 0 | W16: 0 | X16: 0 | Y16: 0 | Z16: 0 | AA16: 0 | AB16: 0 | AC16: 0 | AD16: 0 | AE16: 0 | AF16: =IF(AF$42=4,0,VLOOKUP(AF3,VSA_Kalender,16)) -> 0 | AG16: =IF(AG$42=4,0,VLOOKUP(AG3,VSA_Kalender,16)) -> 0 | AH16: =IF(AH$42=4,0,VLOOKUP(AH3,VSA_Kalender,16)) -> 0 | AM16: Regel ok | AN16: Mind. eigetr. Regeltage erfüllt
B17: =B_MehrMinder -> Mehr-/Minderleistung | D17: =(SL_BisDatum>=D3)*ROUND(D14-D15,2) -> 0 | E17: 0 | F17: 0 | G17: 0 | H17: 0 | I17: 0 | J17: 0 | K17: 0 | L17: 0 | M17: 0 | N17: 0 | O17: 0 | P17: 0 | Q17: 0 | R17: 0 | S17: 0 | T17: 0 | U17: 0 | V17: 0 | W17: 0 | X17: 0 | Y17: 0 | Z17: 0 | AA17: 0 | AB17: 0 | AC17: 0 | AD17: 0 | AE17: 0 | AF17: 0 | AG17: 0 | AH17: 0 | AI17: =B_Total -> Total | AJ17: =B_Vortrag -> Vortrag | AM17: Spalten ok: | AN17: Alle Einträge an Regeltagen ok
B18: =B_AZSaldo -> AZ - Saldo | C18: =VLOOKUP(ROW(),VSA_Uebertrag,$A$1+3) -> 16.8 | D18: =IFERROR((C18+D17)*(D3<=SL_BisDatum)*VLOOKUP(D3,VSA_Kalender,21,FALSE),0) -> 0 | E18: 0 | F18: 0 | G18: =IFERROR((F18+G17)*(G3<=SL_BisDatum)*VLOOKUP(G3,VSA_Kalender,21,FALSE),0) -> 0 | H18: 0 | I18: 0 | J18: 0 | K18: 0 | L18: 0 | M18: 0 | N18: 0 | O18: 0 | P18: 0 | Q18: 0 | R18: 0 | S18: 0 | T18: 0 | U18: 0 | V18: 0 | W18: 0 | X18: 0 | Y18: 0 | Z18: 0 | AA18: 0 | AB18: 0 | AC18: 0 | AD18: 0 | AE18: 0 | AF18: 0 | AG18: 0 | AH18: 0 | AJ18: =SUMIF($D$82:$AH$82,1,D17:AH17)+C18 -> 16.8
B19: =B_FTA -> Feiertagsanspruch | C19: 0 | D19: =VLOOKUP(D3,VSA_Kalender,14) -> 0 | E19: 0 | F19: 0 | G19: 0 | H19: 0 | I19: 0 | J19: 0 | K19: 0 | L19: 0 | M19: 0 | N19: 0 | O19: 0 | P19: 0 | Q19: 0 | R19: 0 | S19: 0 | T19: 0 | U19: 0 | V19: 0 | W19: 0 | X19: 0 | Y19: 0 | Z19: 0 | AA19: 0 | AB19: 0 | AC19: 0 | AD19: 0 | AE19: 2.4 | AF19: =IF(AF$42=4,0,VLOOKUP(AF3,VSA_Kalender,14)) -> 8.4 | AG19: =IF(AG$42=4,0,VLOOKUP(AG3,VSA_Kalender,14)) -> 0 | AH19: =IF(AH$42=4,0,VLOOKUP(AH3,VSA_Kalender,14)) -> 0 | AI19: =SUM(D19:AH19) -> 10.8
B20: =B_Ferien -> Ferien | C20: =VLOOKUP(ROW(),VSA_Uebertrag,$A$1+3) -> 0 | AI20: =SUMIF($D$82:$AH$82,1,D20:AH20) -> 0 | AJ20: =ROUND(C20-AI20,2) -> 0 | AK20: Rest
B21: =B_KompAZ -> Kompensation Arbeitstage | C21: 0 | AI21: 0 | AJ21: =ROUND(A21+C21-AI21,0) -> 0
B22: =B_Arzt -> Arztbesuch | C22: 0 | AI22: 0 | AJ22: =ROUND(A22+C22+AI22,2) -> 0 | AK22: Summen
B23: =B_Krank -> Krankheit | C23: 0 | AI23: 0 | AJ23: =ROUND(A23+C23+AI23,2) -> 0
B24: =B_BU -> Berufsunfall | C24: 0 | AI24: 0 | AJ24: 0
B25: =B_NBU -> Nichtberufsunfall | C25: 0 | AI25: 0 | AJ25: 0
B26: =B_MilZiv -> Militär / Zivilschutz | C26: 0 | AI26: 0 | AJ26: 0
B27: =B_UUB -> Unbezahlter Urlaub | C27: 0 | AI27: 0 | AJ27: =ROUND(A27+C27-AI27,2) -> 0 | AK27: Rest
B28: =B_UB -> Bezahlter Urlaub | C28: 0 | AI28: 0 | AJ28: =ROUND(A28+C28-AI28,2) -> 0
B29: =B_NebenB -> Nebenbeschäftigung | C29: 0 | AI29: 0 | AJ29: 0
B30: =B_DAG -> D A G | C30: 0 | AI30: 0 | AJ30: 0
B31: =B_Divers -> Diverses | C31: 0 | AI31: 0 | AJ31: 0 | AK31: Summen
B32: =B_FamPersErg -> Fam./pers. Ereignisse | C32: 0 | AI32: 0 | AJ32: 0
B33: =B_FZ1 -> freie Zeile 1 | C33: 0 | AI33: 0 | AJ33: 0
B34: =B_FZ2 -> freie Zeile 2 | C34: 0 | AI34: 0 | AJ34: 0
B35: =B_WB -> Weiterbildung | C35: 0 | AI35: 0 | AJ35: 0
B36: =B_FEL -> frei einsetzbare Lekt. | C36: 0 | AI36: =SUM(D36:AH36) -> 0 | AJ36: =ROUND(C36-AI36,0) -> 0
D37: =IF(AND((D13 - D15)+SUM(D20,D22:D34)>0.00001,SUM(D20,D22:D34)>0),"I","") -> 
C38: Visum | D38: Identität: | I38: Datum: | K38: Status:
C39: SL
C40: VG
D41: 1 | E41: 2 | F41: 3 | G41: 4 | H41: 5 | I41: 6 | J41: 7 | K41: 8 | L41: 9 | M41: 10 | N41: 11 | O41: 12 | P41: 13 | Q41: 14 | R41: 15 | S41: 16 | T41: 17 | U41: 18 | V41: 19 | W41: 20 | X41: 21 | Y41: 22 | Z41: 23 | AA41: 24 | AB41: 25 | AC41: 26 | AD41: 27 | AE41: 28 | AF41: 29 | AG41: 30 | AH41: 31
D42: =IF(D3="",4,VLOOKUP(D3,VSA_Kalender,18)) -> 0 | E42: 1 | F42: 1 | G42: 0 | H42: 0 | I42: 0 | J42: 0 | K42: 0 | L42: 1 | M42: 1 | N42: 0 | O42: 0 | P42: 0 | Q42: 0 | R42: 0 | S42: 1 | T42: 1 | U42: 0 | V42: 0 | W42: 0 | X42: 0 | Y42: 0 | Z42: 1 | AA42: 1 | AB42: 0 | AC42: 0 | AD42: 0 | AE42: 0 | AF42: 1 | AG42: 1 | AH42: 1
D44: =IF(D19>0,VLOOKUP(D3,KalFeiertage,6,FALSE),"") ->  | AE44: Gründonnerstag | AF44: Karfreitag
D45: FT=WENN(D13+D35>=D15;D13+D35;MIN(D13+D35+SUMME(D20;D22;D23;D24;D25;D26;D27;D28;D29;D30;D31;D32;D33;D34);WENN(D15<0;0;D15)))*D82 | E45: FT=WENN(E13+E35>=E15;E13+E35;MIN(E13+E35+SUMME(E20;E22;E23;E24;E25;E26;E27;E28;E29;E30;E31;E32;E33;E34);WENN(E15<0;0;E15)))*E82 | F45: FT=WENN(F13+F35>=F15;F13+F35;MIN(F13+F35+SUMME(F20;F22;F23;F24;F25;F26;F27;F28;F29;F30;F31;F32;F33;F34);WENN(F15<0;0;F15)))*F82 | G45: FT=WENN(G13+G35>=G15;G13+G35;MIN(G13+G35+SUMME(G20;G22;G23;G24;G25;G26;G27;G28;G29;G30;G31;G32;G33;G34);WENN(G15<0;0;G15)))*G82 | H45: FT=WENN(H13+H35>=H15;H13+H35;MIN(H13+H35+SUMME(H20;H22;H23;H24;H25;H26;H27;H28;H29;H30;H31;H32;H33;H34);WENN(H15<0;0;H15)))*H82 | I45: FT=WENN(I13+I35>=I15;I13+I35;MIN(I13+I35+SUMME(I20;I22;I23;I24;I25;I26;I27;I28;I29;I30;I31;I32;I33;I34);WENN(I15<0;0;I15)))*I82 | J45: FT=WENN(J13+J35>=J15;J13+J35;MIN(J13+J35+SUMME(J20;J22;J23;J24;J25;J26;J27;J28;J29;J30;J31;J32;J33;J34);WENN(J15<0;0;J15)))*J82 | K45: FT=WENN(K13+K35>=K15;K13+K35;MIN(K13+K35+SUMME(K20;K22;K23;K24;K25;K26;K27;K28;K29;K30;K31;K32;K33;K34);WENN(K15<0;0;K15)))*K82 | L45: FT=WENN(L13+L35>=L15;L13+L35;MIN(L13+L35+SUMME(L20;L22;L23;L24;L25;L26;L27;L28;L29;L30;L31;L32;L33;L34);WENN(L15<0;0;L15)))*L82 | M45: FT=WENN(M13+M35>=M15;M13+M35;MIN(M13+M35+SUMME(M20;M22;M23;M24;M25;M26;M27;M28;M29;M30;M31;M32;M33;M34);WENN(M15<0;0;M15)))*M82 | N45: FT=WENN(N13+N35>=N15;N13+N35;MIN(N13+N35+SUMME(N20;N22;N23;N24;N25;N26;N27;N28;N29;N30;N31;N32;N33;N34);WENN(N15<0;0;N15)))*N82 | O45: FT=WENN(O13+O35>=O15;O13+O35;MIN(O13+O35+SUMME(O20;O22;O23;O24;O25;O26;O27;O28;O29;O30;O31;O32;O33;O34);WENN(O15<0;0;O15)))*O82 | P45: FT=WENN(P13+P35>=P15;P13+P35;MIN(P13+P35+SUMME(P20;P22;P23;P24;P25;P26;P27;P28;P29;P30;P31;P32;P33;P34);WENN(P15<0;0;P15)))*P82 | Q45: FT=WENN(Q13+Q35>=Q15;Q13+Q35;MIN(Q13+Q35+SUMME(Q20;Q22;Q23;Q24;Q25;Q26;Q27;Q28;Q29;Q30;Q31;Q32;Q33;Q34);WENN(Q15<0;0;Q15)))*Q82 | R45: FT=WENN(R13+R35>=R15;R13+R35;MIN(R13+R35+SUMME(R20;R22;R23;R24;R25;R26;R27;R28;R29;R30;R31;R32;R33;R34);WENN(R15<0;0;R15)))*R82 | S45: FT=WENN(S13+S35>=S15;S13+S35;MIN(S13+S35+SUMME(S20;S22;S23;S24;S25;S26;S27;S28;S29;S30;S31;S32;S33;S34);WENN(S15<0;0;S15)))*S82 | T45: FT=WENN(T13+T35>=T15;T13+T35;MIN(T13+T35+SUMME(T20;T22;T23;T24;T25;T26;T27;T28;T29;T30;T31;T32;T33;T34);WENN(T15<0;0;T15)))*T82 | U45: FT=WENN(U13+U35>=U15;U13+U35;MIN(U13+U35+SUMME(U20;U22;U23;U24;U25;U26;U27;U28;U29;U30;U31;U32;U33;U34);WENN(U15<0;0;U15)))*U82 | V45: FT=WENN(V13+V35>=V15;V13+V35;MIN(V13+V35+SUMME(V20;V22;V23;V24;V25;V26;V27;V28;V29;V30;V31;V32;V33;V34);WENN(V15<0;0;V15)))*V82 | W45: FT=WENN(W13+W35>=W15;W13+W35;MIN(W13+W35+SUMME(W20;W22;W23;W24;W25;W26;W27;W28;W29;W30;W31;W32;W33;W34);WENN(W15<0;0;W15)))*W82 | X45: FT=WENN(X13+X35>=X15;X13+X35;MIN(X13+X35+SUMME(X20;X22;X23;X24;X25;X26;X27;X28;X29;X30;X31;X32;X33;X34);WENN(X15<0;0;X15)))*X82 | Y45: FT=WENN(Y13+Y35>=Y15;Y13+Y35;MIN(Y13+Y35+SUMME(Y20;Y22;Y23;Y24;Y25;Y26;Y27;Y28;Y29;Y30;Y31;Y32;Y33;Y34);WENN(Y15<0;0;Y15)))*Y82 | Z45: FT=WENN(Z13+Z35>=Z15;Z13+Z35;MIN(Z13+Z35+SUMME(Z20;Z22;Z23;Z24;Z25;Z26;Z27;Z28;Z29;Z30;Z31;Z32;Z33;Z34);WENN(Z15<0;0;Z15)))*Z82 | AA45: FT=WENN(AA13+AA35>=AA15;AA13+AA35;MIN(AA13+AA35+SUMME(AA20;AA22;AA23;AA24;AA25;AA26;AA27;AA28;AA29;AA30;AA31;AA32;AA33;AA34);WENN(AA15<0;0;AA15)))*AA82 | AB45: FT=WENN(AB13+AB35>=AB15;AB13+AB35;MIN(AB13+AB35+SUMME(AB20;AB22;AB23;AB24;AB25;AB26;AB27;AB28;AB29;AB30;AB31;AB32;AB33;AB34);WENN(AB15<0;0;AB15)))*AB82 | AC45: FT=WENN(AC13+AC35>=AC15;AC13+AC35;MIN(AC13+AC35+SUMME(AC20;AC22;AC23;AC24;AC25;AC26;AC27;AC28;AC29;AC30;AC31;AC32;AC33;AC34);WENN(AC15<0;0;AC15)))*AC82 | AD45: FT=WENN(AD13+AD35>=AD15;AD13+AD35;MIN(AD13+AD35+SUMME(AD20;AD22;AD23;AD24;AD25;AD26;AD27;AD28;AD29;AD30;AD31;AD32;AD33;AD34);WENN(AD15<0;0;AD15)))*AD82 | AE45: FT=WENN(AE13+AE35>=AE15;AE13+AE35;MIN(AE13+AE35+SUMME(AE20;AE22;AE23;AE24;AE25;AE26;AE27;AE28;AE29;AE30;AE31;AE32;AE33;AE34);WENN(AE15<0;0;AE15)))*AE82 | AF45: FT=WENN(AF13+AF35>=AF15;AF13+AF35;MIN(AF13+AF35+SUMME(AF20;AF22;AF23;AF24;AF25;AF26;AF27;AF28;AF29;AF30;AF31;AF32;AF33;AF34);WENN(AF15<0;0;AF15)))*AF82 | AG45: FT=WENN(AG13+AG35>=AG15;AG13+AG35;MIN(AG13+AG35+SUMME(AG20;AG22;AG23;AG24;AG25;AG26;AG27;AG28;AG29;AG30;AG31;AG32;AG33;AG34);WENN(AG15<0;0;AG15)))*AG82 | AH45: FT=WENN(AH13+AH35>=AH15;AH13+AH35;MIN(AH13+AH35+SUMME(AH20;AH22;AH23;AH24;AH25;AH26;AH27;AH28;AH29;AH30;AH31;AH32;AH33;AH34);WENN(AH15<0;0;AH15)))*AH82
D46: FT=24*(D6-D5+D8-D7+D10-D9+D12-D11)*D88 | E46: FT=24*(E6-E5+E8-E7+E10-E9+E12-E11)*E88 | F46: FT=24*(F6-F5+F8-F7+F10-F9+F12-F11)*F88 | G46: FT=24*(G6-G5+G8-G7+G10-G9+G12-G11)*G88 | H46: FT=24*(H6-H5+H8-H7+H10-H9+H12-H11)*H88 | I46: FT=24*(I6-I5+I8-I7+I10-I9+I12-I11)*I88 | J46: FT=24*(J6-J5+J8-J7+J10-J9+J12-J11)*J88 | K46: FT=24*(K6-K5+K8-K7+K10-K9+K12-K11)*K88 | L46: FT=24*(L6-L5+L8-L7+L10-L9+L12-L11)*L88 | M46: FT=24*(M6-M5+M8-M7+M10-M9+M12-M11)*M88 | N46: FT=24*(N6-N5+N8-N7+N10-N9+N12-N11)*N88 | O46: FT=24*(O6-O5+O8-O7+O10-O9+O12-O11)*O88 | P46: FT=24*(P6-P5+P8-P7+P10-P9+P12-P11)*P88 | Q46: FT=24*(Q6-Q5+Q8-Q7+Q10-Q9+Q12-Q11)*Q88 | R46: FT=24*(R6-R5+R8-R7+R10-R9+R12-R11)*R88 | S46: FT=24*(S6-S5+S8-S7+S10-S9+S12-S11)*S88 | T46: FT=24*(T6-T5+T8-T7+T10-T9+T12-T11)*T88 | U46: FT=24*(U6-U5+U8-U7+U10-U9+U12-U11)*U88 | V46: FT=24*(V6-V5+V8-V7+V10-V9+V12-V11)*V88 | W46: FT=24*(W6-W5+W8-W7+W10-W9+W12-W11)*W88 | X46: FT=24*(X6-X5+X8-X7+X10-X9+X12-X11)*X88 | Y46: FT=24*(Y6-Y5+Y8-Y7+Y10-Y9+Y12-Y11)*Y88 | Z46: FT=24*(Z6-Z5+Z8-Z7+Z10-Z9+Z12-Z11)*Z88 | AA46: FT=24*(AA6-AA5+AA8-AA7+AA10-AA9+AA12-AA11)*AA88 | AB46: FT=24*(AB6-AB5+AB8-AB7+AB10-AB9+AB12-AB11)*AB88 | AC46: FT=24*(AC6-AC5+AC8-AC7+AC10-AC9+AC12-AC11)*AC88 | AD46: FT=24*(AD6-AD5+AD8-AD7+AD10-AD9+AD12-AD11)*AD88 | AE46: FT=24*(AE6-AE5+AE8-AE7+AE10-AE9+AE12-AE11)*AE88 | AF46: FT=24*(AF6-AF5+AF8-AF7+AF10-AF9+AF12-AF11)*AF88 | AG46: FT=24*(AG6-AG5+AG8-AG7+AG10-AG9+AG12-AG11)*AG88 | AH46: FT=24*(AH6-AH5+AH8-AH7+AH10-AH9+AH12-AH11)*AH88
D47: FT=ODER(D14>0;D21>0)*1 | E47: FT=ODER(E14>0;E21>0)*1 | F47: FT=ODER(F14>0;F21>0)*1 | G47: FT=ODER(G14>0;G21>0)*1 | H47: FT=ODER(H14>0;H21>0)*1 | I47: FT=ODER(I14>0;I21>0)*1 | J47: FT=ODER(J14>0;J21>0)*1 | K47: FT=ODER(K14>0;K21>0)*1 | L47: FT=ODER(L14>0;L21>0)*1 | M47: FT=ODER(M14>0;M21>0)*1 | N47: FT=ODER(N14>0;N21>0)*1 | O47: FT=ODER(O14>0;O21>0)*1 | P47: FT=ODER(P14>0;P21>0)*1 | Q47: FT=ODER(Q14>0;Q21>0)*1 | R47: FT=ODER(R14>0;R21>0)*1 | S47: FT=ODER(S14>0;S21>0)*1 | T47: FT=ODER(T14>0;T21>0)*1 | U47: FT=ODER(U14>0;U21>0)*1 | V47: FT=ODER(V14>0;V21>0)*1 | W47: FT=ODER(W14>0;W21>0)*1 | X47: FT=ODER(X14>0;X21>0)*1 | Y47: FT=ODER(Y14>0;Y21>0)*1 | Z47: FT=ODER(Z14>0;Z21>0)*1 | AA47: FT=ODER(AA14>0;AA21>0)*1 | AB47: FT=ODER(AB14>0;AB21>0)*1 | AC47: FT=ODER(AC14>0;AC21>0)*1 | AD47: FT=ODER(AD14>0;AD21>0)*1 | AE47: FT=ODER(AE14>0;AE21>0)*1 | AF47: FT=ODER(AF14>0;AF21>0)*1 | AG47: FT=ODER(AG14>0;AG21>0)*1 | AH47: FT=ODER(AH14>0;AH21>0)*1
D48: =ABS("FT"&_xlfn.FORMULATEXT(D14)<>D45) -> 0 | E48: =ABS("FT"&_xlfn.FORMULATEXT(E14)<>E45) -> 0 | F48: 0 | G48: 0 | H48: 0 | I48: 0 | J48: 0 | K48: 0 | L48: 0 | M48: 0 | N48: 0 | O48: 0 | P48: 0 | Q48: 0 | R48: 0 | S48: 0 | T48: 0 | U48: 0 | V48: 0 | W48: 0 | X48: 0 | Y48: 0 | Z48: 0 | AA48: 0 | AB48: 0 | AC48: 0 | AD48: 0 | AE48: 0 | AF48: 0 | AG48: 0 | AH48: 0
D49: =ABS("FT"&_xlfn.FORMULATEXT(D13)<>D46) -> 0 | E49: =ABS("FT"&_xlfn.FORMULATEXT(E13)<>E46) -> 0 | F49: 0 | G49: 0 | H49: 0 | I49: 0 | J49: 0 | K49: 0 | L49: 0 | M49: 0 | N49: 0 | O49: 0 | P49: 0 | Q49: 0 | R49: 0 | S49: 0 | T49: 0 | U49: 0 | V49: 0 | W49: 0 | X49: 0 | Y49: 0 | Z49: 0 | AA49: 0 | AB49: 0 | AC49: 0 | AD49: 0 | AE49: 0 | AF49: 0 | AG49: 0 | AH49: 0
D50: =ABS("FT"&_xlfn.FORMULATEXT(D80)<>D47) -> 0 | E50: =ABS("FT"&_xlfn.FORMULATEXT(E80)<>E47) -> 0 | F50: 0 | G50: 0 | H50: 0 | I50: 0 | J50: 0 | K50: 0 | L50: 0 | M50: 0 | N50: 0 | O50: 0 | P50: 0 | Q50: 0 | R50: 0 | S50: 0 | T50: 0 | U50: 0 | V50: 0 | W50: 0 | X50: 0 | Y50: 0 | Z50: 0 | AA50: 0 | AB50: 0 | AC50: 0 | AD50: 0 | AE50: 0 | AF50: 0 | AG50: 0 | AH50: 0
D51: =ABS(ISERROR(D37)) -> 0 | E51: =ABS(ISERROR(E37)) -> 0 | F51: 0 | G51: 0 | H51: 0 | I51: 0 | J51: 0 | K51: 0 | L51: 0 | M51: 0 | N51: 0 | O51: 0 | P51: 0 | Q51: 0 | R51: 0 | S51: 0 | T51: 0 | U51: 0 | V51: 0 | W51: 0 | X51: 0 | Y51: 0 | Z51: 0 | AA51: 0 | AB51: 0 | AC51: 0 | AD51: 0 | AE51: 0 | AF51: 0 | AG51: 0 | AH51: 0
D52: =SUM(D48:D51) -> 0 | E52: =SUM(E48:E51) -> 0 | F52: 0 | G52: 0 | H52: 0 | I52: 0 | J52: 0 | K52: 0 | L52: 0 | M52: 0 | N52: 0 | O52: 0 | P52: 0 | Q52: 0 | R52: 0 | S52: 0 | T52: 0 | U52: 0 | V52: 0 | W52: 0 | X52: 0 | Y52: 0 | Z52: 0 | AA52: 0 | AB52: 0 | AC52: 0 | AD52: 0 | AE52: 0 | AF52: 0 | AG52: 0 | AH52: 0 | AM52: Formel defekt | AN52: =SUM(D52:AH52) -> 0
B77: HT_Naz-Kopie | C77: =HT_NAZ -> 8.4
B78: Heute: | C78: =SL_BisDatum -> 2024-02-02
C79: Reguläre Tage ausgefüllt | D79: =((D80*D81)=1)*1 -> 0 | E79: =((E80*E81)=1)*1 -> 0 | F79: 0 | G79: 0 | H79: 0 | I79: 0 | J79: 0 | K79: 0 | L79: 0 | M79: 0 | N79: 0 | O79: 0 | P79: 0 | Q79: 0 | R79: 0 | S79: 0 | T79: 0 | U79: 0 | V79: 0 | W79: 0 | X79: 0 | Y79: 0 | Z79: 0 | AA79: 0 | AB79: 0 | AC79: 0 | AD79: 0 | AE79: 0 | AF79: 0 | AG79: 0 | AH79: 0
C80: Arbeitstage ausgefüllt | D80: =OR(D14>0,D21>0)*1 -> 0 | E80: =OR(E14>0,E21>0)*1 -> 0 | F80: 0 | G80: 0 | H80: 0 | I80: 0 | J80: 0 | K80: 0 | L80: 0 | M80: 0 | N80: 0 | O80: 0 | P80: 0 | Q80: 0 | R80: 0 | S80: 0 | T80: 0 | U80: 0 | V80: 0 | W80: 0 | X80: 0 | Y80: 0 | Z80: 0 | AA80: 0 | AB80: 0 | AC80: 0 | AD80: 0 | AE80: 0 | AF80: 0 | AG80: 0 | AH80: 0
C81: Arbeitstage wenn BG>0% | D81: =IFERROR(VLOOKUP(D3,VSA_Kalender,22),0) -> 0 | E81: 0 | F81: 0 | G81: 0 | H81: 0 | I81: 0 | J81: 0 | K81: 0 | L81: 0 | M81: 0 | N81: 0 | O81: 0 | P81: 0 | Q81: 0 | R81: 0 | S81: 0 | T81: 0 | U81: 0 | V81: 0 | W81: 0 | X81: 0 | Y81: 0 | Z81: 0 | AA81: 0 | AB81: 0 | AC81: 0 | AD81: 0 | AE81: 0 | AF81: 0 | AG81: 0 | AH81: 0
C82: Der BG beträgt mehr als 0% | D82: =IF(D4="",0,ABS(VLOOKUP(D3,VSA_Kalender,13,FALSE)>0)) -> 1 | E82: 1 | F82: 1 | G82: 1 | H82: 1 | I82: 1 | J82: 1 | K82: 1 | L82: 1 | M82: 1 | N82: 1 | O82: 1 | P82: 1 | Q82: 1 | R82: 1 | S82: 1 | T82: 1 | U82: 1 | V82: 1 | W82: 1 | X82: 1 | Y82: 1 | Z82: 1 | AA82: 1 | AB82: 1 | AC82: 1 | AD82: 1 | AE82: 1 | AF82: 1 | AG82: 1 | AH82: 1
C83: (Ja: 1, Nein: 0) | D83: =SUM(D81:AH81) -> 0 | E83: Total Tage bei BG>0% | H83: =SUM(D80:AH80) -> 0 | I83: Total Tage ausgefüllt | L83: =SUM(D79:AH79) -> 0 | M83: Total reguläre Tage ausgefüllt
C85: Tag des Monats | D85: =D4 -> 1 | E85: 2 | F85: 3 | G85: 4 | H85: 5 | I85: 6 | J85: 7 | K85: 8 | L85: 9 | M85: 10 | N85: 11 | O85: 12 | P85: 13 | Q85: 14 | R85: 15 | S85: 16 | T85: 17 | U85: 18 | V85: 19 | W85: 20 | X85: 21 | Y85: 22 | Z85: 23 | AA85: 24 | AB85: 25 | AC85: 26 | AD85: 27 | AE85: 28 | AF85: 29 | AG85: 30 | AH85: 31
C86: Ist Arbeitsbereich | D86: =IFERROR(ABS(WEEKDAY(D3,2)<6),0) -> 1 | E86: 0 | F86: 0 | G86: 1 | H86: 1 | I86: 1 | J86: 1 | K86: 1 | L86: 0 | M86: 0 | N86: 1 | O86: 1 | P86: 1 | Q86: 1 | R86: 1 | S86: 0 | T86: 0 | U86: 1 | V86: 1 | W86: 1 | X86: 1 | Y86: 1 | Z86: 0 | AA86: 0 | AB86: 1 | AC86: 1 | AD86: 1 | AE86: 1 | AF86: 1 | AG86: 0 | AH86: 0
C87: Maximaler Fehler | D87: =MAX(D100:D107,D98,D134) -> 0 | E87: =MAX(E100:E107,E98,E134) -> 0 | F87: 0 | G87: 0 | H87: 0 | I87: 0 | J87: 0 | K87: 0 | L87: 0 | M87: 0 | N87: 0 | O87: 0 | P87: 0 | Q87: 0 | R87: 0 | S87: 0 | T87: 0 | U87: 0 | V87: 0 | W87: 0 | X87: 0 | Y87: 0 | Z87: 0 | AA87: 0 | AB87: 0 | AC87: 0 | AD87: 0 | AE87: 0 | AF87: 0 | AG87: 0 | AH87: 0
C88: Wird die Präsenzzeit angezeigt? | D88: =IF(D87=0,1,0) -> 1 | E88: =IF(E87=0,1,0) -> 1 | F88: 1 | G88: 1 | H88: 1 | I88: 1 | J88: 1 | K88: 1 | L88: 1 | M88: 1 | N88: 1 | O88: 1 | P88: 1 | Q88: 1 | R88: 1 | S88: 1 | T88: 1 | U88: 1 | V88: 1 | W88: 1 | X88: 1 | Y88: 1 | Z88: 1 | AA88: 1 | AB88: 1 | AC88: 1 | AD88: 1 | AE88: 1 | AF88: 1 | AG88: 1 | AH88: 1
C90: Gruppenfehler 1 | D90: =IF(AND(D6-D5=0,COUNTA(D7:D12)>0),1,0) -> 0 | E90: 0 | F90: 0 | G90: 0 | H90: 0 | I90: 0 | J90: 0 | K90: 0 | L90: 0 | M90: 0 | N90: 0 | O90: 0 | P90: 0 | Q90: 0 | R90: 0 | S90: 0 | T90: 0 | U90: 0 | V90: 0 | W90: 0 | X90: 0 | Y90: 0 | Z90: 0 | AA90: 0 | AB90: 0 | AC90: 0 | AD90: 0 | AE90: 0 | AF90: 0 | AG90: 0 | AH90: 0
B91: Gruppenfehler | C91: (aus) | D91: =D90 -> 0 | E91: 0 | F91: 0 | G91: 0 | H91: 0 | I91: 0 | J91: 0 | K91: 0 | L91: 0 | M91: 0 | N91: 0 | O91: 0 | P91: 0 | Q91: 0 | R91: 0 | S91: 0 | T91: 0 | U91: 0 | V91: 0 | W91: 0 | X91: 0 | Y91: 0 | Z91: 0 | AA91: 0 | AB91: 0 | AC91: 0 | AD91: 0 | AE91: 0 | AF91: 0 | AG91: 0 | AH91: 0
C92: Gruppenfehler 2 | D92: =IF(AND(D8-D7=0,COUNTA(D9:D12)>0),1,0) -> 0 | E92: 0 | F92: 0 | G92: 0 | H92: 0 | I92: 0 | J92: 0 | K92: 0 | L92: 0 | M92: 0 | N92: 0 | O92: 0 | P92: 0 | Q92: 0 | R92: 0 | S92: 0 | T92: 0 | U92: 0 | V92: 0 | W92: 0 | X92: 0 | Y92: 0 | Z92: 0 | AA92: 0 | AB92: 0 | AC92: 0 | AD92: 0 | AE92: 0 | AF92: 0 | AG92: 0 | AH92: 0
C93: (aus) | D93: =D92 -> 0 | E93: 0 | F93: 0 | G93: 0 | H93: 0 | I93: 0 | J93: 0 | K93: 0 | L93: 0 | M93: 0 | N93: 0 | O93: 0 | P93: 0 | Q93: 0 | R93: 0 | S93: 0 | T93: 0 | U93: 0 | V93: 0 | W93: 0 | X93: 0 | Y93: 0 | Z93: 0 | AA93: 0 | AB93: 0 | AC93: 0 | AD93: 0 | AE93: 0 | AF93: 0 | AG93: 0 | AH93: 0
C94: Gruppenfehler 3 | D94: =IF(AND(D10-D9=0,COUNTA(D11:D12)>0),1,0) -> 0 | E94: 0 | F94: 0 | G94: 0 | H94: 0 | I94: 0 | J94: 0 | K94: 0 | L94: 0 | M94: 0 | N94: 0 | O94: 0 | P94: 0 | Q94: 0 | R94: 0 | S94: 0 | T94: 0 | U94: 0 | V94: 0 | W94: 0 | X94: 0 | Y94: 0 | Z94: 0 | AA94: 0 | AB94: 0 | AC94: 0 | AD94: 0 | AE94: 0 | AF94: 0 | AG94: 0 | AH94: 0
C95: (aus) | D95: =D94 -> 0 | E95: 0 | F95: 0 | G95: 0 | H95: 0 | I95: 0 | J95: 0 | K95: 0 | L95: 0 | M95: 0 | N95: 0 | O95: 0 | P95: 0 | Q95: 0 | R95: 0 | S95: 0 | T95: 0 | U95: 0 | V95: 0 | W95: 0 | X95: 0 | Y95: 0 | Z95: 0 | AA95: 0 | AB95: 0 | AC95: 0 | AD95: 0 | AE95: 0 | AF95: 0 | AG95: 0 | AH95: 0
C96: leer
C97: leer
C98: Genereller Gruppenfehler | D98: =MAX(D90:D95) -> 0 | E98: 0 | F98: 0 | G98: 0 | H98: 0 | I98: 0 | J98: 0 | K98: 0 | L98: 0 | M98: 0 | N98: 0 | O98: 0 | P98: 0 | Q98: 0 | R98: 0 | S98: 0 | T98: 0 | U98: 0 | V98: 0 | W98: 0 | X98: 0 | Y98: 0 | Z98: 0 | AA98: 0 | AB98: 0 | AC98: 0 | AD98: 0 | AE98: 0 | AF98: 0 | AG98: 0 | AH98: 0
C100: Ein1 | D100: =IF(AND(D109=0,D110>0),1,0) -> 0 | E100: =IF(AND(E109=0,E110>0),1,0) -> 0 | F100: 0 | G100: 0 | H100: 0 | I100: 0 | J100: 0 | K100: 0 | L100: 0 | M100: 0 | N100: 0 | O100: 0 | P100: 0 | Q100: 0 | R100: 0 | S100: 0 | T100: 0 | U100: 0 | V100: 0 | W100: 0 | X100: 0 | Y100: 0 | Z100: 0 | AA100: 0 | AB100: 0 | AC100: 0 | AD100: 0 | AE100: 0 | AF100: 0 | AG100: 0 | AH100: 0
C101: Aus1 | D101: =IF(AND(D110>0,D110<D109),3,IF(AND(D109>0,D110=0),1,0))*D$86 -> 0 | E101: =IF(AND(E110>0,E110<E109),3,IF(AND(E109>0,E110=0),1,0))*E$86 -> 0 | F101: 0 | G101: 0 | H101: 0 | I101: 0 | J101: 0 | K101: 0 | L101: 0 | M101: 0 | N101: 0 | O101: 0 | P101: 0 | Q101: 0 | R101: 0 | S101: 0 | T101: 0 | U101: 0 | V101: 0 | W101: 0 | X101: 0 | Y101: 0 | Z101: 0 | AA101: 0 | AB101: 0 | AC101: 0 | AD101: 0 | AE101: 0 | AF101: 0 | AG101: 0 | AH101: 0
C102: Ein2 | D102: =IF(AND(D111>0,D111<D110),3,IF(AND(D111=0,D112>0),1,0))*D$86 -> 0 | E102: 0 | F102: 0 | G102: 0 | H102: 0 | I102: 0 | J102: 0 | K102: 0 | L102: 0 | M102: 0 | N102: 0 | O102: 0 | P102: 0 | Q102: 0 | R102: 0 | S102: 0 | T102: 0 | U102: 0 | V102: 0 | W102: 0 | X102: 0 | Y102: 0 | Z102: 0 | AA102: 0 | AB102: 0 | AC102: 0 | AD102: 0 | AE102: 0 | AF102: 0 | AG102: 0 | AH102: 0
C103: Aus2 | D103: =IF(AND(D112>0,D112<D111),3,IF(AND(D111>0,D112=0),1,0))*D$86 -> 0 | E103: =IF(AND(E112>0,E112<E111),3,IF(AND(E111>0,E112=0),1,0))*E$86 -> 0 | F103: 0 | G103: 0 | H103: 0 | I103: 0 | J103: 0 | K103: 0 | L103: 0 | M103: 0 | N103: 0 | O103: 0 | P103: 0 | Q103: 0 | R103: 0 | S103: 0 | T103: 0 | U103: 0 | V103: 0 | W103: 0 | X103: 0 | Y103: 0 | Z103: 0 | AA103: 0 | AB103: 0 | AC103: 0 | AD103: 0 | AE103: 0 | AF103: 0 | AG103: 0 | AH103: 0
B104: Zellenfehler | C104: Ein3 | D104: =IF(AND(D113>0,D113<D112),3,IF(AND(D113=0,D114>0),1,0))*D$86 -> 0 | E104: =IF(AND(E113>0,E113<E112),3,IF(AND(E113=0,E114>0),1,0))*E$86 -> 0 | F104: 0 | G104: 0 | H104: 0 | I104: 0 | J104: 0 | K104: 0 | L104: 0 | M104: 0 | N104: 0 | O104: 0 | P104: 0 | Q104: 0 | R104: 0 | S104: 0 | T104: 0 | U104: 0 | V104: 0 | W104: 0 | X104: 0 | Y104: 0 | Z104: 0 | AA104: 0 | AB104: 0 | AC104: 0 | AD104: 0 | AE104: 0 | AF104: 0 | AG104: 0 | AH104: 0
C105: Aus3 | D105: =IF(AND(D114>0,D114<D113),3,IF(AND(D113>0,D114=0),1,0))*D$86 -> 0 | E105: =IF(AND(E114>0,E114<E113),3,IF(AND(E113>0,E114=0),1,0))*E$86 -> 0 | F105: 0 | G105: 0 | H105: 0 | I105: 0 | J105: 0 | K105: 0 | L105: 0 | M105: 0 | N105: 0 | O105: 0 | P105: 0 | Q105: 0 | R105: 0 | S105: 0 | T105: 0 | U105: 0 | V105: 0 | W105: 0 | X105: 0 | Y105: 0 | Z105: 0 | AA105: 0 | AB105: 0 | AC105: 0 | AD105: 0 | AE105: 0 | AF105: 0 | AG105: 0 | AH105: 0
C106: Ein4 | D106: =IF(AND(D115>0,D115<D114),3,IF(AND(D115=0,D116>0),1,0))*D$86 -> 0 | E106: =IF(AND(E115>0,E115<E114),3,IF(AND(E115=0,E116>0),1,0))*E$86 -> 0 | F106: 0 | G106: 0 | H106: 0 | I106: 0 | J106: 0 | K106: 0 | L106: 0 | M106: 0 | N106: 0 | O106: 0 | P106: 0 | Q106: 0 | R106: 0 | S106: 0 | T106: 0 | U106: 0 | V106: 0 | W106: 0 | X106: 0 | Y106: 0 | Z106: 0 | AA106: 0 | AB106: 0 | AC106: 0 | AD106: 0 | AE106: 0 | AF106: 0 | AG106: 0 | AH106: 0
C107: Aus4 | D107: =IF(AND(D116>0,D116<D115),3,IF(AND(D115>0,D116=0),1,0))*D$86 -> 0 | E107: =IF(AND(E116>0,E116<E115),3,IF(AND(E115>0,E116=0),1,0))*E$86 -> 0 | F107: 0 | G107: 0 | H107: 0 | I107: 0 | J107: 0 | K107: 0 | L107: 0 | M107: 0 | N107: 0 | O107: 0 | P107: 0 | Q107: 0 | R107: 0 | S107: 0 | T107: 0 | U107: 0 | V107: 0 | W107: 0 | X107: 0 | Y107: 0 | Z107: 0 | AA107: 0 | AB107: 0 | AC107: 0 | AD107: 0 | AE107: 0 | AF107: 0 | AG107: 0 | AH107: 0
C109: Ein1 | D109: =ROUND(D5*24,2) -> 0 | E109: 0 | F109: 0 | G109: 0 | H109: 0 | I109: 0 | J109: 0 | K109: 0 | L109: 0 | M109: 0 | N109: 0 | O109: 0 | P109: 0 | Q109: 0 | R109: 0 | S109: 0 | T109: 0 | U109: 0 | V109: 0 | W109: 0 | X109: 0 | Y109: 0 | Z109: 0 | AA109: 0 | AB109: 0 | AC109: 0 | AD109: 0 | AE109: 0 | AF109: 0 | AG109: 0 | AH109: 0
C110: Aus1 | D110: 0 | E110: 0 | F110: 0 | G110: 0 | H110: 0 | I110: 0 | J110: 0 | K110: 0 | L110: 0 | M110: 0 | N110: 0 | O110: 0 | P110: 0 | Q110: 0 | R110: 0 | S110: 0 | T110: 0 | U110: 0 | V110: 0 | W110: 0 | X110: 0 | Y110: 0 | Z110: 0 | AA110: 0 | AB110: 0 | AC110: 0 | AD110: 0 | AE110: 0 | AF110: 0 | AG110: 0 | AH110: 0
B111: Zeiten dezimal gewandelt | C111: Ein2 | D111: 0 | E111: 0 | F111: 0 | G111: 0 | H111: 0 | I111: 0 | J111: 0 | K111: 0 | L111: 0 | M111: 0 | N111: 0 | O111: 0 | P111: 0 | Q111: 0 | R111: 0 | S111: 0 | T111: 0 | U111: 0 | V111: 0 | W111: 0 | X111: 0 | Y111: 0 | Z111: 0 | AA111: 0 | AB111: 0 | AC111: 0 | AD111: 0 | AE111: 0 | AF111: 0 | AG111: 0 | AH111: 0
C112: Aus2 | D112: 0 | E112: 0 | F112: 0 | G112: 0 | H112: 0 | I112: 0 | J112: 0 | K112: 0 | L112: 0 | M112: 0 | N112: 0 | O112: 0 | P112: 0 | Q112: 0 | R112: 0 | S112: 0 | T112: 0 | U112: 0 | V112: 0 | W112: 0 | X112: 0 | Y112: 0 | Z112: 0 | AA112: 0 | AB112: 0 | AC112: 0 | AD112: 0 | AE112: 0 | AF112: 0 | AG112: 0 | AH112: 0
C113: Ein3 | D113: 0 | E113: 0 | F113: 0 | G113: 0 | H113: 0 | I113: 0 | J113: 0 | K113: 0 | L113: 0 | M113: 0 | N113: 0 | O113: 0 | P113: 0 | Q113: 0 | R113: 0 | S113: 0 | T113: 0 | U113: 0 | V113: 0 | W113: 0 | X113: 0 | Y113: 0 | Z113: 0 | AA113: 0 | AB113: 0 | AC113: 0 | AD113: 0 | AE113: 0 | AF113: 0 | AG113: 0 | AH113: 0
C114: Aus3 | D114: 0 | E114: 0 | F114: 0 | G114: 0 | H114: 0 | I114: 0 | J114: 0 | K114: 0 | L114: 0 | M114: 0 | N114: 0 | O114: 0 | P114: 0 | Q114: 0 | R114: 0 | S114: 0 | T114: 0 | U114: 0 | V114: 0 | W114: 0 | X114: 0 | Y114: 0 | Z114: 0 | AA114: 0 | AB114: 0 | AC114: 0 | AD114: 0 | AE114: 0 | AF114: 0 | AG114: 0 | AH114: 0
C115: Ein4 | D115: 0 | E115: 0 | F115: 0 | G115: 0 | H115: 0 | I115: 0 | J115: 0 | K115: 0 | L115: 0 | M115: 0 | N115: 0 | O115: 0 | P115: 0 | Q115: 0 | R115: 0 | S115: 0 | T115: 0 | U115: 0 | V115: 0 | W115: 0 | X115: 0 | Y115: 0 | Z115: 0 | AA115: 0 | AB115: 0 | AC115: 0 | AD115: 0 | AE115: 0 | AF115: 0 | AG115: 0 | AH115: 0
C116: Aus4 | D116: 0 | E116: 0 | F116: 0 | G116: 0 | H116: 0 | I116: 0 | J116: 0 | K116: 0 | L116: 0 | M116: 0 | N116: 0 | O116: 0 | P116: 0 | Q116: 0 | R116: 0 | S116: 0 | T116: 0 | U116: 0 | V116: 0 | W116: 0 | X116: 0 | Y116: 0 | Z116: 0 | AA116: 0 | AB116: 0 | AC116: 0 | AD116: 0 | AE116: 0 | AF116: 0 | AG116: 0 | AH116: 0
B118: Pausenfehler | C118: Gruppe1 | D118: =IF(OR(D109="",D110=""),0,D110-D109) -> 0 | E118: =IF(OR(E109="",E110=""),0,E110-E109) -> 0 | F118: 0 | G118: 0 | H118: 0 | I118: 0 | J118: 0 | K118: 0 | L118: 0 | M118: 0 | N118: 0 | O118: 0 | P118: 0 | Q118: 0 | R118: 0 | S118: 0 | T118: 0 | U118: =IF(OR(U109="",U110=""),0,U110-U109) -> 0 | V118: =IF(OR(V109="",V110=""),0,V110-V109) -> 0 | W118: 0 | X118: 0 | Y118: 0 | Z118: 0 | AA118: 0 | AB118: 0 | AC118: 0 | AD118: 0 | AE118: 0 | AF118: 0 | AG118: 0 | AH118: 0
C119: Gruppe2 | D119: =IF(OR(D111="",D112=""),0,D112-D111) -> 0 | E119: =IF(OR(E111="",E112=""),0,E112-E111) -> 0 | F119: 0 | G119: 0 | H119: 0 | I119: 0 | J119: 0 | K119: 0 | L119: 0 | M119: 0 | N119: 0 | O119: 0 | P119: 0 | Q119: 0 | R119: 0 | S119: 0 | T119: 0 | U119: =IF(OR(U111="",U112=""),0,U112-U111) -> 0 | V119: =IF(OR(V111="",V112=""),0,V112-V111) -> 0 | W119: 0 | X119: 0 | Y119: 0 | Z119: 0 | AA119: 0 | AB119: 0 | AC119: 0 | AD119: 0 | AE119: 0 | AF119: 0 | AG119: 0 | AH119: 0
C120: Gruppe3 | D120: =IF(OR(D113="",D114=""),0,D114-D113) -> 0 | E120: =IF(OR(E113="",E114=""),0,E114-E113) -> 0 | F120: 0 | G120: 0 | H120: 0 | I120: 0 | J120: 0 | K120: 0 | L120: 0 | M120: 0 | N120: 0 | O120: 0 | P120: 0 | Q120: 0 | R120: 0 | S120: 0 | T120: 0 | U120: =IF(OR(U113="",U114=""),0,U114-U113) -> 0 | V120: =IF(OR(V113="",V114=""),0,V114-V113) -> 0 | W120: 0 | X120: 0 | Y120: 0 | Z120: 0 | AA120: 0 | AB120: 0 | AC120: 0 | AD120: 0 | AE120: 0 | AF120: 0 | AG120: 0 | AH120: 0
C121: Gruppe4 | D121: =IF(OR(D115="",D116=""),0,D116-D115) -> 0 | E121: =IF(OR(E115="",E116=""),0,E116-E115) -> 0 | F121: 0 | G121: 0 | H121: 0 | I121: 0 | J121: 0 | K121: 0 | L121: 0 | M121: 0 | N121: 0 | O121: 0 | P121: 0 | Q121: 0 | R121: 0 | S121: 0 | T121: 0 | U121: =IF(OR(U115="",U116=""),0,U116-U115) -> 0 | V121: =IF(OR(V115="",V116=""),0,V116-V115) -> 0 | W121: 0 | X121: 0 | Y121: 0 | Z121: 0 | AA121: 0 | AB121: 0 | AC121: 0 | AD121: 0 | AE121: 0 | AF121: 0 | AG121: 0 | AH121: 0
C123: Pause12 | D123: =IF(OR(D110="",D111=""),0,D111-D110) -> 0 | E123: =IF(OR(E110="",E111=""),0,E111-E110) -> 0 | F123: 0 | G123: 0 | H123: 0 | I123: 0 | J123: 0 | K123: 0 | L123: 0 | M123: 0 | N123: 0 | O123: 0 | P123: 0 | Q123: 0 | R123: 0 | S123: 0 | T123: 0 | U123: =IF(OR(U110="",U111=""),0,U111-U110) -> 0 | V123: =IF(OR(V110="",V111=""),0,V111-V110) -> 0 | W123: 0 | X123: 0 | Y123: 0 | Z123: 0 | AA123: 0 | AB123: 0 | AC123: 0 | AD123: 0 | AE123: 0 | AF123: 0 | AG123: 0 | AH123: 0
C124: Pause23 | D124: =IF(OR(D112="",D113=""),0,D113-D112) -> 0 | E124: =IF(OR(E112="",E113=""),0,E113-E112) -> 0 | F124: 0 | G124: 0 | H124: 0 | I124: 0 | J124: 0 | K124: 0 | L124: 0 | M124: 0 | N124: 0 | O124: 0 | P124: 0 | Q124: 0 | R124: 0 | S124: 0 | T124: 0 | U124: =IF(OR(U112="",U113=""),0,U113-U112) -> 0 | V124: =IF(OR(V112="",V113=""),0,V113-V112) -> 0 | W124: 0 | X124: 0 | Y124: 0 | Z124: 0 | AA124: 0 | AB124: 0 | AC124: 0 | AD124: 0 | AE124: 0 | AF124: 0 | AG124: 0 | AH124: 0
C125: Pause34 | D125: =IF(OR(D114="",D115=""),0,D115-D114) -> 0 | E125: =IF(OR(E114="",E115=""),0,E115-E114) -> 0 | F125: 0 | G125: 0 | H125: 0 | I125: 0 | J125: 0 | K125: 0 | L125: 0 | M125: 0 | N125: 0 | O125: 0 | P125: 0 | Q125: 0 | R125: 0 | S125: 0 | T125: 0 | U125: =IF(OR(U114="",U115=""),0,U115-U114) -> 0 | V125: =IF(OR(V114="",V115=""),0,V115-V114) -> 0 | W125: 0 | X125: 0 | Y125: 0 | Z125: 0 | AA125: 0 | AB125: 0 | AC125: 0 | AD125: 0 | AE125: 0 | AF125: 0 | AG125: 0 | AH125: 0
C127: Kum12 | D127: =IF(D123>=0.5,0,D118+D119) -> 0 | E127: =IF(E123>=0.5,0,E118+E119) -> 0 | F127: 0 | G127: 0 | H127: 0 | I127: 0 | J127: 0 | K127: 0 | L127: 0 | M127: 0 | N127: 0 | O127: 0 | P127: 0 | Q127: 0 | R127: 0 | S127: 0 | T127: 0 | U127: =IF(U123>=0.5,0,U118+U119) -> 0 | V127: =IF(V123>=0.5,0,V118+V119) -> 0 | W127: 0 | X127: 0 | Y127: 0 | Z127: 0 | AA127: 0 | AB127: 0 | AC127: 0 | AD127: 0 | AE127: 0 | AF127: 0 | AG127: 0 | AH127: 0
C128: Kum123 | D128: =IF(OR(D123>=0.5,D124>=0.5),0,D118+D119+D120) -> 0 | E128: =IF(OR(E123>=0.5,E124>=0.5),0,E118+E119+E120) -> 0 | F128: 0 | G128: 0 | H128: 0 | I128: 0 | J128: 0 | K128: 0 | L128: 0 | M128: 0 | N128: 0 | O128: 0 | P128: 0 | Q128: 0 | R128: 0 | S128: 0 | T128: 0 | U128: =IF(OR(U123>=0.5,U124>=0.5),0,U118+U119+U120) -> 0 | V128: =IF(OR(V123>=0.5,V124>=0.5),0,V118+V119+V120) -> 0 | W128: 0 | X128: 0 | Y128: 0 | Z128: 0 | AA128: 0 | AB128: 0 | AC128: 0 | AD128: 0 | AE128: 0 | AF128: 0 | AG128: 0 | AH128: 0
C129: Kum1234 | D129: =IF(OR(D123>=0.5,D124>=0.5,D125>=0.5),0,D118+D119+D120+D121) -> 0 | E129: =IF(OR(E123>=0.5,E124>=0.5,E125>=0.5),0,E118+E119+E120+E121) -> 0 | F129: 0 | G129: 0 | H129: 0 | I129: 0 | J129: 0 | K129: 0 | L129: 0 | M129: 0 | N129: 0 | O129: 0 | P129: 0 | Q129: 0 | R129: 0 | S129: 0 | T129: 0 | U129: =IF(OR(U123>=0.5,U124>=0.5,U125>=0.5),0,U118+U119+U120+U121) -> 0 | V129: =IF(OR(V123>=0.5,V124>=0.5,V125>=0.5),0,V118+V119+V120+V121) -> 0 | W129: 0 | X129: 0 | Y129: 0 | Z129: 0 | AA129: 0 | AB129: 0 | AC129: 0 | AD129: 0 | AE129: 0 | AF129: 0 | AG129: 0 | AH129: 0
C130: Kum23 | D130: =IF(D124>=0.5,0,D119+D120) -> 0 | E130: =IF(E124>=0.5,0,E119+E120) -> 0 | F130: 0 | G130: 0 | H130: 0 | I130: 0 | J130: 0 | K130: 0 | L130: 0 | M130: 0 | N130: 0 | O130: 0 | P130: 0 | Q130: 0 | R130: 0 | S130: 0 | T130: 0 | U130: =IF(U124>=0.5,0,U119+U120) -> 0 | V130: =IF(V124>=0.5,0,V119+V120) -> 0 | W130: 0 | X130: 0 | Y130: 0 | Z130: 0 | AA130: 0 | AB130: 0 | AC130: 0 | AD130: 0 | AE130: 0 | AF130: 0 | AG130: 0 | AH130: 0
C131: Kum234 | D131: =IF(OR(D124>=0.5,D125>=0.5),0,D119+D120+D121) -> 0 | E131: =IF(OR(E124>=0.5,E125>=0.5),0,E119+E120+E121) -> 0 | F131: 0 | G131: 0 | H131: 0 | I131: 0 | J131: 0 | K131: 0 | L131: 0 | M131: 0 | N131: 0 | O131: 0 | P131: 0 | Q131: 0 | R131: 0 | S131: 0 | T131: 0 | U131: =IF(OR(U124>=0.5,U125>=0.5),0,U119+U120+U121) -> 0 | V131: =IF(OR(V124>=0.5,V125>=0.5),0,V119+V120+V121) -> 0 | W131: 0 | X131: 0 | Y131: 0 | Z131: 0 | AA131: 0 | AB131: 0 | AC131: 0 | AD131: 0 | AE131: 0 | AF131: 0 | AG131: 0 | AH131: 0
C132: Kum34 | D132: =IF(D125>=0.5,0,D120+D121) -> 0 | E132: =IF(E125>=0.5,0,E120+E121) -> 0 | F132: 0 | G132: 0 | H132: 0 | I132: 0 | J132: 0 | K132: 0 | L132: 0 | M132: 0 | N132: 0 | O132: 0 | P132: 0 | Q132: 0 | R132: 0 | S132: 0 | T132: 0 | U132: =IF(U125>=0.5,0,U120+U121) -> 0 | V132: =IF(V125>=0.5,0,V120+V121) -> 0 | W132: 0 | X132: 0 | Y132: 0 | Z132: 0 | AA132: 0 | AB132: 0 | AC132: 0 | AD132: 0 | AE132: 0 | AF132: 0 | AG132: 0 | AH132: 0
C134: Pausenfehler-Code | D134: =IF(MAX(D118:D121,D127:D132)>6,2,0) -> 0 | E134: =IF(MAX(E118:E121,E127:E132)>6,2,0) -> 0 | F134: 0 | G134: 0 | H134: 0 | I134: 0 | J134: 0 | K134: 0 | L134: 0 | M134: 0 | N134: 0 | O134: 0 | P134: 0 | Q134: 0 | R134: 0 | S134: 0 | T134: 0 | U134: 0 | V134: 0 | W134: 0 | X134: 0 | Y134: 0 | Z134: 0 | AA134: 0 | AB134: 0 | AC134: 0 | AD134: 0 | AE134: 0 | AF134: 0 | AG134: 0 | AH134: 0

Sheet April (hidden)
A1: 4 | B1: =DATEVALUE("1."&A1&"."&SL_Jahr) -> 2024-04-01 | C1: =SL_Jahr -> 2024 | D1: =B_Gde -> Gde: | E1: =SL_Gemeinde -> 0 | T1: =B_Schule -> Schule: | U1: =SL_Schule -> 0 | AM1: Abschluss-Teilbedingungen:
A2: =VLOOKUP(A1,Monatsenden,2) -> 45412 | B2: =B_Bg -> BG: | C2: =VLOOKUP(B1,VSA_Kalender,13) -> 1 | D2: =B_Name -> Name: | E2: =SL_Name -> 0 | AM2: Regel ok | AN2: =(AN14>=AN15) -> FALSE | AO2: Nicht Relevant | AP2: =D83=0 -> TRUE | AQ2: -1 | AR2: =IF(AP2=TRUE,AQ2,0) -> -1 | AS2: Nicht Relevant
B3: =Zerf_Version & " " & Zerf_T -> Version VSA 1.06 | D3: =DATE($C$1,MONTH($B$1),D$4) -> 2024-04-01 | E3: =DATE($C$1,MONTH($B$1),E$4) -> 2024-04-02 | F3: 2024-04-03 | G3: 2024-04-04 | H3: 2024-04-05 | I3: 2024-04-06 | J3: 2024-04-07 | K3: 2024-04-08 | L3: 2024-04-09 | M3: 2024-04-10 | N3: 2024-04-11 | O3: 2024-04-12 | P3: 2024-04-13 | Q3: 2024-04-14 | R3: 2024-04-15 | S3: 2024-04-16 | T3: 2024-04-17 | U3: 2024-04-18 | V3: 2024-04-19 | W3: 2024-04-20 | X3: 2024-04-21 | Y3: 2024-04-22 | Z3: 2024-04-23 | AA3: 2024-04-24 | AB3: 2024-04-25 | AC3: 2024-04-26 | AD3: 2024-04-27 | AE3: 2024-04-28 | AF3: =IF(MONTH(DATE($C$1,MONTH($B$1),AF$41))>MONTH($B$1),"",DATE($C$1,MONTH($B$1),AF$4)) -> 2024-04-29 | AG3: =IF(MONTH(DATE($C$1,MONTH($B$1),AG$41))>MONTH($B$1),"",DATE($C$1,MONTH($B$1),AG$4)) -> 2024-04-30 | AH3: =IF(MONTH(DATE($C$1,MONTH($B$1),AH$41))>MONTH($B$1),"",DATE($C$1,MONTH($B$1),AH$4)) ->  | AM3: Spalten ok | AN3: =(L83>=D83) -> TRUE | AO3: Entsperrt | AP3: FALSE | AQ3: 1 | AR3: =AP3*AQ3 -> 0 | AS3: Entsperrt
B4: =IF(VSATestModus=TRUE(),"VSA-Modus!","") ->  | C4: =IF(AN52>0,"DEFEKT","") ->  | D4: =IF(MONTH(DATE($C$1,MONTH($B$1),D$41))>MONTH($B$1),"",D41) -> 1 | E4: 2 | F4: 3 | G4: 4 | H4: 5 | I4: 6 | J4: 7 | K4: 8 | L4: 9 | M4: 10 | N4: 11 | O4: 12 | P4: 13 | Q4: 14 | R4: 15 | S4: 16 | T4: 17 | U4: 18 | V4: 19 | W4: 20 | X4: 21 | Y4: 22 | Z4: 23 | AA4: 24 | AB4: 25 | AC4: 26 | AD4: 27 | AE4: 28 | AF4: =IF(MONTH(DATE($C$1,MONTH($B$1),AF$41))>MONTH($B$1),"",AF41) -> 29 | AG4: =IF(MONTH(DATE($C$1,MONTH($B$1),AG$41))>MONTH($B$1),"",AG41) -> 30 | AH4: =IF(MONTH(DATE($C$1,MONTH($B$1),AH$41))>MONTH($B$1),"",AH41) ->  | AM4: Keine Fehler | AN4: =(SUM(D87:AH87)=0) -> TRUE | AO4: Geändert | AP4: FALSE | AQ4: 2 | AR4: =AP4*AQ4 -> 0 | AS4: Geändert
B5: Ein >>> | AM5: Keine Hand | AN5: =(AI12="") -> TRUE | AO5: Sperre | AP5: =AS11=2 -> FALSE | AQ5: 3 | AR5: =NOT(AP6)*AQ5 -> 3 | AS5: Eingaben vornehmen
B6: <<< Aus | AO6: Abschliessbar 1 | AP6: =AND(OR(AN2,AN3),AN4,AN5,NOT(AP7),NOT(AP2)) -> FALSE | AQ6: 4 | AR6: =AND(NOT(OR(AP3,AP4)),AP6)*AQ6 -> 0 | AS6: Abschliessbar 1
B7: Ein >>> | AO7: Abgeschlossen | AP7: FALSE | AQ7: 5 | AR7: =AND(NOT(OR(AP3,AP4)),AP7)*AQ7 -> 0 | AS7: Abgeschlossen
B8: <<< Aus | AO8: Für Jahr OK | AP8: =AND(OR(AP2,AP7),NOT(AP3)) -> TRUE
B9: Ein >>>
B10: <<< Aus | AO10: Statusnummer: | AP10: =IF(AR2=AQ2,AQ2,MAX(AR2:AR7)) -> -1
B11: Ein >>> | AM11: HatDaten: | AN11: =AND(AP2=FALSE,OR(AP10<>3,COUNTA(D5:AH12,D20:AH35,D39:L40)>0)) -> FALSE | AO11: Statustext: | AP11: =IFERROR(VLOOKUP(AP10,AR2:AS7,2,FALSE),"unbekannt") -> Nicht Relevant | AS11: 1
B12: <<< Aus | AI12: =IF(COUNTIF(D37:AH37,"I")>0,"I","") -> 
B13: =B_PrZeit -> Präsenzzeit | D13: =24*(D6-D5+D8-D7+D10-D9+D12-D11)*D88 -> 0 | E13: =24*(E6-E5+E8-E7+E10-E9+E12-E11)*E88 -> 0 | F13: 0 | G13: 0 | H13: 0 | I13: 0 | J13: 0 | K13: 0 | L13: 0 | M13: 0 | N13: 0 | O13: 0 | P13: 0 | Q13: 0 | R13: 0 | S13: 0 | T13: 0 | U13: 0 | V13: 0 | W13: 0 | X13: 0 | Y13: 0 | Z13: 0 | AA13: 0 | AB13: 0 | AC13: 0 | AD13: 0 | AE13: 0 | AF13: 0 | AG13: 0 | AH13: 0 | AM13: Anzahl Regeltage: | AN13: =D83 -> 0
B14: =B_TotalAZist -> Total Arbeitszeit (IST) | D14: =IF(D13+D35>=D15,D13+D35,MIN(D13+D35+SUM(D20,D22,D23,D24,D25,D26,D27,D28,D29,D30,D31,D32,D33,D34),IF(D15<0,0,D15)))*D82 -> 0 | E14: 0 | F14: 0 | G14: 0 | H14: 0 | I14: 0 | J14: 0 | K14: 0 | L14: 0 | M14: 0 | N14: 0 | O14: 0 | P14: 0 | Q14: 0 | R14: =IF(R13+R35>=R15,R13+R35,MIN(R13+R35+SUM(R20,R22,R23,R24,R25,R26,R27,R28,R29,R30,R31,R32,R33,R34),IF(R15<0,0,R15)))*R82 -> 0 | S14: =IF(S13+S35>=S15,S13+S35,MIN(S13+S35+SUM(S20,S22,S23,S24,S25,S26,S27,S28,S29,S30,S31,S32,S33,S34),IF(S15<0,0,S15)))*S82 -> 0 | T14: =IF(T13+T35>=T15,T13+T35,MIN(T13+T35+SUM(T20,T22,T23,T24,T25,T26,T27,T28,T29,T30,T31,T32,T33,T34),IF(T15<0,0,T15)))*T82 -> 0 | U14: =IF(U13+U35>=U15,U13+U35,MIN(U13+U35+SUM(U20,U22,U23,U24,U25,U26,U27,U28,U29,U30,U31,U32,U33,U34),IF(U15<0,0,U15)))*U82 -> 0 | V14: 0 | W14: 0 | X14: 0 | Y14: 0 | Z14: 0 | AA14: 0 | AB14: 0 | AC14: 0 | AD14: 0 | AE14: 0 | AF14: 0 | AG14: 0 | AH14: 0 | AI14: =SUMIF($D$82:$AH$82,1,D14:AH14) -> 0 | AJ14: =AI14-AI15 -> 8.4 | AM14: Erfasste Regeltage | AN14: =L83 -> 0 | AO14: =AN13-AN14 -> 0 | AP14: Fehlende Regeltage
B15: =B_NettoSollAZ -> Netto-SOLL-Arbeitszeit | D15: =ROUND(D16-D19,2) -> -8.4 | E15: =ROUND(E16-E19,2) -> 0 | F15: 0 | G15: 0 | H15: 0 | I15: 0 | J15: 0 | K15: 0 | L15: 0 | M15: 0 | N15: 0 | O15: 0 | P15: 0 | Q15: 0 | R15: 0 | S15: 0 | T15: 0 | U15: 0 | V15: 0 | W15: 0 | X15: 0 | Y15: 0 | Z15: 0 | AA15: 0 | AB15: 0 | AC15: 0 | AD15: 0 | AE15: 0 | AF15: =IF(AF$42=4,0,ROUND(AF16-AF19,2)) -> 0 | AG15: =IF(AG$42=4,0,ROUND(AG16-AG19,2)) -> 0 | AH15: 0 | AI15: =SUMIF($D$82:$AH$82,1,D15:AH15) -> -8.4 | AM15: Minimum Regeltage | AN15: =MinRegeltage -> 1 | AO15: Ist als Konstante im Blatt "Intern" hinterlegt
B16: =B_BruttoSollAZ -> Brutto-SOLL-Arb.zeit | D16: =VLOOKUP(D3,VSA_Kalender,16) -> 0 | E16: 0 | F16: 0 | G16: 0 | H16: 0 | I16: 0 | J16: 0 | K16: 0 | L16: 0 | M16: 0 | N16: 0 | O16: 0 | P16: 0 | Q16: 0 | R16: 0 | S16: 0 | T16: 0 | U16: 0 | V16: 0 | W16: 0 | X16: 0 | Y16: 0 | Z16: 0 | AA16: 0 | AB16: 0 | AC16: 0 | AD16: 0 | AE16: 0 | AF16: =IF(AF$42=4,0,VLOOKUP(AF3,VSA_Kalender,16)) -> 0 | AG16: =IF(AG$42=4,0,VLOOKUP(AG3,VSA_Kalender,16)) -> 0 | AH16: =IF(AH$42=4,0,VLOOKUP(AH3,VSA_Kalender,16)) -> 0 | AM16: Regel ok | AN16: Mind. eigetr. Regeltage erfüllt
B17: =B_MehrMinder -> Mehr-/Minderleistung | D17: =(SL_BisDatum>=D3)*ROUND(D14-D15,2) -> 0 | E17: 0 | F17: 0 | G17: 0 | H17: 0 | I17: 0 | J17: 0 | K17: 0 | L17: 0 | M17: 0 | N17: 0 | O17: 0 | P17: 0 | Q17: 0 | R17: 0 | S17: 0 | T17: 0 | U17: 0 | V17: 0 | W17: 0 | X17: 0 | Y17: 0 | Z17: 0 | AA17: 0 | AB17: 0 | AC17: 0 | AD17: 0 | AE17: 0 | AF17: 0 | AG17: 0 | AH17: 0 | AI17: =B_Total -> Total | AJ17: =B_Vortrag -> Vortrag | AM17: Spalten ok: | AN17: Alle Einträge an Regeltagen ok
B18: =B_AZSaldo -> AZ - Saldo | C18: =VLOOKUP(ROW(),VSA_Uebertrag,$A$1+3) -> 16.8 | D18: =IFERROR((C18+D17)*(D3<=SL_BisDatum)*VLOOKUP(D3,VSA_Kalender,21,FALSE),0) -> 0 | E18: 0 | F18: 0 | G18: =IFERROR((F18+G17)*(G3<=SL_BisDatum)*VLOOKUP(G3,VSA_Kalender,21,FALSE),0) -> 0 | H18: 0 | I18: 0 | J18: 0 | K18: 0 | L18: 0 | M18: 0 | N18: 0 | O18: 0 | P18: 0 | Q18: 0 | R18: 0 | S18: 0 | T18: 0 | U18: 0 | V18: 0 | W18: 0 | X18: 0 | Y18: 0 | Z18: 0 | AA18: 0 | AB18: 0 | AC18: 0 | AD18: 0 | AE18: 0 | AF18: 0 | AG18: 0 | AH18: 0 | AJ18: =SUMIF($D$82:$AH$82,1,D17:AH17)+C18 -> 16.8
B19: =B_FTA -> Feiertagsanspruch | C19: 0 | D19: =VLOOKUP(D3,VSA_Kalender,14) -> 8.4 | E19: 0 | F19: 0 | G19: 0 | H19: 0 | I19: 0 | J19: 0 | K19: 0 | L19: 0 | M19: 0 | N19: 0 | O19: 0 | P19: 0 | Q19: 0 | R19: 0 | S19: 0 | T19: 0 | U19: 0 | V19: 0 | W19: 0 | X19: 0 | Y19: 0 | Z19: 0 | AA19: 0 | AB19: 0 | AC19: 0 | AD19: 0 | AE19: 0 | AF19: =IF(AF$42=4,0,VLOOKUP(AF3,VSA_Kalender,14)) -> 0 | AG19: =IF(AG$42=4,0,VLOOKUP(AG3,VSA_Kalender,14)) -> 0 | AH19: =IF(AH$42=4,0,VLOOKUP(AH3,VSA_Kalender,14)) -> 0 | AI19: =SUM(D19:AH19) -> 8.4
B20: =B_Ferien -> Ferien | C20: =VLOOKUP(ROW(),VSA_Uebertrag,$A$1+3) -> 0 | AI20: =SUMIF($D$82:$AH$82,1,D20:AH20) -> 0 | AJ20: =ROUND(C20-AI20,2) -> 0 | AK20: Rest
B21: =B_KompAZ -> Kompensation Arbeitstage | C21: 0 | AI21: 0 | AJ21: =ROUND(A21+C21-AI21,0) -> 0
B22: =B_Arzt -> Arztbesuch | C22: 0 | AI22: 0 | AJ22: =ROUND(A22+C22+AI22,2) -> 0 | AK22: Summen
B23: =B_Krank -> Krankheit | C23: 0 | AI23: 0 | AJ23: =ROUND(A23+C23+AI23,2) -> 0
B24: =B_BU -> Berufsunfall | C24: 0 | AI24: 0 | AJ24: 0
B25: =B_NBU -> Nichtberufsunfall | C25: 0 | AI25: 0 | AJ25: 0
B26: =B_MilZiv -> Militär / Zivilschutz | C26: 0 | AI26: 0 | AJ26: 0
B27: =B_UUB -> Unbezahlter Urlaub | C27: 0 | AI27: 0 | AJ27: =ROUND(A27+C27-AI27,2) -> 0 | AK27: Rest
B28: =B_UB -> Bezahlter Urlaub | C28: 0 | AI28: 0 | AJ28: =ROUND(A28+C28-AI28,2) -> 0
B29: =B_NebenB -> Nebenbeschäftigung | C29: 0 | AI29: 0 | AJ29: 0
B30: =B_DAG -> D A G | C30: 0 | AI30: 0 | AJ30: 0
B31: =B_Divers -> Diverses | C31: 0 | AI31: 0 | AJ31: 0 | AK31: Summen
B32: =B_FamPersErg -> Fam./pers. Ereignisse | C32: 0 | AI32: 0 | AJ32: 0
B33: =B_FZ1 -> freie Zeile 1 | C33: 0 | AI33: 0 | AJ33: 0
B34: =B_FZ2 -> freie Zeile 2 | C34: 0 | AI34: 0 | AJ34: 0
B35: =B_WB -> Weiterbildung | C35: 0 | AI35: 0 | AJ35: 0
B36: =B_FEL -> frei einsetzbare Lekt. | C36: 0 | AI36: =SUM(D36:AH36) -> 0 | AJ36: =ROUND(C36-AI36,0) -> 0
D37: =IF(AND((D13 - D15)+SUM(D20,D22:D34)>0.00001,SUM(D20,D22:D34)>0),"I","") -> 
C38: Visum | D38: Identität: | I38: Datum: | K38: Status:
C39: SL
C40: VG
D41: 1 | E41: 2 | F41: 3 | G41: 4 | H41: 5 | I41: 6 | J41: 7 | K41: 8 | L41: 9 | M41: 10 | N41: 11 | O41: 12 | P41: 13 | Q41: 14 | R41: 15 | S41: 16 | T41: 17 | U41: 18 | V41: 19 | W41: 20 | X41: 21 | Y41: 22 | Z41: 23 | AA41: 24 | AB41: 25 | AC41: 26 | AD41: 27 | AE41: 28 | AF41: 29 | AG41: 30 | AH41: 31
D42: =IF(D3="",4,VLOOKUP(D3,VSA_Kalender,18)) -> 1 | E42: =IF(E3="",4,VLOOKUP(E3,VSA_Kalender,18)) -> 0 | F42: 0 | G42: 0 | H42: 0 | I42: 1 | J42: 1 | K42: 0 | L42: 0 | M42: 0 | N42: 0 | O42: 0 | P42: 1 | Q42: 1 | R42: 0 | S42: 0 | T42: 0 | U42: 0 | V42: 0 | W42: 1 | X42: 1 | Y42: 0 | Z42: 0 | AA42: 0 | AB42: 0 | AC42: 0 | AD42: 1 | AE42: 1 | AF42: 0 | AG42: 0 | AH42: 4
D44: =IF(D19>0,VLOOKUP(D3,KalFeiertage,6,FALSE),"") -> Ostermontag
D45: FT=WENN(D13+D35>=D15;D13+D35;MIN(D13+D35+SUMME(D20;D22;D23;D24;D25;D26;D27;D28;D29;D30;D31;D32;D33;D34);WENN(D15<0;0;D15)))*D82 | E45: FT=WENN(E13+E35>=E15;E13+E35;MIN(E13+E35+SUMME(E20;E22;E23;E24;E25;E26;E27;E28;E29;E30;E31;E32;E33;E34);WENN(E15<0;0;E15)))*E82 | F45: FT=WENN(F13+F35>=F15;F13+F35;MIN(F13+F35+SUMME(F20;F22;F23;F24;F25;F26;F27;F28;F29;F30;F31;F32;F33;F34);WENN(F15<0;0;F15)))*F82 | G45: FT=WENN(G13+G35>=G15;G13+G35;MIN(G13+G35+SUMME(G20;G22;G23;G24;G25;G26;G27;G28;G29;G30;G31;G32;G33;G34);WENN(G15<0;0;G15)))*G82 | H45: FT=WENN(H13+H35>=H15;H13+H35;MIN(H13+H35+SUMME(H20;H22;H23;H24;H25;H26;H27;H28;H29;H30;H31;H32;H33;H34);WENN(H15<0;0;H15)))*H82 | I45: FT=WENN(I13+I35>=I15;I13+I35;MIN(I13+I35+SUMME(I20;I22;I23;I24;I25;I26;I27;I28;I29;I30;I31;I32;I33;I34);WENN(I15<0;0;I15)))*I82 | J45: FT=WENN(J13+J35>=J15;J13+J35;MIN(J13+J35+SUMME(J20;J22;J23;J24;J25;J26;J27;J28;J29;J30;J31;J32;J33;J34);WENN(J15<0;0;J15)))*J82 | K45: FT=WENN(K13+K35>=K15;K13+K35;MIN(K13+K35+SUMME(K20;K22;K23;K24;K25;K26;K27;K28;K29;K30;K31;K32;K33;K34);WENN(K15<0;0;K15)))*K82 | L45: FT=WENN(L13+L35>=L15;L13+L35;MIN(L13+L35+SUMME(L20;L22;L23;L24;L25;L26;L27;L28;L29;L30;L31;L32;L33;L34);WENN(L15<0;0;L15)))*L82 | M45: FT=WENN(M13+M35>=M15;M13+M35;MIN(M13+M35+SUMME(M20;M22;M23;M24;M25;M26;M27;M28;M29;M30;M31;M32;M33;M34);WENN(M15<0;0;M15)))*M82 | N45: FT=WENN(N13+N35>=N15;N13+N35;MIN(N13+N35+SUMME(N20;N22;N23;N24;N25;N26;N27;N28;N29;N30;N31;N32;N33;N34);WENN(N15<0;0;N15)))*N82 | O45: FT=WENN(O13+O35>=O15;O13+O35;MIN(O13+O35+SUMME(O20;O22;O23;O24;O25;O26;O27;O28;O29;O30;O31;O32;O33;O34);WENN(O15<0;0;O15)))*O82 | P45: FT=WENN(P13+P35>=P15;P13+P35;MIN(P13+P35+SUMME(P20;P22;P23;P24;P25;P26;P27;P28;P29;P30;P31;P32;P33;P34);WENN(P15<0;0;P15)))*P82 | Q45: FT=WENN(Q13+Q35>=Q15;Q13+Q35;MIN(Q13+Q35+SUMME(Q20;Q22;Q23;Q24;Q25;Q26;Q27;Q28;Q29;Q30;Q31;Q32;Q33;Q34);WENN(Q15<0;0;Q15)))*Q82 | R45: FT=WENN(R13+R35>=R15;R13+R35;MIN(R13+R35+SUMME(R20;R22;R23;R24;R25;R26;R27;R28;R29;R30;R31;R32;R33;R34);WENN(R15<0;0;R15)))*R82 | S45: FT=WENN(S13+S35>=S15;S13+S35;MIN(S13+S35+SUMME(S20;S22;S23;S24;S25;S26;S27;S28;S29;S30;S31;S32;S33;S34);WENN(S15<0;0;S15)))*S82 | T45: FT=WENN(T13+T35>=T15;T13+T35;MIN(T13+T35+SUMME(T20;T22;T23;T24;T25;T26;T27;T28;T29;T30;T31;T32;T33;T34);WENN(T15<0;0;T15)))*T82 | U45: FT=WENN(U13+U35>=U15;U13+U35;MIN(U13+U35+SUMME(U20;U22;U23;U24;U25;U26;U27;U28;U29;U30;U31;U32;U33;U34);WENN(U15<0;0;U15)))*U82 | V45: FT=WENN(V13+V35>=V15;V13+V35;MIN(V13+V35+SUMME(V20;V22;V23;V24;V25;V26;V27;V28;V29;V30;V31;V32;V33;V34);WENN(V15<0;0;V15)))*V82 | W45: FT=WENN(W13+W35>=W15;W13+W35;MIN(W13+W35+SUMME(W20;W22;W23;W24;W25;W26;W27;W28;W29;W30;W31;W32;W33;W34);WENN(W15<0;0;W15)))*W82 | X45: FT=WENN(X13+X35>=X15;X13+X35;MIN(X13+X35+SUMME(X20;X22;X23;X24;X25;X26;X27;X28;X29;X30;X31;X32;X33;X34);WENN(X15<0;0;X15)))*X82 | Y45: FT=WENN(Y13+Y35>=Y15;Y13+Y35;MIN(Y13+Y35+SUMME(Y20;Y22;Y23;Y24;Y25;Y26;Y27;Y28;Y29;Y30;Y31;Y32;Y33;Y34);WENN(Y15<0;0;Y15)))*Y82 | Z45: FT=WENN(Z13+Z35>=Z15;Z13+Z35;MIN(Z13+Z35+SUMME(Z20;Z22;Z23;Z24;Z25;Z26;Z27;Z28;Z29;Z30;Z31;Z32;Z33;Z34);WENN(Z15<0;0;Z15)))*Z82 | AA45: FT=WENN(AA13+AA35>=AA15;AA13+AA35;MIN(AA13+AA35+SUMME(AA20;AA22;AA23;AA24;AA25;AA26;AA27;AA28;AA29;AA30;AA31;AA32;AA33;AA34);WENN(AA15<0;0;AA15)))*AA82 | AB45: FT=WENN(AB13+AB35>=AB15;AB13+AB35;MIN(AB13+AB35+SUMME(AB20;AB22;AB23;AB24;AB25;AB26;AB27;AB28;AB29;AB30;AB31;AB32;AB33;AB34);WENN(AB15<0;0;AB15)))*AB82 | AC45: FT=WENN(AC13+AC35>=AC15;AC13+AC35;MIN(AC13+AC35+SUMME(AC20;AC22;AC23;AC24;AC25;AC26;AC27;AC28;AC29;AC30;AC31;AC32;AC33;AC34);WENN(AC15<0;0;AC15)))*AC82 | AD45: FT=WENN(AD13+AD35>=AD15;AD13+AD35;MIN(AD13+AD35+SUMME(AD20;AD22;AD23;AD24;AD25;AD26;AD27;AD28;AD29;AD30;AD31;AD32;AD33;AD34);WENN(AD15<0;0;AD15)))*AD82 | AE45: FT=WENN(AE13+AE35>=AE15;AE13+AE35;MIN(AE13+AE35+SUMME(AE20;AE22;AE23;AE24;AE25;AE26;AE27;AE28;AE29;AE30;AE31;AE32;AE33;AE34);WENN(AE15<0;0;AE15)))*AE82 | AF45: FT=WENN(AF13+AF35>=AF15;AF13+AF35;MIN(AF13+AF35+SUMME(AF20;AF22;AF23;AF24;AF25;AF26;AF27;AF28;AF29;AF30;AF31;AF32;AF33;AF34);WENN(AF15<0;0;AF15)))*AF82 | AG45: FT=WENN(AG13+AG35>=AG15;AG13+AG35;MIN(AG13+AG35+SUMME(AG20;AG22;AG23;AG24;AG25;AG26;AG27;AG28;AG29;AG30;AG31;AG32;AG33;AG34);WENN(AG15<0;0;AG15)))*AG82 | AH45: FT=WENN(AH13+AH35>=AH15;AH13+AH35;MIN(AH13+AH35+SUMME(AH20;AH22;AH23;AH24;AH25;AH26;AH27;AH28;AH29;AH30;AH31;AH32;AH33;AH34);WENN(AH15<0;0;AH15)))*AH82
D46: FT=24*(D6-D5+D8-D7+D10-D9+D12-D11)*D88 | E46: FT=24*(E6-E5+E8-E7+E10-E9+E12-E11)*E88 | F46: FT=24*(F6-F5+F8-F7+F10-F9+F12-F11)*F88 | G46: FT=24*(G6-G5+G8-G7+G10-G9+G12-G11)*G88 | H46: FT=24*(H6-H5+H8-H7+H10-H9+H12-H11)*H88 | I46: FT=24*(I6-I5+I8-I7+I10-I9+I12-I11)*I88 | J46: FT=24*(J6-J5+J8-J7+J10-J9+J12-J11)*J88 | K46: FT=24*(K6-K5+K8-K7+K10-K9+K12-K11)*K88 | L46: FT=24*(L6-L5+L8-L7+L10-L9+L12-L11)*L88 | M46: FT=24*(M6-M5+M8-M7+M10-M9+M12-M11)*M88 | N46: FT=24*(N6-N5+N8-N7+N10-N9+N12-N11)*N88 | O46: FT=24*(O6-O5+O8-O7+O10-O9+O12-O11)*O88 | P46: FT=24*(P6-P5+P8-P7+P10-P9+P12-P11)*P88 | Q46: FT=24*(Q6-Q5+Q8-Q7+Q10-Q9+Q12-Q11)*Q88 | R46: FT=24*(R6-R5+R8-R7+R10-R9+R12-R11)*R88 | S46: FT=24*(S6-S5+S8-S7+S10-S9+S12-S11)*S88 | T46: FT=24*(T6-T5+T8-T7+T10-T9+T12-T11)*T88 | U46: FT=24*(U6-U5+U8-U7+U10-U9+U12-U11)*U88 | V46: FT=24*(V6-V5+V8-V7+V10-V9+V12-V11)*V88 | W46: FT=24*(W6-W5+W8-W7+W10-W9+W12-W11)*W88 | X46: FT=24*(X6-X5+X8-X7+X10-X9+X12-X11)*X88 | Y46: FT=24*(Y6-Y5+Y8-Y7+Y10-Y9+Y12-Y11)*Y88 | Z46: FT=24*(Z6-Z5+Z8-Z7+Z10-Z9+Z12-Z11)*Z88 | AA46: FT=24*(AA6-AA5+AA8-AA7+AA10-AA9+AA12-AA11)*AA88 | AB46: FT=24*(AB6-AB5+AB8-AB7+AB10-AB9+AB12-AB11)*AB88 | AC46: FT=24*(AC6-AC5+AC8-AC7+AC10-AC9+AC12-AC11)*AC88 | AD46: FT=24*(AD6-AD5+AD8-AD7+AD10-AD9+AD12-AD11)*AD88 | AE46: FT=24*(AE6-AE5+AE8-AE7+AE10-AE9+AE12-AE11)*AE88 | AF46: FT=24*(AF6-AF5+AF8-AF7+AF10-AF9+AF12-AF11)*AF88 | AG46: FT=24*(AG6-AG5+AG8-AG7+AG10-AG9+AG12-AG11)*AG88 | AH46: FT=24*(AH6-AH5+AH8-AH7+AH10-AH9+AH12-AH11)*AH88
D47: FT=ODER(D14>0;D21>0)*1 | E47: FT=ODER(E14>0;E21>0)*1 | F47: FT=ODER(F14>0;F21>0)*1 | G47: FT=ODER(G14>0;G21>0)*1 | H47: FT=ODER(H14>0;H21>0)*1 | I47: FT=ODER(I14>0;I21>0)*1 | J47: FT=ODER(J14>0;J21>0)*1 | K47: FT=ODER(K14>0;K21>0)*1 | L47: FT=ODER(L14>0;L21>0)*1 | M47: FT=ODER(M14>0;M21>0)*1 | N47: FT=ODER(N14>0;N21>0)*1 | O47: FT=ODER(O14>0;O21>0)*1 | P47: FT=ODER(P14>0;P21>0)*1 | Q47: FT=ODER(Q14>0;Q21>0)*1 | R47: FT=ODER(R14>0;R21>0)*1 | S47: FT=ODER(S14>0;S21>0)*1 | T47: FT=ODER(T14>0;T21>0)*1 | U47: FT=ODER(U14>0;U21>0)*1 | V47: FT=ODER(V14>0;V21>0)*1 | W47: FT=ODER(W14>0;W21>0)*1 | X47: FT=ODER(X14>0;X21>0)*1 | Y47: FT=ODER(Y14>0;Y21>0)*1 | Z47: FT=ODER(Z14>0;Z21>0)*1 | AA47: FT=ODER(AA14>0;AA21>0)*1 | AB47: FT=ODER(AB14>0;AB21>0)*1 | AC47: FT=ODER(AC14>0;AC21>0)*1 | AD47: FT=ODER(AD14>0;AD21>0)*1 | AE47: FT=ODER(AE14>0;AE21>0)*1 | AF47: FT=ODER(AF14>0;AF21>0)*1 | AG47: FT=ODER(AG14>0;AG21>0)*1 | AH47: FT=ODER(AH14>0;AH21>0)*1
D48: =ABS("FT"&_xlfn.FORMULATEXT(D14)<>D45) -> 0 | E48: =ABS("FT"&_xlfn.FORMULATEXT(E14)<>E45) -> 0 | F48: 0 | G48: 0 | H48: 0 | I48: 0 | J48: 0 | K48: 0 | L48: 0 | M48: 0 | N48: 0 | O48: 0 | P48: 0 | Q48: 0 | R48: 0 | S48: 0 | T48: 0 | U48: 0 | V48: 0 | W48: 0 | X48: 0 | Y48: 0 | Z48: 0 | AA48: 0 | AB48: 0 | AC48: 0 | AD48: 0 | AE48: 0 | AF48: 0 | AG48: 0 | AH48: 0
D49: =ABS("FT"&_xlfn.FORMULATEXT(D13)<>D46) -> 0 | E49: =ABS("FT"&_xlfn.FORMULATEXT(E13)<>E46) -> 0 | F49: 0 | G49: 0 | H49: 0 | I49: 0 | J49: 0 | K49: 0 | L49: 0 | M49: 0 | N49: 0 | O49: 0 | P49: 0 | Q49: 0 | R49: 0 | S49: 0 | T49: 0 | U49: 0 | V49: 0 | W49: 0 | X49: 0 | Y49: 0 | Z49: 0 | AA49: 0 | AB49: 0 | AC49: 0 | AD49: 0 | AE49: 0 | AF49: 0 | AG49: 0 | AH49: 0
D50: =ABS("FT"&_xlfn.FORMULATEXT(D80)<>D47) -> 0 | E50: =ABS("FT"&_xlfn.FORMULATEXT(E80)<>E47) -> 0 | F50: 0 | G50: 0 | H50: 0 | I50: 0 | J50: 0 | K50: 0 | L50: 0 | M50: 0 | N50: 0 | O50: 0 | P50: 0 | Q50: 0 | R50: 0 | S50: 0 | T50: 0 | U50: 0 | V50: 0 | W50: 0 | X50: 0 | Y50: 0 | Z50: 0 | AA50: 0 | AB50: 0 | AC50: 0 | AD50: 0 | AE50: 0 | AF50: 0 | AG50: 0 | AH50: 0
D51: =ABS(ISERROR(D37)) -> 0 | E51: =ABS(ISERROR(E37)) -> 0 | F51: 0 | G51: 0 | H51: 0 | I51: 0 | J51: 0 | K51: 0 | L51: 0 | M51: 0 | N51: 0 | O51: 0 | P51: 0 | Q51: 0 | R51: 0 | S51: 0 | T51: 0 | U51: 0 | V51: 0 | W51: 0 | X51: 0 | Y51: 0 | Z51: 0 | AA51: 0 | AB51: 0 | AC51: 0 | AD51: 0 | AE51: 0 | AF51: 0 | AG51: 0 | AH51: 0
D52: =SUM(D48:D51) -> 0 | E52: =SUM(E48:E51) -> 0 | F52: 0 | G52: 0 | H52: 0 | I52: 0 | J52: 0 | K52: 0 | L52: 0 | M52: 0 | N52: 0 | O52: 0 | P52: 0 | Q52: 0 | R52: 0 | S52: 0 | T52: 0 | U52: 0 | V52: 0 | W52: 0 | X52: 0 | Y52: 0 | Z52: 0 | AA52: 0 | AB52: 0 | AC52: 0 | AD52: 0 | AE52: 0 | AF52: 0 | AG52: 0 | AH52: 0 | AM52: Formel defekt | AN52: =SUM(D52:AH52) -> 0
B77: HT_Naz-Kopie | C77: =HT_NAZ -> 8.4
B78: Heute: | C78: =SL_BisDatum -> 2024-02-02
C79: Reguläre Tage ausgefüllt | D79: =((D80*D81)=1)*1 -> 0 | E79: =((E80*E81)=1)*1 -> 0 | F79: 0 | G79: 0 | H79: 0 | I79: 0 | J79: 0 | K79: 0 | L79: 0 | M79: 0 | N79: 0 | O79: 0 | P79: 0 | Q79: 0 | R79: 0 | S79: 0 | T79: 0 | U79: 0 | V79: 0 | W79: 0 | X79: 0 | Y79: 0 | Z79: 0 | AA79: 0 | AB79: 0 | AC79: 0 | AD79: 0 | AE79: 0 | AF79: 0 | AG79: 0 | AH79: 0
C80: Arbeitstage ausgefüllt | D80: =OR(D14>0,D21>0)*1 -> 0 | E80: =OR(E14>0,E21>0)*1 -> 0 | F80: 0 | G80: 0 | H80: 0 | I80: 0 | J80: 0 | K80: 0 | L80: 0 | M80: 0 | N80: 0 | O80: 0 | P80: 0 | Q80: 0 | R80: 0 | S80: 0 | T80: 0 | U80: 0 | V80: 0 | W80: 0 | X80: 0 | Y80: 0 | Z80: 0 | AA80: 0 | AB80: 0 | AC80: 0 | AD80: 0 | AE80: 0 | AF80: 0 | AG80: 0 | AH80: 0
C81: Arbeitstage wenn BG>0% | D81: =IFERROR(VLOOKUP(D3,VSA_Kalender,22),0) -> 0 | E81: 0 | F81: 0 | G81: 0 | H81: 0 | I81: 0 | J81: 0 | K81: 0 | L81: 0 | M81: 0 | N81: 0 | O81: 0 | P81: 0 | Q81: 0 | R81: 0 | S81: 0 | T81: 0 | U81: 0 | V81: 0 | W81: 0 | X81: 0 | Y81: 0 | Z81: 0 | AA81: 0 | AB81: 0 | AC81: 0 | AD81: 0 | AE81: 0 | AF81: 0 | AG81: 0 | AH81: 0
C82: Der BG beträgt mehr als 0% | D82: =IF(D4="",0,ABS(VLOOKUP(D3,VSA_Kalender,13,FALSE)>0)) -> 1 | E82: 1 | F82: 1 | G82: 1 | H82: 1 | I82: 1 | J82: 1 | K82: 1 | L82: 1 | M82: 1 | N82: 1 | O82: 1 | P82: 1 | Q82: 1 | R82: 1 | S82: 1 | T82: 1 | U82: 1 | V82: 1 | W82: 1 | X82: 1 | Y82: 1 | Z82: 1 | AA82: 1 | AB82: 1 | AC82: 1 | AD82: 1 | AE82: 1 | AF82: 1 | AG82: 1 | AH82: 0
C83: (Ja: 1, Nein: 0) | D83: =SUM(D81:AH81) -> 0 | E83: Total Tage bei BG>0% | H83: =SUM(D80:AH80) -> 0 | I83: Total Tage ausgefüllt | L83: =SUM(D79:AH79) -> 0 | M83: Total reguläre Tage ausgefüllt
C85: Tag des Monats | D85: =D4 -> 1 | E85: 2 | F85: 3 | G85: 4 | H85: 5 | I85: 6 | J85: 7 | K85: 8 | L85: 9 | M85: 10 | N85: 11 | O85: 12 | P85: 13 | Q85: 14 | R85: 15 | S85: 16 | T85: 17 | U85: 18 | V85: 19 | W85: 20 | X85: 21 | Y85: 22 | Z85: 23 | AA85: 24 | AB85: 25 | AC85: 26 | AD85: 27 | AE85: 28 | AF85: 29 | AG85: 30
C86: Ist Arbeitsbereich | D86: =IFERROR(ABS(WEEKDAY(D3,2)<6),0) -> 1 | E86: 1 | F86: 1 | G86: 1 | H86: 1 | I86: 0 | J86: 0 | K86: 1 | L86: 1 | M86: 1 | N86: 1 | O86: 1 | P86: 0 | Q86: 0 | R86: 1 | S86: 1 | T86: 1 | U86: 1 | V86: 1 | W86: 0 | X86: 0 | Y86: 1 | Z86: 1 | AA86: 1 | AB86: 1 | AC86: 1 | AD86: 0 | AE86: 0 | AF86: 1 | AG86: 1 | AH86: 0
C87: Maximaler Fehler | D87: =MAX(D100:D107,D98,D134) -> 0 | E87: =MAX(E100:E107,E98,E134) -> 0 | F87: 0 | G87: 0 | H87: 0 | I87: 0 | J87: 0 | K87: 0 | L87: 0 | M87: 0 | N87: 0 | O87: 0 | P87: 0 | Q87: 0 | R87: 0 | S87: 0 | T87: 0 | U87: 0 | V87: 0 | W87: 0 | X87: 0 | Y87: 0 | Z87: 0 | AA87: 0 | AB87: 0 | AC87: 0 | AD87: 0 | AE87: 0 | AF87: 0 | AG87: 0 | AH87: 0
C88: Wird die Präsenzzeit angezeigt? | D88: =IF(D87=0,1,0) -> 1 | E88: =IF(E87=0,1,0) -> 1 | F88: 1 | G88: 1 | H88: 1 | I88: 1 | J88: 1 | K88: 1 | L88: 1 | M88: 1 | N88: 1 | O88: 1 | P88: 1 | Q88: 1 | R88: 1 | S88: 1 | T88: 1 | U88: 1 | V88: 1 | W88: 1 | X88: 1 | Y88: 1 | Z88: 1 | AA88: 1 | AB88: 1 | AC88: 1 | AD88: 1 | AE88: 1 | AF88: 1 | AG88: 1 | AH88: 1
C90: Gruppenfehler 1 | D90: =IF(AND(D6-D5=0,COUNTA(D7:D12)>0),1,0) -> 0 | E90: 0 | F90: 0 | G90: 0 | H90: 0 | I90: 0 | J90: 0 | K90: 0 | L90: 0 | M90: 0 | N90: 0 | O90: 0 | P90: 0 | Q90: 0 | R90: 0 | S90: 0 | T90: 0 | U90: 0 | V90: 0 | W90: 0 | X90: 0 | Y90: 0 | Z90: 0 | AA90: 0 | AB90: 0 | AC90: 0 | AD90: 0 | AE90: 0 | AF90: 0 | AG90: 0 | AH90: 0
B91: Gruppenfehler | C91: (aus) | D91: =D90 -> 0 | E91: 0 | F91: 0 | G91: 0 | H91: 0 | I91: 0 | J91: 0 | K91: 0 | L91: 0 | M91: 0 | N91: 0 | O91: 0 | P91: 0 | Q91: 0 | R91: 0 | S91: 0 | T91: 0 | U91: 0 | V91: 0 | W91: 0 | X91: 0 | Y91: 0 | Z91: 0 | AA91: 0 | AB91: 0 | AC91: 0 | AD91: 0 | AE91: 0 | AF91: 0 | AG91: 0 | AH91: 0
C92: Gruppenfehler 2 | D92: =IF(AND(D8-D7=0,COUNTA(D9:D12)>0),1,0) -> 0 | E92: 0 | F92: 0 | G92: 0 | H92: 0 | I92: 0 | J92: 0 | K92: 0 | L92: 0 | M92: 0 | N92: 0 | O92: 0 | P92: 0 | Q92: 0 | R92: 0 | S92: 0 | T92: 0 | U92: 0 | V92: 0 | W92: 0 | X92: 0 | Y92: 0 | Z92: 0 | AA92: 0 | AB92: 0 | AC92: 0 | AD92: 0 | AE92: 0 | AF92: 0 | AG92: 0 | AH92: 0
C93: (aus) | D93: =D92 -> 0 | E93: 0 | F93: 0 | G93: 0 | H93: 0 | I93: 0 | J93: 0 | K93: 0 | L93: 0 | M93: 0 | N93: 0 | O93: 0 | P93: 0 | Q93: 0 | R93: 0 | S93: 0 | T93: 0 | U93: 0 | V93: 0 | W93: 0 | X93: 0 | Y93: 0 | Z93: 0 | AA93: 0 | AB93: 0 | AC93: 0 | AD93: 0 | AE93: 0 | AF93: 0 | AG93: 0 | AH93: 0
C94: Gruppenfehler 3 | D94: =IF(AND(D10-D9=0,COUNTA(D11:D12)>0),1,0) -> 0 | E94: 0 | F94: 0 | G94: 0 | H94: 0 | I94: 0 | J94: 0 | K94: 0 | L94: 0 | M94: 0 | N94: 0 | O94: 0 | P94: 0 | Q94: 0 | R94: 0 | S94: 0 | T94: 0 | U94: 0 | V94: 0 | W94: 0 | X94: 0 | Y94: 0 | Z94: 0 | AA94: 0 | AB94: 0 | AC94: 0 | AD94: 0 | AE94: 0 | AF94: 0 | AG94: 0 | AH94: 0
C95: (aus) | D95: =D94 -> 0 | E95: 0 | F95: 0 | G95: 0 | H95: 0 | I95: 0 | J95: 0 | K95: 0 | L95: 0 | M95: 0 | N95: 0 | O95: 0 | P95: 0 | Q95: 0 | R95: 0 | S95: 0 | T95: 0 | U95: 0 | V95: 0 | W95: 0 | X95: 0 | Y95: 0 | Z95: 0 | AA95: 0 | AB95: 0 | AC95: 0 | AD95: 0 | AE95: 0 | AF95: 0 | AG95: 0 | AH95: 0
C96: leer
C97: leer
C98: Genereller Gruppenfehler | D98: =MAX(D90:D95) -> 0 | E98: 0 | F98: 0 | G98: 0 | H98: 0 | I98: 0 | J98: 0 | K98: 0 | L98: 0 | M98: 0 | N98: 0 | O98: 0 | P98: 0 | Q98: 0 | R98: 0 | S98: 0 | T98: 0 | U98: 0 | V98: 0 | W98: 0 | X98: 0 | Y98: 0 | Z98: 0 | AA98: 0 | AB98: 0 | AC98: 0 | AD98: 0 | AE98: 0 | AF98: 0 | AG98: 0 | AH98: 0
C100: Ein1 | D100: =IF(AND(D109=0,D110>0),1,0) -> 0 | E100: =IF(AND(E109=0,E110>0),1,0) -> 0 | F100: 0 | G100: 0 | H100: 0 | I100: 0 | J100: 0 | K100: 0 | L100: 0 | M100: 0 | N100: 0 | O100: 0 | P100: 0 | Q100: 0 | R100: 0 | S100: 0 | T100: 0 | U100: 0 | V100: 0 | W100: 0 | X100: 0 | Y100: 0 | Z100: 0 | AA100: 0 | AB100: 0 | AC100: 0 | AD100: 0 | AE100: 0 | AF100: 0 | AG100: 0 | AH100: 0
C101: Aus1 | D101: =IF(AND(D110>0,D110<D109),3,IF(AND(D109>0,D110=0),1,0))*D$86 -> 0 | E101: =IF(AND(E110>0,E110<E109),3,IF(AND(E109>0,E110=0),1,0))*E$86 -> 0 | F101: 0 | G101: 0 | H101: 0 | I101: 0 | J101: 0 | K101: 0 | L101: 0 | M101: 0 | N101: 0 | O101: 0 | P101: 0 | Q101: 0 | R101: 0 | S101: 0 | T101: 0 | U101: 0 | V101: 0 | W101: 0 | X101: 0 | Y101: 0 | Z101: 0 | AA101: 0 | AB101: 0 | AC101: 0 | AD101: 0 | AE101: 0 | AF101: 0 | AG101: 0 | AH101: 0
C102: Ein2 | D102: =IF(AND(D111>0,D111<D110),3,IF(AND(D111=0,D112>0),1,0))*D$86 -> 0 | E102: 0 | F102: 0 | G102: 0 | H102: 0 | I102: 0 | J102: 0 | K102: 0 | L102: 0 | M102: 0 | N102: 0 | O102: 0 | P102: 0 | Q102: 0 | R102: 0 | S102: 0 | T102: 0 | U102: 0 | V102: 0 | W102: 0 | X102: 0 | Y102: 0 | Z102: 0 | AA102: 0 | AB102: 0 | AC102: 0 | AD102: 0 | AE102: 0 | AF102: 0 | AG102: 0 | AH102: 0
C103: Aus2 | D103: =IF(AND(D112>0,D112<D111),3,IF(AND(D111>0,D112=0),1,0))*D$86 -> 0 | E103: =IF(AND(E112>0,E112<E111),3,IF(AND(E111>0,E112=0),1,0))*E$86 -> 0 | F103: 0 | G103: 0 | H103: 0 | I103: 0 | J103: 0 | K103: 0 | L103: 0 | M103: 0 | N103: 0 | O103: 0 | P103: 0 | Q103: 0 | R103: 0 | S103: 0 | T103: 0 | U103: 0 | V103: 0 | W103: 0 | X103: 0 | Y103: 0 | Z103: 0 | AA103: 0 | AB103: 0 | AC103: 0 | AD103: 0 | AE103: 0 | AF103: 0 | AG103: 0 | AH103: 0
B104: Zellenfehler | C104: Ein3 | D104: =IF(AND(D113>0,D113<D112),3,IF(AND(D113=0,D114>0),1,0))*D$86 -> 0 | E104: =IF(AND(E113>0,E113<E112),3,IF(AND(E113=0,E114>0),1,0))*E$86 -> 0 | F104: 0 | G104: 0 | H104: 0 | I104: 0 | J104: 0 | K104: 0 | L104: 0 | M104: 0 | N104: 0 | O104: 0 | P104: 0 | Q104: 0 | R104: 0 | S104: 0 | T104: 0 | U104: 0 | V104: 0 | W104: 0 | X104: 0 | Y104: 0 | Z104: 0 | AA104: 0 | AB104: 0 | AC104: 0 | AD104: 0 | AE104: 0 | AF104: 0 | AG104: 0 | AH104: 0
C105: Aus3 | D105: =IF(AND(D114>0,D114<D113),3,IF(AND(D113>0,D114=0),1,0))*D$86 -> 0 | E105: =IF(AND(E114>0,E114<E113),3,IF(AND(E113>0,E114=0),1,0))*E$86 -> 0 | F105: 0 | G105: 0 | H105: 0 | I105: 0 | J105: 0 | K105: 0 | L105: 0 | M105: 0 | N105: 0 | O105: 0 | P105: 0 | Q105: 0 | R105: 0 | S105: 0 | T105: 0 | U105: 0 | V105: 0 | W105: 0 | X105: 0 | Y105: 0 | Z105: 0 | AA105: 0 | AB105: 0 | AC105: 0 | AD105: 0 | AE105: 0 | AF105: 0 | AG105: 0 | AH105: 0
C106: Ein4 | D106: =IF(AND(D115>0,D115<D114),3,IF(AND(D115=0,D116>0),1,0))*D$86 -> 0 | E106: =IF(AND(E115>0,E115<E114),3,IF(AND(E115=0,E116>0),1,0))*E$86 -> 0 | F106: 0 | G106: 0 | H106: 0 | I106: 0 | J106: 0 | K106: 0 | L106: 0 | M106: 0 | N106: 0 | O106: 0 | P106: 0 | Q106: 0 | R106: 0 | S106: 0 | T106: 0 | U106: 0 | V106: 0 | W106: 0 | X106: 0 | Y106: 0 | Z106: 0 | AA106: 0 | AB106: 0 | AC106: 0 | AD106: 0 | AE106: 0 | AF106: 0 | AG106: 0 | AH106: 0
C107: Aus4 | D107: =IF(AND(D116>0,D116<D115),3,IF(AND(D115>0,D116=0),1,0))*D$86 -> 0 | E107: =IF(AND(E116>0,E116<E115),3,IF(AND(E115>0,E116=0),1,0))*E$86 -> 0 | F107: 0 | G107: 0 | H107: 0 | I107: 0 | J107: 0 | K107: 0 | L107: 0 | M107: 0 | N107: 0 | O107: 0 | P107: 0 | Q107: 0 | R107: 0 | S107: 0 | T107: 0 | U107: 0 | V107: 0 | W107: 0 | X107: 0 | Y107: 0 | Z107: 0 | AA107: 0 | AB107: 0 | AC107: 0 | AD107: 0 | AE107: 0 | AF107: 0 | AG107: 0 | AH107: 0
C109: Ein1 | D109: =ROUND(D5*24,2) -> 0 | E109: 0 | F109: 0 | G109: 0 | H109: 0 | I109: 0 | J109: 0 | K109: 0 | L109: 0 | M109: 0 | N109: 0 | O109: 0 | P109: 0 | Q109: 0 | R109: 0 | S109: 0 | T109: 0 | U109: 0 | V109: 0 | W109: 0 | X109: 0 | Y109: 0 | Z109: 0 | AA109: 0 | AB109: 0 | AC109: 0 | AD109: 0 | AE109: 0 | AF109: 0 | AG109: 0 | AH109: 0
C110: Aus1 | D110: 0 | E110: 0 | F110: 0 | G110: 0 | H110: 0 | I110: 0 | J110: 0 | K110: 0 | L110: 0 | M110: 0 | N110: 0 | O110: 0 | P110: 0 | Q110: 0 | R110: 0 | S110: 0 | T110: 0 | U110: 0 | V110: 0 | W110: 0 | X110: 0 | Y110: 0 | Z110: 0 | AA110: 0 | AB110: 0 | AC110: 0 | AD110: 0 | AE110: 0 | AF110: 0 | AG110: 0 | AH110: 0
B111: Zeiten dezimal gewandelt | C111: Ein2 | D111: 0 | E111: 0 | F111: 0 | G111: 0 | H111: 0 | I111: 0 | J111: 0 | K111: 0 | L111: 0 | M111: 0 | N111: 0 | O111: 0 | P111: 0 | Q111: 0 | R111: 0 | S111: 0 | T111: 0 | U111: 0 | V111: 0 | W111: 0 | X111: 0 | Y111: 0 | Z111: 0 | AA111: 0 | AB111: 0 | AC111: 0 | AD111: 0 | AE111: 0 | AF111: 0 | AG111: 0 | AH111: 0
C112: Aus2 | D112: 0 | E112: 0 | F112: 0 | G112: 0 | H112: 0 | I112: 0 | J112: 0 | K112: 0 | L112: 0 | M112: 0 | N112: 0 | O112: 0 | P112: 0 | Q112: 0 | R112: 0 | S112: 0 | T112: 0 | U112: 0 | V112: 0 | W112: 0 | X112: 0 | Y112: 0 | Z112: 0 | AA112: 0 | AB112: 0 | AC112: 0 | AD112: 0 | AE112: 0 | AF112: 0 | AG112: 0 | AH112: 0
C113: Ein3 | D113: 0 | E113: 0 | F113: 0 | G113: 0 | H113: 0 | I113: 0 | J113: 0 | K113: 0 | L113: 0 | M113: 0 | N113: 0 | O113: 0 | P113: 0 | Q113: 0 | R113: 0 | S113: 0 | T113: 0 | U113: 0 | V113: 0 | W113: 0 | X113: 0 | Y113: 0 | Z113: 0 | AA113: 0 | AB113: 0 | AC113: 0 | AD113: 0 | AE113: 0 | AF113: 0 | AG113: 0 | AH113: 0
C114: Aus3 | D114: 0 | E114: 0 | F114: 0 | G114: 0 | H114: 0 | I114: 0 | J114: 0 | K114: 0 | L114: 0 | M114: 0 | N114: 0 | O114: 0 | P114: 0 | Q114: 0 | R114: 0 | S114: 0 | T114: 0 | U114: 0 | V114: 0 | W114: 0 | X114: 0 | Y114: 0 | Z114: 0 | AA114: 0 | AB114: 0 | AC114: 0 | AD114: 0 | AE114: 0 | AF114: 0 | AG114: 0 | AH114: 0
C115: Ein4 | D115: 0 | E115: 0 | F115: 0 | G115: 0 | H115: 0 | I115: 0 | J115: 0 | K115: 0 | L115: 0 | M115: 0 | N115: 0 | O115: 0 | P115: 0 | Q115: 0 | R115: 0 | S115: 0 | T115: 0 | U115: 0 | V115: 0 | W115: 0 | X115: 0 | Y115: 0 | Z115: 0 | AA115: 0 | AB115: 0 | AC115: 0 | AD115: 0 | AE115: 0 | AF115: 0 | AG115: 0 | AH115: 0
C116: Aus4 | D116: 0 | E116: 0 | F116: 0 | G116: 0 | H116: 0 | I116: 0 | J116: 0 | K116: 0 | L116: 0 | M116: 0 | N116: 0 | O116: 0 | P116: 0 | Q116: 0 | R116: 0 | S116: 0 | T116: 0 | U116: 0 | V116: 0 | W116: 0 | X116: 0 | Y116: 0 | Z116: 0 | AA116: 0 | AB116: 0 | AC116: 0 | AD116: 0 | AE116: 0 | AF116: 0 | AG116: 0 | AH116: 0
B118: Pausenfehler | C118: Gruppe1 | D118: =IF(OR(D109="",D110=""),0,D110-D109) -> 0 | E118: =IF(OR(E109="",E110=""),0,E110-E109) -> 0 | F118: 0 | G118: 0 | H118: 0 | I118: 0 | J118: 0 | K118: 0 | L118: 0 | M118: 0 | N118: 0 | O118: 0 | P118: 0 | Q118: 0 | R118: 0 | S118: 0 | T118: 0 | U118: =IF(OR(U109="",U110=""),0,U110-U109) -> 0 | V118: =IF(OR(V109="",V110=""),0,V110-V109) -> 0 | W118: 0 | X118: 0 | Y118: 0 | Z118: 0 | AA118: 0 | AB118: 0 | AC118: 0 | AD118: 0 | AE118: 0 | AF118: 0 | AG118: 0 | AH118: 0
C119: Gruppe2 | D119: =IF(OR(D111="",D112=""),0,D112-D111) -> 0 | E119: =IF(OR(E111="",E112=""),0,E112-E111) -> 0 | F119: 0 | G119: 0 | H119: 0 | I119: 0 | J119: 0 | K119: 0 | L119: 0 | M119: 0 | N119: 0 | O119: 0 | P119: 0 | Q119: 0 | R119: 0 | S119: 0 | T119: 0 | U119: =IF(OR(U111="",U112=""),0,U112-U111) -> 0 | V119: =IF(OR(V111="",V112=""),0,V112-V111) -> 0 | W119: 0 | X119: 0 | Y119: 0 | Z119: 0 | AA119: 0 | AB119: 0 | AC119: 0 | AD119: 0 | AE119: 0 | AF119: 0 | AG119: 0 | AH119: 0
C120: Gruppe3 | D120: =IF(OR(D113="",D114=""),0,D114-D113) -> 0 | E120: =IF(OR(E113="",E114=""),0,E114-E113) -> 0 | F120: 0 | G120: 0 | H120: 0 | I120: 0 | J120: 0 | K120: 0 | L120: 0 | M120: 0 | N120: 0 | O120: 0 | P120: 0 | Q120: 0 | R120: 0 | S120: 0 | T120: 0 | U120: =IF(OR(U113="",U114=""),0,U114-U113) -> 0 | V120: =IF(OR(V113="",V114=""),0,V114-V113) -> 0 | W120: 0 | X120: 0 | Y120: 0 | Z120: 0 | AA120: 0 | AB120: 0 | AC120: 0 | AD120: 0 | AE120: 0 | AF120: 0 | AG120: 0 | AH120: 0
C121: Gruppe4 | D121: =IF(OR(D115="",D116=""),0,D116-D115) -> 0 | E121: =IF(OR(E115="",E116=""),0,E116-E115) -> 0 | F121: 0 | G121: 0 | H121: 0 | I121: 0 | J121: 0 | K121: 0 | L121: 0 | M121: 0 | N121: 0 | O121: 0 | P121: 0 | Q121: 0 | R121: 0 | S121: 0 | T121: 0 | U121: =IF(OR(U115="",U116=""),0,U116-U115) -> 0 | V121: =IF(OR(V115="",V116=""),0,V116-V115) -> 0 | W121: 0 | X121: 0 | Y121: 0 | Z121: 0 | AA121: 0 | AB121: 0 | AC121: 0 | AD121: 0 | AE121: 0 | AF121: 0 | AG121: 0 | AH121: 0
C123: Pause12 | D123: =IF(OR(D110="",D111=""),0,D111-D110) -> 0 | E123: =IF(OR(E110="",E111=""),0,E111-E110) -> 0 | F123: 0 | G123: 0 | H123: 0 | I123: 0 | J123: 0 | K123: 0 | L123: 0 | M123: 0 | N123: 0 | O123: 0 | P123: 0 | Q123: 0 | R123: 0 | S123: 0 | T123: 0 | U123: =IF(OR(U110="",U111=""),0,U111-U110) -> 0 | V123: =IF(OR(V110="",V111=""),0,V111-V110) -> 0 | W123: 0 | X123: 0 | Y123: 0 | Z123: 0 | AA123: 0 | AB123: 0 | AC123: 0 | AD123: 0 | AE123: 0 | AF123: 0 | AG123: 0 | AH123: 0
C124: Pause23 | D124: =IF(OR(D112="",D113=""),0,D113-D112) -> 0 | E124: =IF(OR(E112="",E113=""),0,E113-E112) -> 0 | F124: 0 | G124: 0 | H124: 0 | I124: 0 | J124: 0 | K124: 0 | L124: 0 | M124: 0 | N124: 0 | O124: 0 | P124: 0 | Q124: 0 | R124: 0 | S124: 0 | T124: 0 | U124: =IF(OR(U112="",U113=""),0,U113-U112) -> 0 | V124: =IF(OR(V112="",V113=""),0,V113-V112) -> 0 | W124: 0 | X124: 0 | Y124: 0 | Z124: 0 | AA124: 0 | AB124: 0 | AC124: 0 | AD124: 0 | AE124: 0 | AF124: 0 | AG124: 0 | AH124: 0
C125: Pause34 | D125: =IF(OR(D114="",D115=""),0,D115-D114) -> 0 | E125: =IF(OR(E114="",E115=""),0,E115-E114) -> 0 | F125: 0 | G125: 0 | H125: 0 | I125: 0 | J125: 0 | K125: 0 | L125: 0 | M125: 0 | N125: 0 | O125: 0 | P125: 0 | Q125: 0 | R125: 0 | S125: 0 | T125: 0 | U125: =IF(OR(U114="",U115=""),0,U115-U114) -> 0 | V125: =IF(OR(V114="",V115=""),0,V115-V114) -> 0 | W125: 0 | X125: 0 | Y125: 0 | Z125: 0 | AA125: 0 | AB125: 0 | AC125: 0 | AD125: 0 | AE125: 0 | AF125: 0 | AG125: 0 | AH125: 0
C127: Kum12 | D127: =IF(D123>=0.5,0,D118+D119) -> 0 | E127: =IF(E123>=0.5,0,E118+E119) -> 0 | F127: 0 | G127: 0 | H127: 0 | I127: 0 | J127: 0 | K127: 0 | L127: 0 | M127: 0 | N127: 0 | O127: 0 | P127: 0 | Q127: 0 | R127: 0 | S127: 0 | T127: 0 | U127: =IF(U123>=0.5,0,U118+U119) -> 0 | V127: =IF(V123>=0.5,0,V118+V119) -> 0 | W127: 0 | X127: 0 | Y127: 0 | Z127: 0 | AA127: 0 | AB127: 0 | AC127: 0 | AD127: 0 | AE127: 0 | AF127: 0 | AG127: 0 | AH127: 0
C128: Kum123 | D128: =IF(OR(D123>=0.5,D124>=0.5),0,D118+D119+D120) -> 0 | E128: =IF(OR(E123>=0.5,E124>=0.5),0,E118+E119+E120) -> 0 | F128: 0 | G128: 0 | H128: 0 | I128: 0 | J128: 0 | K128: 0 | L128: 0 | M128: 0 | N128: 0 | O128: 0 | P128: 0 | Q128: 0 | R128: 0 | S128: 0 | T128: 0 | U128: =IF(OR(U123>=0.5,U124>=0.5),0,U118+U119+U120) -> 0 | V128: =IF(OR(V123>=0.5,V124>=0.5),0,V118+V119+V120) -> 0 | W128: 0 | X128: 0 | Y128: 0 | Z128: 0 | AA128: 0 | AB128: 0 | AC128: 0 | AD128: 0 | AE128: 0 | AF128: 0 | AG128: 0 | AH128: 0
C129: Kum1234 | D129: =IF(OR(D123>=0.5,D124>=0.5,D125>=0.5),0,D118+D119+D120+D121) -> 0 | E129: =IF(OR(E123>=0.5,E124>=0.5,E125>=0.5),0,E118+E119+E120+E121) -> 0 | F129: 0 | G129: 0 | H129: 0 | I129: 0 | J129: 0 | K129: 0 | L129: 0 | M129: 0 | N129: 0 | O129: 0 | P129: 0 | Q129: 0 | R129: 0 | S129: 0 | T129: 0 | U129: =IF(OR(U123>=0.5,U124>=0.5,U125>=0.5),0,U118+U119+U120+U121) -> 0 | V129: =IF(OR(V123>=0.5,V124>=0.5,V125>=0.5),0,V118+V119+V120+V121) -> 0 | W129: 0 | X129: 0 | Y129: 0 | Z129: 0 | AA129: 0 | AB129: 0 | AC129: 0 | AD129: 0 | AE129: 0 | AF129: 0 | AG129: 0 | AH129: 0
C130: Kum23 | D130: =IF(D124>=0.5,0,D119+D120) -> 0 | E130: =IF(E124>=0.5,0,E119+E120) -> 0 | F130: 0 | G130: 0 | H130: 0 | I130: 0 | J130: 0 | K130: 0 | L130: 0 | M130: 0 | N130: 0 | O130: 0 | P130: 0 | Q130: 0 | R130: 0 | S130: 0 | T130: 0 | U130: =IF(U124>=0.5,0,U119+U120) -> 0 | V130: =IF(V124>=0.5,0,V119+V120) -> 0 | W130: 0 | X130: 0 | Y130: 0 | Z130: 0 | AA130: 0 | AB130: 0 | AC130: 0 | AD130: 0 | AE130: 0 | AF130: 0 | AG130: 0 | AH130: 0
C131: Kum234 | D131: =IF(OR(D124>=0.5,D125>=0.5),0,D119+D120+D121) -> 0 | E131: =IF(OR(E124>=0.5,E125>=0.5),0,E119+E120+E121) -> 0 | F131: 0 | G131: 0 | H131: 0 | I131: 0 | J131: 0 | K131: 0 | L131: 0 | M131: 0 | N131: 0 | O131: 0 | P131: 0 | Q131: 0 | R131: 0 | S131: 0 | T131: 0 | U131: =IF(OR(U124>=0.5,U125>=0.5),0,U119+U120+U121) -> 0 | V131: =IF(OR(V124>=0.5,V125>=0.5),0,V119+V120+V121) -> 0 | W131: 0 | X131: 0 | Y131: 0 | Z131: 0 | AA131: 0 | AB131: 0 | AC131: 0 | AD131: 0 | AE131: 0 | AF131: 0 | AG131: 0 | AH131: 0
C132: Kum34 | D132: =IF(D125>=0.5,0,D120+D121) -> 0 | E132: =IF(E125>=0.5,0,E120+E121) -> 0 | F132: 0 | G132: 0 | H132: 0 | I132: 0 | J132: 0 | K132: 0 | L132: 0 | M132: 0 | N132: 0 | O132: 0 | P132: 0 | Q132: 0 | R132: 0 | S132: 0 | T132: 0 | U132: =IF(U125>=0.5,0,U120+U121) -> 0 | V132: =IF(V125>=0.5,0,V120+V121) -> 0 | W132: 0 | X132: 0 | Y132: 0 | Z132: 0 | AA132: 0 | AB132: 0 | AC132: 0 | AD132: 0 | AE132: 0 | AF132: 0 | AG132: 0 | AH132: 0
C134: Pausenfehler-Code | D134: =IF(MAX(D118:D121,D127:D132)>6,2,0) -> 0 | E134: =IF(MAX(E118:E121,E127:E132)>6,2,0) -> 0 | F134: 0 | G134: 0 | H134: 0 | I134: 0 | J134: 0 | K134: 0 | L134: 0 | M134: 0 | N134: 0 | O134: 0 | P134: 0 | Q134: 0 | R134: 0 | S134: 0 | T134: 0 | U134: 0 | V134: 0 | W134: 0 | X134: 0 | Y134: 0 | Z134: 0 | AA134: 0 | AB134: 0 | AC134: 0 | AD134: 0 | AE134: 0 | AF134: 0 | AG134: 0 | AH134: 0

Sheet Mai (hidden)
A1: 5 | B1: =DATEVALUE("1."&A1&"."&SL_Jahr) -> 2024-05-01 | C1: =SL_Jahr -> 2024 | D1: =B_Gde -> Gde: | E1: =SL_Gemeinde -> 0 | T1: =B_Schule -> Schule: | U1: =SL_Schule -> 0 | AM1: Abschluss-Teilbedingungen:
A2: =VLOOKUP(A1,Monatsenden,2) -> 45443 | B2: =B_Bg -> BG: | C2: =VLOOKUP(B1,VSA_Kalender,13) -> 1 | D2: =B_Name -> Name: | E2: =SL_Name -> 0 | AM2: Regel ok | AN2: =(AN14>=AN15) -> FALSE | AO2: Nicht Relevant | AP2: =D83=0 -> TRUE | AQ2: -1 | AR2: =IF(AP2=TRUE,AQ2,0) -> -1 | AS2: Nicht Relevant
B3: =Zerf_Version & " " & Zerf_T -> Version VSA 1.06 | D3: =DATE($C$1,MONTH($B$1),D$4) -> 2024-05-01 | E3: =DATE($C$1,MONTH($B$1),E$4) -> 2024-05-02 | F3: 2024-05-03 | G3: 2024-05-04 | H3: 2024-05-05 | I3: 2024-05-06 | J3: 2024-05-07 | K3: 2024-05-08 | L3: 2024-05-09 | M3: 2024-05-10 | N3: 2024-05-11 | O3: 2024-05-12 | P3: 2024-05-13 | Q3: 2024-05-14 | R3: 2024-05-15 | S3: 2024-05-16 | T3: 2024-05-17 | U3: 2024-05-18 | V3: 2024-05-19 | W3: 2024-05-20 | X3: 2024-05-21 | Y3: 2024-05-22 | Z3: 2024-05-23 | AA3: 2024-05-24 | AB3: 2024-05-25 | AC3: 2024-05-26 | AD3: 2024-05-27 | AE3: 2024-05-28 | AF3: =IF(MONTH(DATE($C$1,MONTH($B$1),AF$41))>MONTH($B$1),"",DATE($C$1,MONTH($B$1),AF$4)) -> 2024-05-29 | AG3: =IF(MONTH(DATE($C$1,MONTH($B$1),AG$41))>MONTH($B$1),"",DATE($C$1,MONTH($B$1),AG$4)) -> 2024-05-30 | AH3: =IF(MONTH(DATE($C$1,MONTH($B$1),AH$41))>MONTH($B$1),"",DATE($C$1,MONTH($B$1),AH$4)) -> 2024-05-31 | AM3: Spalten ok | AN3: =(L83>=D83) -> TRUE | AO3: Entsperrt | AP3: FALSE | AQ3: 1 | AR3: =AP3*AQ3 -> 0 | AS3: Entsperrt
B4: =IF(VSATestModus=TRUE(),"VSA-Modus!","") ->  | C4: =IF(AN52>0,"DEFEKT","") ->  | D4: =IF(MONTH(DATE($C$1,MONTH($B$1),D$41))>MONTH($B$1),"",D41) -> 1 | E4: 2 | F4: 3 | G4: 4 | H4: 5 | I4: 6 | J4: 7 | K4: 8 | L4: 9 | M4: 10 | N4: 11 | O4: 12 | P4: 13 | Q4: 14 | R4: 15 | S4: 16 | T4: 17 | U4: 18 | V4: 19 | W4: 20 | X4: 21 | Y4: 22 | Z4: 23 | AA4: 24 | AB4: 25 | AC4: 26 | AD4: 27 | AE4: 28 | AF4: =IF(MONTH(DATE($C$1,MONTH($B$1),AF$41))>MONTH($B$1),"",AF41) -> 29 | AG4: =IF(MONTH(DATE($C$1,MONTH($B$1),AG$41))>MONTH($B$1),"",AG41) -> 30 | AH4: =IF(MONTH(DATE($C$1,MONTH($B$1),AH$41))>MONTH($B$1),"",AH41) -> 31 | AM4: Keine Fehler | AN4: =(SUM(D87:AH87)=0) -> TRUE | AO4: Geändert | AP4: FALSE | AQ4: 2 | AR4: =AP4*AQ4 -> 0 | AS4: Geändert
B5: Ein >>> | AM5: Keine Hand | AN5: =(AI12="") -> TRUE | AO5: Sperre | AP5: =AS11=2 -> FALSE | AQ5: 3 | AR5: =NOT(AP6)*AQ5 -> 3 | AS5: Eingaben vornehmen
B6: <<< Aus | AO6: Abschliessbar 1 | AP6: =AND(OR(AN2,AN3),AN4,AN5,NOT(AP7),NOT(AP2)) -> FALSE | AQ6: 4 | AR6: =AND(NOT(OR(AP3,AP4)),AP6)*AQ6 -> 0 | AS6: Abschliessbar 1
B7: Ein >>> | AO7: Abgeschlossen | AP7: FALSE | AQ7: 5 | AR7: =AND(NOT(OR(AP3,AP4)),AP7)*AQ7 -> 0 | AS7: Abgeschlossen
B8: <<< Aus | AO8: Für Jahr OK | AP8: =AND(OR(AP2,AP7),NOT(AP3)) -> TRUE
B9: Ein >>>
B10: <<< Aus | AO10: Statusnummer: | AP10: =IF(AR2=AQ2,AQ2,MAX(AR2:AR7)) -> -1
B11: Ein >>> | AM11: HatDaten: | AN11: =AND(AP2=FALSE,OR(AP10<>3,COUNTA(D5:AH12,D20:AH35,D39:L40)>0)) -> FALSE | AO11: Statustext: | AP11: =IFERROR(VLOOKUP(AP10,AR2:AS7,2,FALSE),"unbekannt") -> Nicht Relevant | AS11: 1
B12: <<< Aus | AI12: =IF(COUNTIF(D37:AH37,"I")>0,"I","") -> 
B13: =B_PrZeit -> Präsenzzeit | D13: =24*(D6-D5+D8-D7+D10-D9+D12-D11)*D88 -> 0 | E13: =24*(E6-E5+E8-E7+E10-E9+E12-E11)*E88 -> 0 | F13: 0 | G13: 0 | H13: 0 | I13: 0 | J13: 0 | K13: 0 | L13: 0 | M13: 0 | N13: 0 | O13: 0 | P13: 0 | Q13: 0 | R13: 0 | S13: 0 | T13: 0 | U13: 0 | V13: 0 | W13: 0 | X13: 0 | Y13: 0 | Z13: 0 | AA13: 0 | AB13: 0 | AC13: 0 | AD13: 0 | AE13: 0 | AF13: 0 | AG13: 0 | AH13: 0 | AM13: Anzahl Regeltage: | AN13: =D83 -> 0
B14: =B_TotalAZist -> Total Arbeitszeit (IST) | D14: =IF(D13+D35>=D15,D13+D35,MIN(D13+D35+SUM(D20,D22,D23,D24,D25,D26,D27,D28,D29,D30,D31,D32,D33,D34),IF(D15<0,0,D15)))*D82 -> 0 | E14: 0 | F14: 0 | G14: 0 | H14: 0 | I14: 0 | J14: 0 | K14: 0 | L14: 0 | M14: 0 | N14: 0 | O14: 0 | P14: 0 | Q14: 0 | R14: =IF(R13+R35>=R15,R13+R35,MIN(R13+R35+SUM(R20,R22,R23,R24,R25,R26,R27,R28,R29,R30,R31,R32,R33,R34),IF(R15<0,0,R15)))*R82 -> 0 | S14: =IF(S13+S35>=S15,S13+S35,MIN(S13+S35+SUM(S20,S22,S23,S24,S25,S26,S27,S28,S29,S30,S31,S32,S33,S34),IF(S15<0,0,S15)))*S82 -> 0 | T14: =IF(T13+T35>=T15,T13+T35,MIN(T13+T35+SUM(T20,T22,T23,T24,T25,T26,T27,T28,T29,T30,T31,T32,T33,T34),IF(T15<0,0,T15)))*T82 -> 0 | U14: =IF(U13+U35>=U15,U13+U35,MIN(U13+U35+SUM(U20,U22,U23,U24,U25,U26,U27,U28,U29,U30,U31,U32,U33,U34),IF(U15<0,0,U15)))*U82 -> 0 | V14: 0 | W14: 0 | X14: 0 | Y14: 0 | Z14: 0 | AA14: 0 | AB14: 0 | AC14: 0 | AD14: 0 | AE14: 0 | AF14: 0 | AG14: 0 | AH14: 0 | AI14: =SUMIF($D$82:$AH$82,1,D14:AH14) -> 0 | AJ14: =AI14-AI15 -> 27.6 | AM14: Erfasste Regeltage | AN14: =L83 -> 0 | AO14: =AN13-AN14 -> 0 | AP14: Fehlende Regeltage
B15: =B_NettoSollAZ -> Netto-SOLL-Arbeitszeit | D15: =ROUND(D16-D19,2) -> -8.4 | E15: =ROUND(E16-E19,2) -> 0 | F15: 0 | G15: 0 | H15: 0 | I15: 0 | J15: 0 | K15: -2.4 | L15: -8.4 | M15: 0 | N15: 0 | O15: 0 | P15: 0 | Q15: 0 | R15: 0 | S15: 0 | T15: 0 | U15: 0 | V15: 0 | W15: -8.4 | X15: 0 | Y15: 0 | Z15: 0 | AA15: 0 | AB15: 0 | AC15: 0 | AD15: 0 | AE15: 0 | AF15: =IF(AF$42=4,0,ROUND(AF16-AF19,2)) -> 0 | AG15: =IF(AG$42=4,0,ROUND(AG16-AG19,2)) -> 0 | AH15: 0 | AI15: =SUMIF($D$82:$AH$82,1,D15:AH15) -> -27.6 | AM15: Minimum Regeltage | AN15: =MinRegeltage -> 1 | AO15: Ist als Konstante im Blatt "Intern" hinterlegt
B16: =B_BruttoSollAZ -> Brutto-SOLL-Arb.zeit | D16: =VLOOKUP(D3,VSA_Kalender,16) -> 0 | E16: 0 | F16: 0 | G16: 0 | H16: 0 | I16: 0 | J16: 0 | K16: 0 | L16: 0 | M16: 0 | N16: 0 | O16: 0 | P16: 0 | Q16: 0 | R16: 0 | S16: 0 | T16: 0 | U16: 0 | V16: 0 | W16: 0 | X16: 0 | Y16: 0 | Z16: 0 | AA16: 0 | AB16: 0 | AC16: 0 | AD16: 0 | AE16: 0 | AF16: =IF(AF$42=4,0,VLOOKUP(AF3,VSA_Kalender,16)) -> 0 | AG16: =IF(AG$42=4,0,VLOOKUP(AG3,VSA_Kalender,16)) -> 0 | AH16: =IF(AH$42=4,0,VLOOKUP(AH3,VSA_Kalender,16)) -> 0 | AM16: Regel ok | AN16: Mind. eigetr. Regeltage erfüllt
B17: =B_MehrMinder -> Mehr-/Minderleistung | D17: =(SL_BisDatum>=D3)*ROUND(D14-D15,2) -> 0 | E17: 0 | F17: 0 | G17: 0 | H17: 0 | I17: 0 | J17: 0 | K17: 0 | L17: 0 | M17: 0 | N17: 0 | O17: 0 | P17: 0 | Q17: 0 | R17: 0 | S17: 0 | T17: 0 | U17: 0 | V17: 0 | W17: 0 | X17: 0 | Y17: 0 | Z17: 0 | AA17: 0 | AB17: 0 | AC17: 0 | AD17: 0 | AE17: 0 | AF17: 0 | AG17: 0 | AH17: 0 | AI17: =B_Total -> Total | AJ17: =B_Vortrag -> Vortrag | AM17: Spalten ok: | AN17: Alle Einträge an Regeltagen ok
B18: =B_AZSaldo -> AZ - Saldo | C18: =VLOOKUP(ROW(),VSA_Uebertrag,$A$1+3) -> 16.8 | D18: =IFERROR((C18+D17)*(D3<=SL_BisDatum)*VLOOKUP(D3,VSA_Kalender,21,FALSE),0) -> 0 | E18: 0 | F18: 0 | G18: =IFERROR((F18+G17)*(G3<=SL_BisDatum)*VLOOKUP(G3,VSA_Kalender,21,FALSE),0) -> 0 | H18: 0 | I18: 0 | J18: 0 | K18: 0 | L18: 0 | M18: 0 | N18: 0 | O18: 0 | P18: 0 | Q18: 0 | R18: 0 | S18: 0 | T18: 0 | U18: 0 | V18: 0 | W18: 0 | X18: 0 | Y18: 0 | Z18: 0 | AA18: 0 | AB18: 0 | AC18: 0 | AD18: 0 | AE18: 0 | AF18: 0 | AG18: 0 | AH18: 0 | AJ18: =SUMIF($D$82:$AH$82,1,D17:AH17)+C18 -> 16.8
B19: =B_FTA -> Feiertagsanspruch | C19: 0 | D19: =VLOOKUP(D3,VSA_Kalender,14) -> 8.4 | E19: 0 | F19: 0 | G19: 0 | H19: 0 | I19: 0 | J19: 0 | K19: 2.4 | L19: 8.4 | M19: 0 | N19: 0 | O19: 0 | P19: 0 | Q19: 0 | R19: 0 | S19: 0 | T19: 0 | U19: 0 | V19: 0 | W19: 8.4 | X19: 0 | Y19: 0 | Z19: 0 | AA19: 0 | AB19: 0 | AC19: 0 | AD19: 0 | AE19: 0 | AF19: =IF(AF$42=4,0,VLOOKUP(AF3,VSA_Kalender,14)) -> 0 | AG19: =IF(AG$42=4,0,VLOOKUP(AG3,VSA_Kalender,14)) -> 0 | AH19: =IF(AH$42=4,0,VLOOKUP(AH3,VSA_Kalender,14)) -> 0 | AI19: =SUM(D19:AH19) -> 27.6
B20: =B_Ferien -> Ferien | C20: =VLOOKUP(ROW(),VSA_Uebertrag,$A$1+3) -> 0 | AI20: =SUMIF($D$82:$AH$82,1,D20:AH20) -> 0 | AJ20: =ROUND(C20-AI20,2) -> 0 | AK20: Rest
B21: =B_KompAZ -> Kompensation Arbeitstage | C21: 0 | AI21: 0 | AJ21: =ROUND(A21+C21-AI21,0) -> 0
B22: =B_Arzt -> Arztbesuch | C22: 0 | AI22: 0 | AJ22: =ROUND(A22+C22+AI22,2) -> 0 | AK22: Summen
B23: =B_Krank -> Krankheit | C23: 0 | AI23: 0 | AJ23: =ROUND(A23+C23+AI23,2) -> 0
B24: =B_BU -> Berufsunfall | C24: 0 | AI24: 0 | AJ24: 0
B25: =B_NBU -> Nichtberufsunfall | C25: 0 | AI25: 0 | AJ25: 0
B26: =B_MilZiv -> Militär / Zivilschutz | C26: 0 | AI26: 0 | AJ26: 0
B27: =B_UUB -> Unbezahlter Urlaub | C27: 0 | AI27: 0 | AJ27: =ROUND(A27+C27-AI27,2) -> 0 | AK27: Rest
B28: =B_UB -> Bezahlter Urlaub | C28: 0 | AI28: 0 | AJ28: =ROUND(A28+C28-AI28,2) -> 0
B29: =B_NebenB -> Nebenbeschäftigung | C29: 0 | AI29: 0 | AJ29: 0
B30: =B_DAG -> D A G | C30: 0 | AI30: 0 | AJ30: 0
B31: =B_Divers -> Diverses | C31: 0 | AI31: 0 | AJ31: 0 | AK31: Summen
B32: =B_FamPersErg -> Fam./pers. Ereignisse | C32: 0 | AI32: 0 | AJ32: 0
B33: =B_FZ1 -> freie Zeile 1 | C33: 0 | AI33: 0 | AJ33: 0
B34: =B_FZ2 -> freie Zeile 2 | C34: 0 | AI34: 0 | AJ34: 0
B35: =B_WB -> Weiterbildung | C35: 0 | AI35: 0 | AJ35: 0
B36: =B_FEL -> frei einsetzbare Lekt. | C36: 0 | AI36: =SUM(D36:AH36) -> 0 | AJ36: =ROUND(C36-AI36,0) -> 0
D37: =IF(AND((D13 - D15)+SUM(D20,D22:D34)>0.00001,SUM(D20,D22:D34)>0),"I","") -> 
C38: Visum | D38: Identität: | I38: Datum: | K38: Status:
C39: SL
C40: VG
D41: 1 | E41: 2 | F41: 3 | G41: 4 | H41: 5 | I41: 6 | J41: 7 | K41: 8 | L41: 9 | M41: 10 | N41: 11 | O41: 12 | P41: 13 | Q41: 14 | R41: 15 | S41: 16 | T41: 17 | U41: 18 | V41: 19 | W41: 20 | X41: 21 | Y41: 22 | Z41: 23 | AA41: 24 | AB41: 25 | AC41: 26 | AD41: 27 | AE41: 28 | AF41: 29 | AG41: 30 | AH41: 31
D42: =IF(D3="",4,VLOOKUP(D3,VSA_Kalender,18)) -> 1 | E42: 0 | F42: 0 | G42: 1 | H42: 1 | I42: 0 | J42: 0 | K42: 0 | L42: 1 | M42: 0 | N42: 1 | O42: 1 | P42: 0 | Q42: 0 | R42: 0 | S42: 0 | T42: 0 | U42: 1 | V42: 1 | W42: 1 | X42: 0 | Y42: 0 | Z42: 0 | AA42: 0 | AB42: 1 | AC42: 1 | AD42: 0 | AE42: 0 | AF42: 0 | AG42: 0 | AH42: 0
D44: =IF(D19>0,VLOOKUP(D3,KalFeiertage,6,FALSE),"") -> Tag der Arbeit | K44: Mittwoch vor Auffahrt | L44: Auffahrt | W44: Pfingstmontag
D45: FT=WENN(D13+D35>=D15;D13+D35;MIN(D13+D35+SUMME(D20;D22;D23;D24;D25;D26;D27;D28;D29;D30;D31;D32;D33;D34);WENN(D15<0;0;D15)))*D82 | E45: FT=WENN(E13+E35>=E15;E13+E35;MIN(E13+E35+SUMME(E20;E22;E23;E24;E25;E26;E27;E28;E29;E30;E31;E32;E33;E34);WENN(E15<0;0;E15)))*E82 | F45: FT=WENN(F13+F35>=F15;F13+F35;MIN(F13+F35+SUMME(F20;F22;F23;F24;F25;F26;F27;F28;F29;F30;F31;F32;F33;F34);WENN(F15<0;0;F15)))*F82 | G45: FT=WENN(G13+G35>=G15;G13+G35;MIN(G13+G35+SUMME(G20;G22;G23;G24;G25;G26;G27;G28;G29;G30;G31;G32;G33;G34);WENN(G15<0;0;G15)))*G82 | H45: FT=WENN(H13+H35>=H15;H13+H35;MIN(H13+H35+SUMME(H20;H22;H23;H24;H25;H26;H27;H28;H29;H30;H31;H32;H33;H34);WENN(H15<0;0;H15)))*H82 | I45: FT=WENN(I13+I35>=I15;I13+I35;MIN(I13+I35+SUMME(I20;I22;I23;I24;I25;I26;I27;I28;I29;I30;I31;I32;I33;I34);WENN(I15<0;0;I15)))*I82 | J45: FT=WENN(J13+J35>=J15;J13+J35;MIN(J13+J35+SUMME(J20;J22;J23;J24;J25;J26;J27;J28;J29;J30;J31;J32;J33;J34);WENN(J15<0;0;J15)))*J82 | K45: FT=WENN(K13+K35>=K15;K13+K35;MIN(K13+K35+SUMME(K20;K22;K23;K24;K25;K26;K27;K28;K29;K30;K31;K32;K33;K34);WENN(K15<0;0;K15)))*K82 | L45: FT=WENN(L13+L35>=L15;L13+L35;MIN(L13+L35+SUMME(L20;L22;L23;L24;L25;L26;L27;L28;L29;L30;L31;L32;L33;L34);WENN(L15<0;0;L15)))*L82 | M45: FT=WENN(M13+M35>=M15;M13+M35;MIN(M13+M35+SUMME(M20;M22;M23;M24;M25;M26;M27;M28;M29;M30;M31;M32;M33;M34);WENN(M15<0;0;M15)))*M82 | N45: FT=WENN(N13+N35>=N15;N13+N35;MIN(N13+N35+SUMME(N20;N22;N23;N24;N25;N26;N27;N28;N29;N30;N31;N32;N33;N34);WENN(N15<0;0;N15)))*N82 | O45: FT=WENN(O13+O35>=O15;O13+O35;MIN(O13+O35+SUMME(O20;O22;O23;O24;O25;O26;O27;O28;O29;O30;O31;O32;O33;O34);WENN(O15<0;0;O15)))*O82 | P45: FT=WENN(P13+P35>=P15;P13+P35;MIN(P13+P35+SUMME(P20;P22;P23;P24;P25;P26;P27;P28;P29;P30;P31;P32;P33;P34);WENN(P15<0;0;P15)))*P82 | Q45: FT=WENN(Q13+Q35>=Q15;Q13+Q35;MIN(Q13+Q35+SUMME(Q20;Q22;Q23;Q24;Q25;Q26;Q27;Q28;Q29;Q30;Q31;Q32;Q33;Q34);WENN(Q15<0;0;Q15)))*Q82 | R45: FT=WENN(R13+R35>=R15;R13+R35;MIN(R13+R35+SUMME(R20;R22;R23;R24;R25;R26;R27;R28;R29;R30;R31;R32;R33;R34);WENN(R15<0;0;R15)))*R82 | S45: FT=WENN(S13+S35>=S15;S13+S35;MIN(S13+S35+SUMME(S20;S22;S23;S24;S25;S26;S27;S28;S29;S30;S31;S32;S33;S34);WENN(S15<0;0;S15)))*S82 | T45: FT=WENN(T13+T35>=T15;T13+T35;MIN(T13+T35+SUMME(T20;T22;T23;T24;T25;T26;T27;T28;T29;T30;T31;T32;T33;T34);WENN(T15<0;0;T15)))*T82 | U45: FT=WENN(U13+U35>=U15;U13+U35;MIN(U13+U35+SUMME(U20;U22;U23;U24;U25;U26;U27;U28;U29;U30;U31;U32;U33;U34);WENN(U15<0;0;U15)))*U82 | V45: FT=WENN(V13+V35>=V15;V13+V35;MIN(V13+V35+SUMME(V20;V22;V23;V24;V25;V26;V27;V28;V29;V30;V31;V32;V33;V34);WENN(V15<0;0;V15)))*V82 | W45: FT=WENN(W13+W35>=W15;W13+W35;MIN(W13+W35+SUMME(W20;W22;W23;W24;W25;W26;W27;W28;W29;W30;W31;W32;W33;W34);WENN(W15<0;0;W15)))*W82 | X45: FT=WENN(X13+X35>=X15;X13+X35;MIN(X13+X35+SUMME(X20;X22;X23;X24;X25;X26;X27;X28;X29;X30;X31;X32;X33;X34);WENN(X15<0;0;X15)))*X82 | Y45: FT=WENN(Y13+Y35>=Y15;Y13+Y35;MIN(Y13+Y35+SUMME(Y20;Y22;Y23;Y24;Y25;Y26;Y27;Y28;Y29;Y30;Y31;Y32;Y33;Y34);WENN(Y15<0;0;Y15)))*Y82 | Z45: FT=WENN(Z13+Z35>=Z15;Z13+Z35;MIN(Z13+Z35+SUMME(Z20;Z22;Z23;Z24;Z25;Z26;Z27;Z28;Z29;Z30;Z31;Z32;Z33;Z34);WENN(Z15<0;0;Z15)))*Z82 | AA45: FT=WENN(AA13+AA35>=AA15;AA13+AA35;MIN(AA13+AA35+SUMME(AA20;AA22;AA23;AA24;AA25;AA26;AA27;AA28;AA29;AA30;AA31;AA32;AA33;AA34);WENN(AA15<0;0;AA15)))*AA82 | AB45: FT=WENN(AB13+AB35>=AB15;AB13+AB35;MIN(AB13+AB35+SUMME(AB20;AB22;AB23;AB24;AB25;AB26;AB27;AB28;AB29;AB30;AB31;AB32;AB33;AB34);WENN(AB15<0;0;AB15)))*AB82 | AC45: FT=WENN(AC13+AC35>=AC15;AC13+AC35;MIN(AC13+AC35+SUMME(AC20;AC22;AC23;AC24;AC25;AC26;AC27;AC28;AC29;AC30;AC31;AC32;AC33;AC34);WENN(AC15<0;0;AC15)))*AC82 | AD45: FT=WENN(AD13+AD35>=AD15;AD13+AD35;MIN(AD13+AD35+SUMME(AD20;AD22;AD23;AD24;AD25;AD26;AD27;AD28;AD29;AD30;AD31;AD32;AD33;AD34);WENN(AD15<0;0;AD15)))*AD82 | AE45: FT=WENN(AE13+AE35>=AE15;AE13+AE35;MIN(AE13+AE35+SUMME(AE20;AE22;AE23;AE24;AE25;AE26;AE27;AE28;AE29;AE30;AE31;AE32;AE33;AE34);WENN(AE15<0;0;AE15)))*AE82 | AF45: FT=WENN(AF13+AF35>=AF15;AF13+AF35;MIN(AF13+AF35+SUMME(AF20;AF22;AF23;AF24;AF25;AF26;AF27;AF28;AF29;AF30;AF31;AF32;AF33;AF34);WENN(AF15<0;0;AF15)))*AF82 | AG45: FT=WENN(AG13+AG35>=AG15;AG13+AG35;MIN(AG13+AG35+SUMME(AG20;AG22;AG23;AG24;AG25;AG26;AG27;AG28;AG29;AG30;AG31;AG32;AG33;AG34);WENN(AG15<0;0;AG15)))*AG82 | AH45: FT=WENN(AH13+AH35>=AH15;AH13+AH35;MIN(AH13+AH35+SUMME(AH20;AH22;AH23;AH24;AH25;AH26;AH27;AH28;AH29;AH30;AH31;AH32;AH33;AH34);WENN(AH15<0;0;AH15)))*AH82
D46: FT=24*(D6-D5+D8-D7+D10-D9+D12-D11)*D88 | E46: FT=24*(E6-E5+E8-E7+E10-E9+E12-E11)*E88 | F46: FT=24*(F6-F5+F8-F7+F10-F9+F12-F11)*F88 | G46: FT=24*(G6-G5+G8-G7+G10-G9+G12-G11)*G88 | H46: FT=24*(H6-H5+H8-H7+H10-H9+H12-H11)*H88 | I46: FT=24*(I6-I5+I8-I7+I10-I9+I12-I11)*I88 | J46: FT=24*(J6-J5+J8-J7+J10-J9+J12-J11)*J88 | K46: FT=24*(K6-K5+K8-K7+K10-K9+K12-K11)*K88 | L46: FT=24*(L6-L5+L8-L7+L10-L9+L12-L11)*L88 | M46: FT=24*(M6-M5+M8-M7+M10-M9+M12-M11)*M88 | N46: FT=24*(N6-N5+N8-N7+N10-N9+N12-N11)*N88 | O46: FT=24*(O6-O5+O8-O7+O10-O9+O12-O11)*O88 | P46: FT=24*(P6-P5+P8-P7+P10-P9+P12-P11)*P88 | Q46: FT=24*(Q6-Q5+Q8-Q7+Q10-Q9+Q12-Q11)*Q88 | R46: FT=24*(R6-R5+R8-R7+R10-R9+R12-R11)*R88 | S46: FT=24*(S6-S5+S8-S7+S10-S9+S12-S11)*S88 | T46: FT=24*(T6-T5+T8-T7+T10-T9+T12-T11)*T88 | U46: FT=24*(U6-U5+U8-U7+U10-U9+U12-U11)*U88 | V46: FT=24*(V6-V5+V8-V7+V10-V9+V12-V11)*V88 | W46: FT=24*(W6-W5+W8-W7+W10-W9+W12-W11)*W88 | X46: FT=24*(X6-X5+X8-X7+X10-X9+X12-X11)*X88 | Y46: FT=24*(Y6-Y5+Y8-Y7+Y10-Y9+Y12-Y11)*Y88 | Z46: FT=24*(Z6-Z5+Z8-Z7+Z10-Z9+Z12-Z11)*Z88 | AA46: FT=24*(AA6-AA5+AA8-AA7+AA10-AA9+AA12-AA11)*AA88 | AB46: FT=24*(AB6-AB5+AB8-AB7+AB10-AB9+AB12-AB11)*AB88 | AC46: FT=24*(AC6-AC5+AC8-AC7+AC10-AC9+AC12-AC11)*AC88 | AD46: FT=24*(AD6-AD5+AD8-AD7+AD10-AD9+AD12-AD11)*AD88 | AE46: FT=24*(AE6-AE5+AE8-AE7+AE10-AE9+AE12-AE11)*AE88 | AF46: FT=24*(AF6-AF5+AF8-AF7+AF10-AF9+AF12-AF11)*AF88 | AG46: FT=24*(AG6-AG5+AG8-AG7+AG10-AG9+AG12-AG11)*AG88 | AH46: FT=24*(AH6-AH5+AH8-AH7+AH10-AH9+AH12-AH11)*AH88
D47: FT=ODER(D14>0;D21>0)*1 | E47: FT=ODER(E14>0;E21>0)*1 | F47: FT=ODER(F14>0;F21>0)*1 | G47: FT=ODER(G14>0;G21>0)*1 | H47: FT=ODER(H14>0;H21>0)*1 | I47: FT=ODER(I14>0;I21>0)*1 | J47: FT=ODER(J14>0;J21>0)*1 | K47: FT=ODER(K14>0;K21>0)*1 | L47: FT=ODER(L14>0;L21>0)*1 | M47: FT=ODER(M14>0;M21>0)*1 | N47: FT=ODER(N14>0;N21>0)*1 | O47: FT=ODER(O14>0;O21>0)*1 | P47: FT=ODER(P14>0;P21>0)*1 | Q47: FT=ODER(Q14>0;Q21>0)*1 | R47: FT=ODER(R14>0;R21>0)*1 | S47: FT=ODER(S14>0;S21>0)*1 | T47: FT=ODER(T14>0;T21>0)*1 | U47: FT=ODER(U14>0;U21>0)*1 | V47: FT=ODER(V14>0;V21>0)*1 | W47: FT=ODER(W14>0;W21>0)*1 | X47: FT=ODER(X14>0;X21>0)*1 | Y47: FT=ODER(Y14>0;Y21>0)*1 | Z47: FT=ODER(Z14>0;Z21>0)*1 | AA47: FT=ODER(AA14>0;AA21>0)*1 | AB47: FT=ODER(AB14>0;AB21>0)*1 | AC47: FT=ODER(AC14>0;AC21>0)*1 | AD47: FT=ODER(AD14>0;AD21>0)*1 | AE47: FT=ODER(AE14>0;AE21>0)*1 | AF47: FT=ODER(AF14>0;AF21>0)*1 | AG47: FT=ODER(AG14>0;AG21>0)*1 | AH47: FT=ODER(AH14>0;AH21>0)*1
D48: =ABS("FT"&_xlfn.FORMULATEXT(D14)<>D45) -> 0 | E48: =ABS("FT"&_xlfn.FORMULATEXT(E14)<>E45) -> 0 | F48: 0 | G48: 0 | H48: 0 | I48: 0 | J48: 0 | K48: 0 | L48: 0 | M48: 0 | N48: 0 | O48: 0 | P48: 0 | Q48: 0 | R48: 0 | S48: 0 | T48: 0 | U48: 0 | V48: 0 | W48: 0 | X48: 0 | Y48: 0 | Z48: 0 | AA48: 0 | AB48: 0 | AC48: 0 | AD48: 0 | AE48: 0 | AF48: 0 | AG48: 0 | AH48: 0
D49: =ABS("FT"&_xlfn.FORMULATEXT(D13)<>D46) -> 0 | E49: =ABS("FT"&_xlfn.FORMULATEXT(E13)<>E46) -> 0 | F49: 0 | G49: 0 | H49: 0 | I49: 0 | J49: 0 | K49: 0 | L49: 0 | M49: 0 | N49: 0 | O49: 0 | P49: 0 | Q49: 0 | R49: 0 | S49: 0 | T49: 0 | U49: 0 | V49: 0 | W49: 0 | X49: 0 | Y49: 0 | Z49: 0 | AA49: 0 | AB49: 0 | AC49: 0 | AD49: 0 | AE49: 0 | AF49: 0 | AG49: 0 | AH49: 0
D50: =ABS("FT"&_xlfn.FORMULATEXT(D80)<>D47) -> 0 | E50: =ABS("FT"&_xlfn.FORMULATEXT(E80)<>E47) -> 0 | F50: 0 | G50: 0 | H50: 0 | I50: 0 | J50: 0 | K50: 0 | L50: 0 | M50: 0 | N50: 0 | O50: 0 | P50: 0 | Q50: 0 | R50: 0 | S50: 0 | T50: 0 | U50: 0 | V50: 0 | W50: 0 | X50: 0 | Y50: 0 | Z50: 0 | AA50: 0 | AB50: 0 | AC50: 0 | AD50: 0 | AE50: 0 | AF50: 0 | AG50: 0 | AH50: 0
D51: =ABS(ISERROR(D37)) -> 0 | E51: =ABS(ISERROR(E37)) -> 0 | F51: 0 | G51: 0 | H51: 0 | I51: 0 | J51: 0 | K51: 0 | L51: 0 | M51: 0 | N51: 0 | O51: 0 | P51: 0 | Q51: 0 | R51: 0 | S51: 0 | T51: 0 | U51: 0 | V51: 0 | W51: 0 | X51: 0 | Y51: 0 | Z51: 0 | AA51: 0 | AB51: 0 | AC51: 0 | AD51: 0 | AE51: 0 | AF51: 0 | AG51: 0 | AH51: 0
D52: =SUM(D48:D51) -> 0 | E52: =SUM(E48:E51) -> 0 | F52: 0 | G52: 0 | H52: 0 | I52: 0 | J52: 0 | K52: 0 | L52: 0 | M52: 0 | N52: 0 | O52: 0 | P52: 0 | Q52: 0 | R52: 0 | S52: 0 | T52: 0 | U52: 0 | V52: 0 | W52: 0 | X52: 0 | Y52: 0 | Z52: 0 | AA52: 0 | AB52: 0 | AC52: 0 | AD52: 0 | AE52: 0 | AF52: 0 | AG52: 0 | AH52: 0 | AM52: Formel defekt | AN52: =SUM(D52:AH52) -> 0
B77: HT_Naz-Kopie | C77: =HT_NAZ -> 8.4
B78: Heute: | C78: =SL_BisDatum -> 2024-02-02
C79: Reguläre Tage ausgefüllt | D79: =((D80*D81)=1)*1 -> 0 | E79: =((E80*E81)=1)*1 -> 0 | F79: 0 | G79: 0 | H79: 0 | I79: 0 | J79: 0 | K79: 0 | L79: 0 | M79: 0 | N79: 0 | O79: 0 | P79: 0 | Q79: 0 | R79: 0 | S79: 0 | T79: 0 | U79: 0 | V79: 0 | W79: 0 | X79: 0 | Y79: 0 | Z79: 0 | AA79: 0 | AB79: 0 | AC79: 0 | AD79: 0 | AE79: 0 | AF79: 0 | AG79: 0 | AH79: 0
C80: Arbeitstage ausgefüllt | D80: =OR(D14>0,D21>0)*1 -> 0 | E80: =OR(E14>0,E21>0)*1 -> 0 | F80: 0 | G80: 0 | H80: 0 | I80: 0 | J80: 0 | K80: 0 | L80: 0 | M80: 0 | N80: 0 | O80: 0 | P80: 0 | Q80: 0 | R80: 0 | S80: 0 | T80: 0 | U80: 0 | V80: 0 | W80: 0 | X80: 0 | Y80: 0 | Z80: 0 | AA80: 0 | AB80: 0 | AC80: 0 | AD80: 0 | AE80: 0 | AF80: 0 | AG80: 0 | AH80: 0
C81: Arbeitstage wenn BG>0% | D81: =IFERROR(VLOOKUP(D3,VSA_Kalender,22),0) -> 0 | E81: 0 | F81: 0 | G81: 0 | H81: 0 | I81: 0 | J81: 0 | K81: 0 | L81: 0 | M81: 0 | N81: 0 | O81: 0 | P81: 0 | Q81: 0 | R81: 0 | S81: 0 | T81: 0 | U81: 0 | V81: 0 | W81: 0 | X81: 0 | Y81: 0 | Z81: 0 | AA81: 0 | AB81: 0 | AC81: 0 | AD81: 0 | AE81: 0 | AF81: 0 | AG81: 0 | AH81: 0
C82: Der BG beträgt mehr als 0% | D82: =IF(D4="",0,ABS(VLOOKUP(D3,VSA_Kalender,13,FALSE)>0)) -> 1 | E82: 1 | F82: 1 | G82: 1 | H82: 1 | I82: 1 | J82: 1 | K82: 1 | L82: 1 | M82: 1 | N82: 1 | O82: 1 | P82: 1 | Q82: 1 | R82: 1 | S82: 1 | T82: 1 | U82: 1 | V82: 1 | W82: 1 | X82: 1 | Y82: 1 | Z82: 1 | AA82: 1 | AB82: 1 | AC82: 1 | AD82: 1 | AE82: 1 | AF82: 1 | AG82: 1 | AH82: 1
C83: (Ja: 1, Nein: 0) | D83: =SUM(D81:AH81) -> 0 | E83: Total Tage bei BG>0% | H83: =SUM(D80:AH80) -> 0 | I83: Total Tage ausgefüllt | L83: =SUM(D79:AH79) -> 0 | M83: Total reguläre Tage ausgefüllt
C85: Tag des Monats | D85: =D4 -> 1 | E85: 2 | F85: 3 | G85: 4 | H85: 5 | I85: 6 | J85: 7 | K85: 8 | L85: 9 | M85: 10 | N85: 11 | O85: 12 | P85: 13 | Q85: 14 | R85: 15 | S85: 16 | T85: 17 | U85: 18 | V85: 19 | W85: 20 | X85: 21 | Y85: 22 | Z85: 23 | AA85: 24 | AB85: 25 | AC85: 26 | AD85: 27 | AE85: 28 | AF85: 29 | AG85: 30 | AH85: 31
C86: Ist Arbeitsbereich | D86: =IFERROR(ABS(WEEKDAY(D3,2)<6),0) -> 1 | E86: 1 | F86: 1 | G86: 0 | H86: 0 | I86: 1 | J86: 1 | K86: 1 | L86: 1 | M86: 1 | N86: 0 | O86: 0 | P86: 1 | Q86: 1 | R86: 1 | S86: 1 | T86: 1 | U86: 0 | V86: 0 | W86: 1 | X86: 1 | Y86: 1 | Z86: 1 | AA86: 1 | AB86: 0 | AC86: 0 | AD86: 1 | AE86: 1 | AF86: 1 | AG86: 1 | AH86: 1
C87: Maximaler Fehler | D87: =MAX(D100:D107,D98,D134) -> 0 | E87: =MAX(E100:E107,E98,E134) -> 0 | F87: 0 | G87: 0 | H87: 0 | I87: 0 | J87: 0 | K87: 0 | L87: 0 | M87: 0 | N87: 0 | O87: 0 | P87: 0 | Q87: 0 | R87: 0 | S87: 0 | T87: 0 | U87: 0 | V87: 0 | W87: 0 | X87: 0 | Y87: 0 | Z87: 0 | AA87: 0 | AB87: 0 | AC87: 0 | AD87: 0 | AE87: 0 | AF87: 0 | AG87: 0 | AH87: 0
C88: Wird die Präsenzzeit angezeigt? | D88: =IF(D87=0,1,0) -> 1 | E88: =IF(E87=0,1,0) -> 1 | F88: 1 | G88: 1 | H88: 1 | I88: 1 | J88: 1 | K88: 1 | L88: 1 | M88: 1 | N88: 1 | O88: 1 | P88: 1 | Q88: 1 | R88: 1 | S88: 1 | T88: 1 | U88: 1 | V88: 1 | W88: 1 | X88: 1 | Y88: 1 | Z88: 1 | AA88: 1 | AB88: 1 | AC88: 1 | AD88: 1 | AE88: 1 | AF88: 1 | AG88: 1 | AH88: 1
C90: Gruppenfehler 1 | D90: =IF(AND(D6-D5=0,COUNTA(D7:D12)>0),1,0) -> 0 | E90: 0 | F90: 0 | G90: 0 | H90: 0 | I90: 0 | J90: 0 | K90: 0 | L90: 0 | M90: 0 | N90: 0 | O90: 0 | P90: 0 | Q90: 0 | R90: 0 | S90: 0 | T90: 0 | U90: 0 | V90: 0 | W90: 0 | X90: 0 | Y90: 0 | Z90: 0 | AA90: 0 | AB90: 0 | AC90: 0 | AD90: 0 | AE90: 0 | AF90: 0 | AG90: 0 | AH90: 0
B91: Gruppenfehler | C91: (aus) | D91: =D90 -> 0 | E91: 0 | F91: 0 | G91: 0 | H91: 0 | I91: 0 | J91: 0 | K91: 0 | L91: 0 | M91: 0 | N91: 0 | O91: 0 | P91: 0 | Q91: 0 | R91: 0 | S91: 0 | T91: 0 | U91: 0 | V91: 0 | W91: 0 | X91: 0 | Y91: 0 | Z91: 0 | AA91: 0 | AB91: 0 | AC91: 0 | AD91: 0 | AE91: 0 | AF91: 0 | AG91: 0 | AH91: 0
C92: Gruppenfehler 2 | D92: =IF(AND(D8-D7=0,COUNTA(D9:D12)>0),1,0) -> 0 | E92: 0 | F92: 0 | G92: 0 | H92: 0 | I92: 0 | J92: 0 | K92: 0 | L92: 0 | M92: 0 | N92: 0 | O92: 0 | P92: 0 | Q92: 0 | R92: 0 | S92: 0 | T92: 0 | U92: 0 | V92: 0 | W92: 0 | X92: 0 | Y92: 0 | Z92: 0 | AA92: 0 | AB92: 0 | AC92: 0 | AD92: 0 | AE92: 0 | AF92: 0 | AG92: 0 | AH92: 0
C93: (aus) | D93: =D92 -> 0 | E93: 0 | F93: 0 | G93: 0 | H93: 0 | I93: 0 | J93: 0 | K93: 0 | L93: 0 | M93: 0 | N93: 0 | O93: 0 | P93: 0 | Q93: 0 | R93: 0 | S93: 0 | T93: 0 | U93: 0 | V93: 0 | W93: 0 | X93: 0 | Y93: 0 | Z93: 0 | AA93: 0 | AB93: 0 | AC93: 0 | AD93: 0 | AE93: 0 | AF93: 0 | AG93: 0 | AH93: 0
C94: Gruppenfehler 3 | D94: =IF(AND(D10-D9=0,COUNTA(D11:D12)>0),1,0) -> 0 | E94: 0 | F94: 0 | G94: 0 | H94: 0 | I94: 0 | J94: 0 | K94: 0 | L94: 0 | M94: 0 | N94: 0 | O94: 0 | P94: 0 | Q94: 0 | R94: 0 | S94: 0 | T94: 0 | U94: 0 | V94: 0 | W94: 0 | X94: 0 | Y94: 0 | Z94: 0 | AA94: 0 | AB94: 0 | AC94: 0 | AD94: 0 | AE94: 0 | AF94: 0 | AG94: 0 | AH94: 0
C95: (aus) | D95: =D94 -> 0 | E95: 0 | F95: 0 | G95: 0 | H95: 0 | I95: 0 | J95: 0 | K95: 0 | L95: 0 | M95: 0 | N95: 0 | O95: 0 | P95: 0 | Q95: 0 | R95: 0 | S95: 0 | T95: 0 | U95: 0 | V95: 0 | W95: 0 | X95: 0 | Y95: 0 | Z95: 0 | AA95: 0 | AB95: 0 | AC95: 0 | AD95: 0 | AE95: 0 | AF95: 0 | AG95: 0 | AH95: 0
C96: leer
C97: leer
C98: Genereller Gruppenfehler | D98: =MAX(D90:D95) -> 0 | E98: 0 | F98: 0 | G98: 0 | H98: 0 | I98: 0 | J98: 0 | K98: 0 | L98: 0 | M98: 0 | N98: 0 | O98: 0 | P98: 0 | Q98: 0 | R98: 0 | S98: 0 | T98: 0 | U98: 0 | V98: 0 | W98: 0 | X98: 0 | Y98: 0 | Z98: 0 | AA98: 0 | AB98: 0 | AC98: 0 | AD98: 0 | AE98: 0 | AF98: 0 | AG98: 0 | AH98: 0
C100: Ein1 | D100: =IF(AND(D109=0,D110>0),1,0) -> 0 | E100: =IF(AND(E109=0,E110>0),1,0) -> 0 | F100: 0 | G100: 0 | H100: 0 | I100: 0 | J100: 0 | K100: 0 | L100: 0 | M100: 0 | N100: 0 | O100: 0 | P100: 0 | Q100: 0 | R100: 0 | S100: 0 | T100: 0 | U100: 0 | V100: 0 | W100: 0 | X100: 0 | Y100: 0 | Z100: 0 | AA100: 0 | AB100: 0 | AC100: 0 | AD100: 0 | AE100: 0 | AF100: 0 | AG100: 0 | AH100: 0
C101: Aus1 | D101: =IF(AND(D110>0,D110<D109),3,IF(AND(D109>0,D110=0),1,0))*D$86 -> 0 | E101: =IF(AND(E110>0,E110<E109),3,IF(AND(E109>0,E110=0),1,0))*E$86 -> 0 | F101: 0 | G101: 0 | H101: 0 | I101: 0 | J101: 0 | K101: 0 | L101: 0 | M101: 0 | N101: 0 | O101: 0 | P101: 0 | Q101: 0 | R101: 0 | S101: 0 | T101: 0 | U101: 0 | V101: 0 | W101: 0 | X101: 0 | Y101: 0 | Z101: 0 | AA101: 0 | AB101: 0 | AC101: 0 | AD101: 0 | AE101: 0 | AF101: 0 | AG101: 0 | AH101: 0
C102: Ein2 | D102: =IF(AND(D111>0,D111<D110),3,IF(AND(D111=0,D112>0),1,0))*D$86 -> 0 | E102: 0 | F102: 0 | G102: 0 | H102: 0 | I102: 0 | J102: 0 | K102: 0 | L102: 0 | M102: 0 | N102: 0 | O102: 0 | P102: 0 | Q102: 0 | R102: 0 | S102: 0 | T102: 0 | U102: 0 | V102: 0 | W102: 0 | X102: 0 | Y102: 0 | Z102: 0 | AA102: 0 | AB102: 0 | AC102: 0 | AD102: 0 | AE102: 0 | AF102: 0 | AG102: 0 | AH102: 0
C103: Aus2 | D103: =IF(AND(D112>0,D112<D111),3,IF(AND(D111>0,D112=0),1,0))*D$86 -> 0 | E103: =IF(AND(E112>0,E112<E111),3,IF(AND(E111>0,E112=0),1,0))*E$86 -> 0 | F103: 0 | G103: 0 | H103: 0 | I103: 0 | J103: 0 | K103: 0 | L103: 0 | M103: 0 | N103: 0 | O103: 0 | P103: 0 | Q103: 0 | R103: 0 | S103: 0 | T103: 0 | U103: 0 | V103: 0 | W103: 0 | X103: 0 | Y103: 0 | Z103: 0 | AA103: 0 | AB103: 0 | AC103: 0 | AD103: 0 | AE103: 0 | AF103: 0 | AG103: 0 | AH103: 0
B104: Zellenfehler | C104: Ein3 | D104: =IF(AND(D113>0,D113<D112),3,IF(AND(D113=0,D114>0),1,0))*D$86 -> 0 | E104: =IF(AND(E113>0,E113<E112),3,IF(AND(E113=0,E114>0),1,0))*E$86 -> 0 | F104: 0 | G104: 0 | H104: 0 | I104: 0 | J104: 0 | K104: 0 | L104: 0 | M104: 0 | N104: 0 | O104: 0 | P104: 0 | Q104: 0 | R104: 0 | S104: 0 | T104: 0 | U104: 0 | V104: 0 | W104: 0 | X104: 0 | Y104: 0 | Z104: 0 | AA104: 0 | AB104: 0 | AC104: 0 | AD104: 0 | AE104: 0 | AF104: 0 | AG104: 0 | AH104: 0
C105: Aus3 | D105: =IF(AND(D114>0,D114<D113),3,IF(AND(D113>0,D114=0),1,0))*D$86 -> 0 | E105: =IF(AND(E114>0,E114<E113),3,IF(AND(E113>0,E114=0),1,0))*E$86 -> 0 | F105: 0 | G105: 0 | H105: 0 | I105: 0 | J105: 0 | K105: 0 | L105: 0 | M105: 0 | N105: 0 | O105: 0 | P105: 0 | Q105: 0 | R105: 0 | S105: 0 | T105: 0 | U105: 0 | V105: 0 | W105: 0 | X105: 0 | Y105: 0 | Z105: 0 | AA105: 0 | AB105: 0 | AC105: 0 | AD105: 0 | AE105: 0 | AF105: 0 | AG105: 0 | AH105: 0
C106: Ein4 | D106: =IF(AND(D115>0,D115<D114),3,IF(AND(D115=0,D116>0),1,0))*D$86 -> 0 | E106: =IF(AND(E115>0,E115<E114),3,IF(AND(E115=0,E116>0),1,0))*E$86 -> 0 | F106: 0 | G106: 0 | H106: 0 | I106: 0 | J106: 0 | K106: 0 | L106: 0 | M106: 0 | N106: 0 | O106: 0 | P106: 0 | Q106: 0 | R106: 0 | S106: 0 | T106: 0 | U106: 0 | V106: 0 | W106: 0 | X106: 0 | Y106: 0 | Z106: 0 | AA106: 0 | AB106: 0 | AC106: 0 | AD106: 0 | AE106: 0 | AF106: 0 | AG106: 0 | AH106: 0
C107: Aus4 | D107: =IF(AND(D116>0,D116<D115),3,IF(AND(D115>0,D116=0),1,0))*D$86 -> 0 | E107: =IF(AND(E116>0,E116<E115),3,IF(AND(E115>0,E116=0),1,0))*E$86 -> 0 | F107: 0 | G107: 0 | H107: 0 | I107: 0 | J107: 0 | K107: 0 | L107: 0 | M107: 0 | N107: 0 | O107: 0 | P107: 0 | Q107: 0 | R107: 0 | S107: 0 | T107: 0 | U107: 0 | V107: 0 | W107: 0 | X107: 0 | Y107: 0 | Z107: 0 | AA107: 0 | AB107: 0 | AC107: 0 | AD107: 0 | AE107: 0 | AF107: 0 | AG107: 0 | AH107: 0
C109: Ein1 | D109: =ROUND(D5*24,2) -> 0 | E109: 0 | F109: 0 | G109: 0 | H109: 0 | I109: 0 | J109: 0 | K109: 0 | L109: 0 | M109: 0 | N109: 0 | O109: 0 | P109: 0 | Q109: 0 | R109: 0 | S109: 0 | T109: 0 | U109: 0 | V109: 0 | W109: 0 | X109: 0 | Y109: 0 | Z109: 0 | AA109: 0 | AB109: 0 | AC109: 0 | AD109: 0 | AE109: 0 | AF109: 0 | AG109: 0 | AH109: 0
C110: Aus1 | D110: 0 | E110: 0 | F110: 0 | G110: 0 | H110: 0 | I110: 0 | J110: 0 | K110: 0 | L110: 0 | M110: 0 | N110: 0 | O110: 0 | P110: 0 | Q110: 0 | R110: 0 | S110: 0 | T110: 0 | U110: 0 | V110: 0 | W110: 0 | X110: 0 | Y110: 0 | Z110: 0 | AA110: 0 | AB110: 0 | AC110: 0 | AD110: 0 | AE110: 0 | AF110: 0 | AG110: 0 | AH110: 0
B111: Zeiten dezimal gewandelt | C111: Ein2 | D111: 0 | E111: 0 | F111: 0 | G111: 0 | H111: 0 | I111: 0 | J111: 0 | K111: 0 | L111: 0 | M111: 0 | N111: 0 | O111: 0 | P111: 0 | Q111: 0 | R111: 0 | S111: 0 | T111: 0 | U111: 0 | V111: 0 | W111: 0 | X111: 0 | Y111: 0 | Z111: 0 | AA111: 0 | AB111: 0 | AC111: 0 | AD111: 0 | AE111: 0 | AF111: 0 | AG111: 0 | AH111: 0
C112: Aus2 | D112: 0 | E112: 0 | F112: 0 | G112: 0 | H112: 0 | I112: 0 | J112: 0 | K112: 0 | L112: 0 | M112: 0 | N112: 0 | O112: 0 | P112: 0 | Q112: 0 | R112: 0 | S112: 0 | T112: 0 | U112: 0 | V112: 0 | W112: 0 | X112: 0 | Y112: 0 | Z112: 0 | AA112: 0 | AB112: 0 | AC112: 0 | AD112: 0 | AE112: 0 | AF112: 0 | AG112: 0 | AH112: 0
C113: Ein3 | D113: 0 | E113: 0 | F113: 0 | G113: 0 | H113: 0 | I113: 0 | J113: 0 | K113: 0 | L113: 0 | M113: 0 | N113: 0 | O113: 0 | P113: 0 | Q113: 0 | R113: 0 | S113: 0 | T113: 0 | U113: 0 | V113: 0 | W113: 0 | X113: 0 | Y113: 0 | Z113: 0 | AA113: 0 | AB113: 0 | AC113: 0 | AD113: 0 | AE113: 0 | AF113: 0 | AG113: 0 | AH113: 0
C114: Aus3 | D114: 0 | E114: 0 | F114: 0 | G114: 0 | H114: 0 | I114: 0 | J114: 0 | K114: 0 | L114: 0 | M114: 0 | N114: 0 | O114: 0 | P114: 0 | Q114: 0 | R114: 0 | S114: 0 | T114: 0 | U114: 0 | V114: 0 | W114: 0 | X114: 0 | Y114: 0 | Z114: 0 | AA114: 0 | AB114: 0 | AC114: 0 | AD114: 0 | AE114: 0 | AF114: 0 | AG114: 0 | AH114: 0
C115: Ein4 | D115: 0 | E115: 0 | F115: 0 | G115: 0 | H115: 0 | I115: 0 | J115: 0 | K115: 0 | L115: 0 | M115: 0 | N115: 0 | O115: 0 | P115: 0 | Q115: 0 | R115: 0 | S115: 0 | T115: 0 | U115: 0 | V115: 0 | W115: 0 | X115: 0 | Y115: 0 | Z115: 0 | AA115: 0 | AB115: 0 | AC115: 0 | AD115: 0 | AE115: 0 | AF115: 0 | AG115: 0 | AH115: 0
C116: Aus4 | D116: 0 | E116: 0 | F116: 0 | G116: 0 | H116: 0 | I116: 0 | J116: 0 | K116: 0 | L116: 0 | M116: 0 | N116: 0 | O116: 0 | P116: 0 | Q116: 0 | R116: 0 | S116: 0 | T116: 0 | U116: 0 | V116: 0 | W116: 0 | X116: 0 | Y116: 0 | Z116: 0 | AA116: 0 | AB116: 0 | AC116: 0 | AD116: 0 | AE116: 0 | AF116: 0 | AG116: 0 | AH116: 0
B118: Pausenfehler | C118: Gruppe1 | D118: =IF(OR(D109="",D110=""),0,D110-D109) -> 0 | E118: =IF(OR(E109="",E110=""),0,E110-E109) -> 0 | F118: 0 | G118: 0 | H118: 0 | I118: 0 | J118: 0 | K118: 0 | L118: 0 | M118: 0 | N118: 0 | O118: 0 | P118: 0 | Q118: 0 | R118: 0 | S118: 0 | T118: 0 | U118: =IF(OR(U109="",U110=""),0,U110-U109) -> 0 | V118: =IF(OR(V109="",V110=""),0,V110-V109) -> 0 | W118: 0 | X118: 0 | Y118: 0 | Z118: 0 | AA118: 0 | AB118: 0 | AC118: 0 | AD118: 0 | AE118: 0 | AF118: 0 | AG118: 0 | AH118: 0
C119: Gruppe2 | D119: =IF(OR(D111="",D112=""),0,D112-D111) -> 0 | E119: =IF(OR(E111="",E112=""),0,E112-E111) -> 0 | F119: 0 | G119: 0 | H119: 0 | I119: 0 | J119: 0 | K119: 0 | L119: 0 | M119: 0 | N119: 0 | O119: 0 | P119: 0 | Q119: 0 | R119: 0 | S119: 0 | T119: 0 | U119: =IF(OR(U111="",U112=""),0,U112-U111) -> 0 | V119: =IF(OR(V111="",V112=""),0,V112-V111) -> 0 | W119: 0 | X119: 0 | Y119: 0 | Z119: 0 | AA119: 0 | AB119: 0 | AC119: 0 | AD119: 0 | AE119: 0 | AF119: 0 | AG119: 0 | AH119: 0
C120: Gruppe3 | D120: =IF(OR(D113="",D114=""),0,D114-D113) -> 0 | E120: =IF(OR(E113="",E114=""),0,E114-E113) -> 0 | F120: 0 | G120: 0 | H120: 0 | I120: 0 | J120: 0 | K120: 0 | L120: 0 | M120: 0 | N120: 0 | O120: 0 | P120: 0 | Q120: 0 | R120: 0 | S120: 0 | T120: 0 | U120: =IF(OR(U113="",U114=""),0,U114-U113) -> 0 | V120: =IF(OR(V113="",V114=""),0,V114-V113) -> 0 | W120: 0 | X120: 0 | Y120: 0 | Z120: 0 | AA120: 0 | AB120: 0 | AC120: 0 | AD120: 0 | AE120: 0 | AF120: 0 | AG120: 0 | AH120: 0
C121: Gruppe4 | D121: =IF(OR(D115="",D116=""),0,D116-D115) -> 0 | E121: =IF(OR(E115="",E116=""),0,E116-E115) -> 0 | F121: 0 | G121: 0 | H121: 0 | I121: 0 | J121: 0 | K121: 0 | L121: 0 | M121: 0 | N121: 0 | O121: 0 | P121: 0 | Q121: 0 | R121: 0 | S121: 0 | T121: 0 | U121: =IF(OR(U115="",U116=""),0,U116-U115) -> 0 | V121: =IF(OR(V115="",V116=""),0,V116-V115) -> 0 | W121: 0 | X121: 0 | Y121: 0 | Z121: 0 | AA121: 0 | AB121: 0 | AC121: 0 | AD121: 0 | AE121: 0 | AF121: 0 | AG121: 0 | AH121: 0
C123: Pause12 | D123: =IF(OR(D110="",D111=""),0,D111-D110) -> 0 | E123: =IF(OR(E110="",E111=""),0,E111-E110) -> 0 | F123: 0 | G123: 0 | H123: 0 | I123: 0 | J123: 0 | K123: 0 | L123: 0 | M123: 0 | N123: 0 | O123: 0 | P123: 0 | Q123: 0 | R123: 0 | S123: 0 | T123: 0 | U123: =IF(OR(U110="",U111=""),0,U111-U110) -> 0 | V123: =IF(OR(V110="",V111=""),0,V111-V110) -> 0 | W123: 0 | X123: 0 | Y123: 0 | Z123: 0 | AA123: 0 | AB123: 0 | AC123: 0 | AD123: 0 | AE123: 0 | AF123: 0 | AG123: 0 | AH123: 0
C124: Pause23 | D124: =IF(OR(D112="",D113=""),0,D113-D112) -> 0 | E124: =IF(OR(E112="",E113=""),0,E113-E112) -> 0 | F124: 0 | G124: 0 | H124: 0 | I124: 0 | J124: 0 | K124: 0 | L124: 0 | M124: 0 | N124: 0 | O124: 0 | P124: 0 | Q124: 0 | R124: 0 | S124: 0 | T124: 0 | U124: =IF(OR(U112="",U113=""),0,U113-U112) -> 0 | V124: =IF(OR(V112="",V113=""),0,V113-V112) -> 0 | W124: 0 | X124: 0 | Y124: 0 | Z124: 0 | AA124: 0 | AB124: 0 | AC124: 0 | AD124: 0 | AE124: 0 | AF124: 0 | AG124: 0 | AH124: 0
C125: Pause34 | D125: =IF(OR(D114="",D115=""),0,D115-D114) -> 0 | E125: =IF(OR(E114="",E115=""),0,E115-E114) -> 0 | F125: 0 | G125: 0 | H125: 0 | I125: 0 | J125: 0 | K125: 0 | L125: 0 | M125: 0 | N125: 0 | O125: 0 | P125: 0 | Q125: 0 | R125: 0 | S125: 0 | T125: 0 | U125: =IF(OR(U114="",U115=""),0,U115-U114) -> 0 | V125: =IF(OR(V114="",V115=""),0,V115-V114) -> 0 | W125: 0 | X125: 0 | Y125: 0 | Z125: 0 | AA125: 0 | AB125: 0 | AC125: 0 | AD125: 0 | AE125: 0 | AF125: 0 | AG125: 0 | AH125: 0
C127: Kum12 | D127: =IF(D123>=0.5,0,D118+D119) -> 0 | E127: =IF(E123>=0.5,0,E118+E119) -> 0 | F127: 0 | G127: 0 | H127: 0 | I127: 0 | J127: 0 | K127: 0 | L127: 0 | M127: 0 | N127: 0 | O127: 0 | P127: 0 | Q127: 0 | R127: 0 | S127: 0 | T127: 0 | U127: =IF(U123>=0.5,0,U118+U119) -> 0 | V127: =IF(V123>=0.5,0,V118+V119) -> 0 | W127: 0 | X127: 0 | Y127: 0 | Z127: 0 | AA127: 0 | AB127: 0 | AC127: 0 | AD127: 0 | AE127: 0 | AF127: 0 | AG127: 0 | AH127: 0
C128: Kum123 | D128: =IF(OR(D123>=0.5,D124>=0.5),0,D118+D119+D120) -> 0 | E128: =IF(OR(E123>=0.5,E124>=0.5),0,E118+E119+E120) -> 0 | F128: 0 | G128: 0 | H128: 0 | I128: 0 | J128: 0 | K128: 0 | L128: 0 | M128: 0 | N128: 0 | O128: 0 | P128: 0 | Q128: 0 | R128: 0 | S128: 0 | T128: 0 | U128: =IF(OR(U123>=0.5,U124>=0.5),0,U118+U119+U120) -> 0 | V128: =IF(OR(V123>=0.5,V124>=0.5),0,V118+V119+V120) -> 0 | W128: 0 | X128: 0 | Y128: 0 | Z128: 0 | AA128: 0 | AB128: 0 | AC128: 0 | AD128: 0 | AE128: 0 | AF128: 0 | AG128: 0 | AH128: 0
C129: Kum1234 | D129: =IF(OR(D123>=0.5,D124>=0.5,D125>=0.5),0,D118+D119+D120+D121) -> 0 | E129: =IF(OR(E123>=0.5,E124>=0.5,E125>=0.5),0,E118+E119+E120+E121) -> 0 | F129: 0 | G129: 0 | H129: 0 | I129: 0 | J129: 0 | K129: 0 | L129: 0 | M129: 0 | N129: 0 | O129: 0 | P129: 0 | Q129: 0 | R129: 0 | S129: 0 | T129: 0 | U129: =IF(OR(U123>=0.5,U124>=0.5,U125>=0.5),0,U118+U119+U120+U121) -> 0 | V129: =IF(OR(V123>=0.5,V124>=0.5,V125>=0.5),0,V118+V119+V120+V121) -> 0 | W129: 0 | X129: 0 | Y129: 0 | Z129: 0 | AA129: 0 | AB129: 0 | AC129: 0 | AD129: 0 | AE129: 0 | AF129: 0 | AG129: 0 | AH129: 0
C130: Kum23 | D130: =IF(D124>=0.5,0,D119+D120) -> 0 | E130: =IF(E124>=0.5,0,E119+E120) -> 0 | F130: 0 | G130: 0 | H130: 0 | I130: 0 | J130: 0 | K130: 0 | L130: 0 | M130: 0 | N130: 0 | O130: 0 | P130: 0 | Q130: 0 | R130: 0 | S130: 0 | T130: 0 | U130: =IF(U124>=0.5,0,U119+U120) -> 0 | V130: =IF(V124>=0.5,0,V119+V120) -> 0 | W130: 0 | X130: 0 | Y130: 0 | Z130: 0 | AA130: 0 | AB130: 0 | AC130: 0 | AD130: 0 | AE130: 0 | AF130: 0 | AG130: 0 | AH130: 0
C131: Kum234 | D131: =IF(OR(D124>=0.5,D125>=0.5),0,D119+D120+D121) -> 0 | E131: =IF(OR(E124>=0.5,E125>=0.5),0,E119+E120+E121) -> 0 | F131: 0 | G131: 0 | H131: 0 | I131: 0 | J131: 0 | K131: 0 | L131: 0 | M131: 0 | N131: 0 | O131: 0 | P131: 0 | Q131: 0 | R131: 0 | S131: 0 | T131: 0 | U131: =IF(OR(U124>=0.5,U125>=0.5),0,U119+U120+U121) -> 0 | V131: =IF(OR(V124>=0.5,V125>=0.5),0,V119+V120+V121) -> 0 | W131: 0 | X131: 0 | Y131: 0 | Z131: 0 | AA131: 0 | AB131: 0 | AC131: 0 | AD131: 0 | AE131: 0 | AF131: 0 | AG131: 0 | AH131: 0
C132: Kum34 | D132: =IF(D125>=0.5,0,D120+D121) -> 0 | E132: =IF(E125>=0.5,0,E120+E121) -> 0 | F132: 0 | G132: 0 | H132: 0 | I132: 0 | J132: 0 | K132: 0 | L132: 0 | M132: 0 | N132: 0 | O132: 0 | P132: 0 | Q132: 0 | R132: 0 | S132: 0 | T132: 0 | U132: =IF(U125>=0.5,0,U120+U121) -> 0 | V132: =IF(V125>=0.5,0,V120+V121) -> 0 | W132: 0 | X132: 0 | Y132: 0 | Z132: 0 | AA132: 0 | AB132: 0 | AC132: 0 | AD132: 0 | AE132: 0 | AF132: 0 | AG132: 0 | AH132: 0
C134: Pausenfehler-Code | D134: =IF(MAX(D118:D121,D127:D132)>6,2,0) -> 0 | E134: =IF(MAX(E118:E121,E127:E132)>6,2,0) -> 0 | F134: 0 | G134: 0 | H134: 0 | I134: 0 | J134: 0 | K134: 0 | L134: 0 | M134: 0 | N134: 0 | O134: 0 | P134: 0 | Q134: 0 | R134: 0 | S134: 0 | T134: 0 | U134: 0 | V134: 0 | W134: 0 | X134: 0 | Y134: 0 | Z134: 0 | AA134: 0 | AB134: 0 | AC134: 0 | AD134: 0 | AE134: 0 | AF134: 0 | AG134: 0 | AH134: 0

Sheet Juni (hidden)
A1: 6 | B1: =DATEVALUE("1."&A1&"."&SL_Jahr) -> 2024-06-01 | C1: =SL_Jahr -> 2024 | D1: =B_Gde -> Gde: | E1: =SL_Gemeinde -> 0 | T1: =B_Schule -> Schule: | U1: =SL_Schule -> 0 | AM1: Abschluss-Teilbedingungen:
A2: =VLOOKUP(A1,Monatsenden,2) -> 45473 | B2: =B_Bg -> BG: | C2: =VLOOKUP(B1,VSA_Kalender,13) -> 1 | D2: =B_Name -> Name: | E2: =SL_Name -> 0 | AM2: Regel ok | AN2: =(AN14>=AN15) -> FALSE | AO2: Nicht Relevant | AP2: =D83=0 -> TRUE | AQ2: -1 | AR2: =IF(AP2=TRUE,AQ2,0) -> -1 | AS2: Nicht Relevant
B3: =Zerf_Version & " " & Zerf_T -> Version VSA 1.06 | D3: =DATE($C$1,MONTH($B$1),D$4) -> 2024-06-01 | E3: =DATE($C$1,MONTH($B$1),E$4) -> 2024-06-02 | F3: 2024-06-03 | G3: 2024-06-04 | H3: 2024-06-05 | I3: 2024-06-06 | J3: 2024-06-07 | K3: 2024-06-08 | L3: 2024-06-09 | M3: 2024-06-10 | N3: 2024-06-11 | O3: 2024-06-12 | P3: 2024-06-13 | Q3: 2024-06-14 | R3: 2024-06-15 | S3: 2024-06-16 | T3: 2024-06-17 | U3: 2024-06-18 | V3: 2024-06-19 | W3: 2024-06-20 | X3: 2024-06-21 | Y3: 2024-06-22 | Z3: 2024-06-23 | AA3: 2024-06-24 | AB3: 2024-06-25 | AC3: 2024-06-26 | AD3: 2024-06-27 | AE3: 2024-06-28 | AF3: =IF(MONTH(DATE($C$1,MONTH($B$1),AF$41))>MONTH($B$1),"",DATE($C$1,MONTH($B$1),AF$4)) -> 2024-06-29 | AG3: =IF(MONTH(DATE($C$1,MONTH($B$1),AG$41))>MONTH($B$1),"",DATE($C$1,MONTH($B$1),AG$4)) -> 2024-06-30 | AH3: =IF(MONTH(DATE($C$1,MONTH($B$1),AH$41))>MONTH($B$1),"",DATE($C$1,MONTH($B$1),AH$4)) ->  | AM3: Spalten ok | AN3: =(L83>=D83) -> TRUE | AO3: Entsperrt | AP3: FALSE | AQ3: 1 | AR3: =AP3*AQ3 -> 0 | AS3: Entsperrt
B4: =IF(VSATestModus=TRUE(),"VSA-Modus!","") ->  | C4: =IF(AN52>0,"DEFEKT","") ->  | D4: =IF(MONTH(DATE($C$1,MONTH($B$1),D$41))>MONTH($B$1),"",D41) -> 1 | E4: 2 | F4: 3 | G4: 4 | H4: 5 | I4: 6 | J4: 7 | K4: 8 | L4: 9 | M4: 10 | N4: 11 | O4: 12 | P4: 13 | Q4: 14 | R4: 15 | S4: 16 | T4: 17 | U4: 18 | V4: 19 | W4: 20 | X4: 21 | Y4: 22 | Z4: 23 | AA4: 24 | AB4: 25 | AC4: 26 | AD4: 27 | AE4: 28 | AF4: =IF(MONTH(DATE($C$1,MONTH($B$1),AF$41))>MONTH($B$1),"",AF41) -> 29 | AG4: =IF(MONTH(DATE($C$1,MONTH($B$1),AG$41))>MONTH($B$1),"",AG41) -> 30 | AH4: =IF(MONTH(DATE($C$1,MONTH($B$1),AH$41))>MONTH($B$1),"",AH41) ->  | AM4: Keine Fehler | AN4: =(SUM(D87:AH87)=0) -> TRUE | AO4: Geändert | AP4: FALSE | AQ4: 2 | AR4: =AP4*AQ4 -> 0 | AS4: Geändert
B5: Ein >>> | AM5: Keine Hand | AN5: =(AI12="") -> TRUE | AO5: Sperre | AP5: =AS11=2 -> FALSE | AQ5: 3 | AR5: =NOT(AP6)*AQ5 -> 3 | AS5: Eingaben vornehmen
B6: <<< Aus | AO6: Abschliessbar 1 | AP6: =AND(OR(AN2,AN3),AN4,AN5,NOT(AP7),NOT(AP2)) -> FALSE | AQ6: 4 | AR6: =AND(NOT(OR(AP3,AP4)),AP6)*AQ6 -> 0 | AS6: Abschliessbar 1
B7: Ein >>> | AO7: Abgeschlossen | AP7: FALSE | AQ7: 5 | AR7: =AND(NOT(OR(AP3,AP4)),AP7)*AQ7 -> 0 | AS7: Abgeschlossen
B8: <<< Aus | AO8: Für Jahr OK | AP8: =AND(OR(AP2,AP7),NOT(AP3)) -> TRUE
B9: Ein >>>
B10: <<< Aus | AO10: Statusnummer: | AP10: =IF(AR2=AQ2,AQ2,MAX(AR2:AR7)) -> -1
B11: Ein >>> | AM11: HatDaten: | AN11: =AND(AP2=FALSE,OR(AP10<>3,COUNTA(D5:AH12,D20:AH35,D39:L40)>0)) -> FALSE | AO11: Statustext: | AP11: =IFERROR(VLOOKUP(AP10,AR2:AS7,2,FALSE),"unbekannt") -> Nicht Relevant | AS11: 1
B12: <<< Aus | AI12: =IF(COUNTIF(D37:AH37,"I")>0,"I","") -> 
B13: =B_PrZeit -> Präsenzzeit | D13: =24*(D6-D5+D8-D7+D10-D9+D12-D11)*D88 -> 0 | E13: =24*(E6-E5+E8-E7+E10-E9+E12-E11)*E88 -> 0 | F13: 0 | G13: 0 | H13: 0 | I13: 0 | J13: 0 | K13: 0 | L13: 0 | M13: 0 | N13: 0 | O13: 0 | P13: 0 | Q13: 0 | R13: 0 | S13: 0 | T13: 0 | U13: 0 | V13: 0 | W13: 0 | X13: 0 | Y13: 0 | Z13: 0 | AA13: 0 | AB13: 0 | AC13: 0 | AD13: 0 | AE13: 0 | AF13: 0 | AG13: 0 | AH13: 0 | AM13: Anzahl Regeltage: | AN13: =D83 -> 0
B14: =B_TotalAZist -> Total Arbeitszeit (IST) | D14: =IF(D13+D35>=D15,D13+D35,MIN(D13+D35+SUM(D20,D22,D23,D24,D25,D26,D27,D28,D29,D30,D31,D32,D33,D34),IF(D15<0,0,D15)))*D82 -> 0 | E14: 0 | F14: 0 | G14: 0 | H14: 0 | I14: 0 | J14: 0 | K14: 0 | L14: 0 | M14: 0 | N14: 0 | O14: 0 | P14: 0 | Q14: 0 | R14: =IF(R13+R35>=R15,R13+R35,MIN(R13+R35+SUM(R20,R22,R23,R24,R25,R26,R27,R28,R29,R30,R31,R32,R33,R34),IF(R15<0,0,R15)))*R82 -> 0 | S14: =IF(S13+S35>=S15,S13+S35,MIN(S13+S35+SUM(S20,S22,S23,S24,S25,S26,S27,S28,S29,S30,S31,S32,S33,S34),IF(S15<0,0,S15)))*S82 -> 0 | T14: =IF(T13+T35>=T15,T13+T35,MIN(T13+T35+SUM(T20,T22,T23,T24,T25,T26,T27,T28,T29,T30,T31,T32,T33,T34),IF(T15<0,0,T15)))*T82 -> 0 | U14: =IF(U13+U35>=U15,U13+U35,MIN(U13+U35+SUM(U20,U22,U23,U24,U25,U26,U27,U28,U29,U30,U31,U32,U33,U34),IF(U15<0,0,U15)))*U82 -> 0 | V14: 0 | W14: 0 | X14: 0 | Y14: 0 | Z14: 0 | AA14: 0 | AB14: 0 | AC14: 0 | AD14: 0 | AE14: 0 | AF14: 0 | AG14: 0 | AH14: 0 | AI14: =SUMIF($D$82:$AH$82,1,D14:AH14) -> 0 | AJ14: =AI14-AI15 -> 0 | AM14: Erfasste Regeltage | AN14: =L83 -> 0 | AO14: =AN13-AN14 -> 0 | AP14: Fehlende Regeltage
B15: =B_NettoSollAZ -> Netto-SOLL-Arbeitszeit | D15: =ROUND(D16-D19,2) -> 0 | E15: =ROUND(E16-E19,2) -> 0 | F15: 0 | G15: 0 | H15: 0 | I15: 0 | J15: 0 | K15: 0 | L15: 0 | M15: 0 | N15: 0 | O15: 0 | P15: 0 | Q15: 0 | R15: 0 | S15: 0 | T15: 0 | U15: 0 | V15: 0 | W15: 0 | X15: 0 | Y15: 0 | Z15: 0 | AA15: 0 | AB15: 0 | AC15: 0 | AD15: 0 | AE15: 0 | AF15: =IF(AF$42=4,0,ROUND(AF16-AF19,2)) -> 0 | AG15: =IF(AG$42=4,0,ROUND(AG16-AG19,2)) -> 0 | AH15: 0 | AI15: =SUMIF($D$82:$AH$82,1,D15:AH15) -> 0 | AM15: Minimum Regeltage | AN15: =MinRegeltage -> 1 | AO15: Ist als Konstante im Blatt "Intern" hinterlegt
B16: =B_BruttoSollAZ -> Brutto-SOLL-Arb.zeit | D16: =VLOOKUP(D3,VSA_Kalender,16) -> 0 | E16: 0 | F16: 0 | G16: 0 | H16: 0 | I16: 0 | J16: 0 | K16: 0 | L16: 0 | M16: 0 | N16: 0 | O16: 0 | P16: 0 | Q16: 0 | R16: 0 | S16: 0 | T16: 0 | U16: 0 | V16: 0 | W16: 0 | X16: 0 | Y16: 0 | Z16: 0 | AA16: 0 | AB16: 0 | AC16: 0 | AD16: 0 | AE16: 0 | AF16: =IF(AF$42=4,0,VLOOKUP(AF3,VSA_Kalender,16)) -> 0 | AG16: =IF(AG$42=4,0,VLOOKUP(AG3,VSA_Kalender,16)) -> 0 | AH16: =IF(AH$42=4,0,VLOOKUP(AH3,VSA_Kalender,16)) -> 0 | AM16: Regel ok | AN16: Mind. eigetr. Regeltage erfüllt
B17: =B_MehrMinder -> Mehr-/Minderleistung | D17: =(SL_BisDatum>=D3)*ROUND(D14-D15,2) -> 0 | E17: 0 | F17: 0 | G17: 0 | H17: 0 | I17: 0 | J17: 0 | K17: 0 | L17: 0 | M17: 0 | N17: 0 | O17: 0 | P17: 0 | Q17: 0 | R17: 0 | S17: 0 | T17: 0 | U17: 0 | V17: 0 | W17: 0 | X17: 0 | Y17: 0 | Z17: 0 | AA17: 0 | AB17: 0 | AC17: 0 | AD17: 0 | AE17: 0 | AF17: 0 | AG17: 0 | AH17: 0 | AI17: =B_Total -> Total | AJ17: =B_Vortrag -> Vortrag | AM17: Spalten ok: | AN17: Alle Einträge an Regeltagen ok
B18: =B_AZSaldo -> AZ - Saldo | C18: =VLOOKUP(ROW(),VSA_Uebertrag,$A$1+3) -> 16.8 | D18: =IFERROR((C18+D17)*(D3<=SL_BisDatum)*VLOOKUP(D3,VSA_Kalender,21,FALSE),0) -> 0 | E18: 0 | F18: 0 | G18: =IFERROR((F18+G17)*(G3<=SL_BisDatum)*VLOOKUP(G3,VSA_Kalender,21,FALSE),0) -> 0 | H18: 0 | I18: 0 | J18: 0 | K18: 0 | L18: 0 | M18: 0 | N18: 0 | O18: 0 | P18: 0 | Q18: 0 | R18: 0 | S18: 0 | T18: 0 | U18: 0 | V18: 0 | W18: 0 | X18: 0 | Y18: 0 | Z18: 0 | AA18: 0 | AB18: 0 | AC18: 0 | AD18: 0 | AE18: 0 | AF18: 0 | AG18: 0 | AH18: 0 | AJ18: =SUMIF($D$82:$AH$82,1,D17:AH17)+C18 -> 16.8
B19: =B_FTA -> Feiertagsanspruch | C19: 0 | D19: =VLOOKUP(D3,VSA_Kalender,14) -> 0 | E19: 0 | F19: 0 | G19: 0 | H19: 0 | I19: 0 | J19: 0 | K19: 0 | L19: 0 | M19: 0 | N19: 0 | O19: 0 | P19: 0 | Q19: 0 | R19: 0 | S19: 0 | T19: 0 | U19: 0 | V19: 0 | W19: 0 | X19: 0 | Y19: 0 | Z19: 0 | AA19: 0 | AB19: 0 | AC19: 0 | AD19: 0 | AE19: 0 | AF19: =IF(AF$42=4,0,VLOOKUP(AF3,VSA_Kalender,14)) -> 0 | AG19: =IF(AG$42=4,0,VLOOKUP(AG3,VSA_Kalender,14)) -> 0 | AH19: =IF(AH$42=4,0,VLOOKUP(AH3,VSA_Kalender,14)) -> 0 | AI19: =SUM(D19:AH19) -> 0
B20: =B_Ferien -> Ferien | C20: =VLOOKUP(ROW(),VSA_Uebertrag,$A$1+3) -> 0 | AI20: =SUMIF($D$82:$AH$82,1,D20:AH20) -> 0 | AJ20: =ROUND(C20-AI20,2) -> 0 | AK20: Rest
B21: =B_KompAZ -> Kompensation Arbeitstage | C21: 0 | AI21: 0 | AJ21: =ROUND(A21+C21-AI21,0) -> 0
B22: =B_Arzt -> Arztbesuch | C22: 0 | AI22: 0 | AJ22: =ROUND(A22+C22+AI22,2) -> 0 | AK22: Summen
B23: =B_Krank -> Krankheit | C23: 0 | AI23: 0 | AJ23: =ROUND(A23+C23+AI23,2) -> 0
B24: =B_BU -> Berufsunfall | C24: 0 | AI24: 0 | AJ24: 0
B25: =B_NBU -> Nichtberufsunfall | C25: 0 | AI25: 0 | AJ25: 0
B26: =B_MilZiv -> Militär / Zivilschutz | C26: 0 | AI26: 0 | AJ26: 0
B27: =B_UUB -> Unbezahlter Urlaub | C27: 0 | AI27: 0 | AJ27: =ROUND(A27+C27-AI27,2) -> 0 | AK27: Rest
B28: =B_UB -> Bezahlter Urlaub | C28: 0 | AI28: 0 | AJ28: =ROUND(A28+C28-AI28,2) -> 0
B29: =B_NebenB -> Nebenbeschäftigung | C29: 0 | AI29: 0 | AJ29: 0
B30: =B_DAG -> D A G | C30: 0 | AI30: 0 | AJ30: 0
B31: =B_Divers -> Diverses | C31: 0 | AI31: 0 | AJ31: 0 | AK31: Summen
B32: =B_FamPersErg -> Fam./pers. Ereignisse | C32: 0 | AI32: 0 | AJ32: 0
B33: =B_FZ1 -> freie Zeile 1 | C33: 0 | AI33: 0 | AJ33: 0
B34: =B_FZ2 -> freie Zeile 2 | C34: 0 | AI34: 0 | AJ34: 0
B35: =B_WB -> Weiterbildung | C35: 0 | AI35: 0 | AJ35: 0
B36: =B_FEL -> frei einsetzbare Lekt. | C36: 0 | AI36: =SUM(D36:AH36) -> 0 | AJ36: =ROUND(C36-AI36,0) -> 0
D37: =IF(AND((D13 - D15)+SUM(D20,D22:D34)>0.00001,SUM(D20,D22:D34)>0),"I","") -> 
C38: Visum | D38: Identität: | I38: Datum: | K38: Status:
C39: SL
C40: VG
D41: 1 | E41: 2 | F41: 3 | G41: 4 | H41: 5 | I41: 6 | J41: 7 | K41: 8 | L41: 9 | M41: 10 | N41: 11 | O41: 12 | P41: 13 | Q41: 14 | R41: 15 | S41: 16 | T41: 17 | U41: 18 | V41: 19 | W41: 20 | X41: 21 | Y41: 22 | Z41: 23 | AA41: 24 | AB41: 25 | AC41: 26 | AD41: 27 | AE41: 28 | AF41: 29 | AG41: 30 | AH41: 31
D42: =IF(D3="",4,VLOOKUP(D3,VSA_Kalender,18)) -> 1 | E42: 1 | F42: 0 | G42: 0 | H42: 0 | I42: 0 | J42: 0 | K42: 1 | L42: 1 | M42: 0 | N42: 0 | O42: 0 | P42: 0 | Q42: 0 | R42: 1 | S42: 1 | T42: 0 | U42: 0 | V42: 0 | W42: 0 | X42: 0 | Y42: 1 | Z42: 1 | AA42: 0 | AB42: 0 | AC42: 0 | AD42: 0 | AE42: 0 | AF42: 1 | AG42: 1 | AH42: 4
D44: =IF(D19>0,VLOOKUP(D3,KalFeiertage,6,FALSE),"") -> 
D45: FT=WENN(D13+D35>=D15;D13+D35;MIN(D13+D35+SUMME(D20;D22;D23;D24;D25;D26;D27;D28;D29;D30;D31;D32;D33;D34);WENN(D15<0;0;D15)))*D82 | E45: FT=WENN(E13+E35>=E15;E13+E35;MIN(E13+E35+SUMME(E20;E22;E23;E24;E25;E26;E27;E28;E29;E30;E31;E32;E33;E34);WENN(E15<0;0;E15)))*E82 | F45: FT=WENN(F13+F35>=F15;F13+F35;MIN(F13+F35+SUMME(F20;F22;F23;F24;F25;F26;F27;F28;F29;F30;F31;F32;F33;F34);WENN(F15<0;0;F15)))*F82 | G45: FT=WENN(G13+G35>=G15;G13+G35;MIN(G13+G35+SUMME(G20;G22;G23;G24;G25;G26;G27;G28;G29;G30;G31;G32;G33;G34);WENN(G15<0;0;G15)))*G82 | H45: FT=WENN(H13+H35>=H15;H13+H35;MIN(H13+H35+SUMME(H20;H22;H23;H24;H25;H26;H27;H28;H29;H30;H31;H32;H33;H34);WENN(H15<0;0;H15)))*H82 | I45: FT=WENN(I13+I35>=I15;I13+I35;MIN(I13+I35+SUMME(I20;I22;I23;I24;I25;I26;I27;I28;I29;I30;I31;I32;I33;I34);WENN(I15<0;0;I15)))*I82 | J45: FT=WENN(J13+J35>=J15;J13+J35;MIN(J13+J35+SUMME(J20;J22;J23;J24;J25;J26;J27;J28;J29;J30;J31;J32;J33;J34);WENN(J15<0;0;J15)))*J82 | K45: FT=WENN(K13+K35>=K15;K13+K35;MIN(K13+K35+SUMME(K20;K22;K23;K24;K25;K26;K27;K28;K29;K30;K31;K32;K33;K34);WENN(K15<0;0;K15)))*K82 | L45: FT=WENN(L13+L35>=L15;L13+L35;MIN(L13+L35+SUMME(L20;L22;L23;L24;L25;L26;L27;L28;L29;L30;L31;L32;L33;L34);WENN(L15<0;0;L15)))*L82 | M45: FT=WENN(M13+M35>=M15;M13+M35;MIN(M13+M35+SUMME(M20;M22;M23;M24;M25;M26;M27;M28;M29;M30;M31;M32;M33;M34);WENN(M15<0;0;M15)))*M82 | N45: FT=WENN(N13+N35>=N15;N13+N35;MIN(N13+N35+SUMME(N20;N22;N23;N24;N25;N26;N27;N28;N29;N30;N31;N32;N33;N34);WENN(N15<0;0;N15)))*N82 | O45: FT=WENN(O13+O35>=O15;O13+O35;MIN(O13+O35+SUMME(O20;O22;O23;O24;O25;O26;O27;O28;O29;O30;O31;O32;O33;O34);WENN(O15<0;0;O15)))*O82 | P45: FT=WENN(P13+P35>=P15;P13+P35;MIN(P13+P35+SUMME(P20;P22;P23;P24;P25;P26;P27;P28;P29;P30;P31;P32;P33;P34);WENN(P15<0;0;P15)))*P82 | Q45: FT=WENN(Q13+Q35>=Q15;Q13+Q35;MIN(Q13+Q35+SUMME(Q20;Q22;Q23;Q24;Q25;Q26;Q27;Q28;Q29;Q30;Q31;Q32;Q33;Q34);WENN(Q15<0;0;Q15)))*Q82 | R45: FT=WENN(R13+R35>=R15;R13+R35;MIN(R13+R35+SUMME(R20;R22;R23;R24;R25;R26;R27;R28;R29;R30;R31;R32;R33;R34);WENN(R15<0;0;R15)))*R82 | S45: FT=WENN(S13+S35>=S15;S13+S35;MIN(S13+S35+SUMME(S20;S22;S23;S24;S25;S26;S27;S28;S29;S30;S31;S32;S33;S34);WENN(S15<0;0;S15)))*S82 | T45: FT=WENN(T13+T35>=T15;T13+T35;MIN(T13+T35+SUMME(T20;T22;T23;T24;T25;T26;T27;T28;T29;T30;T31;T32;T33;T34);WENN(T15<0;0;T15)))*T82 | U45: FT=WENN(U13+U35>=U15;U13+U35;MIN(U13+U35+SUMME(U20;U22;U23;U24;U25;U26;U27;U28;U29;U30;U31;U32;U33;U34);WENN(U15<0;0;U15)))*U82 | V45: FT=WENN(V13+V35>=V15;V13+V35;MIN(V13+V35+SUMME(V20;V22;V23;V24;V25;V26;V27;V28;V29;V30;V31;V32;V33;V34);WENN(V15<0;0;V15)))*V82 | W45: FT=WENN(W13+W35>=W15;W13+W35;MIN(W13+W35+SUMME(W20;W22;W23;W24;W25;W26;W27;W28;W29;W30;W31;W32;W33;W34);WENN(W15<0;0;W15)))*W82 | X45: FT=WENN(X13+X35>=X15;X13+X35;MIN(X13+X35+SUMME(X20;X22;X23;X24;X25;X26;X27;X28;X29;X30;X31;X32;X33;X34);WENN(X15<0;0;X15)))*X82 | Y45: FT=WENN(Y13+Y35>=Y15;Y13+Y35;MIN(Y13+Y35+SUMME(Y20;Y22;Y23;Y24;Y25;Y26;Y27;Y28;Y29;Y30;Y31;Y32;Y33;Y34);WENN(Y15<0;0;Y15)))*Y82 | Z45: FT=WENN(Z13+Z35>=Z15;Z13+Z35;MIN(Z13+Z35+SUMME(Z20;Z22;Z23;Z24;Z25;Z26;Z27;Z28;Z29;Z30;Z31;Z32;Z33;Z34);WENN(Z15<0;0;Z15)))*Z82 | AA45: FT=WENN(AA13+AA35>=AA15;AA13+AA35;MIN(AA13+AA35+SUMME(AA20;AA22;AA23;AA24;AA25;AA26;AA27;AA28;AA29;AA30;AA31;AA32;AA33;AA34);WENN(AA15<0;0;AA15)))*AA82 | AB45: FT=WENN(AB13+AB35>=AB15;AB13+AB35;MIN(AB13+AB35+SUMME(AB20;AB22;AB23;AB24;AB25;AB26;AB27;AB28;AB29;AB30;AB31;AB32;AB33;AB34);WENN(AB15<0;0;AB15)))*AB82 | AC45: FT=WENN(AC13+AC35>=AC15;AC13+AC35;MIN(AC13+AC35+SUMME(AC20;AC22;AC23;AC24;AC25;AC26;AC27;AC28;AC29;AC30;AC31;AC32;AC33;AC34);WENN(AC15<0;0;AC15)))*AC82 | AD45: FT=WENN(AD13+AD35>=AD15;AD13+AD35;MIN(AD13+AD35+SUMME(AD20;AD22;AD23;AD24;AD25;AD26;AD27;AD28;AD29;AD30;AD31;AD32;AD33;AD34);WENN(AD15<0;0;AD15)))*AD82 | AE45: FT=WENN(AE13+AE35>=AE15;AE13+AE35;MIN(AE13+AE35+SUMME(AE20;AE22;AE23;AE24;AE25;AE26;AE27;AE28;AE29;AE30;AE31;AE32;AE33;AE34);WENN(AE15<0;0;AE15)))*AE82 | AF45: FT=WENN(AF13+AF35>=AF15;AF13+AF35;MIN(AF13+AF35+SUMME(AF20;AF22;AF23;AF24;AF25;AF26;AF27;AF28;AF29;AF30;AF31;AF32;AF33;AF34);WENN(AF15<0;0;AF15)))*AF82 | AG45: FT=WENN(AG13+AG35>=AG15;AG13+AG35;MIN(AG13+AG35+SUMME(AG20;AG22;AG23;AG24;AG25;AG26;AG27;AG28;AG29;AG30;AG31;AG32;AG33;AG34);WENN(AG15<0;0;AG15)))*AG82 | AH45: FT=WENN(AH13+AH35>=AH15;AH13+AH35;MIN(AH13+AH35+SUMME(AH20;AH22;AH23;AH24;AH25;AH26;AH27;AH28;AH29;AH30;AH31;AH32;AH33;AH34);WENN(AH15<0;0;AH15)))*AH82
D46: FT=24*(D6-D5+D8-D7+D10-D9+D12-D11)*D88 | E46: FT=24*(E6-E5+E8-E7+E10-E9+E12-E11)*E88 | F46: FT=24*(F6-F5+F8-F7+F10-F9+F12-F11)*F88 | G46: FT=24*(G6-G5+G8-G7+G10-G9+G12-G11)*G88 | H46: FT=24*(H6-H5+H8-H7+H10-H9+H12-H11)*H88 | I46: FT=24*(I6-I5+I8-I7+I10-I9+I12-I11)*I88 | J46: FT=24*(J6-J5+J8-J7+J10-J9+J12-J11)*J88 | K46: FT=24*(K6-K5+K8-K7+K10-K9+K12-K11)*K88 | L46: FT=24*(L6-L5+L8-L7+L10-L9+L12-L11)*L88 | M46: FT=24*(M6-M5+M8-M7+M10-M9+M12-M11)*M88 | N46: FT=24*(N6-N5+N8-N7+N10-N9+N12-N11)*N88 | O46: FT=24*(O6-O5+O8-O7+O10-O9+O12-O11)*O88 | P46: FT=24*(P6-P5+P8-P7+P10-P9+P12-P11)*P88 | Q46: FT=24*(Q6-Q5+Q8-Q7+Q10-Q9+Q12-Q11)*Q88 | R46: FT=24*(R6-R5+R8-R7+R10-R9+R12-R11)*R88 | S46: FT=24*(S6-S5+S8-S7+S10-S9+S12-S11)*S88 | T46: FT=24*(T6-T5+T8-T7+T10-T9+T12-T11)*T88 | U46: FT=24*(U6-U5+U8-U7+U10-U9+U12-U11)*U88 | V46: FT=24*(V6-V5+V8-V7+V10-V9+V12-V11)*V88 | W46: FT=24*(W6-W5+W8-W7+W10-W9+W12-W11)*W88 | X46: FT=24*(X6-X5+X8-X7+X10-X9+X12-X11)*X88 | Y46: FT=24*(Y6-Y5+Y8-Y7+Y10-Y9+Y12-Y11)*Y88 | Z46: FT=24*(Z6-Z5+Z8-Z7+Z10-Z9+Z12-Z11)*Z88 | AA46: FT=24*(AA6-AA5+AA8-AA7+AA10-AA9+AA12-AA11)*AA88 | AB46: FT=24*(AB6-AB5+AB8-AB7+AB10-AB9+AB12-AB11)*AB88 | AC46: FT=24*(AC6-AC5+AC8-AC7+AC10-AC9+AC12-AC11)*AC88 | AD46: FT=24*(AD6-AD5+AD8-AD7+AD10-AD9+AD12-AD11)*AD88 | AE46: FT=24*(AE6-AE5+AE8-AE7+AE10-AE9+AE12-AE11)*AE88 | AF46: FT=24*(AF6-AF5+AF8-AF7+AF10-AF9+AF12-AF11)*AF88 | AG46: FT=24*(AG6-AG5+AG8-AG7+AG10-AG9+AG12-AG11)*AG88 | AH46: FT=24*(AH6-AH5+AH8-AH7+AH10-AH9+AH12-AH11)*AH88
D47: FT=ODER(D14>0;D21>0)*1 | E47: FT=ODER(E14>0;E21>0)*1 | F47: FT=ODER(F14>0;F21>0)*1 | G47: FT=ODER(G14>0;G21>0)*1 | H47: FT=ODER(H14>0;H21>0)*1 | I47: FT=ODER(I14>0;I21>0)*1 | J47: FT=ODER(J14>0;J21>0)*1 | K47: FT=ODER(K14>0;K21>0)*1 | L47: FT=ODER(L14>0;L21>0)*1 | M47: FT=ODER(M14>0;M21>0)*1 | N47: FT=ODER(N14>0;N21>0)*1 | O47: FT=ODER(O14>0;O21>0)*1 | P47: FT=ODER(P14>0;P21>0)*1 | Q47: FT=ODER(Q14>0;Q21>0)*1 | R47: FT=ODER(R14>0;R21>0)*1 | S47: FT=ODER(S14>0;S21>0)*1 | T47: FT=ODER(T14>0;T21>0)*1 | U47: FT=ODER(U14>0;U21>0)*1 | V47: FT=ODER(V14>0;V21>0)*1 | W47: FT=ODER(W14>0;W21>0)*1 | X47: FT=ODER(X14>0;X21>0)*1 | Y47: FT=ODER(Y14>0;Y21>0)*1 | Z47: FT=ODER(Z14>0;Z21>0)*1 | AA47: FT=ODER(AA14>0;AA21>0)*1 | AB47: FT=ODER(AB14>0;AB21>0)*1 | AC47: FT=ODER(AC14>0;AC21>0)*1 | AD47: FT=ODER(AD14>0;AD21>0)*1 | AE47: FT=ODER(AE14>0;AE21>0)*1 | AF47: FT=ODER(AF14>0;AF21>0)*1 | AG47: FT=ODER(AG14>0;AG21>0)*1 | AH47: FT=ODER(AH14>0;AH21>0)*1
D48: =ABS("FT"&_xlfn.FORMULATEXT(D14)<>D45) -> 0 | E48: =ABS("FT"&_xlfn.FORMULATEXT(E14)<>E45) -> 0 | F48: 0 | G48: 0 | H48: 0 | I48: 0 | J48: 0 | K48: 0 | L48: 0 | M48: 0 | N48: 0 | O48: 0 | P48: 0 | Q48: 0 | R48: 0 | S48: 0 | T48: 0 | U48: 0 | V48: 0 | W48: 0 | X48: 0 | Y48: 0 | Z48: 0 | AA48: 0 | AB48: 0 | AC48: 0 | AD48: 0 | AE48: 0 | AF48: 0 | AG48: 0 | AH48: 0
D49: =ABS("FT"&_xlfn.FORMULATEXT(D13)<>D46) -> 0 | E49: =ABS("FT"&_xlfn.FORMULATEXT(E13)<>E46) -> 0 | F49: 0 | G49: 0 | H49: 0 | I49: 0 | J49: 0 | K49: 0 | L49: 0 | M49: 0 | N49: 0 | O49: 0 | P49: 0 | Q49: 0 | R49: 0 | S49: 0 | T49: 0 | U49: 0 | V49: 0 | W49: 0 | X49: 0 | Y49: 0 | Z49: 0 | AA49: 0 | AB49: 0 | AC49: 0 | AD49: 0 | AE49: 0 | AF49: 0 | AG49: 0 | AH49: 0
D50: =ABS("FT"&_xlfn.FORMULATEXT(D80)<>D47) -> 0 | E50: =ABS("FT"&_xlfn.FORMULATEXT(E80)<>E47) -> 0 | F50: 0 | G50: 0 | H50: 0 | I50: 0 | J50: 0 | K50: 0 | L50: 0 | M50: 0 | N50: 0 | O50: 0 | P50: 0 | Q50: 0 | R50: 0 | S50: 0 | T50: 0 | U50: 0 | V50: 0 | W50: 0 | X50: 0 | Y50: 0 | Z50: 0 | AA50: 0 | AB50: 0 | AC50: 0 | AD50: 0 | AE50: 0 | AF50: 0 | AG50: 0 | AH50: 0
D51: =ABS(ISERROR(D37)) -> 0 | E51: =ABS(ISERROR(E37)) -> 0 | F51: 0 | G51: 0 | H51: 0 | I51: 0 | J51: 0 | K51: 0 | L51: 0 | M51: 0 | N51: 0 | O51: 0 | P51: 0 | Q51: 0 | R51: 0 | S51: 0 | T51: 0 | U51: 0 | V51: 0 | W51: 0 | X51: 0 | Y51: 0 | Z51: 0 | AA51: 0 | AB51: 0 | AC51: 0 | AD51: 0 | AE51: 0 | AF51: 0 | AG51: 0 | AH51: 0
D52: =SUM(D48:D51) -> 0 | E52: =SUM(E48:E51) -> 0 | F52: 0 | G52: 0 | H52: 0 | I52: 0 | J52: 0 | K52: 0 | L52: 0 | M52: 0 | N52: 0 | O52: 0 | P52: 0 | Q52: 0 | R52: 0 | S52: 0 | T52: 0 | U52: 0 | V52: 0 | W52: 0 | X52: 0 | Y52: 0 | Z52: 0 | AA52: 0 | AB52: 0 | AC52: 0 | AD52: 0 | AE52: 0 | AF52: 0 | AG52: 0 | AH52: 0 | AM52: Formel defekt | AN52: =SUM(D52:AH52) -> 0
B77: HT_Naz-Kopie | C77: =HT_NAZ -> 8.4
B78: Heute: | C78: =SL_BisDatum -> 2024-02-02
C79: Reguläre Tage ausgefüllt | D79: =((D80*D81)=1)*1 -> 0 | E79: =((E80*E81)=1)*1 -> 0 | F79: 0 | G79: 0 | H79: 0 | I79: 0 | J79: 0 | K79: 0 | L79: 0 | M79: 0 | N79: 0 | O79: 0 | P79: 0 | Q79: 0 | R79: 0 | S79: 0 | T79: 0 | U79: 0 | V79: 0 | W79: 0 | X79: 0 | Y79: 0 | Z79: 0 | AA79: 0 | AB79: 0 | AC79: 0 | AD79: 0 | AE79: 0 | AF79: 0 | AG79: 0 | AH79: 0
C80: Arbeitstage ausgefüllt | D80: =OR(D14>0,D21>0)*1 -> 0 | E80: =OR(E14>0,E21>0)*1 -> 0 | F80: 0 | G80: 0 | H80: 0 | I80: 0 | J80: 0 | K80: 0 | L80: 0 | M80: 0 | N80: 0 | O80: 0 | P80: 0 | Q80: 0 | R80: 0 | S80: 0 | T80: 0 | U80: 0 | V80: 0 | W80: 0 | X80: 0 | Y80: 0 | Z80: 0 | AA80: 0 | AB80: 0 | AC80: 0 | AD80: 0 | AE80: 0 | AF80: 0 | AG80: 0 | AH80: 0
C81: Arbeitstage wenn BG>0% | D81: =IFERROR(VLOOKUP(D3,VSA_Kalender,22),0) -> 0 | E81: 0 | F81: 0 | G81: 0 | H81: 0 | I81: 0 | J81: 0 | K81: 0 | L81: 0 | M81: 0 | N81: 0 | O81: 0 | P81: 0 | Q81: 0 | R81: 0 | S81: 0 | T81: 0 | U81: 0 | V81: 0 | W81: 0 | X81: 0 | Y81: 0 | Z81: 0 | AA81: 0 | AB81: 0 | AC81: 0 | AD81: 0 | AE81: 0 | AF81: 0 | AG81: 0 | AH81: 0
C82: Der BG beträgt mehr als 0% | D82: =IF(D4="",0,ABS(VLOOKUP(D3,VSA_Kalender,13,FALSE)>0)) -> 1 | E82: 1 | F82: 1 | G82: 1 | H82: 1 | I82: 1 | J82: 1 | K82: 1 | L82: 1 | M82: 1 | N82: 1 | O82: 1 | P82: 1 | Q82: 1 | R82: 1 | S82: 1 | T82: 1 | U82: 1 | V82: 1 | W82: 1 | X82: 1 | Y82: 1 | Z82: 1 | AA82: 1 | AB82: 1 | AC82: 1 | AD82: 1 | AE82: 1 | AF82: 1 | AG82: 1 | AH82: 0
C83: (Ja: 1, Nein: 0) | D83: =SUM(D81:AH81) -> 0 | E83: Total Tage bei BG>0% | H83: =SUM(D80:AH80) -> 0 | I83: Total Tage ausgefüllt | L83: =SUM(D79:AH79) -> 0 | M83: Total reguläre Tage ausgefüllt
C85: Tag des Monats | D85: =D4 -> 1 | E85: 2 | F85: 3 | G85: 4 | H85: 5 | I85: 6 | J85: 7 | K85: 8 | L85: 9 | M85: 10 | N85: 11 | O85: 12 | P85: 13 | Q85: 14 | R85: 15 | S85: 16 | T85: 17 | U85: 18 | V85: 19 | W85: 20 | X85: 21 | Y85: 22 | Z85: 23 | AA85: 24 | AB85: 25 | AC85: 26 | AD85: 27 | AE85: 28 | AF85: 29 | AG85: 30
C86: Ist Arbeitsbereich | D86: =IFERROR(ABS(WEEKDAY(D3,2)<6),0) -> 0 | E86: 0 | F86: 1 | G86: 1 | H86: 1 | I86: 1 | J86: 1 | K86: 0 | L86: 0 | M86: 1 | N86: 1 | O86: 1 | P86: 1 | Q86: 1 | R86: 0 | S86: 0 | T86: 1 | U86: 1 | V86: 1 | W86: 1 | X86: 1 | Y86: 0 | Z86: 0 | AA86: 1 | AB86: 1 | AC86: 1 | AD86: 1 | AE86: 1 | AF86: 0 | AG86: 0 | AH86: 0
C87: Maximaler Fehler | D87: =MAX(D100:D107,D98,D134) -> 0 | E87: =MAX(E100:E107,E98,E134) -> 0 | F87: 0 | G87: 0 | H87: 0 | I87: 0 | J87: 0 | K87: 0 | L87: 0 | M87: 0 | N87: 0 | O87: 0 | P87: 0 | Q87: 0 | R87: 0 | S87: 0 | T87: 0 | U87: 0 | V87: 0 | W87: 0 | X87: 0 | Y87: 0 | Z87: 0 | AA87: 0 | AB87: 0 | AC87: 0 | AD87: 0 | AE87: 0 | AF87: 0 | AG87: 0 | AH87: 0
C88: Wird die Präsenzzeit angezeigt? | D88: =IF(D87=0,1,0) -> 1 | E88: =IF(E87=0,1,0) -> 1 | F88: 1 | G88: 1 | H88: 1 | I88: 1 | J88: 1 | K88: 1 | L88: 1 | M88: 1 | N88: 1 | O88: 1 | P88: 1 | Q88: 1 | R88: 1 | S88: 1 | T88: 1 | U88: 1 | V88: 1 | W88: 1 | X88: 1 | Y88: 1 | Z88: 1 | AA88: 1 | AB88: 1 | AC88: 1 | AD88: 1 | AE88: 1 | AF88: 1 | AG88: 1 | AH88: 1
C90: Gruppenfehler 1 | D90: =IF(AND(D6-D5=0,COUNTA(D7:D12)>0),1,0) -> 0 | E90: 0 | F90: 0 | G90: 0 | H90: 0 | I90: 0 | J90: 0 | K90: 0 | L90: 0 | M90: 0 | N90: 0 | O90: 0 | P90: 0 | Q90: 0 | R90: 0 | S90: 0 | T90: 0 | U90: 0 | V90: 0 | W90: 0 | X90: 0 | Y90: 0 | Z90: 0 | AA90: 0 | AB90: 0 | AC90: 0 | AD90: 0 | AE90: 0 | AF90: 0 | AG90: 0 | AH90: 0
B91: Gruppenfehler | C91: (aus) | D91: =D90 -> 0 | E91: 0 | F91: 0 | G91: 0 | H91: 0 | I91: 0 | J91: 0 | K91: 0 | L91: 0 | M91: 0 | N91: 0 | O91: 0 | P91: 0 | Q91: 0 | R91: 0 | S91: 0 | T91: 0 | U91: 0 | V91: 0 | W91: 0 | X91: 0 | Y91: 0 | Z91: 0 | AA91: 0 | AB91: 0 | AC91: 0 | AD91: 0 | AE91: 0 | AF91: 0 | AG91: 0 | AH91: 0
C92: Gruppenfehler 2 | D92: =IF(AND(D8-D7=0,COUNTA(D9:D12)>0),1,0) -> 0 | E92: 0 | F92: 0 | G92: 0 | H92: 0 | I92: 0 | J92: 0 | K92: 0 | L92: 0 | M92: 0 | N92: 0 | O92: 0 | P92: 0 | Q92: 0 | R92: 0 | S92: 0 | T92: 0 | U92: 0 | V92: 0 | W92: 0 | X92: 0 | Y92: 0 | Z92: 0 | AA92: 0 | AB92: 0 | AC92: 0 | AD92: 0 | AE92: 0 | AF92: 0 | AG92: 0 | AH92: 0
C93: (aus) | D93: =D92 -> 0 | E93: 0 | F93: 0 | G93: 0 | H93: 0 | I93: 0 | J93: 0 | K93: 0 | L93: 0 | M93: 0 | N93: 0 | O93: 0 | P93: 0 | Q93: 0 | R93: 0 | S93: 0 | T93: 0 | U93: 0 | V93: 0 | W93: 0 | X93: 0 | Y93: 0 | Z93: 0 | AA93: 0 | AB93: 0 | AC93: 0 | AD93: 0 | AE93: 0 | AF93: 0 | AG93: 0 | AH93: 0
C94: Gruppenfehler 3 | D94: =IF(AND(D10-D9=0,COUNTA(D11:D12)>0),1,0) -> 0 | E94: 0 | F94: 0 | G94: 0 | H94: 0 | I94: 0 | J94: 0 | K94: 0 | L94: 0 | M94: 0 | N94: 0 | O94: 0 | P94: 0 | Q94: 0 | R94: 0 | S94: 0 | T94: 0 | U94: 0 | V94: 0 | W94: 0 | X94: 0 | Y94: 0 | Z94: 0 | AA94: 0 | AB94: 0 | AC94: 0 | AD94: 0 | AE94: 0 | AF94: 0 | AG94: 0 | AH94: 0
C95: (aus) | D95: =D94 -> 0 | E95: 0 | F95: 0 | G95: 0 | H95: 0 | I95: 0 | J95: 0 | K95: 0 | L95: 0 | M95: 0 | N95: 0 | O95: 0 | P95: 0 | Q95: 0 | R95: 0 | S95: 0 | T95: 0 | U95: 0 | V95: 0 | W95: 0 | X95: 0 | Y95: 0 | Z95: 0 | AA95: 0 | AB95: 0 | AC95: 0 | AD95: 0 | AE95: 0 | AF95: 0 | AG95: 0 | AH95: 0
C96: leer
C97: leer
C98: Genereller Gruppenfehler | D98: =MAX(D90:D95) -> 0 | E98: 0 | F98: 0 | G98: 0 | H98: 0 | I98: 0 | J98: 0 | K98: 0 | L98: 0 | M98: 0 | N98: 0 | O98: 0 | P98: 0 | Q98: 0 | R98: 0 | S98: 0 | T98: 0 | U98: 0 | V98: 0 | W98: 0 | X98: 0 | Y98: 0 | Z98: 0 | AA98: 0 | AB98: 0 | AC98: 0 | AD98: 0 | AE98: 0 | AF98: 0 | AG98: 0 | AH98: 0
C100: Ein1 | D100: =IF(AND(D109=0,D110>0),1,0) -> 0 | E100: =IF(AND(E109=0,E110>0),1,0) -> 0 | F100: 0 | G100: 0 | H100: 0 | I100: 0 | J100: 0 | K100: 0 | L100: 0 | M100: 0 | N100: 0 | O100: 0 | P100: 0 | Q100: 0 | R100: 0 | S100: 0 | T100: 0 | U100: 0 | V100: 0 | W100: 0 | X100: 0 | Y100: 0 | Z100: 0 | AA100: 0 | AB100: 0 | AC100: 0 | AD100: 0 | AE100: 0 | AF100: 0 | AG100: 0 | AH100: 0
C101: Aus1 | D101: =IF(AND(D110>0,D110<D109),3,IF(AND(D109>0,D110=0),1,0))*D$86 -> 0 | E101: =IF(AND(E110>0,E110<E109),3,IF(AND(E109>0,E110=0),1,0))*E$86 -> 0 | F101: 0 | G101: 0 | H101: 0 | I101: 0 | J101: 0 | K101: 0 | L101: 0 | M101: 0 | N101: 0 | O101: 0 | P101: 0 | Q101: 0 | R101: 0 | S101: 0 | T101: 0 | U101: 0 | V101: 0 | W101: 0 | X101: 0 | Y101: 0 | Z101: 0 | AA101: 0 | AB101: 0 | AC101: 0 | AD101: 0 | AE101: 0 | AF101: 0 | AG101: 0 | AH101: 0
C102: Ein2 | D102: =IF(AND(D111>0,D111<D110),3,IF(AND(D111=0,D112>0),1,0))*D$86 -> 0 | E102: 0 | F102: 0 | G102: 0 | H102: 0 | I102: 0 | J102: 0 | K102: 0 | L102: 0 | M102: 0 | N102: 0 | O102: 0 | P102: 0 | Q102: 0 | R102: 0 | S102: 0 | T102: 0 | U102: 0 | V102: 0 | W102: 0 | X102: 0 | Y102: 0 | Z102: 0 | AA102: 0 | AB102: 0 | AC102: 0 | AD102: 0 | AE102: 0 | AF102: 0 | AG102: 0 | AH102: 0
C103: Aus2 | D103: =IF(AND(D112>0,D112<D111),3,IF(AND(D111>0,D112=0),1,0))*D$86 -> 0 | E103: =IF(AND(E112>0,E112<E111),3,IF(AND(E111>0,E112=0),1,0))*E$86 -> 0 | F103: 0 | G103: 0 | H103: 0 | I103: 0 | J103: 0 | K103: 0 | L103: 0 | M103: 0 | N103: 0 | O103: 0 | P103: 0 | Q103: 0 | R103: 0 | S103: 0 | T103: 0 | U103: 0 | V103: 0 | W103: 0 | X103: 0 | Y103: 0 | Z103: 0 | AA103: 0 | AB103: 0 | AC103: 0 | AD103: 0 | AE103: 0 | AF103: 0 | AG103: 0 | AH103: 0
B104: Zellenfehler | C104: Ein3 | D104: =IF(AND(D113>0,D113<D112),3,IF(AND(D113=0,D114>0),1,0))*D$86 -> 0 | E104: =IF(AND(E113>0,E113<E112),3,IF(AND(E113=0,E114>0),1,0))*E$86 -> 0 | F104: 0 | G104: 0 | H104: 0 | I104: 0 | J104: 0 | K104: 0 | L104: 0 | M104: 0 | N104: 0 | O104: 0 | P104: 0 | Q104: 0 | R104: 0 | S104: 0 | T104: 0 | U104: 0 | V104: 0 | W104: 0 | X104: 0 | Y104: 0 | Z104: 0 | AA104: 0 | AB104: 0 | AC104: 0 | AD104: 0 | AE104: 0 | AF104: 0 | AG104: 0 | AH104: 0
C105: Aus3 | D105: =IF(AND(D114>0,D114<D113),3,IF(AND(D113>0,D114=0),1,0))*D$86 -> 0 | E105: =IF(AND(E114>0,E114<E113),3,IF(AND(E113>0,E114=0),1,0))*E$86 -> 0 | F105: 0 | G105: 0 | H105: 0 | I105: 0 | J105: 0 | K105: 0 | L105: 0 | M105: 0 | N105: 0 | O105: 0 | P105: 0 | Q105: 0 | R105: 0 | S105: 0 | T105: 0 | U105: 0 | V105: 0 | W105: 0 | X105: 0 | Y105: 0 | Z105: 0 | AA105: 0 | AB105: 0 | AC105: 0 | AD105: 0 | AE105: 0 | AF105: 0 | AG105: 0 | AH105: 0
C106: Ein4 | D106: =IF(AND(D115>0,D115<D114),3,IF(AND(D115=0,D116>0),1,0))*D$86 -> 0 | E106: =IF(AND(E115>0,E115<E114),3,IF(AND(E115=0,E116>0),1,0))*E$86 -> 0 | F106: 0 | G106: 0 | H106: 0 | I106: 0 | J106: 0 | K106: 0 | L106: 0 | M106: 0 | N106: 0 | O106: 0 | P106: 0 | Q106: 0 | R106: 0 | S106: 0 | T106: 0 | U106: 0 | V106: 0 | W106: 0 | X106: 0 | Y106: 0 | Z106: 0 | AA106: 0 | AB106: 0 | AC106: 0 | AD106: 0 | AE106: 0 | AF106: 0 | AG106: 0 | AH106: 0
C107: Aus4 | D107: =IF(AND(D116>0,D116<D115),3,IF(AND(D115>0,D116=0),1,0))*D$86 -> 0 | E107: =IF(AND(E116>0,E116<E115),3,IF(AND(E115>0,E116=0),1,0))*E$86 -> 0 | F107: 0 | G107: 0 | H107: 0 | I107: 0 | J107: 0 | K107: 0 | L107: 0 | M107: 0 | N107: 0 | O107: 0 | P107: 0 | Q107: 0 | R107: 0 | S107: 0 | T107: 0 | U107: 0 | V107: 0 | W107: 0 | X107: 0 | Y107: 0 | Z107: 0 | AA107: 0 | AB107: 0 | AC107: 0 | AD107: 0 | AE107: 0 | AF107: 0 | AG107: 0 | AH107: 0
C109: Ein1 | D109: =ROUND(D5*24,2) -> 0 | E109: 0 | F109: 0 | G109: 0 | H109: 0 | I109: 0 | J109: 0 | K109: 0 | L109: 0 | M109: 0 | N109: 0 | O109: 0 | P109: 0 | Q109: 0 | R109: 0 | S109: 0 | T109: 0 | U109: 0 | V109: 0 | W109: 0 | X109: 0 | Y109: 0 | Z109: 0 | AA109: 0 | AB109: 0 | AC109: 0 | AD109: 0 | AE109: 0 | AF109: 0 | AG109: 0 | AH109: 0
C110: Aus1 | D110: 0 | E110: 0 | F110: 0 | G110: 0 | H110: 0 | I110: 0 | J110: 0 | K110: 0 | L110: 0 | M110: 0 | N110: 0 | O110: 0 | P110: 0 | Q110: 0 | R110: 0 | S110: 0 | T110: 0 | U110: 0 | V110: 0 | W110: 0 | X110: 0 | Y110: 0 | Z110: 0 | AA110: 0 | AB110: 0 | AC110: 0 | AD110: 0 | AE110: 0 | AF110: 0 | AG110: 0 | AH110: 0
B111: Zeiten dezimal gewandelt | C111: Ein2 | D111: 0 | E111: 0 | F111: 0 | G111: 0 | H111: 0 | I111: 0 | J111: 0 | K111: 0 | L111: 0 | M111: 0 | N111: 0 | O111: 0 | P111: 0 | Q111: 0 | R111: 0 | S111: 0 | T111: 0 | U111: 0 | V111: 0 | W111: 0 | X111: 0 | Y111: 0 | Z111: 0 | AA111: 0 | AB111: 0 | AC111: 0 | AD111: 0 | AE111: 0 | AF111: 0 | AG111: 0 | AH111: 0
C112: Aus2 | D112: 0 | E112: 0 | F112: 0 | G112: 0 | H112: 0 | I112: 0 | J112: 0 | K112: 0 | L112: 0 | M112: 0 | N112: 0 | O112: 0 | P112: 0 | Q112: 0 | R112: 0 | S112: 0 | T112: 0 | U112: 0 | V112: 0 | W112: 0 | X112: 0 | Y112: 0 | Z112: 0 | AA112: 0 | AB112: 0 | AC112: 0 | AD112: 0 | AE112: 0 | AF112: 0 | AG112: 0 | AH112: 0
C113: Ein3 | D113: 0 | E113: 0 | F113: 0 | G113: 0 | H113: 0 | I113: 0 | J113: 0 | K113: 0 | L113: 0 | M113: 0 | N113: 0 | O113: 0 | P113: 0 | Q113: 0 | R113: 0 | S113: 0 | T113: 0 | U113: 0 | V113: 0 | W113: 0 | X113: 0 | Y113: 0 | Z113: 0 | AA113: 0 | AB113: 0 | AC113: 0 | AD113: 0 | AE113: 0 | AF113: 0 | AG113: 0 | AH113: 0
C114: Aus3 | D114: 0 | E114: 0 | F114: 0 | G114: 0 | H114: 0 | I114: 0 | J114: 0 | K114: 0 | L114: 0 | M114: 0 | N114: 0 | O114: 0 | P114: 0 | Q114: 0 | R114: 0 | S114: 0 | T114: 0 | U114: 0 | V114: 0 | W114: 0 | X114: 0 | Y114: 0 | Z114: 0 | AA114: 0 | AB114: 0 | AC114: 0 | AD114: 0 | AE114: 0 | AF114: 0 | AG114: 0 | AH114: 0
C115: Ein4 | D115: 0 | E115: 0 | F115: 0 | G115: 0 | H115: 0 | I115: 0 | J115: 0 | K115: 0 | L115: 0 | M115: 0 | N115: 0 | O115: 0 | P115: 0 | Q115: 0 | R115: 0 | S115: 0 | T115: 0 | U115: 0 | V115: 0 | W115: 0 | X115: 0 | Y115: 0 | Z115: 0 | AA115: 0 | AB115: 0 | AC115: 0 | AD115: 0 | AE115: 0 | AF115: 0 | AG115: 0 | AH115: 0
C116: Aus4 | D116: 0 | E116: 0 | F116: 0 | G116: 0 | H116: 0 | I116: 0 | J116: 0 | K116: 0 | L116: 0 | M116: 0 | N116: 0 | O116: 0 | P116: 0 | Q116: 0 | R116: 0 | S116: 0 | T116: 0 | U116: 0 | V116: 0 | W116: 0 | X116: 0 | Y116: 0 | Z116: 0 | AA116: 0 | AB116: 0 | AC116: 0 | AD116: 0 | AE116: 0 | AF116: 0 | AG116: 0 | AH116: 0
B118: Pausenfehler | C118: Gruppe1 | D118: =IF(OR(D109="",D110=""),0,D110-D109) -> 0 | E118: =IF(OR(E109="",E110=""),0,E110-E109) -> 0 | F118: 0 | G118: 0 | H118: 0 | I118: 0 | J118: 0 | K118: 0 | L118: 0 | M118: 0 | N118: 0 | O118: 0 | P118: 0 | Q118: 0 | R118: 0 | S118: 0 | T118: 0 | U118: =IF(OR(U109="",U110=""),0,U110-U109) -> 0 | V118: =IF(OR(V109="",V110=""),0,V110-V109) -> 0 | W118: 0 | X118: 0 | Y118: 0 | Z118: 0 | AA118: 0 | AB118: 0 | AC118: 0 | AD118: 0 | AE118: 0 | AF118: 0 | AG118: 0 | AH118: 0
C119: Gruppe2 | D119: =IF(OR(D111="",D112=""),0,D112-D111) -> 0 | E119: =IF(OR(E111="",E112=""),0,E112-E111) -> 0 | F119: 0 | G119: 0 | H119: 0 | I119: 0 | J119: 0 | K119: 0 | L119: 0 | M119: 0 | N119: 0 | O119: 0 | P119: 0 | Q119: 0 | R119: 0 | S119: 0 | T119: 0 | U119: =IF(OR(U111="",U112=""),0,U112-U111) -> 0 | V119: =IF(OR(V111="",V112=""),0,V112-V111) -> 0 | W119: 0 | X119: 0 | Y119: 0 | Z119: 0 | AA119: 0 | AB119: 0 | AC119: 0 | AD119: 0 | AE119: 0 | AF119: 0 | AG119: 0 | AH119: 0
C120: Gruppe3 | D120: =IF(OR(D113="",D114=""),0,D114-D113) -> 0 | E120: =IF(OR(E113="",E114=""),0,E114-E113) -> 0 | F120: 0 | G120: 0 | H120: 0 | I120: 0 | J120: 0 | K120: 0 | L120: 0 | M120: 0 | N120: 0 | O120: 0 | P120: 0 | Q120: 0 | R120: 0 | S120: 0 | T120: 0 | U120: =IF(OR(U113="",U114=""),0,U114-U113) -> 0 | V120: =IF(OR(V113="",V114=""),0,V114-V113) -> 0 | W120: 0 | X120: 0 | Y120: 0 | Z120: 0 | AA120: 0 | AB120: 0 | AC120: 0 | AD120: 0 | AE120: 0 | AF120: 0 | AG120: 0 | AH120: 0
C121: Gruppe4 | D121: =IF(OR(D115="",D116=""),0,D116-D115) -> 0 | E121: =IF(OR(E115="",E116=""),0,E116-E115) -> 0 | F121: 0 | G121: 0 | H121: 0 | I121: 0 | J121: 0 | K121: 0 | L121: 0 | M121: 0 | N121: 0 | O121: 0 | P121: 0 | Q121: 0 | R121: 0 | S121: 0 | T121: 0 | U121: =IF(OR(U115="",U116=""),0,U116-U115) -> 0 | V121: =IF(OR(V115="",V116=""),0,V116-V115) -> 0 | W121: 0 | X121: 0 | Y121: 0 | Z121: 0 | AA121: 0 | AB121: 0 | AC121: 0 | AD121: 0 | AE121: 0 | AF121: 0 | AG121: 0 | AH121: 0
C123: Pause12 | D123: =IF(OR(D110="",D111=""),0,D111-D110) -> 0 | E123: =IF(OR(E110="",E111=""),0,E111-E110) -> 0 | F123: 0 | G123: 0 | H123: 0 | I123: 0 | J123: 0 | K123: 0 | L123: 0 | M123: 0 | N123: 0 | O123: 0 | P123: 0 | Q123: 0 | R123: 0 | S123: 0 | T123: 0 | U123: =IF(OR(U110="",U111=""),0,U111-U110) -> 0 | V123: =IF(OR(V110="",V111=""),0,V111-V110) -> 0 | W123: 0 | X123: 0 | Y123: 0 | Z123: 0 | AA123: 0 | AB123: 0 | AC123: 0 | AD123: 0 | AE123: 0 | AF123: 0 | AG123: 0 | AH123: 0
C124: Pause23 | D124: =IF(OR(D112="",D113=""),0,D113-D112) -> 0 | E124: =IF(OR(E112="",E113=""),0,E113-E112) -> 0 | F124: 0 | G124: 0 | H124: 0 | I124: 0 | J124: 0 | K124: 0 | L124: 0 | M124: 0 | N124: 0 | O124: 0 | P124: 0 | Q124: 0 | R124: 0 | S124: 0 | T124: 0 | U124: =IF(OR(U112="",U113=""),0,U113-U112) -> 0 | V124: =IF(OR(V112="",V113=""),0,V113-V112) -> 0 | W124: 0 | X124: 0 | Y124: 0 | Z124: 0 | AA124: 0 | AB124: 0 | AC124: 0 | AD124: 0 | AE124: 0 | AF124: 0 | AG124: 0 | AH124: 0
C125: Pause34 | D125: =IF(OR(D114="",D115=""),0,D115-D114) -> 0 | E125: =IF(OR(E114="",E115=""),0,E115-E114) -> 0 | F125: 0 | G125: 0 | H125: 0 | I125: 0 | J125: 0 | K125: 0 | L125: 0 | M125: 0 | N125: 0 | O125: 0 | P125: 0 | Q125: 0 | R125: 0 | S125: 0 | T125: 0 | U125: =IF(OR(U114="",U115=""),0,U115-U114) -> 0 | V125: =IF(OR(V114="",V115=""),0,V115-V114) -> 0 | W125: 0 | X125: 0 | Y125: 0 | Z125: 0 | AA125: 0 | AB125: 0 | AC125: 0 | AD125: 0 | AE125: 0 | AF125: 0 | AG125: 0 | AH125: 0
C127: Kum12 | D127: =IF(D123>=0.5,0,D118+D119) -> 0 | E127: =IF(E123>=0.5,0,E118+E119) -> 0 | F127: 0 | G127: 0 | H127: 0 | I127: 0 | J127: 0 | K127: 0 | L127: 0 | M127: 0 | N127: 0 | O127: 0 | P127: 0 | Q127: 0 | R127: 0 | S127: 0 | T127: 0 | U127: =IF(U123>=0.5,0,U118+U119) -> 0 | V127: =IF(V123>=0.5,0,V118+V119) -> 0 | W127: 0 | X127: 0 | Y127: 0 | Z127: 0 | AA127: 0 | AB127: 0 | AC127: 0 | AD127: 0 | AE127: 0 | AF127: 0 | AG127: 0 | AH127: 0
C128: Kum123 | D128: =IF(OR(D123>=0.5,D124>=0.5),0,D118+D119+D120) -> 0 | E128: =IF(OR(E123>=0.5,E124>=0.5),0,E118+E119+E120) -> 0 | F128: 0 | G128: 0 | H128: 0 | I128: 0 | J128: 0 | K128: 0 | L128: 0 | M128: 0 | N128: 0 | O128: 0 | P128: 0 | Q128: 0 | R128: 0 | S128: 0 | T128: 0 | U128: =IF(OR(U123>=0.5,U124>=0.5),0,U118+U119+U120) -> 0 | V128: =IF(OR(V123>=0.5,V124>=0.5),0,V118+V119+V120) -> 0 | W128: 0 | X128: 0 | Y128: 0 | Z128: 0 | AA128: 0 | AB128: 0 | AC128: 0 | AD128: 0 | AE128: 0 | AF128: 0 | AG128: 0 | AH128: 0
C129: Kum1234 | D129: =IF(OR(D123>=0.5,D124>=0.5,D125>=0.5),0,D118+D119+D120+D121) -> 0 | E129: =IF(OR(E123>=0.5,E124>=0.5,E125>=0.5),0,E118+E119+E120+E121) -> 0 | F129: 0 | G129: 0 | H129: 0 | I129: 0 | J129: 0 | K129: 0 | L129: 0 | M129: 0 | N129: 0 | O129: 0 | P129: 0 | Q129: 0 | R129: 0 | S129: 0 | T129: 0 | U129: =IF(OR(U123>=0.5,U124>=0.5,U125>=0.5),0,U118+U119+U120+U121) -> 0 | V129: =IF(OR(V123>=0.5,V124>=0.5,V125>=0.5),0,V118+V119+V120+V121) -> 0 | W129: 0 | X129: 0 | Y129: 0 | Z129: 0 | AA129: 0 | AB129: 0 | AC129: 0 | AD129: 0 | AE129: 0 | AF129: 0 | AG129: 0 | AH129: 0
C130: Kum23 | D130: =IF(D124>=0.5,0,D119+D120) -> 0 | E130: =IF(E124>=0.5,0,E119+E120) -> 0 | F130: 0 | G130: 0 | H130: 0 | I130: 0 | J130: 0 | K130: 0 | L130: 0 | M130: 0 | N130: 0 | O130: 0 | P130: 0 | Q130: 0 | R130: 0 | S130: 0 | T130: 0 | U130: =IF(U124>=0.5,0,U119+U120) -> 0 | V130: =IF(V124>=0.5,0,V119+V120) -> 0 | W130: 0 | X130: 0 | Y130: 0 | Z130: 0 | AA130: 0 | AB130: 0 | AC130: 0 | AD130: 0 | AE130: 0 | AF130: 0 | AG130: 0 | AH130: 0
C131: Kum234 | D131: =IF(OR(D124>=0.5,D125>=0.5),0,D119+D120+D121) -> 0 | E131: =IF(OR(E124>=0.5,E125>=0.5),0,E119+E120+E121) -> 0 | F131: 0 | G131: 0 | H131: 0 | I131: 0 | J131: 0 | K131: 0 | L131: 0 | M131: 0 | N131: 0 | O131: 0 | P131: 0 | Q131: 0 | R131: 0 | S131: 0 | T131: 0 | U131: =IF(OR(U124>=0.5,U125>=0.5),0,U119+U120+U121) -> 0 | V131: =IF(OR(V124>=0.5,V125>=0.5),0,V119+V120+V121) -> 0 | W131: 0 | X131: 0 | Y131: 0 | Z131: 0 | AA131: 0 | AB131: 0 | AC131: 0 | AD131: 0 | AE131: 0 | AF131: 0 | AG131: 0 | AH131: 0
C132: Kum34 | D132: =IF(D125>=0.5,0,D120+D121) -> 0 | E132: =IF(E125>=0.5,0,E120+E121) -> 0 | F132: 0 | G132: 0 | H132: 0 | I132: 0 | J132: 0 | K132: 0 | L132: 0 | M132: 0 | N132: 0 | O132: 0 | P132: 0 | Q132: 0 | R132: 0 | S132: 0 | T132: 0 | U132: =IF(U125>=0.5,0,U120+U121) -> 0 | V132: =IF(V125>=0.5,0,V120+V121) -> 0 | W132: 0 | X132: 0 | Y132: 0 | Z132: 0 | AA132: 0 | AB132: 0 | AC132: 0 | AD132: 0 | AE132: 0 | AF132: 0 | AG132: 0 | AH132: 0
C134: Pausenfehler-Code | D134: =IF(MAX(D118:D121,D127:D132)>6,2,0) -> 0 | E134: =IF(MAX(E118:E121,E127:E132)>6,2,0) -> 0 | F134: 0 | G134: 0 | H134: 0 | I134: 0 | J134: 0 | K134: 0 | L134: 0 | M134: 0 | N134: 0 | O134: 0 | P134: 0 | Q134: 0 | R134: 0 | S134: 0 | T134: 0 | U134: 0 | V134: 0 | W134: 0 | X134: 0 | Y134: 0 | Z134: 0 | AA134: 0 | AB134: 0 | AC134: 0 | AD134: 0 | AE134: 0 | AF134: 0 | AG134: 0 | AH134: 0

Sheet Juli (hidden)
A1: 7 | B1: =DATEVALUE("1."&A1&"."&SL_Jahr) -> 2024-07-01 | C1: =SL_Jahr -> 2024 | D1: =B_Gde -> Gde: | E1: =SL_Gemeinde -> 0 | T1: =B_Schule -> Schule: | U1: =SL_Schule -> 0 | AM1: Abschluss-Teilbedingungen:
A2: =VLOOKUP(A1,Monatsenden,2) -> 45504 | B2: =B_Bg -> BG: | C2: =VLOOKUP(B1,VSA_Kalender,13) -> 1 | D2: =B_Name -> Name: | E2: =SL_Name -> 0 | AM2: Regel ok | AN2: =(AN14>=AN15) -> FALSE | AO2: Nicht Relevant | AP2: =D83=0 -> TRUE | AQ2: -1 | AR2: =IF(AP2=TRUE,AQ2,0) -> -1 | AS2: Nicht Relevant
B3: =Zerf_Version & " " & Zerf_T -> Version VSA 1.06 | D3: =DATE($C$1,MONTH($B$1),D$4) -> 2024-07-01 | E3: =DATE($C$1,MONTH($B$1),E$4) -> 2024-07-02 | F3: 2024-07-03 | G3: 2024-07-04 | H3: 2024-07-05 | I3: 2024-07-06 | J3: 2024-07-07 | K3: 2024-07-08 | L3: 2024-07-09 | M3: 2024-07-10 | N3: 2024-07-11 | O3: 2024-07-12 | P3: 2024-07-13 | Q3: 2024-07-14 | R3: 2024-07-15 | S3: 2024-07-16 | T3: 2024-07-17 | U3: 2024-07-18 | V3: 2024-07-19 | W3: 2024-07-20 | X3: 2024-07-21 | Y3: 2024-07-22 | Z3: 2024-07-23 | AA3: 2024-07-24 | AB3: 2024-07-25 | AC3: 2024-07-26 | AD3: 2024-07-27 | AE3: 2024-07-28 | AF3: =IF(MONTH(DATE($C$1,MONTH($B$1),AF$41))>MONTH($B$1),"",DATE($C$1,MONTH($B$1),AF$4)) -> 2024-07-29 | AG3: =IF(MONTH(DATE($C$1,MONTH($B$1),AG$41))>MONTH($B$1),"",DATE($C$1,MONTH($B$1),AG$4)) -> 2024-07-30 | AH3: =IF(MONTH(DATE($C$1,MONTH($B$1),AH$41))>MONTH($B$1),"",DATE($C$1,MONTH($B$1),AH$4)) -> 2024-07-31 | AM3: Spalten ok | AN3: =(L83>=D83) -> TRUE | AO3: Entsperrt | AP3: FALSE | AQ3: 1 | AR3: =AP3*AQ3 -> 0 | AS3: Entsperrt
B4: =IF(VSATestModus=TRUE(),"VSA-Modus!","") ->  | C4: =IF(AN52>0,"DEFEKT","") ->  | D4: =IF(MONTH(DATE($C$1,MONTH($B$1),D$41))>MONTH($B$1),"",D41) -> 1 | E4: 2 | F4: 3 | G4: 4 | H4: 5 | I4: 6 | J4: 7 | K4: 8 | L4: 9 | M4: 10 | N4: 11 | O4: 12 | P4: 13 | Q4: 14 | R4: 15 | S4: 16 | T4: 17 | U4: 18 | V4: 19 | W4: 20 | X4: 21 | Y4: 22 | Z4: 23 | AA4: 24 | AB4: 25 | AC4: 26 | AD4: 27 | AE4: 28 | AF4: =IF(MONTH(DATE($C$1,MONTH($B$1),AF$41))>MONTH($B$1),"",AF41) -> 29 | AG4: =IF(MONTH(DATE($C$1,MONTH($B$1),AG$41))>MONTH($B$1),"",AG41) -> 30 | AH4: =IF(MONTH(DATE($C$1,MONTH($B$1),AH$41))>MONTH($B$1),"",AH41) -> 31 | AM4: Keine Fehler | AN4: =(SUM(D87:AH87)=0) -> TRUE | AO4: Geändert | AP4: FALSE | AQ4: 2 | AR4: =AP4*AQ4 -> 0 | AS4: Geändert
B5: Ein >>> | AM5: Keine Hand | AN5: =(AI12="") -> TRUE | AO5: Sperre | AP5: =AS11=2 -> FALSE | AQ5: 3 | AR5: =NOT(AP6)*AQ5 -> 3 | AS5: Eingaben vornehmen
B6: <<< Aus | AO6: Abschliessbar 1 | AP6: =AND(OR(AN2,AN3),AN4,AN5,NOT(AP7),NOT(AP2)) -> FALSE | AQ6: 4 | AR6: =AND(NOT(OR(AP3,AP4)),AP6)*AQ6 -> 0 | AS6: Abschliessbar 1
B7: Ein >>> | AO7: Abgeschlossen | AP7: FALSE | AQ7: 5 | AR7: =AND(NOT(OR(AP3,AP4)),AP7)*AQ7 -> 0 | AS7: Abgeschlossen
B8: <<< Aus | AO8: Für Jahr OK | AP8: =AND(OR(AP2,AP7),NOT(AP3)) -> TRUE
B9: Ein >>>
B10: <<< Aus | AO10: Statusnummer: | AP10: =IF(AR2=AQ2,AQ2,MAX(AR2:AR7)) -> -1
B11: Ein >>> | AM11: HatDaten: | AN11: =AND(AP2=FALSE,OR(AP10<>3,COUNTA(D5:AH12,D20:AH35,D39:L40)>0)) -> FALSE | AO11: Statustext: | AP11: =IFERROR(VLOOKUP(AP10,AR2:AS7,2,FALSE),"unbekannt") -> Nicht Relevant | AS11: 1
B12: <<< Aus | AI12: =IF(COUNTIF(D37:AH37,"I")>0,"I","") -> 
B13: =B_PrZeit -> Präsenzzeit | D13: =24*(D6-D5+D8-D7+D10-D9+D12-D11)*D88 -> 0 | E13: =24*(E6-E5+E8-E7+E10-E9+E12-E11)*E88 -> 0 | F13: 0 | G13: 0 | H13: 0 | I13: 0 | J13: 0 | K13: 0 | L13: 0 | M13: 0 | N13: 0 | O13: 0 | P13: 0 | Q13: 0 | R13: 0 | S13: 0 | T13: 0 | U13: 0 | V13: 0 | W13: 0 | X13: 0 | Y13: 0 | Z13: 0 | AA13: 0 | AB13: 0 | AC13: 0 | AD13: 0 | AE13: 0 | AF13: 0 | AG13: 0 | AH13: 0 | AM13: Anzahl Regeltage: | AN13: =D83 -> 0
B14: =B_TotalAZist -> Total Arbeitszeit (IST) | D14: =IF(D13+D35>=D15,D13+D35,MIN(D13+D35+SUM(D20,D22,D23,D24,D25,D26,D27,D28,D29,D30,D31,D32,D33,D34),IF(D15<0,0,D15)))*D82 -> 0 | E14: 0 | F14: 0 | G14: 0 | H14: 0 | I14: 0 | J14: 0 | K14: 0 | L14: 0 | M14: 0 | N14: 0 | O14: 0 | P14: 0 | Q14: 0 | R14: =IF(R13+R35>=R15,R13+R35,MIN(R13+R35+SUM(R20,R22,R23,R24,R25,R26,R27,R28,R29,R30,R31,R32,R33,R34),IF(R15<0,0,R15)))*R82 -> 0 | S14: =IF(S13+S35>=S15,S13+S35,MIN(S13+S35+SUM(S20,S22,S23,S24,S25,S26,S27,S28,S29,S30,S31,S32,S33,S34),IF(S15<0,0,S15)))*S82 -> 0 | T14: =IF(T13+T35>=T15,T13+T35,MIN(T13+T35+SUM(T20,T22,T23,T24,T25,T26,T27,T28,T29,T30,T31,T32,T33,T34),IF(T15<0,0,T15)))*T82 -> 0 | U14: =IF(U13+U35>=U15,U13+U35,MIN(U13+U35+SUM(U20,U22,U23,U24,U25,U26,U27,U28,U29,U30,U31,U32,U33,U34),IF(U15<0,0,U15)))*U82 -> 0 | V14: 0 | W14: 0 | X14: 0 | Y14: 0 | Z14: 0 | AA14: 0 | AB14: 0 | AC14: 0 | AD14: 0 | AE14: 0 | AF14: 0 | AG14: 0 | AH14: 0 | AI14: =SUMIF($D$82:$AH$82,1,D14:AH14) -> 0 | AJ14: =AI14-AI15 -> 0 | AM14: Erfasste Regeltage | AN14: =L83 -> 0 | AO14: =AN13-AN14 -> 0 | AP14: Fehlende Regeltage
B15: =B_NettoSollAZ -> Netto-SOLL-Arbeitszeit | D15: =ROUND(D16-D19,2) -> 0 | E15: =ROUND(E16-E19,2) -> 0 | F15: 0 | G15: 0 | H15: 0 | I15: 0 | J15: 0 | K15: 0 | L15: 0 | M15: 0 | N15: 0 | O15: 0 | P15: 0 | Q15: 0 | R15: 0 | S15: 0 | T15: 0 | U15: 0 | V15: 0 | W15: 0 | X15: 0 | Y15: 0 | Z15: 0 | AA15: 0 | AB15: 0 | AC15: 0 | AD15: 0 | AE15: 0 | AF15: =IF(AF$42=4,0,ROUND(AF16-AF19,2)) -> 0 | AG15: =IF(AG$42=4,0,ROUND(AG16-AG19,2)) -> 0 | AH15: 0 | AI15: =SUMIF($D$82:$AH$82,1,D15:AH15) -> 0 | AM15: Minimum Regeltage | AN15: =MinRegeltage -> 1 | AO15: Ist als Konstante im Blatt "Intern" hinterlegt
B16: =B_BruttoSollAZ -> Brutto-SOLL-Arb.zeit | D16: =VLOOKUP(D3,VSA_Kalender,16) -> 0 | E16: 0 | F16: 0 | G16: 0 | H16: 0 | I16: 0 | J16: 0 | K16: 0 | L16: 0 | M16: 0 | N16: 0 | O16: 0 | P16: 0 | Q16: 0 | R16: 0 | S16: 0 | T16: 0 | U16: 0 | V16: 0 | W16: 0 | X16: 0 | Y16: 0 | Z16: 0 | AA16: 0 | AB16: 0 | AC16: 0 | AD16: 0 | AE16: 0 | AF16: =IF(AF$42=4,0,VLOOKUP(AF3,VSA_Kalender,16)) -> 0 | AG16: =IF(AG$42=4,0,VLOOKUP(AG3,VSA_Kalender,16)) -> 0 | AH16: =IF(AH$42=4,0,VLOOKUP(AH3,VSA_Kalender,16)) -> 0 | AM16: Regel ok | AN16: Mind. eigetr. Regeltage erfüllt
B17: =B_MehrMinder -> Mehr-/Minderleistung | D17: =(SL_BisDatum>=D3)*ROUND(D14-D15,2) -> 0 | E17: 0 | F17: 0 | G17: 0 | H17: 0 | I17: 0 | J17: 0 | K17: 0 | L17: 0 | M17: 0 | N17: 0 | O17: 0 | P17: 0 | Q17: 0 | R17: 0 | S17: 0 | T17: 0 | U17: 0 | V17: 0 | W17: 0 | X17: 0 | Y17: 0 | Z17: 0 | AA17: 0 | AB17: 0 | AC17: 0 | AD17: 0 | AE17: 0 | AF17: 0 | AG17: 0 | AH17: 0 | AI17: =B_Total -> Total | AJ17: =B_Vortrag -> Vortrag | AM17: Spalten ok: | AN17: Alle Einträge an Regeltagen ok
B18: =B_AZSaldo -> AZ - Saldo | C18: =VLOOKUP(ROW(),VSA_Uebertrag,$A$1+3) -> 16.8 | D18: =IFERROR((C18+D17)*(D3<=SL_BisDatum)*VLOOKUP(D3,VSA_Kalender,21,FALSE),0) -> 0 | E18: 0 | F18: 0 | G18: =IFERROR((F18+G17)*(G3<=SL_BisDatum)*VLOOKUP(G3,VSA_Kalender,21,FALSE),0) -> 0 | H18: 0 | I18: 0 | J18: 0 | K18: 0 | L18: 0 | M18: 0 | N18: 0 | O18: 0 | P18: 0 | Q18: 0 | R18: 0 | S18: 0 | T18: 0 | U18: 0 | V18: 0 | W18: 0 | X18: 0 | Y18: 0 | Z18: 0 | AA18: 0 | AB18: 0 | AC18: 0 | AD18: 0 | AE18: 0 | AF18: 0 | AG18: 0 | AH18: 0 | AJ18: =SUMIF($D$82:$AH$82,1,D17:AH17)+C18 -> 16.8
B19: =B_FTA -> Feiertagsanspruch | C19: 0 | D19: =VLOOKUP(D3,VSA_Kalender,14) -> 0 | E19: 0 | F19: 0 | G19: 0 | H19: 0 | I19: 0 | J19: 0 | K19: 0 | L19: 0 | M19: 0 | N19: 0 | O19: 0 | P19: 0 | Q19: 0 | R19: 0 | S19: 0 | T19: 0 | U19: 0 | V19: 0 | W19: 0 | X19: 0 | Y19: 0 | Z19: 0 | AA19: 0 | AB19: 0 | AC19: 0 | AD19: 0 | AE19: 0 | AF19: =IF(AF$42=4,0,VLOOKUP(AF3,VSA_Kalender,14)) -> 0 | AG19: =IF(AG$42=4,0,VLOOKUP(AG3,VSA_Kalender,14)) -> 0 | AH19: =IF(AH$42=4,0,VLOOKUP(AH3,VSA_Kalender,14)) -> 0 | AI19: =SUM(D19:AH19) -> 0
B20: =B_Ferien -> Ferien | C20: =VLOOKUP(ROW(),VSA_Uebertrag,$A$1+3) -> 0 | AI20: =SUMIF($D$82:$AH$82,1,D20:AH20) -> 0 | AJ20: =ROUND(C20-AI20,2) -> 0 | AK20: Rest
B21: =B_KompAZ -> Kompensation Arbeitstage | C21: 0 | AI21: 0 | AJ21: =ROUND(A21+C21-AI21,0) -> 0
B22: =B_Arzt -> Arztbesuch | C22: 0 | AI22: 0 | AJ22: =ROUND(A22+C22+AI22,2) -> 0 | AK22: Summen
B23: =B_Krank -> Krankheit | C23: 0 | AI23: 0 | AJ23: =ROUND(A23+C23+AI23,2) -> 0
B24: =B_BU -> Berufsunfall | C24: 0 | AI24: 0 | AJ24: 0
B25: =B_NBU -> Nichtberufsunfall | C25: 0 | AI25: 0 | AJ25: 0
B26: =B_MilZiv -> Militär / Zivilschutz | C26: 0 | AI26: 0 | AJ26: 0
B27: =B_UUB -> Unbezahlter Urlaub | C27: 0 | AI27: 0 | AJ27: =ROUND(A27+C27-AI27,2) -> 0 | AK27: Rest
B28: =B_UB -> Bezahlter Urlaub | C28: 0 | AI28: 0 | AJ28: =ROUND(A28+C28-AI28,2) -> 0
B29: =B_NebenB -> Nebenbeschäftigung | C29: 0 | AI29: 0 | AJ29: 0
B30: =B_DAG -> D A G | C30: 0 | AI30: 0 | AJ30: 0
B31: =B_Divers -> Diverses | C31: 0 | AI31: 0 | AJ31: 0 | AK31: Summen
B32: =B_FamPersErg -> Fam./pers. Ereignisse | C32: 0 | AI32: 0 | AJ32: 0
B33: =B_FZ1 -> freie Zeile 1 | C33: 0 | AI33: 0 | AJ33: 0
B34: =B_FZ2 -> freie Zeile 2 | C34: 0 | AI34: 0 | AJ34: 0
B35: =B_WB -> Weiterbildung | C35: 0 | AI35: 0 | AJ35: 0
B36: =B_FEL -> frei einsetzbare Lekt. | C36: 0 | AI36: =SUM(D36:AH36) -> 0 | AJ36: =ROUND(C36-AI36,0) -> 0
D37: =IF(AND((D13 - D15)+SUM(D20,D22:D34)>0.00001,SUM(D20,D22:D34)>0),"I","") -> 
C38: Visum | D38: Identität: | I38: Datum: | K38: Status:
C39: SL
C40: VG
D41: 1 | E41: 2 | F41: 3 | G41: 4 | H41: 5 | I41: 6 | J41: 7 | K41: 8 | L41: 9 | M41: 10 | N41: 11 | O41: 12 | P41: 13 | Q41: 14 | R41: 15 | S41: 16 | T41: 17 | U41: 18 | V41: 19 | W41: 20 | X41: 21 | Y41: 22 | Z41: 23 | AA41: 24 | AB41: 25 | AC41: 26 | AD41: 27 | AE41: 28 | AF41: 29 | AG41: 30 | AH41: 31
D42: =IF(D3="",4,VLOOKUP(D3,VSA_Kalender,18)) -> 0 | E42: 0 | F42: 0 | G42: 0 | H42: 0 | I42: 1 | J42: 1 | K42: 0 | L42: 0 | M42: 0 | N42: 0 | O42: 0 | P42: 1 | Q42: 1 | R42: 0 | S42: 0 | T42: 0 | U42: 0 | V42: 0 | W42: 1 | X42: 1 | Y42: 0 | Z42: 0 | AA42: 0 | AB42: 0 | AC42: 0 | AD42: 1 | AE42: 1 | AF42: 0 | AG42: 0 | AH42: 0
D44: =IF(D19>0,VLOOKUP(D3,KalFeiertage,6,FALSE),"") -> 
